Workbook

Sheet Info (hidden)
A1: Info: | B1: Dieses Tabellenblatt bitte weder löschen noch verändern.

Sheet Calendar Backup (hidden)
D1: Auswahl der gesetzlichen Feiertage (mit einem kleinen x ankreuzen)
D2: Jan | E2: 1 | F2: 2 | G2: 3 | H2: 4 | I2: 5 | J2: 6 | K2: 7 | L2: 8 | M2: 9 | N2: 10 | O2: 11 | P2: 12 | Q2: 13 | R2: 14 | S2: 15 | T2: 16 | U2: 17 | V2: 18 | W2: 19 | X2: 20 | Y2: 21 | Z2: 22 | AA2: 23 | AB2: 24 | AC2: 25 | AD2: 26 | AE2: 27 | AF2: 28 | AG2: 29 | AH2: 30 | AI2: 31
D4: Feb | E4: 1 | F4: 2 | G4: 3 | H4: 4 | I4: 5 | J4: 6 | K4: 7 | L4: 8 | M4: 9 | N4: 10 | O4: 11 | P4: 12 | Q4: 13 | R4: 14 | S4: 15 | T4: 16 | U4: 17 | V4: 18 | W4: 19 | X4: 20 | Y4: 21 | Z4: 22 | AA4: 23 | AB4: 24 | AC4: 25 | AD4: 26 | AE4: 27 | AF4: 28 | AG4: 29
D6: Mrz | E6: 1 | F6: 2 | G6: 3 | H6: 4 | I6: 5 | J6: 6 | K6: 7 | L6: 8 | M6: 9 | N6: 10 | O6: 11 | P6: 12 | Q6: 13 | R6: 14 | S6: 15 | T6: 16 | U6: 17 | V6: 18 | W6: 19 | X6: 20 | Y6: 21 | Z6: 22 | AA6: 23 | AB6: 24 | AC6: 25 | AD6: 26 | AE6: 27 | AF6: 28 | AG6: 29 | AH6: 30 | AI6: 31
D8: Apr | E8: 1 | F8: 2 | G8: 3 | H8: 4 | I8: 5 | J8: 6 | K8: 7 | L8: 8 | M8: 9 | N8: 10 | O8: 11 | P8: 12 | Q8: 13 | R8: 14 | S8: 15 | T8: 16 | U8: 17 | V8: 18 | W8: 19 | X8: 20 | Y8: 21 | Z8: 22 | AA8: 23 | AB8: 24 | AC8: 25 | AD8: 26 | AE8: 27 | AF8: 28 | AG8: 29 | AH8: 30
D10: Mai | E10: 1 | F10: 2 | G10: 3 | H10: 4 | I10: 5 | J10: 6 | K10: 7 | L10: 8 | M10: 9 | N10: 10 | O10: 11 | P10: 12 | Q10: 13 | R10: 14 | S10: 15 | T10: 16 | U10: 17 | V10: 18 | W10: 19 | X10: 20 | Y10: 21 | Z10: 22 | AA10: 23 | AB10: 24 | AC10: 25 | AD10: 26 | AE10: 27 | AF10: 28 | AG10: 29 | AH10: 30 | AI10: 31
D12: Jun | E12: 1 | F12: 2 | G12: 3 | H12: 4 | I12: 5 | J12: 6 | K12: 7 | L12: 8 | M12: 9 | N12: 10 | O12: 11 | P12: 12 | Q12: 13 | R12: 14 | S12: 15 | T12: 16 | U12: 17 | V12: 18 | W12: 19 | X12: 20 | Y12: 21 | Z12: 22 | AA12: 23 | AB12: 24 | AC12: 25 | AD12: 26 | AE12: 27 | AF12: 28 | AG12: 29 | AH12: 30
D14: Jul | E14: 1 | F14: 2 | G14: 3 | H14: 4 | I14: 5 | J14: 6 | K14: 7 | L14: 8 | M14: 9 | N14: 10 | O14: 11 | P14: 12 | Q14: 13 | R14: 14 | S14: 15 | T14: 16 | U14: 17 | V14: 18 | W14: 19 | X14: 20 | Y14: 21 | Z14: 22 | AA14: 23 | AB14: 24 | AC14: 25 | AD14: 26 | AE14: 27 | AF14: 28 | AG14: 29 | AH14: 30 | AI14: 31
D16: Aug | E16: 1 | F16: 2 | G16: 3 | H16: 4 | I16: 5 | J16: 6 | K16: 7 | L16: 8 | M16: 9 | N16: 10 | O16: 11 | P16: 12 | Q16: 13 | R16: 14 | S16: 15 | T16: 16 | U16: 17 | V16: 18 | W16: 19 | X16: 20 | Y16: 21 | Z16: 22 | AA16: 23 | AB16: 24 | AC16: 25 | AD16: 26 | AE16: 27 | AF16: 28 | AG16: 29 | AH16: 30 | AI16: 31
D18: Sep | E18: 1 | F18: 2 | G18: 3 | H18: 4 | I18: 5 | J18: 6 | K18: 7 | L18: 8 | M18: 9 | N18: 10 | O18: 11 | P18: 12 | Q18: 13 | R18: 14 | S18: 15 | T18: 16 | U18: 17 | V18: 18 | W18: 19 | X18: 20 | Y18: 21 | Z18: 22 | AA18: 23 | AB18: 24 | AC18: 25 | AD18: 26 | AE18: 27 | AF18: 28 | AG18: 29 | AH18: 30
D20: Okt | E20: 1 | F20: 2 | G20: 3 | H20: 4 | I20: 5 | J20: 6 | K20: 7 | L20: 8 | M20: 9 | N20: 10 | O20: 11 | P20: 12 | Q20: 13 | R20: 14 | S20: 15 | T20: 16 | U20: 17 | V20: 18 | W20: 19 | X20: 20 | Y20: 21 | Z20: 22 | AA20: 23 | AB20: 24 | AC20: 25 | AD20: 26 | AE20: 27 | AF20: 28 | AG20: 29 | AH20: 30 | AI20: 31
D22: Nov | E22: 1 | F22: 2 | G22: 3 | H22: 4 | I22: 5 | J22: 6 | K22: 7 | L22: 8 | M22: 9 | N22: 10 | O22: 11 | P22: 12 | Q22: 13 | R22: 14 | S22: 15 | T22: 16 | U22: 17 | V22: 18 | W22: 19 | X22: 20 | Y22: 21 | Z22: 22 | AA22: 23 | AB22: 24 | AC22: 25 | AD22: 26 | AE22: 27 | AF22: 28 | AG22: 29 | AH22: 30
D24: Dez | E24: 1 | F24: 2 | G24: 3 | H24: 4 | I24: 5 | J24: 6 | K24: 7 | L24: 8 | M24: 9 | N24: 10 | O24: 11 | P24: 12 | Q24: 13 | R24: 14 | S24: 15 | T24: 16 | U24: 17 | V24: 18 | W24: 19 | X24: 20 | Y24: 21 | Z24: 22 | AA24: 23 | AB24: 24 | AC24: 25 | AD24: 26 | AE24: 27 | AF24: 28 | AG24: 29 | AH24: 30 | AI24: 31

Sheet Konfiguration (hidden)
A1: Globale Konfiguration
H2: Memo =>
A3: Jahr | B3: 2019 | C3: ="01.01."&B3 -> 01.01.2019 | D3: Schaljahr j/n | E3: =IF(F3=1,"ja","nein") -> nein | F3: =IF(MOD(YEAR($C$3),400)=0,"",IF(MOD(YEAR($C$3),100)=0,"kein",IF(MOD(YEAR($C$3),4)=0,1,0))) -> 0 | H3: 1.Tag des Jahes | I3: formel
A4: max. Std/Woche gem. GAV | B4: 48 | H4: letzter Tag des Jahres | I4: formel
A5: Std/Tag gem. GAV | B5: 8 | D5: Jahresbruttosollstunden | H5: Anz. Wochentage | I5: formel
H6: % Nachzuschlag | I6: eingabe
H7: % Sonn- & Feiertagszuschlag | I7: eingabe
H8: % Wochenzuschlag | I8: eingabe
H9: Ausahlung mit Zuschlag (max. Std) | I9: eingabe
A11: Standard Kalender | B11: calendar
A14: Standard Sprache | B14: DE | H14: Sprachen | I14: Deutsch | J14: DE
I15: Français | J15: FR
I16: English | J16: EN
I17: Italiano | J17: IT

Sheet CALENDRIER
D1: Jours fériés (marquer avec un x)
D2: Jan | E2: 1 | F2: 2 | G2: 3 | H2: 4 | I2: 5 | J2: 6 | K2: 7 | L2: 8 | M2: 9 | N2: 10 | O2: 11 | P2: 12 | Q2: 13 | R2: 14 | S2: 15 | T2: 16 | U2: 17 | V2: 18 | W2: 19 | X2: 20 | Y2: 21 | Z2: 22 | AA2: 23 | AB2: 24 | AC2: 25 | AD2: 26 | AE2: 27 | AF2: 28 | AG2: 29 | AH2: 30 | AI2: 31
D4: Feb | E4: 1 | F4: 2 | G4: 3 | H4: 4 | I4: 5 | J4: 6 | K4: 7 | L4: 8 | M4: 9 | N4: 10 | O4: 11 | P4: 12 | Q4: 13 | R4: 14 | S4: 15 | T4: 16 | U4: 17 | V4: 18 | W4: 19 | X4: 20 | Y4: 21 | Z4: 22 | AA4: 23 | AB4: 24 | AC4: 25 | AD4: 26 | AE4: 27 | AF4: 28 | AG4: 29
D6: Mrz | E6: 1 | F6: 2 | G6: 3 | H6: 4 | I6: 5 | J6: 6 | K6: 7 | L6: 8 | M6: 9 | N6: 10 | O6: 11 | P6: 12 | Q6: 13 | R6: 14 | S6: 15 | T6: 16 | U6: 17 | V6: 18 | W6: 19 | X6: 20 | Y6: 21 | Z6: 22 | AA6: 23 | AB6: 24 | AC6: 25 | AD6: 26 | AE6: 27 | AF6: 28 | AG6: 29 | AH6: 30 | AI6: 31
D8: Apr | E8: 1 | F8: 2 | G8: 3 | H8: 4 | I8: 5 | J8: 6 | K8: 7 | L8: 8 | M8: 9 | N8: 10 | O8: 11 | P8: 12 | Q8: 13 | R8: 14 | S8: 15 | T8: 16 | U8: 17 | V8: 18 | W8: 19 | X8: 20 | Y8: 21 | Z8: 22 | AA8: 23 | AB8: 24 | AC8: 25 | AD8: 26 | AE8: 27 | AF8: 28 | AG8: 29 | AH8: 30
D10: Mai | E10: 1 | F10: 2 | G10: 3 | H10: 4 | I10: 5 | J10: 6 | K10: 7 | L10: 8 | M10: 9 | N10: 10 | O10: 11 | P10: 12 | Q10: 13 | R10: 14 | S10: 15 | T10: 16 | U10: 17 | V10: 18 | W10: 19 | X10: 20 | Y10: 21 | Z10: 22 | AA10: 23 | AB10: 24 | AC10: 25 | AD10: 26 | AE10: 27 | AF10: 28 | AG10: 29 | AH10: 30 | AI10: 31
D12: Jun | E12: 1 | F12: 2 | G12: 3 | H12: 4 | I12: 5 | J12: 6 | K12: 7 | L12: 8 | M12: 9 | N12: 10 | O12: 11 | P12: 12 | Q12: 13 | R12: 14 | S12: 15 | T12: 16 | U12: 17 | V12: 18 | W12: 19 | X12: 20 | Y12: 21 | Z12: 22 | AA12: 23 | AB12: 24 | AC12: 25 | AD12: 26 | AE12: 27 | AF12: 28 | AG12: 29 | AH12: 30
D14: Jul | E14: 1 | F14: 2 | G14: 3 | H14: 4 | I14: 5 | J14: 6 | K14: 7 | L14: 8 | M14: 9 | N14: 10 | O14: 11 | P14: 12 | Q14: 13 | R14: 14 | S14: 15 | T14: 16 | U14: 17 | V14: 18 | W14: 19 | X14: 20 | Y14: 21 | Z14: 22 | AA14: 23 | AB14: 24 | AC14: 25 | AD14: 26 | AE14: 27 | AF14: 28 | AG14: 29 | AH14: 30 | AI14: 31
D16: Aug | E16: 1 | F16: 2 | G16: 3 | H16: 4 | I16: 5 | J16: 6 | K16: 7 | L16: 8 | M16: 9 | N16: 10 | O16: 11 | P16: 12 | Q16: 13 | R16: 14 | S16: 15 | T16: 16 | U16: 17 | V16: 18 | W16: 19 | X16: 20 | Y16: 21 | Z16: 22 | AA16: 23 | AB16: 24 | AC16: 25 | AD16: 26 | AE16: 27 | AF16: 28 | AG16: 29 | AH16: 30 | AI16: 31
D18: Sep | E18: 1 | F18: 2 | G18: 3 | H18: 4 | I18: 5 | J18: 6 | K18: 7 | L18: 8 | M18: 9 | N18: 10 | O18: 11 | P18: 12 | Q18: 13 | R18: 14 | S18: 15 | T18: 16 | U18: 17 | V18: 18 | W18: 19 | X18: 20 | Y18: 21 | Z18: 22 | AA18: 23 | AB18: 24 | AC18: 25 | AD18: 26 | AE18: 27 | AF18: 28 | AG18: 29 | AH18: 30
D20: Okt | E20: 1 | F20: 2 | G20: 3 | H20: 4 | I20: 5 | J20: 6 | K20: 7 | L20: 8 | M20: 9 | N20: 10 | O20: 11 | P20: 12 | Q20: 13 | R20: 14 | S20: 15 | T20: 16 | U20: 17 | V20: 18 | W20: 19 | X20: 20 | Y20: 21 | Z20: 22 | AA20: 23 | AB20: 24 | AC20: 25 | AD20: 26 | AE20: 27 | AF20: 28 | AG20: 29 | AH20: 30 | AI20: 31
D22: Nov | E22: 1 | F22: 2 | G22: 3 | H22: 4 | I22: 5 | J22: 6 | K22: 7 | L22: 8 | M22: 9 | N22: 10 | O22: 11 | P22: 12 | Q22: 13 | R22: 14 | S22: 15 | T22: 16 | U22: 17 | V22: 18 | W22: 19 | X22: 20 | Y22: 21 | Z22: 22 | AA22: 23 | AB22: 24 | AC22: 25 | AD22: 26 | AE22: 27 | AF22: 28 | AG22: 29 | AH22: 30
D24: Dez | E24: 1 | F24: 2 | G24: 3 | H24: 4 | I24: 5 | J24: 6 | K24: 7 | L24: 8 | M24: 9 | N24: 10 | O24: 11 | P24: 12 | Q24: 13 | R24: 14 | S24: 15 | T24: 16 | U24: 17 | V24: 18 | W24: 19 | X24: 20 | Y24: 21 | Z24: 22 | AA24: 23 | AB24: 24 | AC24: 25 | AD24: 26 | AE24: 27 | AF24: 28 | AG24: 29 | AH24: 30 | AI24: 31

Sheet Labels (hidden)
A1: Achtung: | B1: lange Texte sind jeweils manuell einzusetzen
A3: gewählte Sprache | B3: FR
A12: Index | B12: Dargestellt | C12: DE | D12: EN | E12: FR | F12: IT
A13: 2 | B13: =HLOOKUP($B$3,$C$12:$F$506,A13,FALSE) -> [$-40C] | C13: [$-807] | D13: [$-409] | E13: [$-40C] | F13: [$-410]
A14: 3 | B14: ASEPP | C14: SMGV | D14: =C14 -> SMGV | E14: ASEPP | F14: ASIPG
A15: 4 | B15: CCT | C15: GAV | D15: CEC | E15: CCT | F15: CCL
A16: 5 | B16: Contrôle | C16: Kontrolle | D16: Record | E16: Contrôle | F16: Controllo
A17: 6 | B17: Contrôle des heures de travail | C17: A r b e i t s z e i t k o n t r o l l e | D17: Timesheet | E17: Contrôle des heures de travail | F17: Controllo d'orario di lavoro
A18: 7 | B18: Nom/Prénom | C18: Mitarbeiter/In | D18: Employee | E18: Nom/Prénom | F18: Nome/Conome
A19: 8 | B19: Modèle Pierre | C19: Muster Peter | D19: Smith John | E19: Modèle Pierre | F19: Modello Pietro
A20: 9 | B20: Emploi % | C20: Anstellung % | D20: Level of employment % | E20: Emploi % | F20: Occupazione %
A21: 10 | B21: Solde année en cours | C21: Saldo für das Jahr | D21: Balance (year) | E21: Solde année en cours | F21: =C21 -> Saldo für das Jahr
A22: 11 | B22: Solde année passée (+) | C22: Saldo Vorjahresstunden (+) | D22: Balance previous year (+) | E22: Solde année passée (+) | F22: =C22 -> Saldo Vorjahresstunden (+)
A23: 12 | B23: Solde année passée (-) | C23: Saldo Vorjahresstunden (-) | D23: Balance previous year (-) | E23: Solde année passée (-) | F23: Saldo Vorjahresstunden (-)
A24: 13 | B24: Solde vacances année passée | C24: Ferienguthaben Vorjahr | D24: Remaining holidays (prev. year) | E24: Solde vacances année passée | F24: Ferienguthaben Vorjahr
A25: 14 | B25: Vacances selon art. 12.1. CCT | C25: Ferienguthaben laufendes Jahr | D25: Total holidays current year | E25: Vacances selon art. 12.1. CCT | F25: Ferienguthaben laufendes Jahr
A26: 15 | B26: Heures | C26: Stunden | D26: Hours | E26: Heures | F26: Stunden
A27: 16 | B27: max heures / semain CCT | C27: Max. Std / Woche gemäss GAV | D27: Max. hours / week according CEC | E27: max heures / semain CCT | F27: Max. Std / Woche gemäss GAV
A28: 17 | B28: heures/jour CCT | C28: Std/Tag gemäss GAV | D28: hours/day according CEC | E28: heures/jour CCT | F28: Std/Tag gemäss GAV
A29: 18 | B29: Année bissextile (j/n) | C29: Schaltjahr (j/n) | D29: leap year (y/n) | E29: Année bissextile (j/n) | F29: Schaltjahr (j/n)
A30: 19 | B30: jours ouvrables (année) | C30: Arbeitstage (Jahr) | D30: Working Days (year) | E30: jours ouvrables (année) | F30: Arbeitstage (Jahr)
A31: 20 | B31: brut annuel d'heures | C31: Jahresbruttosollstunden | D31: Annual gross target hours | E31: brut annuel d'heures | F31: Jahresbruttosollstunden
A32: 21 | B32: Solde mois + / - | C32: Saldo Monat + / - | D32: Balance month +/- | E32: Solde mois + / - | F32: Saldo Monat + / -
A33: 22 | B33: = | C33: = | D33: =C33 -> = | E33: = | F33: =
A34: 23 | B34: Les cases marquées en jaune doivent être remplies (les autres seront calculées automatiquement) | C34: Gelbe Felder müssen ausgefüllt werden (die übrigen werden automatisch berechnet) | D34: Yellow fields must be filled (all others are calculated) | E34: Les cases marquées en jaune doivent être remplies (les autres seront calculées automatiquement) | F34: Gelbe Felder müssen ausgefüllt werden (die übrigen werden automatisch berechnet)
A35: 24 | B35: Jour | C35: Tag | D35: Day | E35: Jour | F35: Tag
A36: 25 | B36: semaine civile | C36: Kalenderwoche | D36: Calendar week | E36: semaine civile | F36: Kalenderwoche
A37: 26 | B37: Théorique sel. CCT | C37: Sollstunden | D37: Target hours | E37: Théorique sel. CCT | F37: Sollstunden
A38: 27 | B38: Absences | C38: Absenz in Std | D38: Absence (hours) | E38: Absences | F38: Absenz in Std
A39: 28 | B39: Code | C39: Code | D39: Code | E39: Code | F39: Code
A40: 29 | B40: 00h00-06h00 1) | C40: 00.00-06.00h | D40: 00.00-06.00h | E40: 00h00-06h00 1) | F40: 00.00-06.00
A41: 30 | B41: 06h00-20h00 2) | C41: 06.00-20.00h | D41: 06.00-20.00h | E41: 06h00-20h00 2) | F41: 06.00-20.00
A42: 31 | B42: 20h00-24h00 3) | C42: 20.00-24.00h | D42: 20.00-24.00h | E42: 20h00-24h00 3) | F42: 20.00-24.00
A43: 32 | B43: Jours fériés "jf" | C43: Feiertag "ft" | D43: Holiday "ft" | E43: Jours fériés "jf" | F43: Giorni festivi "gf"
A44: 33 | B44: Majoration "jf" | C44: Gutschrift "ft" | D44: Credit "ft" | E44: Majoration "jf" | F44: Credito "gf"
A45: 34 | B45: total quotidien | C45: Tagestotal | D45: Daily total | E45: total quotidien | F45: totale quotidiano
A46: 35 | B46: . | C46: . | D46: . | E46: . | F46: .
A47: 36 | B47: . | C47: . | D47: . | E47: . | F47: .
A48: 37 | B48: transition mois | C48: Monatsübergang | D48: Monthly transfer | E48: transition mois | F48: transizione mensile
A49: 38 | B49: Total hebdomadaire | C49: Wochentotal | D49: Weekly total | E49: Total hebdomadaire | F49: totale settimana
A50: 39 | B50: Majorations temp. 1) | C50: Zeitzuschlag 1) | D50: Bonus hours 1) | E50: Majorations temp. 1) | F50: Supplemento in ore 1)
A51: 40 | B51: Majorations temp. 2) | C51: Zeitzuschlag 2) | D51: Bonus hours 2) | E51: Majorations temp. 2) | F51: Supplemento in ore 2)
A52: 41 | B52: Majorations temp. 3) | C52: Zeitzuschlag 3) | D52: Bonus hours 3) | E52: Majorations temp. 3) | F52: Supplemento in ore 3)
A53: 42 | B53: Dimanche journée | C53: Sonntag Tag | D53: Sunday day | E53: Dimanche journée | F53: Domenica giorno
A54: 43 | B54: Dimanche nuit | C54: Sonntag Nacht | D54: Sunday night | E54: Dimanche nuit | F54: Domenica notte
A55: 44 | B55: jf-jomajoration | C55: ft-Tazuschlag | D55: ft-daybonus | E55: jf-jomajoration | F55: gf-gisupplemento
A56: 45 | B56: jf-numajoration | C56: ft-Nazuschlag | D56: ft-nightbonus | E56: jf-numajoration | F56: gf-nosupplemento
A57: 46 | B57: majoration caché (total hebd.) | C57: Zuschlag blind (Wochentotal) | D57: bonus hidden (week total) | E57: majoration caché (total hebd.) | F57: Supplemento nascosto (totale sett.)
A58: 47 | B58: 1) 25% majoration temporelle pour depassement les heures maximales | C58: 1) 25% Zeitzuschlag für Überschreitung Höchstarbeitszeit | D58: 1) 25% bonus for exceeding maximum hours | E58: 1) 25% majoration temporelle pour depassement les heures maximales | F58: 1) 25%
A59: 48 | B59: 2) 100% majoration temporelle pour travail de nuit | C59: 2) 100% Zeitzuschlag für Nachtarbeit | D59: 2) 100% bonus for nighttime work | E59: 2) 100% majoration temporelle pour travail de nuit | F59: 2) 100%
A60: 49 | B60: 3) 100% majoration temporelle pour travail du dimanche et jour férié | C60: 3) 100% Zeitzuschlag für Sonn- und Feiertagsarbeit | D60: 3) 100% bonus for Sunday and holiday work | E60: 3) 100% majoration temporelle pour travail du dimanche et jour férié | F60: 3) 100%
A61: 50 | B61: Saisie des heures payées l'année passée | C61: Eingabe der ausbezahlten Stunden Vorjahressaldo | D61: Enter payed out hours (prev. Year) | E61: Saisie des heures payées l'année passée | F61: =C61 -> Eingabe der ausbezahlten Stunden Vorjahressaldo
A62: 51 | B62: Saisie des heures payées exercice en cours (heures supplémentaires) | C62: Eingabe der ausbezahlten Stunden laufendes Jahr (Überstunden) | D62: Enter payed out hours (current Year) | E62: Saisie des heures payées exercice en cours (heures supplémentaires) | F62: =C62 -> Eingabe der ausbezahlten Stunden laufendes Jahr (Überstunden)
A63: 52 | B63: Jours | C63: Tage | D63: Days | E63: Jours | F63: Tage
A64: 53 | B64: Annulation de la sélection | C64: Druckvorschau aufheben | D64: Reset print preview | E64: Annulation de la sélection | F64: Druckvorschau aufheben
A65: 54 | B65: Janvier | C65: Januar | D65: January | E65: Janvier | F65: Gennaio
A66: 55 | B66: Février | C66: Februar | D66: February | E66: Février | F66: Febbraio
A67: 56 | B67: Mars | C67: März | D67: March | E67: Mars | F67: Marzo
A68: 57 | B68: April | C68: April | D68: April | E68: April | F68: Aprile
A69: 58 | B69: Mai | C69: Mai | D69: May | E69: Mai | F69: Maggio
A70: 59 | B70: Juin | C70: Juni | D70: June | E70: Juin | F70: Giugno
A71: 60 | B71: Juillet | C71: Juli | D71: July | E71: Juillet | F71: Iuglio
A72: 61 | B72: Août | C72: August | D72: August | E72: Août | F72: Agosto
A73: 62 | B73: Septembre | C73: September | D73: September | E73: Septembre | F73: Settembre
A74: 63 | B74: Octobre | C74: Oktober | D74: October | E74: Octobre | F74: Ottobre
A75: 64 | B75: Novembre | C75: November | D75: November | E75: Novembre | F75: Novembre
A76: 65 | B76: Décembre | C76: Dezember | D76: December | E76: Décembre | F76: Dicembre
A77: 66 | B77: =HLOOKUP($B$3,$C$12:$F$506,A77,FALSE) -> Jan | C77: Jan | D77: Jan | E77: Jan | F77: Gen
A78: 67 | B78: Fév | C78: Feb | D78: Feb | E78: Fév | F78: Feb
A79: 68 | B79: Mar | C79: Mrz | D79: Mar | E79: Mar | F79: Mar
A80: 69 | B80: Avr | C80: Apr | D80: Apr | E80: Avr | F80: Apr
A81: 70 | B81: Mai | C81: Mai | D81: May | E81: Mai | F81: Mag
A82: 71 | B82: Jun | C82: Jun | D82: Jun | E82: Jun | F82: Giu
A83: 72 | B83: Jul | C83: Jul | D83: Jul | E83: Jul | F83: Iug
A84: 73 | B84: Aoû | C84: Aug | D84: Aug | E84: Aoû | F84: Ago
A85: 74 | B85: Sep | C85: Sep | D85: Sep | E85: Sep | F85: Set
A86: 75 | B86: Oct | C86: Okt | D86: Oct | E86: Oct | F86: Ott
A87: 76 | B87: Nov | C87: Nov | D87: Nov | E87: Nov | F87: Nov
A88: 77 | B88: Déc | C88: Dez | D88: Dec | E88: Déc | F88: Dic
A89: 78 | B89: en janvier | C89: im Januar | D89: in January | E89: en janvier | F89: a Gennaio
A90: 79 | B90: en février | C90: im Februar | D90: in February | E90: en février | F90: a Febbraio
A91: 80 | B91: en mars | C91: im März | D91: in March | E91: en mars | F91: a Marzo
A92: 81 | B92: en avril | C92: im April | D92: in April | E92: en avril | F92: ad Aprile
A93: 82 | B93: en mai | C93: im Mai | D93: in May | E93: en mai | F93: a Maggio
A94: 83 | B94: en juin | C94: im Juni | D94: in June | E94: en juin | F94: a Giugno
A95: 84 | B95: en juillet | C95: im Juli | D95: in July | E95: en juillet | F95: a Iuglio
A96: 85 | B96: en août | C96: im August | D96: in August | E96: en août | F96: ad Agosto
A97: 86 | B97: en septembre | C97: im September | D97: in September | E97: en septembre | F97: a Settembre
A98: 87 | B98: en octobre | C98: im Oktober | D98: in October | E98: en octobre | F98: ad Ottobre
A99: 88 | B99: en novembre | C99: im November | D99: in November | E99: en novembre | F99: a Novembre
A100: 89 | B100: en décembre | C100: im Dezember | D100: in December | E100: en décembre | F100: a Dicembre
A101: 90 | B101: Année | C101: Jahr | D101: Year | E101: Année | F101: Anno
A102: 91 | B102: Total | C102: Total | D102: Total | E102: Total | F102: Total
A103: 92 | B103: Résumé | C103: Zusammenstellung | D103: Report | E103: Résumé | F103: Zusammenstellung
A104: 93 | B104: Heures théoriques selon CCT | C104: Sollstunden gemäss GAV | D104: Planed hours acc.to CEC | E104: Heures théoriques selon CCT | F104: Orario teoricamente sec. CCL
A105: 94 | B105: Total heures productives | C105: Produktive Stunden | D105: Productive hours | E105: Total heures productives | F105: Orario produttivo totale
A106: 95 | B106: 06.00 - 20.00 h | C106: 06.00 - 20.00 Uhr | D106: 06.00-20.00h | E106: 06.00 - 20.00 h | F106: 06.00 - 20.00
A107: 96 | B107: nuit, dimanche et jour férié | C107: Nacht-, Sonn-, Feiertagsarbeit | D107: Night, Sunday and holiday work | E107: nuit, dimanche et jour férié | F107: notturno, domenica e festivo
A108: 97 | B108: Majorations temporelles | C108: Zeitzuschläge | D108: Bonus time | E108: Majorations temporelles | F108: Supplemento in ore
A109: 98 | B109: depassement des heures maximales | C109: aus Überschreitung Höchstarbeitszeit | D109: for exceeding max. hours | E109: depassement des heures maximales | F109: ore maximale
A110: 99 | B110: nuit, dimanche et jour férié | C110: aus Nacht-, Sonn-, Feiertagsarbeiten | D110: for night, Sundays and holiday work | E110: nuit, dimanche et jour férié | F110: di notturno, domenica e festivo
A111: 100 | B111: Heures inproductives | C111: Unproduktive Stunden | D111: Idle hours | E111: Heures inproductives | F111: orario non produttivo
A112: 101 | B112: Absences art. 11 CCT | C112: Absenzen, Kurzabsenzen Art. 11 GAV | D112: Abcenses, Short abcenses Art. 11 CEC | E112: Absences art. 11 CCT | F112: Assenze art. 11 CCL
A113: 102 | B113: ab | C113: a | D113: =C113 -> a | E113: ab | F113: as
A114: 103 | B114: Vacances art. 12.1 CCT | C114: Ferien Art. 12.1 GAV | D114: Holidays Art. 12.1 CEC | E114: Vacances art. 12.1 CCT | F114: Vacanze art. 12.1 CCL
A115: 104 | B115: va | C115: f | D115: f | E115: va | F115: va
A116: 105 | B116: Jours fériés art. 12.2 CCT | C116: Feiertage Art. 12.2 GAV | D116: Public Holidays Art. 12.2 CEC | E116: Jours fériés art. 12.2 CCT | F116: Giorni festivi art. 12.2 CCL
A117: 106 | B117: trop de jf !) | C117: zu viele ft !) | D117: Too many ft !) | E117: trop de jf !) | F117: (tropo giorni festivi !)
A118: 107 | B118: jf | C118: ft | D118: ft | E118: jf | F118: gf
A119: 108 | B119: Maladie art. 13 CCT | C119: Krankheit Art. 13 GAV | D119: Illness Art. 13 CEC | E119: Maladie art. 13 CCT | F119: Malattia art. 13 CCL
A120: 109 | B120: ma | C120: k | D120: k | E120: ma | F120: ma
A121: 110 | B121: Accident art. 14 CCT | C121: Unfall Art. 14 GAV | D121: Accident Art. 14 CEC | E121: Accident art. 14 CCT | F121: Infortunio art. 14 CCL
A122: 111 | B122: ac | C122: u | D122: u | E122: ac | F122: in
A123: 112 | B123: Grossesse/Maternité art. 15 CCT | C123: Schwangerschaft/Mutterschaft Art. 15 GAV | D123: Maternetiy leave Art. 15 CEC | E123: Grossesse/Maternité art. 15 CCT | F123: Gravidanza/Maternità art. 15 CCL
A124: 113 | B124: gm | C124: s | D124: s | E124: gm | F124: gm
A125: 114 | B125: Militaire/Promotion/Protection civile art. 16 CCT | C125: Militär/Beförderung/Zivilschutz Art. 16 GAV | D125: Military service/promotion/civil defence Art. 16. CEC | E125: Militaire/Promotion/Protection civile art. 16 CCT | F125: Militare/Promotione/Civile art. 16 CCL
A126: 115 | B126: mi | C126: m | D126: m | E126: mi | F126: mi
A127: 116 | B127: Chômage partiel et perte de travail cause d'intempéries | C127: Kurzarbeit und Schlechtwetterausfälle | D127: Short-time work/bad weather | E127: Chômage partiel et perte de travail cause d'intempéries | F127: =C127 -> Kurzarbeit und Schlechtwetterausfälle
A128: 117 | B128: ch | C128: ka | D128: ka | E128: ch | F128: =C128 -> ka
A129: 118 | B129: Ecole professionnelle | C129: Berufsschule | D129: School | E129: Ecole professionnelle | F129: Berufsschule
A130: 119 | B130: ep | C130: bs | D130: bs | E130: ep | F130: bs
A131: 120 | B131: Cours | C131: Kurse | D131: Courses | E131: Cours | F131: Kurse
A132: 121 | B132: co | C132: ku | D132: ku | E132: co | F132: ku
A133: 122 | B133: Heures de compensation | C133: Kompensations-Std | D133: Compensation hours | E133: Heures de compensation | F133: Kompensations-Std
A134: 123 | B134: de l'année passée | C134: aus Vorjahr | D134: prev. Year | E134: de l'année passée | F134: aus Vorjahr
A135: 124 | B135: cp | C135: kv | D135: kv | E135: cp | F135: kv
A136: 125 | B136: de l'année en cours (contrôle) | C136: aus laufendem Jahr (Kontrolle) | D136: current year (verification) | E136: de l'année en cours (contrôle) | F136: aus laufendem Jahr (Kontrolle)
A137: 126 | B137: cc | C137: kj | D137: kj | E137: cc | F137: kj
A138: 127 | B138: Paiement des heures | C138: Auszahlung | D138: payment of hours | E138: Paiement des heures | F138: Auszahlung
A139: 128 | B139: de l'année passée | C139: Stunden Vorjahressaldo | D139: hours prev. Year | E139: de l'année passée | F139: Stunden Vorjahressaldo
A140: 129 | B140: Différence en heures | C140: Differenz | D140: difference | E140: Différence en heures | F140: Differenz
A141: 130 | B141: =HLOOKUP($B$3,$C$12:$F$506,A141,FALSE) -> après compensation et paiement | C141: nach Kompensation und Auszahlung | D141: after compensation and payment | E141: après compensation et paiement | F141: nach Kompensation und Auszahlung
A142: 131 | B142: de l'année en cours | C142: Stunden laufendes Jahr | D142: hours current year | E142: de l'année en cours | F142: Stunden laufendes Jahr
A143: 132 | B143: Heures manquantes | C143: Fehlstunden | D143: missed hours | E143: Heures manquantes | F143: Fehlstunden
A144: 133 | B144: de l'année en cours (contrôle) | C144: laufendes Jahr (Kontrolle) | D144: current year (verification) | E144: de l'année en cours (contrôle) | F144: laufendes Jahr (Kontrolle)
A145: 134 | B145: hm | C145: fe | D145: fe | E145: hm | F145: fe
A146: 135 | B146: Total (majorations inclus) | C146: Total inkl. Zeitzuschläge | D146: total (incl. extra time) | E146: Total (majorations inclus) | F146: Total inkl. Zeitzuschläge
A147: 136 | B147: heures productives et inproductives | C147: Stunden produktiv und unproduktiv | D147: hours productive and idle | E147: heures productives et inproductives | F147: Stunden produktiv und unproduktiv
A148: 137 | B148: Comparaison des heures | C148: Vergleich | D148: Comparison of hours | E148: Comparaison des heures | F148: Vergleich
A149: 138 | B149: aux heures théorique CCT (heures manquantes de l'année passée incl.) | C149: Stunden zu Soll-Stunden (inkl. Minusstunden Vorjahr) | D149: balance hours <-> target hours (incl. missing hours prev. year) | E149: aux heures théorique CCT (heures manquantes de l'année passée incl.) | F149: Stunden zu Soll-Stunden (inkl. Minusstunden Vorjahr)
A150: 139 | B150: [] | C150: [] | D150: [] | E150: [] | F150: []
A151: 140 | B151: aux heures théorique (cumulées) | C151: Stunden zu Soll-Stunden (kumuliert) | D151: balance hours <-> target hours (cumulative) | E151: aux heures théorique (cumulées) | F151: Stunden zu Soll-Stunden (kumuliert)
A152: 141 | B152: . | C152: . | D152: . | E152: . | F152: .
A153: 142 | B153: Vacances (contrôle) | C153: Ferienkontrolle | D153: Holiday Balance | E153: Vacances (contrôle) | F153: Ferienkontrolle
A154: 143 | B154: Vacances année passée | C154: Ferienguthaben Vorjahr | D154: Remaining holidays (prev. year) | E154: Vacances année passée | F154: Ferienguthaben Vorjahr
A155: 144 | B155: Vacances selon art 12.1 CCT | C155: Ferienguthaben nach Art. 12.1 GAV | D155: Holidays acc. Art. 12.1 CEC | E155: Vacances selon art 12.1 CCT | F155: Ferienguthaben nach Art. 12.1 GAV
A156: 145 | B156: Total des vacances | C156: Ferienguthaben total | D156: Holidays total | E156: Total des vacances | F156: Ferienguthaben total
A157: 146 | B157: Vacances prises | C157: Ferien bezogen | D157: Holidays taken | E157: Vacances prises | F157: Ferien bezogen
A158: 147 | B158: Vacances restantes | C158: Aktuelles Ferienguthaben | D158: Current holiday balance | E158: Vacances restantes | F158: Aktuelles Ferienguthaben
A159: 148 | B159: Notes | C159: Bemerkungen | D159: Annotations | E159: Notes | F159: Bemerkungen
A160: 149 | B160: Nombre jf | C160: Anzahl ft | D160: No. Of public holidays (ft) | E160: Nombre jf | F160: Anzahl ft
A161: 150 | B161: Message | C161: Meldung | D161: Message | E161: Message | F161: Meldung
A162: 151 | B162: Majorations selon emploi % | C162: Feiertagzuschläge gemäss Anstellungsprozent | D162: Bonus for holiday work according level of employment % | E162: Majorations selon emploi % | F162: Feiertagzuschläge gemäss Anstellungsprozent
A163: 152 | B163: div | C163: div | D163: div | E163: div | F163: div
A164: 153 | B164: Sélectionnez le mois désiré en un clic Sélectionnez le mois à imprimer en un clic | C164: Den gewünschten Monat mit einem Klick wählen (gehe zu) Den gewünschten Monat mit einem Klick in die Druckvorschau versetzen (für Druck) | D164: Select desired month by clicking (goto) Select desired month for printing | E164: Sélectionnez le mois désiré en un clic Sélectionnez le mois à imprimer en un clic | F164: Den gewünschten Monat mit einem Klick wählen (gehe zu) Den gewünschten Monat mit einem Klick in die Druckvorschau versetzen (für Druck)
A165: 154 | B165: Heures productives | C165: Produktivstunden | D165: Productive hours | E165: Heures productives | F165: Produktivstunden
A166: 155 | B166: Jours fériés [jf] | C166: Feiertage [ft] | D166: Public holidays [ft] | E166: Jours fériés [jf] | F166: Feiertage [ft]
A167: 156 | B167: Vacances [va] | C167: Ferien [f] | D167: holidays [f] | E167: Vacances [va] | F167: Ferien [f]
A168: 157 | B168: Compensation (année passée) [cp] | C168: Kompensation (Vorjahr) [kv] | D168: Compensation hours (prev. year) [kv] | E168: Compensation (année passée) [cp] | F168: Kompensation (Vorjahr) [kv]
A169: 158 | B169: Compensation (année courant) [cc] | C169: Kompensation (laufend) [kj] | D169: Compensation hours (current) [kj] | E169: Compensation (année courant) [cc] | F169: Kompensation (laufend) [kj]
A170: 159 | B170: Absences [ab] | C170: Absenzen, Kurzabsenzen [a] | D170: Absences, short absences [a] | E170: Absences [ab] | F170: Absenzen, Kurzabsenzen [a]
A171: 160 | B171: Maladie [ma] | C171: Krankheit [k] | D171: Illness [k] | E171: Maladie [ma] | F171: Krankheit [k]
A172: 161 | B172: Accident [ac] | C172: Unfall [u] | D172: Accident [u] | E172: Accident [ac] | F172: Unfall [u]
A173: 162 | B173: Grossesse/Maternité [gm] | C173: Schwangerschaft/Mutterschaft [s] | D173: Maternity leave [s] | E173: Grossesse/Maternité [gm] | F173: Schwangerschaft/Mutterschaft [s]
A174: 163 | B174: Militaire/Promotion/Protection civile [mi] | C174: Militär/Beförderung/Zivilschutz [m] | D174: Military service/promotion/civil defence [m] | E174: Militaire/Promotion/Protection civile [mi] | F174: Militär/Beförderung/Zivilschutz [m]
A175: 164 | B175: Ecole professionelle [ep] | C175: Berufsschule [bs] | D175: School [bs] | E175: Ecole professionelle [ep] | F175: Berufsschule [bs]
A176: 165 | B176: Cours [co] | C176: Kurse [ku] | D176: Courses [ku] | E176: Cours [co] | F176: Kurse [ku]
A177: 166 | B177: Chômage partiel et intempéries [ch] | C177: Kurzarbeit und Schlechtwetter [ka] | D177: Short-time work/bad weather [ka] | E177: Chômage partiel et intempéries [ch] | F177: Kurzarbeit und Schlechtwetter [ka]
A178: 167 | B178: Heures manquantes [hm] | C178: Fehlstunden (unbezahlt) [fe] | D178: Missed hours (not payed) [fe] | E178: Heures manquantes [hm] | F178: Fehlstunden (unbezahlt) [fe]
A179: 168 | B179: Vacances non payées [vn] | C179: Ferien unbezahlt [fu] | D179: Unpaid holidays [fu] | E179: Vacances non payées [vn] | F179: vacanze non pagato [vn]
A180: 169 | B180: vn | C180: fu | D180: uh | E180: vn | F180: vn
A181: 170 | B181: vacances non payées | C181: Ferien unbezahlt | D181: unpaid holidays | E181: vacances non payées | F181: vacanze non pagato
A182: 171 | B182: vn | C182: fu | D182: uh | E182: vn | F182: vn
A183: 172 | B183: 0 | D183: =C183 -> 0 | F183: 0
A184: 173 | B184: non payeé | C184: davon Karenz | D184: not paid | E184: non payeé | F184: non pagato
A185: 174 | B185: 0 | D185: 0 | F185: 0
A186: 175 | B186: 0 | D186: 0 | F186: 0
A187: 176 | B187: 0 | D187: 0 | F187: 0
A188: 177 | B188: 0 | D188: 0 | F188: 0
A189: 178 | B189: 0 | D189: 0 | F189: 0
A190: 179 | B190: 0 | D190: 0 | F190: 0
A191: 180 | B191: 0 | D191: 0 | F191: 0
A192: 181 | B192: 0 | D192: 0 | F192: =C192 -> 0
A193: 182 | B193: 0 | D193: 0 | F193: 0
A194: 183 | B194: 0 | D194: 0 | F194: 0
A195: 184 | B195: 0 | D195: 0 | F195: 0
A196: 185 | B196: 0 | D196: 0 | F196: 0
A197: 186 | B197: 0 | D197: 0 | F197: 0
A198: 187 | B198: 0 | D198: 0 | F198: 0
A199: 188 | B199: 0 | D199: 0 | F199: 0
A200: 189 | B200: 0 | D200: 0 | F200: 0
A201: 190 | B201: 0 | D201: 0 | F201: 0
A202: 191 | B202: 0 | D202: 0 | F202: 0
A203: 192 | B203: 0 | D203: 0 | F203: 0
A204: 193 | B204: 0 | D204: 0 | F204: 0
A205: 194 | B205: =HLOOKUP($B$3,$C$12:$F$506,A205,FALSE) -> 0 | D205: 0 | F205: 0
A206: 195 | B206: 0 | D206: 0 | F206: 0
A207: 196 | B207: 0 | D207: 0 | F207: 0
A208: 197 | B208: 0 | D208: 0 | F208: 0
A209: 198 | B209: 0 | D209: 0 | F209: 0
... 297 more rows

Sheet Timesheet Backup (hidden)
A1: =Labels!B164 -> Sélectionnez le mois désiré en un clic Sélectionnez le mois à imprimer en un clic
A2: =Labels!B17 &B5 -> Contrôle des heures de travail 2023 | AG2: 2023 | AI2: Hilfstabelle | AJ2: =Labels!B77 -> Jan | AK2: =Labels!B78 -> Fév | AL2: =Labels!B79 -> Mar | AM2: =Labels!B80 -> Avr | AN2: =Labels!B81 -> Mai | AO2: =Labels!B82 -> Jun | AP2: =Labels!B83 -> Jul | AQ2: =Labels!B84 -> Aoû | AR2: =Labels!B85 -> Sep | AS2: =Labels!B86 -> Oct | AT2: =Labels!B87 -> Nov | AU2: =Labels!B88 -> Déc | AV2: =Labels!B102 -> Total | AX2: Legenden, Erklärungen & Meldungen
A3: =Labels!B18 -> Nom/Prénom | B3: =Labels!B19 -> Modèle Pierre | AI3: =Labels!B113 -> ab | AJ3: =AG835 -> 0 | AK3: =AG860 -> 0 | AL3: =AG885 -> 0 | AM3: =AG910 -> 0 | AN3: =AG935 -> 0 | AO3: =AG960 -> 0 | AP3: =AG985 -> 0 | AQ3: =AG1010 -> 0 | AR3: =AG1035 -> 0 | AS3: =AG1060 -> 0 | AT3: =AG1085 -> 0 | AU3: =AG1110 -> 0 | AV3: =SUM(AJ3:AU3) -> 0
A4: =Labels!B20 -> Emploi % | B4: =$AL$48 -> 100 | D4: =Labels!B89 -> en janvier | K4: =Labels!B22 -> Solde année passée (+) | U4: =Labels!B24 -> Solde vacances année passée | AC4: =Labels!B26 -> Heures | AI4: =Labels!B115 -> va | AJ4: =AG832 -> 0 | AK4: =AG857 -> 0 | AL4: =AG882 -> 0 | AM4: =AG907 -> 0 | AN4: =AG932 -> 0 | AO4: =AG957 -> 0 | AP4: =AG982 -> 0 | AQ4: =AG1007 -> 0 | AR4: =AG1032 -> 0 | AS4: =AG1057 -> 0 | AT4: =AG1082 -> 0 | AU4: =AG1107 -> 0 | AV4: 0 | AX4: Legende Stunden zu Zuschläge (DE)
A5: =Labels!B21 -> Solde année en cours | B5: =AG2 -> 2023 | D5: =IF($AE$66=0,0,$AE$66) -> -2080 | K5: =Labels!B23 -> Solde année passée (-) | U5: =Labels!B25 -> Vacances selon art. 12.1. CCT | AA5: 0 | AC5: =Labels!B26 -> Heures | AI5: =Labels!B120 -> ma | AJ5: =AG836 -> 0 | AK5: =AG861 -> 0 | AL5: =AG886 -> 0 | AM5: =AG911 -> 0 | AN5: =AG936 -> 0 | AO5: =AG961 -> 0 | AP5: =AG986 -> 0 | AQ5: =AG1011 -> 0 | AR5: =AG1036 -> 0 | AS5: =AG1061 -> 0 | AT5: =AG1086 -> 0 | AU5: =AG1111 -> 0 | AV5: 0
AI6: =Labels!B122 -> ac | AJ6: 0 | AK6: 0 | AL6: 0 | AM6: 0 | AN6: 0 | AO6: 0 | AP6: 0 | AQ6: 0 | AR6: 0 | AS6: 0 | AT6: 0 | AU6: 0 | AV6: 0 | AX6: [00] | AY6: Sollstunden (Wochentage MO-FR)
A7: =IF(ISERROR(DATEVALUE(TEXT("01.01."&B5,"TT.MM.JJ"))),"01/01/"&B5,"01.01."&B5) -> 01.01.2023 | B7: 48 | C7: =Labels!B27 -> max heures / semain CCT | J7: 8 | K7: =Labels!B28 -> heures/jour CCT | P7: =IF(MOD(YEAR($A$7),400)=0,"n",IF(MOD(YEAR($A$7),100)=0,"n",IF(MOD(YEAR($A$7),4)=0,"j","n"))) -> n | Q7: =Labels!B29 -> Année bissextile (j/n) | U7: =NETWORKDAYS(DATE(B5,1,1),DATE(B5,12,31)) -> 260 | V7: =Labels!B30 -> jours ouvrables (année) | Z7: =J7*U7 -> 2080 | AA7: =Labels!B31 -> brut annuel d'heures | AI7: =Labels!B124 -> gm | AJ7: 0 | AK7: 0 | AL7: 0 | AM7: 0 | AN7: 0 | AO7: 0 | AP7: 0 | AQ7: 0 | AR7: 0 | AS7: 0 | AT7: 0 | AU7: 0 | AV7: 0 | AX7: [01] | AY7: Unproduktive Stunden (Feiertag, Absenzen)
AI8: =Labels!B126 -> mi | AJ8: 0 | AK8: 0 | AL8: 0 | AM8: 0 | AN8: 0 | AO8: 0 | AP8: 0 | AQ8: 0 | AR8: 0 | AS8: 0 | AT8: 0 | AU8: 0 | AV8: 0 | AX8: [02] | AY8: Karenztage (in Minusstunden)
A9: =TEXT(AP29,"MMMM"&Labels!B13) -> janvier | B9: =Labels!B32 -> Solde mois + / - | F9: =(AG12-(SUM(AG13:AG27)-AE34))*-1 -> -176 | K9: =Labels!B33 -> = | L9: =Labels!B34 -> Les cases marquées en jaune doivent être remplies (les autres seront calculées automatiquement) | AI9: =Labels!B130 -> ep | AJ9: 0 | AK9: 0 | AL9: 0 | AM9: 0 | AN9: 0 | AO9: 0 | AP9: 0 | AQ9: 0 | AR9: 0 | AS9: 0 | AT9: 0 | AU9: 0 | AV9: 0 | AX9: [03] | AY9: Produktive Stunden Tag 06.00-20.00 Uhr
A10: =Labels!B35 -> Jour | B10: =AP29 -> 2023-01-01 | C10: =B10+1 -> 2023-01-02 | D10: 2023-01-03 | E10: 2023-01-04 | F10: 2023-01-05 | G10: 2023-01-06 | H10: 2023-01-07 | I10: 2023-01-08 | J10: 2023-01-09 | K10: 2023-01-10 | L10: 2023-01-11 | M10: 2023-01-12 | N10: 2023-01-13 | O10: 2023-01-14 | P10: 2023-01-15 | Q10: 2023-01-16 | R10: 2023-01-17 | S10: 2023-01-18 | T10: 2023-01-19 | U10: 2023-01-20 | V10: 2023-01-21 | W10: 2023-01-22 | X10: 2023-01-23 | Y10: 2023-01-24 | Z10: 2023-01-25 | AA10: 2023-01-26 | AB10: 2023-01-27 | AC10: 2023-01-28 | AD10: 2023-01-29 | AE10: 2023-01-30 | AF10: 2023-01-31 | AG10: =COUNT(B12:AF12)&" "&Labels!$B$63 -> 22 Jours | AI10: =Labels!B132 -> co | AJ10: 0 | AK10: 0 | AL10: 0 | AM10: 0 | AN10: 0 | AO10: 0 | AP10: 0 | AQ10: 0 | AR10: 0 | AS10: 0 | AT10: 0 | AU10: 0 | AV10: 0 | AX10: [04] | AY10: Produktive Stunden Nacht 00.00-06.00 Uhr
A11: =Labels!B36 -> semaine civile | B11: =IF(B10="","",TRUNC((B10-DATE(YEAR(B10+3-MOD(B10-2,7)),1,MOD(B10-2,7)-9))/7)) -> 52 | C11: =IF(C10="","",TRUNC((C10-DATE(YEAR(C10+3-MOD(C10-2,7)),1,MOD(C10-2,7)-9))/7)) -> 1 | D11: 1 | E11: 1 | F11: 1 | G11: 1 | H11: 1 | I11: 1 | J11: 2 | K11: 2 | L11: 2 | M11: 2 | N11: 2 | O11: 2 | P11: 2 | Q11: 3 | R11: 3 | S11: 3 | T11: 3 | U11: 3 | V11: 3 | W11: 3 | X11: 4 | Y11: 4 | Z11: 4 | AA11: 4 | AB11: 4 | AC11: 4 | AD11: 4 | AE11: 5 | AF11: 5 | AH11: Woche | AI11: =Labels!B128 -> ch | AJ11: 0 | AK11: 0 | AL11: 0 | AM11: 0 | AN11: 0 | AO11: 0 | AP11: 0 | AQ11: 0 | AR11: 0 | AS11: 0 | AT11: 0 | AU11: 0 | AV11: 0 | AX11: [05] | AY11: Produktive Stunden Nacht 20.00-00.00 Uhr
A12: =Labels!B37 -> Théorique sel. CCT | B12: =IF(AND(MOD(B10,7)>=2,SUMPRODUCT(($AM$60:$AQ$60=MOD(B10,7))*$AM$48:$AQ$48),B829=""),$J$7*SUMPRODUCT(($AM$77:$AQ$77=MOD(B10,7))*$AM$65:$AQ$65)%,"") ->  | C12: =IF(AND(MOD(C10,7)>=2,SUMPRODUCT(($AM$60:$AQ$60=MOD(C10,7))*$AM$48:$AQ$48),C829=""),$J$7*SUMPRODUCT(($AM$77:$AQ$77=MOD(C10,7))*$AM$65:$AQ$65)%,"") -> 8 | D12: =IF(AND(MOD(D10,7)>=2,SUMPRODUCT(($AM$60:$AQ$60=MOD(D10,7))*$AM$48:$AQ$48),D829=""),$J$7*SUMPRODUCT(($AM$77:$AQ$77=MOD(D10,7))*$AM$65:$AQ$65)%,"") -> 8 | E12: =IF(AND(MOD(E10,7)>=2,SUMPRODUCT(($AM$60:$AQ$60=MOD(E10,7))*$AM$48:$AQ$48),E829=""),$J$7*SUMPRODUCT(($AM$77:$AQ$77=MOD(E10,7))*$AM$65:$AQ$65)%,"") -> 8 | F12: =IF(AND(MOD(F10,7)>=2,SUMPRODUCT(($AM$60:$AQ$60=MOD(F10,7))*$AM$48:$AQ$48),F829=""),$J$7*SUMPRODUCT(($AM$77:$AQ$77=MOD(F10,7))*$AM$65:$AQ$65)%,"") -> 8 | G12: =IF(AND(MOD(G10,7)>=2,SUMPRODUCT(($AM$60:$AQ$60=MOD(G10,7))*$AM$48:$AQ$48),G829=""),$J$7*SUMPRODUCT(($AM$77:$AQ$77=MOD(G10,7))*$AM$65:$AQ$65)%,"") -> 8 | H12: =IF(AND(MOD(H10,7)>=2,SUMPRODUCT(($AM$60:$AQ$60=MOD(H10,7))*$AM$48:$AQ$48),H829=""),$J$7*SUMPRODUCT(($AM$77:$AQ$77=MOD(H10,7))*$AM$65:$AQ$65)%,"") ->  | I12: =IF(AND(MOD(I10,7)>=2,SUMPRODUCT(($AM$60:$AQ$60=MOD(I10,7))*$AM$48:$AQ$48),I829=""),$J$7*SUMPRODUCT(($AM$77:$AQ$77=MOD(I10,7))*$AM$65:$AQ$65)%,"") ->  | J12: =IF(AND(MOD(J10,7)>=2,SUMPRODUCT(($AM$60:$AQ$60=MOD(J10,7))*$AM$48:$AQ$48),J829=""),$J$7*SUMPRODUCT(($AM$77:$AQ$77=MOD(J10,7))*$AM$65:$AQ$65)%,"") -> 8 | K12: =IF(AND(MOD(K10,7)>=2,SUMPRODUCT(($AM$60:$AQ$60=MOD(K10,7))*$AM$48:$AQ$48),K829=""),$J$7*SUMPRODUCT(($AM$77:$AQ$77=MOD(K10,7))*$AM$65:$AQ$65)%,"") -> 8 | L12: =IF(AND(MOD(L10,7)>=2,SUMPRODUCT(($AM$60:$AQ$60=MOD(L10,7))*$AM$48:$AQ$48),L829=""),$J$7*SUMPRODUCT(($AM$77:$AQ$77=MOD(L10,7))*$AM$65:$AQ$65)%,"") -> 8 | M12: =IF(AND(MOD(M10,7)>=2,SUMPRODUCT(($AM$60:$AQ$60=MOD(M10,7))*$AM$48:$AQ$48),M829=""),$J$7*SUMPRODUCT(($AM$77:$AQ$77=MOD(M10,7))*$AM$65:$AQ$65)%,"") -> 8 | N12: =IF(AND(MOD(N10,7)>=2,SUMPRODUCT(($AM$60:$AQ$60=MOD(N10,7))*$AM$48:$AQ$48),N829=""),$J$7*SUMPRODUCT(($AM$77:$AQ$77=MOD(N10,7))*$AM$65:$AQ$65)%,"") -> 8 | O12: =IF(AND(MOD(O10,7)>=2,SUMPRODUCT(($AM$60:$AQ$60=MOD(O10,7))*$AM$48:$AQ$48),O829=""),$J$7*SUMPRODUCT(($AM$77:$AQ$77=MOD(O10,7))*$AM$65:$AQ$65)%,"") ->  | P12: =IF(AND(MOD(P10,7)>=2,SUMPRODUCT(($AM$60:$AQ$60=MOD(P10,7))*$AM$48:$AQ$48),P829=""),$J$7*SUMPRODUCT(($AM$77:$AQ$77=MOD(P10,7))*$AM$65:$AQ$65)%,"") ->  | Q12: =IF(AND(MOD(Q10,7)>=2,SUMPRODUCT(($AM$60:$AQ$60=MOD(Q10,7))*$AM$48:$AQ$48),Q829=""),$J$7*SUMPRODUCT(($AM$77:$AQ$77=MOD(Q10,7))*$AM$65:$AQ$65)%,"") -> 8 | R12: =IF(AND(MOD(R10,7)>=2,SUMPRODUCT(($AM$60:$AQ$60=MOD(R10,7))*$AM$48:$AQ$48),R829=""),$J$7*SUMPRODUCT(($AM$77:$AQ$77=MOD(R10,7))*$AM$65:$AQ$65)%,"") -> 8 | S12: =IF(AND(MOD(S10,7)>=2,SUMPRODUCT(($AM$60:$AQ$60=MOD(S10,7))*$AM$48:$AQ$48),S829=""),$J$7*SUMPRODUCT(($AM$77:$AQ$77=MOD(S10,7))*$AM$65:$AQ$65)%,"") -> 8 | T12: =IF(AND(MOD(T10,7)>=2,SUMPRODUCT(($AM$60:$AQ$60=MOD(T10,7))*$AM$48:$AQ$48),T829=""),$J$7*SUMPRODUCT(($AM$77:$AQ$77=MOD(T10,7))*$AM$65:$AQ$65)%,"") -> 8 | U12: =IF(AND(MOD(U10,7)>=2,SUMPRODUCT(($AM$60:$AQ$60=MOD(U10,7))*$AM$48:$AQ$48),U829=""),$J$7*SUMPRODUCT(($AM$77:$AQ$77=MOD(U10,7))*$AM$65:$AQ$65)%,"") -> 8 | V12: =IF(AND(MOD(V10,7)>=2,SUMPRODUCT(($AM$60:$AQ$60=MOD(V10,7))*$AM$48:$AQ$48),V829=""),$J$7*SUMPRODUCT(($AM$77:$AQ$77=MOD(V10,7))*$AM$65:$AQ$65)%,"") ->  | W12: =IF(AND(MOD(W10,7)>=2,SUMPRODUCT(($AM$60:$AQ$60=MOD(W10,7))*$AM$48:$AQ$48),W829=""),$J$7*SUMPRODUCT(($AM$77:$AQ$77=MOD(W10,7))*$AM$65:$AQ$65)%,"") ->  | X12: =IF(AND(MOD(X10,7)>=2,SUMPRODUCT(($AM$60:$AQ$60=MOD(X10,7))*$AM$48:$AQ$48),X829=""),$J$7*SUMPRODUCT(($AM$77:$AQ$77=MOD(X10,7))*$AM$65:$AQ$65)%,"") -> 8 | Y12: =IF(AND(MOD(Y10,7)>=2,SUMPRODUCT(($AM$60:$AQ$60=MOD(Y10,7))*$AM$48:$AQ$48),Y829=""),$J$7*SUMPRODUCT(($AM$77:$AQ$77=MOD(Y10,7))*$AM$65:$AQ$65)%,"") -> 8 | Z12: =IF(AND(MOD(Z10,7)>=2,SUMPRODUCT(($AM$60:$AQ$60=MOD(Z10,7))*$AM$48:$AQ$48),Z829=""),$J$7*SUMPRODUCT(($AM$77:$AQ$77=MOD(Z10,7))*$AM$65:$AQ$65)%,"") -> 8 | AA12: =IF(AND(MOD(AA10,7)>=2,SUMPRODUCT(($AM$60:$AQ$60=MOD(AA10,7))*$AM$48:$AQ$48),AA829=""),$J$7*SUMPRODUCT(($AM$77:$AQ$77=MOD(AA10,7))*$AM$65:$AQ$65)%,"") -> 8 | AB12: =IF(AND(MOD(AB10,7)>=2,SUMPRODUCT(($AM$60:$AQ$60=MOD(AB10,7))*$AM$48:$AQ$48),AB829=""),$J$7*SUMPRODUCT(($AM$77:$AQ$77=MOD(AB10,7))*$AM$65:$AQ$65)%,"") -> 8 | AC12: =IF(AND(MOD(AC10,7)>=2,SUMPRODUCT(($AM$60:$AQ$60=MOD(AC10,7))*$AM$48:$AQ$48),AC829=""),$J$7*SUMPRODUCT(($AM$77:$AQ$77=MOD(AC10,7))*$AM$65:$AQ$65)%,"") ->  | AD12: =IF(AND(MOD(AD10,7)>=2,SUMPRODUCT(($AM$60:$AQ$60=MOD(AD10,7))*$AM$48:$AQ$48),AD829=""),$J$7*SUMPRODUCT(($AM$77:$AQ$77=MOD(AD10,7))*$AM$65:$AQ$65)%,"") ->  | AE12: =IF(AND(MOD(AE10,7)>=2,SUMPRODUCT(($AM$60:$AQ$60=MOD(AE10,7))*$AM$48:$AQ$48),AE829=""),$J$7*SUMPRODUCT(($AM$77:$AQ$77=MOD(AE10,7))*$AM$65:$AQ$65)%,"") -> 8 | AF12: =IF(AND(MOD(AF10,7)>=2,SUMPRODUCT(($AM$60:$AQ$60=MOD(AF10,7))*$AM$48:$AQ$48),AF829=""),$J$7*SUMPRODUCT(($AM$77:$AQ$77=MOD(AF10,7))*$AM$65:$AQ$65)%,"") -> 8 | AG12: =SUM(B12:AF12) -> 176 | AH12: [00] | AI12: =Labels!B135 -> cp | AJ12: =AG833 -> 0 | AK12: =AG858 -> 0 | AL12: =AG883 -> 0 | AM12: =AG908 -> 0 | AN12: =AG933 -> 0 | AO12: =AG958 -> 0 | AP12: =AG983 -> 0 | AQ12: =AG1008 -> 0 | AR12: =AG1033 -> 0 | AS12: =AG1058 -> 0 | AT12: =AG1083 -> 0 | AU12: =AG1108 -> 0 | AV12: =SUM(AJ12:AU12) -> 0 | AX12: [06] | AY12: Feiertagszuschläge gemäss Anstellungsprozent
A13: =Labels!B38 -> Absences | B13: =B845 -> 0 | C13: 0 | D13: 0 | E13: 0 | F13: 0 | G13: 0 | H13: 0 | I13: 0 | J13: 0 | K13: 0 | L13: 0 | M13: 0 | N13: 0 | O13: 0 | P13: 0 | Q13: 0 | R13: 0 | S13: 0 | T13: 0 | U13: 0 | V13: 0 | W13: 0 | X13: 0 | Y13: 0 | Z13: 0 | AA13: 0 | AB13: 0 | AC13: 0 | AD13: 0 | AE13: 0 | AF13: 0 | AG13: =SUM($AJ$3:$AJ$13) -> 0 | AH13: [01] | AI13: =Labels!B180 -> vn | AJ13: =AG843 -> 0 | AK13: =AG868 -> 0 | AL13: =AG893 -> 0 | AM13: =AG918 -> 0 | AN13: =AG943 -> 0 | AO13: =AG968 -> 0 | AP13: =AG993 -> 0 | AQ13: =AG1018 -> 0 | AR13: =AG1043 -> 0 | AS13: =AG1068 -> 0 | AT13: =AG1093 -> 0 | AU13: =AG1118 -> 0 | AV13: 0 | AX13: [07] | AY13: Zeitzuschlag 1 - Überschreitung Höchstarbeitszeit
A14: =Labels!B39 -> Code | B14: =IF(SUM(B832:B844)<>0,IF(MAX(B832:B844)<B845,Labels!$B$163,INDEX($AH$832:$AH$844,MATCH(MAX(B832:B844),B832:B844,0))),"") ->  | C14: =IF(SUM(C832:C844)<>0,IF(MAX(C832:C844)<C845,Labels!$B$163,INDEX($AH$832:$AH$844,MATCH(MAX(C832:C844),C832:C844,0))),"") ->  | D14: =IF(SUM(D832:D844)<>0,IF(MAX(D832:D844)<D845,Labels!$B$163,INDEX($AH$832:$AH$844,MATCH(MAX(D832:D844),D832:D844,0))),"") ->  | E14: =IF(SUM(E832:E844)<>0,IF(MAX(E832:E844)<E845,Labels!$B$163,INDEX($AH$832:$AH$844,MATCH(MAX(E832:E844),E832:E844,0))),"") ->  | F14: =IF(SUM(F832:F844)<>0,IF(MAX(F832:F844)<F845,Labels!$B$163,INDEX($AH$832:$AH$844,MATCH(MAX(F832:F844),F832:F844,0))),"") ->  | G14: =IF(SUM(G832:G844)<>0,IF(MAX(G832:G844)<G845,Labels!$B$163,INDEX($AH$832:$AH$844,MATCH(MAX(G832:G844),G832:G844,0))),"") ->  | H14: =IF(SUM(H832:H844)<>0,IF(MAX(H832:H844)<H845,Labels!$B$163,INDEX($AH$832:$AH$844,MATCH(MAX(H832:H844),H832:H844,0))),"") ->  | I14: =IF(SUM(I832:I844)<>0,IF(MAX(I832:I844)<I845,Labels!$B$163,INDEX($AH$832:$AH$844,MATCH(MAX(I832:I844),I832:I844,0))),"") ->  | J14: =IF(SUM(J832:J844)<>0,IF(MAX(J832:J844)<J845,Labels!$B$163,INDEX($AH$832:$AH$844,MATCH(MAX(J832:J844),J832:J844,0))),"") ->  | K14: =IF(SUM(K832:K844)<>0,IF(MAX(K832:K844)<K845,Labels!$B$163,INDEX($AH$832:$AH$844,MATCH(MAX(K832:K844),K832:K844,0))),"") ->  | L14: =IF(SUM(L832:L844)<>0,IF(MAX(L832:L844)<L845,Labels!$B$163,INDEX($AH$832:$AH$844,MATCH(MAX(L832:L844),L832:L844,0))),"") ->  | M14: =IF(SUM(M832:M844)<>0,IF(MAX(M832:M844)<M845,Labels!$B$163,INDEX($AH$832:$AH$844,MATCH(MAX(M832:M844),M832:M844,0))),"") ->  | N14: =IF(SUM(N832:N844)<>0,IF(MAX(N832:N844)<N845,Labels!$B$163,INDEX($AH$832:$AH$844,MATCH(MAX(N832:N844),N832:N844,0))),"") ->  | O14: =IF(SUM(O832:O844)<>0,IF(MAX(O832:O844)<O845,Labels!$B$163,INDEX($AH$832:$AH$844,MATCH(MAX(O832:O844),O832:O844,0))),"") ->  | P14: =IF(SUM(P832:P844)<>0,IF(MAX(P832:P844)<P845,Labels!$B$163,INDEX($AH$832:$AH$844,MATCH(MAX(P832:P844),P832:P844,0))),"") ->  | Q14: =IF(SUM(Q832:Q844)<>0,IF(MAX(Q832:Q844)<Q845,Labels!$B$163,INDEX($AH$832:$AH$844,MATCH(MAX(Q832:Q844),Q832:Q844,0))),"") ->  | R14: =IF(SUM(R832:R844)<>0,IF(MAX(R832:R844)<R845,Labels!$B$163,INDEX($AH$832:$AH$844,MATCH(MAX(R832:R844),R832:R844,0))),"") ->  | S14: =IF(SUM(S832:S844)<>0,IF(MAX(S832:S844)<S845,Labels!$B$163,INDEX($AH$832:$AH$844,MATCH(MAX(S832:S844),S832:S844,0))),"") ->  | T14: =IF(SUM(T832:T844)<>0,IF(MAX(T832:T844)<T845,Labels!$B$163,INDEX($AH$832:$AH$844,MATCH(MAX(T832:T844),T832:T844,0))),"") ->  | U14: =IF(SUM(U832:U844)<>0,IF(MAX(U832:U844)<U845,Labels!$B$163,INDEX($AH$832:$AH$844,MATCH(MAX(U832:U844),U832:U844,0))),"") ->  | V14: =IF(SUM(V832:V844)<>0,IF(MAX(V832:V844)<V845,Labels!$B$163,INDEX($AH$832:$AH$844,MATCH(MAX(V832:V844),V832:V844,0))),"") ->  | W14: =IF(SUM(W832:W844)<>0,IF(MAX(W832:W844)<W845,Labels!$B$163,INDEX($AH$832:$AH$844,MATCH(MAX(W832:W844),W832:W844,0))),"") ->  | X14: =IF(SUM(X832:X844)<>0,IF(MAX(X832:X844)<X845,Labels!$B$163,INDEX($AH$832:$AH$844,MATCH(MAX(X832:X844),X832:X844,0))),"") ->  | Y14: =IF(SUM(Y832:Y844)<>0,IF(MAX(Y832:Y844)<Y845,Labels!$B$163,INDEX($AH$832:$AH$844,MATCH(MAX(Y832:Y844),Y832:Y844,0))),"") ->  | Z14: =IF(SUM(Z832:Z844)<>0,IF(MAX(Z832:Z844)<Z845,Labels!$B$163,INDEX($AH$832:$AH$844,MATCH(MAX(Z832:Z844),Z832:Z844,0))),"") ->  | AA14: =IF(SUM(AA832:AA844)<>0,IF(MAX(AA832:AA844)<AA845,Labels!$B$163,INDEX($AH$832:$AH$844,MATCH(MAX(AA832:AA844),AA832:AA844,0))),"") ->  | AB14: =IF(SUM(AB832:AB844)<>0,IF(MAX(AB832:AB844)<AB845,Labels!$B$163,INDEX($AH$832:$AH$844,MATCH(MAX(AB832:AB844),AB832:AB844,0))),"") ->  | AC14: =IF(SUM(AC832:AC844)<>0,IF(MAX(AC832:AC844)<AC845,Labels!$B$163,INDEX($AH$832:$AH$844,MATCH(MAX(AC832:AC844),AC832:AC844,0))),"") ->  | AD14: =IF(SUM(AD832:AD844)<>0,IF(MAX(AD832:AD844)<AD845,Labels!$B$163,INDEX($AH$832:$AH$844,MATCH(MAX(AD832:AD844),AD832:AD844,0))),"") ->  | AE14: =IF(SUM(AE832:AE844)<>0,IF(MAX(AE832:AE844)<AE845,Labels!$B$163,INDEX($AH$832:$AH$844,MATCH(MAX(AE832:AE844),AE832:AE844,0))),"") ->  | AF14: =IF(SUM(AF832:AF844)<>0,IF(MAX(AF832:AF844)<AF845,Labels!$B$163,INDEX($AH$832:$AH$844,MATCH(MAX(AF832:AF844),AF832:AF844,0))),"") ->  | AG14: =$AJ$16*-1 -> 0 | AH14: [02] | AI14: =Labels!B145 -> hm | AJ14: =AG844 -> 0 | AK14: =AG869 -> 0 | AL14: =AG894 -> 0 | AM14: =AG919 -> 0 | AN14: =AG944 -> 0 | AO14: =AG969 -> 0 | AP14: =AG994 -> 0 | AQ14: =AG1019 -> 0 | AR14: =AG1044 -> 0 | AS14: =AG1069 -> 0 | AT14: =AG1094 -> 0 | AU14: =AG1119 -> 0 | AV14: 0 | AX14: [08] | AY14: Zeitzuschlag 2 - Nachtarbeit
A15: =Labels!B40 -> 00h00-06h00 1) | AG15: =SUM(B15:AF15) -> 0 | AH15: [04] | AI15: =Labels!B137 -> cc | AJ15: =AG834 -> 0 | AK15: =AG859 -> 0 | AL15: =AG884 -> 0 | AM15: =AG909 -> 0 | AN15: =AG934 -> 0 | AO15: =AG959 -> 0 | AP15: =AG984 -> 0 | AQ15: =AG1009 -> 0 | AR15: =AG1034 -> 0 | AS15: =AG1059 -> 0 | AT15: =AG1084 -> 0 | AU15: =AG1109 -> 0 | AV15: 0 | AX15: [09] | AY15: Zeitzuschlag 3 - Sonn- und Feiertagsarbeit (Tag und Nacht)
A16: =Labels!B41 -> 06h00-20h00 2) | AG16: =SUM(B16:AF16) -> 0 | AH16: [03] | AI16: Karenztage | AJ16: =SUMPRODUCT((B830:AF830="x")*B836:AF836) -> 0 | AK16: =SUMPRODUCT((B855:AF855="x")*B861:AF861) -> 0 | AL16: =SUMPRODUCT((B880:AF880="x")*B886:AF886) -> 0 | AM16: =SUMPRODUCT((B905:AF905="x")*B911:AF911) -> 0 | AN16: =SUMPRODUCT((B930:AF930="x")*B936:AF936) -> 0 | AO16: =SUMPRODUCT((B955:AF955="x")*B961:AF961) -> 0 | AP16: =SUMPRODUCT((B980:AF980="x")*B986:AF986) -> 0 | AQ16: =SUMPRODUCT((B1005:AF1005="x")*B1011:AF1011) -> 0 | AR16: =SUMPRODUCT((B1030:AF1030="x")*B1036:AF1036) -> 0 | AS16: =SUMPRODUCT((B1055:AF1055="x")*B1061:AF1061) -> 0 | AT16: =SUMPRODUCT((B1080:AF1080="x")*B1086:AF1086) -> 0 | AU16: =SUMPRODUCT((B1105:AF1105="x")*B1111:AF1111) -> 0 | AV16: 0 | AX16: [10] | AY16: Total gearbeitete Std. im Monat mit Zeitzuschlägen und Absenzen (ohne Berücks. ausbez. Std)
A17: =Labels!B42 -> 20h00-24h00 3) | AG17: =SUM(B17:AF17) -> 0 | AH17: [05] | AI17: Anz Karenztage | AJ17: =AG830 -> 0 | AK17: =AG855 -> 0 | AL17: =AG880 -> 0 | AM17: =AG905 -> 0 | AN17: =AG930 -> 0 | AO17: =AG955 -> 0 | AP17: =AG980 -> 0 | AQ17: =AG1005 -> 0 | AR17: =AG1030 -> 0 | AS17: =AG1055 -> 0 | AT17: =AG1080 -> 0 | AU17: =AG1105 -> 0 | AV17: 0 | AX17: [11] | AY17: Saldo (ohne ausbez. Std.)
A18: =Labels!B43 -> Jours fériés "jf" | B18: =IF(WEEKDAY(B10,2)<=6,IF(CALENDRIER!E3="x",Labels!$B$118,""),"") ->  | C18: =IF(WEEKDAY(C10,2)<=6,IF(CALENDRIER!F3="x",Labels!$B$118,""),"") ->  | D18: =IF(WEEKDAY(D10,2)<=6,IF(CALENDRIER!G3="x",Labels!$B$118,""),"") ->  | E18: =IF(WEEKDAY(E10,2)<=6,IF(CALENDRIER!H3="x",Labels!$B$118,""),"") ->  | F18: =IF(WEEKDAY(F10,2)<=6,IF(CALENDRIER!I3="x",Labels!$B$118,""),"") ->  | G18: =IF(WEEKDAY(G10,2)<=6,IF(CALENDRIER!J3="x",Labels!$B$118,""),"") ->  | H18: =IF(WEEKDAY(H10,2)<=6,IF(CALENDRIER!K3="x",Labels!$B$118,""),"") ->  | I18: =IF(WEEKDAY(I10,2)<=6,IF(CALENDRIER!L3="x",Labels!$B$118,""),"") ->  | J18: =IF(WEEKDAY(J10,2)<=6,IF(CALENDRIER!M3="x",Labels!$B$118,""),"") ->  | K18: =IF(WEEKDAY(K10,2)<=6,IF(CALENDRIER!N3="x",Labels!$B$118,""),"") ->  | L18: =IF(WEEKDAY(L10,2)<=6,IF(CALENDRIER!O3="x",Labels!$B$118,""),"") ->  | M18: =IF(WEEKDAY(M10,2)<=6,IF(CALENDRIER!P3="x",Labels!$B$118,""),"") ->  | N18: =IF(WEEKDAY(N10,2)<=6,IF(CALENDRIER!Q3="x",Labels!$B$118,""),"") ->  | O18: =IF(WEEKDAY(O10,2)<=6,IF(CALENDRIER!R3="x",Labels!$B$118,""),"") ->  | P18: =IF(WEEKDAY(P10,2)<=6,IF(CALENDRIER!S3="x",Labels!$B$118,""),"") ->  | Q18: =IF(WEEKDAY(Q10,2)<=6,IF(CALENDRIER!T3="x",Labels!$B$118,""),"") ->  | R18: =IF(WEEKDAY(R10,2)<=6,IF(CALENDRIER!U3="x",Labels!$B$118,""),"") ->  | S18: =IF(WEEKDAY(S10,2)<=6,IF(CALENDRIER!V3="x",Labels!$B$118,""),"") ->  | T18: =IF(WEEKDAY(T10,2)<=6,IF(CALENDRIER!W3="x",Labels!$B$118,""),"") ->  | U18: =IF(WEEKDAY(U10,2)<=6,IF(CALENDRIER!X3="x",Labels!$B$118,""),"") ->  | V18: =IF(WEEKDAY(V10,2)<=6,IF(CALENDRIER!Y3="x",Labels!$B$118,""),"") ->  | W18: =IF(WEEKDAY(W10,2)<=6,IF(CALENDRIER!Z3="x",Labels!$B$118,""),"") ->  | X18: =IF(WEEKDAY(X10,2)<=6,IF(CALENDRIER!AA3="x",Labels!$B$118,""),"") ->  | Y18: =IF(WEEKDAY(Y10,2)<=6,IF(CALENDRIER!AB3="x",Labels!$B$118,""),"") ->  | Z18: =IF(WEEKDAY(Z10,2)<=6,IF(CALENDRIER!AC3="x",Labels!$B$118,""),"") ->  | AA18: =IF(WEEKDAY(AA10,2)<=6,IF(CALENDRIER!AD3="x",Labels!$B$118,""),"") ->  | AB18: =IF(WEEKDAY(AB10,2)<=6,IF(CALENDRIER!AE3="x",Labels!$B$118,""),"") ->  | AC18: =IF(WEEKDAY(AC10,2)<=6,IF(CALENDRIER!AF3="x",Labels!$B$118,""),"") ->  | AD18: =IF(WEEKDAY(AD10,2)<=6,IF(CALENDRIER!AG3="x",Labels!$B$118,""),"") ->  | AE18: =IF(WEEKDAY(AE10,2)<=6,IF(CALENDRIER!AH3="x",Labels!$B$118,""),"") ->  | AF18: =IF(WEEKDAY(AF10,2)<=6,IF(CALENDRIER!AI3="x",Labels!$B$118,""),"") ->  | AH18: FT | AI18: =Labels!B118 -> jf | AJ18: =SUMIF($B$18:$AF$18,$AI$18,$B$19:$AF$19) -> 0 | AK18: =SUMIF($B$83:$AD$83,$AI$18,$B$84:$AD$84) -> 0 | AL18: =SUMIF($B$148:$AF$148,$AI$18,$B$149:$AF$149) -> 0 | AM18: =SUMIF($B$213:$AE$213,$AI$18,$B$214:$AE$214) -> 0 | AN18: =SUMIF($B$278:$AF$278,$AI$18,$B$279:$AF$279) -> 0 | AO18: =SUMIF($B$343:$AE$343,$AI$18,$B$344:$AE$344) -> 0 | AP18: =SUMIF($B$408:$AF$408,$AI$18,$B$409:$AF$409) -> 0 | AQ18: =SUMIF($B$473:$AF$473,$AI$18,$B$474:$AF$474) -> 0 | AR18: =SUMIF($B$538:$AE$538,$AI$18,$B$539:$AE$539) -> 0 | AS18: =SUMIF($B$603:$AF$603,$AI$18,$B$604:$AF$604) -> 0 | AT18: =SUMIF($B$668:$AE$668,$AI$18,$B$669:$AE$669) -> 0 | AU18: =SUMIF($B$733:$AF$733,$AI$18,$B$734:$AF$734) -> 0 | AV18: =SUM(AJ18:AU18) -> 0
A19: =Labels!B44 -> Majoration "jf" | B19: =IF(AND(B18=Labels!$B$118,WEEKDAY(B10,2)<6,B$12<>""),$J$7*SUMPRODUCT(($AM$77:$AQ$77=MOD(B10,7))*$AM$65:$AQ$65)%,"") ->  | C19: =IF(AND(C18=Labels!$B$118,WEEKDAY(C10,2)<6,C$12<>""),$J$7*SUMPRODUCT(($AM$77:$AQ$77=MOD(C10,7))*$AM$65:$AQ$65)%,"") ->  | D19: =IF(AND(D18=Labels!$B$118,WEEKDAY(D10,2)<6,D$12<>""),$J$7*SUMPRODUCT(($AM$77:$AQ$77=MOD(D10,7))*$AM$65:$AQ$65)%,"") ->  | E19: =IF(AND(E18=Labels!$B$118,WEEKDAY(E10,2)<6,E$12<>""),$J$7*SUMPRODUCT(($AM$77:$AQ$77=MOD(E10,7))*$AM$65:$AQ$65)%,"") ->  | F19: =IF(AND(F18=Labels!$B$118,WEEKDAY(F10,2)<6,F$12<>""),$J$7*SUMPRODUCT(($AM$77:$AQ$77=MOD(F10,7))*$AM$65:$AQ$65)%,"") ->  | G19: =IF(AND(G18=Labels!$B$118,WEEKDAY(G10,2)<6,G$12<>""),$J$7*SUMPRODUCT(($AM$77:$AQ$77=MOD(G10,7))*$AM$65:$AQ$65)%,"") ->  | H19: =IF(AND(H18=Labels!$B$118,WEEKDAY(H10,2)<6,H$12<>""),$J$7*SUMPRODUCT(($AM$77:$AQ$77=MOD(H10,7))*$AM$65:$AQ$65)%,"") ->  | I19: =IF(AND(I18=Labels!$B$118,WEEKDAY(I10,2)<6,I$12<>""),$J$7*SUMPRODUCT(($AM$77:$AQ$77=MOD(I10,7))*$AM$65:$AQ$65)%,"") ->  | J19: =IF(AND(J18=Labels!$B$118,WEEKDAY(J10,2)<6,J$12<>""),$J$7*SUMPRODUCT(($AM$77:$AQ$77=MOD(J10,7))*$AM$65:$AQ$65)%,"") ->  | K19: =IF(AND(K18=Labels!$B$118,WEEKDAY(K10,2)<6,K$12<>""),$J$7*SUMPRODUCT(($AM$77:$AQ$77=MOD(K10,7))*$AM$65:$AQ$65)%,"") ->  | L19: =IF(AND(L18=Labels!$B$118,WEEKDAY(L10,2)<6,L$12<>""),$J$7*SUMPRODUCT(($AM$77:$AQ$77=MOD(L10,7))*$AM$65:$AQ$65)%,"") ->  | M19: =IF(AND(M18=Labels!$B$118,WEEKDAY(M10,2)<6,M$12<>""),$J$7*SUMPRODUCT(($AM$77:$AQ$77=MOD(M10,7))*$AM$65:$AQ$65)%,"") ->  | N19: =IF(AND(N18=Labels!$B$118,WEEKDAY(N10,2)<6,N$12<>""),$J$7*SUMPRODUCT(($AM$77:$AQ$77=MOD(N10,7))*$AM$65:$AQ$65)%,"") ->  | O19: =IF(AND(O18=Labels!$B$118,WEEKDAY(O10,2)<6,O$12<>""),$J$7*SUMPRODUCT(($AM$77:$AQ$77=MOD(O10,7))*$AM$65:$AQ$65)%,"") ->  | P19: =IF(AND(P18=Labels!$B$118,WEEKDAY(P10,2)<6,P$12<>""),$J$7*SUMPRODUCT(($AM$77:$AQ$77=MOD(P10,7))*$AM$65:$AQ$65)%,"") ->  | Q19: =IF(AND(Q18=Labels!$B$118,WEEKDAY(Q10,2)<6,Q$12<>""),$J$7*SUMPRODUCT(($AM$77:$AQ$77=MOD(Q10,7))*$AM$65:$AQ$65)%,"") ->  | R19: =IF(AND(R18=Labels!$B$118,WEEKDAY(R10,2)<6,R$12<>""),$J$7*SUMPRODUCT(($AM$77:$AQ$77=MOD(R10,7))*$AM$65:$AQ$65)%,"") ->  | S19: =IF(AND(S18=Labels!$B$118,WEEKDAY(S10,2)<6,S$12<>""),$J$7*SUMPRODUCT(($AM$77:$AQ$77=MOD(S10,7))*$AM$65:$AQ$65)%,"") ->  | T19: =IF(AND(T18=Labels!$B$118,WEEKDAY(T10,2)<6,T$12<>""),$J$7*SUMPRODUCT(($AM$77:$AQ$77=MOD(T10,7))*$AM$65:$AQ$65)%,"") ->  | U19: =IF(AND(U18=Labels!$B$118,WEEKDAY(U10,2)<6,U$12<>""),$J$7*SUMPRODUCT(($AM$77:$AQ$77=MOD(U10,7))*$AM$65:$AQ$65)%,"") ->  | V19: =IF(AND(V18=Labels!$B$118,WEEKDAY(V10,2)<6,V$12<>""),$J$7*SUMPRODUCT(($AM$77:$AQ$77=MOD(V10,7))*$AM$65:$AQ$65)%,"") ->  | W19: =IF(AND(W18=Labels!$B$118,WEEKDAY(W10,2)<6,W$12<>""),$J$7*SUMPRODUCT(($AM$77:$AQ$77=MOD(W10,7))*$AM$65:$AQ$65)%,"") ->  | X19: =IF(AND(X18=Labels!$B$118,WEEKDAY(X10,2)<6,X$12<>""),$J$7*SUMPRODUCT(($AM$77:$AQ$77=MOD(X10,7))*$AM$65:$AQ$65)%,"") ->  | Y19: =IF(AND(Y18=Labels!$B$118,WEEKDAY(Y10,2)<6,Y$12<>""),$J$7*SUMPRODUCT(($AM$77:$AQ$77=MOD(Y10,7))*$AM$65:$AQ$65)%,"") ->  | Z19: =IF(AND(Z18=Labels!$B$118,WEEKDAY(Z10,2)<6,Z$12<>""),$J$7*SUMPRODUCT(($AM$77:$AQ$77=MOD(Z10,7))*$AM$65:$AQ$65)%,"") ->  | AA19: =IF(AND(AA18=Labels!$B$118,WEEKDAY(AA10,2)<6,AA$12<>""),$J$7*SUMPRODUCT(($AM$77:$AQ$77=MOD(AA10,7))*$AM$65:$AQ$65)%,"") ->  | AB19: =IF(AND(AB18=Labels!$B$118,WEEKDAY(AB10,2)<6,AB$12<>""),$J$7*SUMPRODUCT(($AM$77:$AQ$77=MOD(AB10,7))*$AM$65:$AQ$65)%,"") ->  | AC19: =IF(AND(AC18=Labels!$B$118,WEEKDAY(AC10,2)<6,AC$12<>""),$J$7*SUMPRODUCT(($AM$77:$AQ$77=MOD(AC10,7))*$AM$65:$AQ$65)%,"") ->  | AD19: =IF(AND(AD18=Labels!$B$118,WEEKDAY(AD10,2)<6,AD$12<>""),$J$7*SUMPRODUCT(($AM$77:$AQ$77=MOD(AD10,7))*$AM$65:$AQ$65)%,"") ->  | AE19: =IF(AND(AE18=Labels!$B$118,WEEKDAY(AE10,2)<6,AE$12<>""),$J$7*SUMPRODUCT(($AM$77:$AQ$77=MOD(AE10,7))*$AM$65:$AQ$65)%,"") ->  | AF19: =IF(AND(AF18=Labels!$B$118,WEEKDAY(AF10,2)<6,AF$12<>""),$J$7*SUMPRODUCT(($AM$77:$AQ$77=MOD(AF10,7))*$AM$65:$AQ$65)%,"") ->  | AG19: =SUM(B19:AF19) -> 0 | AH19: [06] | AI19: =Labels!B160 -> Nombre jf | AJ19: =COUNTIF($B$18:$AF$18,$AI$18) -> 0 | AK19: =COUNTIF($B$83:$AD$83,$AI$18) -> 0 | AL19: =COUNTIF($B$148:$AF$148,$AI$18) -> 0 | AM19: =COUNTIF($B$213:$AE$213,$AI$18) -> 0 | AN19: =COUNTIF($B$278:$AF$278,$AI$18) -> 0 | AO19: =COUNTIF($B$343:$AE$343,$AI$18) -> 0 | AP19: =COUNTIF($B$408:$AF$408,$AI$18) -> 0 | AQ19: =COUNTIF($B$473:$AF$473,$AI$18) -> 0 | AR19: =COUNTIF($B$538:$AE$538,$AI$18) -> 0 | AS19: =COUNTIF($B$603:$AF$603,$AI$18) -> 0 | AT19: =COUNTIF($B$668:$AE$668,$AI$18) -> 0 | AU19: =COUNTIF($B$733:$AF$733,$AI$18) -> 0 | AV19: 0
A20: =Labels!B45 -> total quotidien | B20: =SUM(B15:B17) -> 0 | C20: =SUM(C15:C17) -> 0 | D20: 0 | E20: 0 | F20: 0 | G20: 0 | H20: 0 | I20: 0 | J20: 0 | K20: 0 | L20: 0 | M20: 0 | N20: 0 | O20: 0 | P20: 0 | Q20: 0 | R20: 0 | S20: 0 | T20: 0 | U20: 0 | V20: 0 | W20: 0 | X20: 0 | Y20: 0 | Z20: 0 | AA20: 0 | AB20: 0 | AC20: 0 | AD20: 0 | AE20: 0 | AF20: 0 | AH20: TT | AI20: =Labels!B161 -> Message | AJ20: =IF($AV$19>9,"(" & $AV$19 & " = " & Labels!B117,"") -> 
A21: =Labels!B46 -> . | AH21: R | AI21: Bez VoJa | AJ21: =$AE$33 -> 0 | AK21: =$AE$98 -> 0 | AL21: =$AE$163 -> 0 | AM21: =$AE$228 -> 0 | AN21: =$AE$293 -> 0 | AO21: =$AE$358 -> 0 | AP21: =$AE$423 -> 0 | AQ21: =$AE$488 -> 0 | AR21: =$AE$553 -> 0 | AV21: =SUM(AJ21:AU21) -> 0
A22: =Labels!B47 -> . | AH22: R | AI22: Bez LaJa | AJ22: =$AE$34 -> 0 | AK22: =$AE$99 -> 0 | AL22: =$AE$164 -> 0 | AM22: =$AE$229 -> 0 | AN22: =$AE$294 -> 0 | AO22: =$AE$359 -> 0 | AP22: =$AE$424 -> 0 | AQ22: =$AE$489 -> 0 | AR22: =$AE$554 -> 0 | AS22: =$AE$619 -> 0 | AT22: =$AE$684 -> 0 | AU22: =$AE$749 -> 0 | AV22: =SUM(AJ22:AU22) -> 0
A23: =Labels!B48 -> transition mois | B23: =IF(WEEKDAY(B10)=1,TEXT(B10-1,"MMM"&Labels!B13),"") -> déc. | AF23: =IF(AND(WEEKDAY(AF10)>1,WEEKDAY(AF10)<7),TEXT(DATE($B$5,MONTH(AF10)+1,1),"MMM"&Labels!B13),"") -> févr. | AH23: MNT | AI23: Zuschläge Nacht/Sonn-/Feiertag | AJ23: =SUM(AG26+AG27) -> 0 | AK23: =SUM(AG90+AG91) -> 0 | AL23: =SUM(AG155+AG156) -> 0 | AM23: =SUM(AG220+AG221) -> 0 | AN23: =SUM(AG285+AG286) -> 0 | AO23: =SUM(AG350+AG351) -> 0 | AP23: =SUM(AG415+AG416) -> 0 | AQ23: =SUM(AG480+AG481) -> 0 | AR23: =SUM(AG545+AG546) -> 0 | AS23: =SUM(AG610+AG611) -> 0 | AT23: =SUM(AG675+AG676) -> 0 | AU23: =SUM(AG740+AG741) -> 0 | AV23: =SUM(AJ23:AU23) -> 0
A24: =Labels!B49 -> Total hebdomadaire | B24: =IF(WEEKDAY(B10)=7,SUMIF($B11:$AF11,B11,$B20:$AF20)+SUMIF($B76:$AD76,B11,$B85:$AD85),IF(WEEKDAY(B10)=1,SUMIF($B11:$AF11,B11,$B20:$AF20)+SUMIF($B76:$AD76,B11,$B85:$AD85),"")) -> 0 | C24: =IF(WEEKDAY(C10)=7,SUMIF($B11:$AF11,C11,$B20:$AF20)+SUMIF($B76:$AD76,C11,$B85:$AD85),"") ->  | H24: 0 | O24: 0 | V24: 0 | AC24: 0 | AF24: =IF(WEEKDAY(AF10)=7,SUMIF($B11:$AF11,AF11,$B20:$AF20)+SUMIF($B76:$AD76,AF11,$B85:$AD85),AF23) -> févr. | AH24: WT | AX24: Legende Absenztypen (DE)
A25: =Labels!B50 -> Majorations temp. 1) | B25: =IF(B32="FALSCH","",B32) ->  | C25: =IF(C32="FALSCH","",C32) ->  | AG25: =SUM(B25:AF25) -> 0 | AH25: [07]
A26: =Labels!B51 -> Majorations temp. 2) | B26: =IF((B15+B17)=0,"",SUM(B15,B17)) ->  | C26: =IF((C15+C17)=0,"",SUM(C15,C17)) ->  | D26: =IF((D15+D17)=0,"",SUM(D15,D17)) ->  | E26: =IF((E15+E17)=0,"",SUM(E15,E17)) ->  | AG26: 0 | AH26: [08] | AX26: a | AY26: Absenzen, Kurzabsenzen Art. 11 GAV
A27: =Labels!B52 -> Majorations temp. 3) | B27: =SUM(B28:B31) -> 0 | C27: 0 | D27: 0 | E27: 0 | F27: 0 | G27: 0 | H27: 0 | I27: 0 | J27: 0 | K27: 0 | L27: 0 | M27: 0 | N27: 0 | O27: 0 | P27: 0 | Q27: 0 | R27: 0 | S27: 0 | T27: 0 | U27: 0 | V27: 0 | W27: 0 | X27: 0 | Y27: 0 | Z27: 0 | AA27: 0 | AB27: 0 | AC27: 0 | AD27: 0 | AE27: 0 | AF27: 0 | AG27: 0 | AH27: [09] | AI27: Konfiguration (lokal) | AX27: f | AY27: Ferien Art. 12.1. GAV
A28: =Labels!B53 -> Dimanche journée | B28: =IF(WEEKDAY(B10)=1,B16,"") -> 0 | C28: =IF(WEEKDAY(C10)=1,C16,"") ->  | I28: 0 | P28: 0 | W28: 0 | AD28: 0 | AG28: 0 | AH28: [09-ST] | AX28: k | AY28: Krankheit Art. 13 GAV
A29: =Labels!B54 -> Dimanche nuit | B29: =IF(WEEKDAY(B10)=1,SUM(B15+B17),"") -> 0 | C29: =IF(WEEKDAY(C10)=1,SUM(C15+C17),"") ->  | I29: 0 | P29: 0 | W29: 0 | AD29: 0 | AG29: 0 | AH29: [09-SN] | AI29: Erster Januar aktuelles Jahr | AP29: =DATE(YEAR($A$7),MONTH($A$7),DAY($A$7)) -> 2023-01-01 | AX29: m | AY29: Militär, Zivilschutz Art. 16 GAV
A30: =Labels!B55 -> jf-jomajoration | B30: =IF(B18=Labels!$B$118,B16,"") ->  | C30: =IF(C18=Labels!$B$118,C16,"") ->  | D30: =IF(D18=Labels!$B$118,D16,"") ->  | E30: =IF(E18=Labels!$B$118,E16,"") ->  | F30: =IF(F18=Labels!$B$118,F16,"") ->  | G30: =IF(G18=Labels!$B$118,G16,"") ->  | H30: =IF(H18=Labels!$B$118,H16,"") ->  | I30: =IF(I18=Labels!$B$118,I16,"") ->  | J30: =IF(J18=Labels!$B$118,J16,"") ->  | K30: =IF(K18=Labels!$B$118,K16,"") ->  | L30: =IF(L18=Labels!$B$118,L16,"") ->  | M30: =IF(M18=Labels!$B$118,M16,"") ->  | N30: =IF(N18=Labels!$B$118,N16,"") ->  | O30: =IF(O18=Labels!$B$118,O16,"") ->  | P30: =IF(P18=Labels!$B$118,P16,"") ->  | Q30: =IF(Q18=Labels!$B$118,Q16,"") ->  | R30: =IF(R18=Labels!$B$118,R16,"") ->  | S30: =IF(S18=Labels!$B$118,S16,"") ->  | T30: =IF(T18=Labels!$B$118,T16,"") ->  | U30: =IF(U18=Labels!$B$118,U16,"") ->  | V30: =IF(V18=Labels!$B$118,V16,"") ->  | W30: =IF(W18=Labels!$B$118,W16,"") ->  | X30: =IF(X18=Labels!$B$118,X16,"") ->  | Y30: =IF(Y18=Labels!$B$118,Y16,"") ->  | Z30: =IF(Z18=Labels!$B$118,Z16,"") ->  | AA30: =IF(AA18=Labels!$B$118,AA16,"") ->  | AB30: =IF(AB18=Labels!$B$118,AB16,"") ->  | AC30: =IF(AC18=Labels!$B$118,AC16,"") ->  | AD30: =IF(AD18=Labels!$B$118,AD16,"") ->  | AE30: =IF(AE18=Labels!$B$118,AE16,"") ->  | AF30: =IF(AF18=Labels!$B$118,AF16,"") ->  | AG30: 0 | AH30: [09-FT] | AI30: (Berechnungsgrundlage Kalender) | AX30: s | AY30: Schwanger-/Mutterschaft Art. 15 GAV
A31: =Labels!B56 -> jf-numajoration | B31: =IF(B18=Labels!$B$118,SUM(B15,B17),"") ->  | C31: =IF(C18=Labels!$B$118,SUM(C15,C17),"") ->  | D31: =IF(D18=Labels!$B$118,SUM(D15,D17),"") ->  | E31: =IF(E18=Labels!$B$118,SUM(E15,E17),"") ->  | F31: =IF(F18=Labels!$B$118,SUM(F15,F17),"") ->  | G31: =IF(G18=Labels!$B$118,SUM(G15,G17),"") ->  | H31: =IF(H18=Labels!$B$118,SUM(H15,H17),"") ->  | I31: =IF(I18=Labels!$B$118,SUM(I15,I17),"") ->  | J31: =IF(J18=Labels!$B$118,SUM(J15,J17),"") ->  | K31: =IF(K18=Labels!$B$118,SUM(K15,K17),"") ->  | L31: =IF(L18=Labels!$B$118,SUM(L15,L17),"") ->  | M31: =IF(M18=Labels!$B$118,SUM(M15,M17),"") ->  | N31: =IF(N18=Labels!$B$118,SUM(N15,N17),"") ->  | O31: =IF(O18=Labels!$B$118,SUM(O15,O17),"") ->  | P31: =IF(P18=Labels!$B$118,SUM(P15,P17),"") ->  | Q31: =IF(Q18=Labels!$B$118,SUM(Q15,Q17),"") ->  | R31: =IF(R18=Labels!$B$118,SUM(R15,R17),"") ->  | S31: =IF(S18=Labels!$B$118,SUM(S15,S17),"") ->  | T31: =IF(T18=Labels!$B$118,SUM(T15,T17),"") ->  | U31: =IF(U18=Labels!$B$118,SUM(U15,U17),"") ->  | V31: =IF(V18=Labels!$B$118,SUM(V15,V17),"") ->  | W31: =IF(W18=Labels!$B$118,SUM(W15,W17),"") ->  | X31: =IF(X18=Labels!$B$118,SUM(X15,X17),"") ->  | Y31: =IF(Y18=Labels!$B$118,SUM(Y15,Y17),"") ->  | Z31: =IF(Z18=Labels!$B$118,SUM(Z15,Z17),"") ->  | AA31: =IF(AA18=Labels!$B$118,SUM(AA15,AA17),"") ->  | AB31: =IF(AB18=Labels!$B$118,SUM(AB15,AB17),"") ->  | AC31: =IF(AC18=Labels!$B$118,SUM(AC15,AC17),"") ->  | AD31: =IF(AD18=Labels!$B$118,SUM(AD15,AD17),"") ->  | AE31: =IF(AE18=Labels!$B$118,SUM(AE15,AE17),"") ->  | AF31: =IF(AF18=Labels!$B$118,SUM(AF15,AF17),"") ->  | AG31: 0 | AH31: [09-FN] | AX31: u | AY31: Unfall Art. 14 GAV
A32: =Labels!B57 -> majoration caché (total hebd.) | B32: =IF($B4>=80,IF(OR(ISTEXT(B24),B24="",B24<$B$7),"",ROUND(((B24-$B$7)*25%)/25,4)*25),IF(B20>($B$7/5),ROUND(((B20-($B$7/5))*25%)/25,4)*25,"")) ->  | C32: =IF($B4>=80,IF(OR(ISTEXT(C24),C24="",C24<$B$7),"",ROUND(((C24-$B$7)*25%)/25,4)*25),IF(C20>($B$7/5),ROUND(((C20-($B$7/5))*25%)/25,4)*25,"")) ->  | AG32: =AG16 -> 0 | AH32: [03] | AI32: Schaltjahr | AP32: =IF(ISERROR(("29.02."&timesheetYear)*1),FALSE,TRUE) -> FALSE | AX32: bs | AY32: Berufsschule
B33: =Labels!B58 -> 1) 25% majoration temporelle pour depassement les heures maximales | L33: =Labels!B59 -> 2) 100% majoration temporelle pour travail de nuit | T33: =Labels!B61 -> Saisie des heures payées l'année passée | AG33: =SUM(AG15+AG17) -> 0 | AH33: [4-5] | AX33: fe | AY33: Fehlstunden zur Information ohne Berechnung in der Zusammenfassung
B34: =Labels!B60 -> 3) 100% majoration temporelle pour travail du dimanche et jour férié | T34: =Labels!B62 -> Saisie des heures payées exercice en cours (heures supplémentaires) | AG34: =SUM(AG15:AG17) -> 0 | AH34: [3-5] | AI34: Hilfszelle Feiertage | AQ34: =Labels!$B$118 -> jf | AX34: ka | AY34: Kurzabeit, Schlechtwetterausfälle
A35: =Labels!B159 -> Notes | AG35: =SUM(AG13:AG27) -> 0 | AH35: [10] | AX35: kj | AY35: Kompensation laufendes Jahr siehe Zusammenfassung
AG36: =AG12 -> 176 | AH36: [00] | AI36: aktueller Kalender | AK36: calendar | AQ36: KALENDER | AX36: ku | AY36: Kurse
A37: =IF(AG829=0,"","effektives Pensum: "&ROUND(COUNT(B12:AF12)/(AG829+COUNT(B12:AF12))%*B4%*20,0)/20&" %") ->  | AG37: =SUM(AG35-AG36) -> -176 | AH37: [11] | AX37: kv | AY37: Kompensation Vorjahressaldo für Abrechnung in der Zusammenfassung
AX38: fu | AY38: Ferien unbezahlt
A39: =Labels!$B$103 -> Résumé | G39: =Labels!$B$77 -> Jan | I39: =Labels!$B$78 -> Fév | K39: =Labels!$B$79 -> Mar | M39: =Labels!$B$80 -> Avr | O39: =Labels!$B$81 -> Mai | Q39: =Labels!$B$82 -> Jun | S39: =Labels!$B$83 -> Jul | U39: =Labels!$B$84 -> Aoû | W39: =Labels!$B$85 -> Sep | Y39: =Labels!$B$86 -> Oct | AA39: =Labels!$B$87 -> Nov | AC39: =Labels!$B$88 -> Déc | AE39: =Labels!$B$101 -> Année | AI39: alter Kalender | AK39: calendar1 | AQ39: Kalender Müller
A40: =Labels!$B$20 -> Emploi % | G40: =IF($B$4=0,0,$B$4) -> 100 | I40: =IF($B$72=0,0,$B$72) -> 100 | K40: =IF($B$137=0,0,$B$137) -> 100 | M40: =IF($B$202=0,0,$B$202) -> 100 | O40: =IF($B$267=0,0,$B$267) -> 100 | Q40: =IF($B$332=0,0,$B$332) -> 100 | S40: =IF($B$397=0,0,$B$397) -> 100 | U40: =IF($B$462=0,0,$B$462) -> 100 | W40: =IF($B$527=0,0,$B$527) -> 100 | Y40: =IF($B$592=0,0,$B$592) -> 100 | AA40: =IF($B$657=0,0,$B$657) -> 100 | AC40: =IF($B$722=0,0,$B$722) -> 100 | AI40: neuer Kalender | AK40: calendar | AQ40: KALENDER
A41: =Labels!$B$104 -> Heures théoriques selon CCT | G41: =IF($AG$36=0,0,$AG$36) -> 176 | I41: =IF($AG$101=0,0,$AG$101) -> 160 | K41: =IF($AG$142=0,0,$AG$142) -> 184 | M41: =IF($AG$231=0,0,$AG$231) -> 160 | O41: =IF($AG$296=0,0,$AG$296) -> 184 | Q41: =IF($AG$361=0,0,$AG$361) -> 176 | S41: =IF($AG$426=0,0,$AG$426) -> 168 | U41: =IF($AG$491=0,0,$AG$491) -> 184 | W41: =IF($AG$556=0,0,$AG$556) -> 168 | Y41: =IF($AG$621=0,0,$AG$621) -> 176 | AA41: =IF($AG$686=0,0,$AG$686) -> 176 | AC41: =IF($AG$751=0,0,$AG$751) -> 168 | AE41: =SUM(G41:AD41) -> 2080
A42: =Labels!$B$105 -> Total heures productives | B42: =Labels!$B$106 -> 06.00 - 20.00 h | G42: =IF($AG$32=0,0,$AG$32) -> 0 | I42: =IF($AG$96=0,0,$AG$96) -> 0 | K42: =IF($AG$161=0,0,$AG$161) -> 0 | M42: =IF($AG$226=0,0,$AG$226) -> 0 | O42: =IF($AG$291=0,0,$AG$291) -> 0 | Q42: =IF($AG$356=0,0,$AG$356) -> 0 | S42: =IF($AG$421=0,0,$AG$421) -> 0 | U42: =IF($AG$486=0,0,$AG$486) -> 0 | W42: =IF($AG$551=0,0,$AG$551) -> 0 | Y42: =IF($AG$616=0,0,$AG$616) -> 0 | AA42: =IF($AG$681=0,0,$AG$681) -> 0 | AC42: =IF($AG$746=0,0,$AG$746) -> 0 | AE42: =SUM(G42:AD42) -> 0 | AX42: Meldungen & Beschriftungen
B43: =Labels!$B$107 -> nuit, dimanche et jour férié | G43: =IF($AG$33=0,0,$AG$33) -> 0 | I43: =IF($AG$97=0,0,$AG$97) -> 0 | K43: =IF($AG$162=0,0,$AG$162) -> 0 | M43: =IF($AG$227=0,0,$AG$227) -> 0 | O43: =IF($AG$292=0,0,$AG$292) -> 0 | Q43: =IF($AG$357=0,0,$AG$357) -> 0 | S43: =IF($AG$422=0,0,$AG$422) -> 0 | U43: =IF($AG$487=0,0,$AG$487) -> 0 | W43: =IF($AG$552=0,0,$AG$552) -> 0 | Y43: =IF($AG$617=0,0,$AG$617) -> 0 | AA43: =IF($AG$682=0,0,$AG$682) -> 0 | AC43: =IF($AG$747=0,0,$AG$747) -> 0 | AE43: =SUM(G43:AD43) -> 0
A44: =Labels!$B$108 -> Majorations temporelles | B44: =Labels!$B$109 -> depassement des heures maximales | G44: =IF($AG$25=0,0,$AG$25) -> 0 | I44: =IF($AG$89=0,0,$AG$89) -> 0 | K44: =IF($AG$154=0,0,$AG$154) -> 0 | M44: =IF($AG$219=0,0,$AG$219) -> 0 | O44: =IF($AG$284=0,0,$AG$284) -> 0 | Q44: =IF($AG$349=0,0,$AG$349) -> 0 | S44: =IF($AG$414=0,0,$AG$414) -> 0 | U44: =IF($AG$479=0,0,$AG$479) -> 0 | W44: =IF($AG$544=0,0,$AG$544) -> 0 | Y44: =IF($AG$609=0,0,$AG$609) -> 0 | AA44: =IF($AG$674=0,0,$AG$674) -> 0 | AC44: =IF($AG$739=0,0,$AG$739) -> 0 | AE44: =SUM(G44:AD44) -> 0 | AY44: ="Das Vorjahresguthaben beträgt noch "&TEXT(W62,"0.0000")&" Std." -> Das Vorjahresguthaben beträgt noch 0.0000 Std.
B45: =Labels!$B$110 -> nuit, dimanche et jour férié | G45: =IF($AJ$23=0,0,$AJ$23) -> 0 | I45: =IF($AK$23=0,0,$AK$23) -> 0 | K45: =IF($AL$23=0,0,$AL$23) -> 0 | M45: =IF($AM$23=0,0,$AM$23) -> 0 | O45: =IF($AN$23=0,0,$AN$23) -> 0 | Q45: =IF($AO$23=0,0,$AO$23) -> 0 | S45: =IF($AP$23=0,0,$AP$23) -> 0 | U45: =IF($AQ$23=0,0,$AQ$23) -> 0 | W45: =IF($AR$23=0,0,$AR$23) -> 0 | Y45: =IF($AS$23=0,0,$AS$23) -> 0 | AA45: =IF($AT$23=0,0,$AT$23) -> 0 | AC45: =IF($AU$23=0,0,$AU$23) -> 0 | AE45: =SUM(G45:AD45) -> 0 | AI45: Anstellungsdetails | AK45: Name: | AL45: Muster Peter | AO45: Default-% | AQ45: 100 | AY45: Total
A46: =Labels!$B$111 -> Heures inproductives
A47: =Labels!$B$112 -> Absences art. 11 CCT | F47: =Labels!$B$113 -> ab | G47: =IF($AJ$3=0,0,$AJ$3) -> 0 | I47: =IF($AK$3=0,0,$AK$3) -> 0 | K47: =IF($AL$3=0,0,$AL$3) -> 0 | M47: =IF($AM$3=0,0,$AM$3) -> 0 | O47: =IF($AN$3=0,0,$AN$3) -> 0 | Q47: =IF($AO$3=0,0,$AO$3) -> 0 | S47: =IF($AP$3=0,0,$AP$3) -> 0 | U47: =IF($AQ$3=0,0,$AQ$3) -> 0 | W47: =IF($AR$3=0,0,$AR$3) -> 0 | Y47: =IF($AS$3=0,0,$AS$3) -> 0 | AA47: =IF(AT$3=0,0,$AT$3) -> 0 | AC47: =IF($AU$3=0,0,$AU$3) -> 0 | AE47: =IF($AV$3=0,0,$AV$3) -> 0 | AI47: Ganzes Jahr gleich? | AJ47: TRUE | AL47: % | AM47: MO | AN47: DI | AO47: MI | AP47: DO | AQ47: FR | AR47: Arbeitst.
A48: =Labels!$B$114 -> Vacances art. 12.1 CCT | F48: =Labels!$B$115 -> va | G48: =IF($AJ$4=0,0,$AJ$4) -> 0 | I48: =IF($AK$4=0,0,$AK$4) -> 0 | K48: =IF($AL$4=0,0,$AL$4) -> 0 | M48: =IF($AM$4=0,0,$AM$4) -> 0 | O48: =IF($AN$4=0,0,$AN$4) -> 0 | Q48: =IF($AO$4=0,0,$AO$4) -> 0 | S48: =IF($AP$4=0,0,$AP$4) -> 0 | U48: =IF($AQ$4=0,0,$AQ$4) -> 0 | W48: =IF($AR$4=0,0,$AR$4) -> 0 | Y48: =IF($AS$4=0,0,$AS$4) -> 0 | AA48: =IF($AT$4=0,0,$AT$4) -> 0 | AC48: =IF($AU$4=0,0,$AU$4) -> 0 | AE48: =IF($AV$4=0,0,$AV$4) -> 0 | AI48: Expertenmodus | AJ48: FALSE | AK48: Jan | AL48: =AL65 -> 100 | AM48: =IF(AM65>0,TRUE,FALSE) -> TRUE | AN48: =IF(AN65>0,TRUE,FALSE) -> TRUE | AO48: TRUE | AP48: TRUE | AQ48: TRUE | AR48: =COUNTIF(AM48:AQ48,TRUE) -> 5
A49: =Labels!$B$181 -> vacances non payées | F49: =Labels!$B$182 -> vn | G49: =IF($AJ$13=0,0,$AJ$13) -> 0 | I49: =IF($AK$13=0,0,$AK$13) -> 0 | K49: =IF($AL$13=0,0,$AL$13) -> 0 | M49: =IF($AM$13=0,0,$AM$13) -> 0 | O49: =IF($AN$13=0,0,$AN$13) -> 0 | Q49: =IF($AO$13=0,0,$AO$13) -> 0 | S49: =IF($AP$13=0,0,$AP$13) -> 0 | U49: =IF($AQ$13=0,0,$AQ$13) -> 0 | W49: =IF($AR$13=0,0,$AR$13) -> 0 | Y49: =IF($AS$13=0,0,$AS$13) -> 0 | AA49: =IF($AT$13=0,0,$AT$13) -> 0 | AC49: =IF($AU$13=0,0,$AU$13) -> 0 | AE49: =IF($AV$13=0,0,$AV$13) -> 0 | AK49: Feb | AL49: =AL66 -> 100 | AM49: =IF(AM66>0,TRUE,FALSE) -> TRUE | AN49: TRUE | AO49: TRUE | AP49: TRUE | AQ49: TRUE | AR49: =COUNTIF(AM49:AQ49,TRUE) -> 5
A50: =Labels!$B$116 -> Jours fériés art. 12.2 CCT | C50: =IF($AJ$20="","",$AJ$20) ->  | F50: =Labels!$B$118 -> jf | G50: =IF($AJ$18=0,0,$AJ$18) -> 0 | I50: =IF($AK$18=0,0,$AK$18) -> 0 | K50: =IF($AL$18=0,0,$AL$18) -> 0 | M50: =IF($AM$18=0,0,$AM$18) -> 0 | O50: =IF($AN$18=0,0,$AN$18) -> 0 | Q50: =IF($AO$18=0,0,$AO$18) -> 0 | S50: =IF($AP$18=0,0,$AP$18) -> 0 | U50: =IF($AQ$18=0,0,$AQ$18) -> 0 | W50: =IF($AR$18=0,0,$AR$18) -> 0 | Y50: =IF($AS$18=0,0,$AS$18) -> 0 | AA50: =IF($AT$18=0,0,$AT$18) -> 0 | AC50: =IF($AU$18=0,0,$AU$18) -> 0 | AE50: =IF($AV$18=0,0,$AV$18) -> 0 | AK50: Mrz | AL50: 100 | AM50: TRUE | AN50: TRUE | AO50: TRUE | AP50: TRUE | AQ50: TRUE | AR50: 5
A51: =Labels!$B$119 -> Maladie art. 13 CCT | F51: =Labels!$B$120 -> ma | G51: =IF($AJ$5=0,0,$AJ$5) -> 0 | I51: =IF($AK$5=0,0,$AK$5) -> 0 | K51: =IF($AL$5=0,0,$AL$5) -> 0 | M51: =IF($AM$5=0,0,$AM$5) -> 0 | O51: =IF($AN$5=0,0,$AN$5) -> 0 | Q51: =IF($AO$5=0,0,$AO$5) -> 0 | S51: =IF($AP$5=0,0,$AP$5) -> 0 | U51: =IF($AQ$5=0,0,$AQ$5) -> 0 | W51: =IF($AR$5=0,0,$AR$5) -> 0 | Y51: =IF($AS$5=0,0,$AS$5) -> 0 | AA51: =IF($AT$5=0,0,$AT$5) -> 0 | AC51: =IF($AU$5=0,0,$AU$5) -> 0 | AE51: =IF($AV$5=0,0,$AV$5) -> 0 | AK51: Apr | AL51: 100 | AM51: TRUE | AN51: TRUE | AO51: TRUE | AP51: TRUE | AQ51: TRUE | AR51: 5
A52: =Labels!$B$184 -> non payeé | G52: =IF(AJ$16=0,0,AJ$16) -> 0 | I52: =IF($AK$16=0,0,$AK$16) -> 0 | K52: =IF($AL$16=0,0,$AL$16) -> 0 | M52: =IF($AM$16=0,0,$AM$16) -> 0 | O52: =IF($AN$16=0,0,$AN$16) -> 0 | Q52: =IF($AO$16=0,0,$AO$16) -> 0 | S52: =IF($AP$16=0,0,$AP$16) -> 0 | U52: =IF($AQ$16=0,0,$AQ$16) -> 0 | W52: =IF($AR$16=0,0,$AR$16) -> 0 | Y52: =IF($AS$16=0,0,$AS$16) -> 0 | AA52: =IF($AT$16=0,0,$AT$16) -> 0 | AC52: =IF($AU$16=0,0,$AU$16) -> 0 | AE52: =IF($AV$16=0,0,$AV$16) -> 0 | AK52: Mai | AL52: 100 | AM52: TRUE | AN52: TRUE | AO52: TRUE | AP52: TRUE | AQ52: TRUE | AR52: 5
A53: =Labels!$B$121 -> Accident art. 14 CCT | F53: =Labels!$B$122 -> ac | G53: =IF($AJ$6=0,0,$AJ$6) -> 0 | I53: =IF($AK$6=0,0,$AK$6) -> 0 | K53: =IF($AL$6=0,0,$AL$6) -> 0 | M53: =IF($AM$6=0,0,$AM$6) -> 0 | O53: =IF($AN$6=0,0,$AN$6) -> 0 | Q53: =IF($AO$6=0,0,$AO$6) -> 0 | S53: =IF($AP$6=0,0,$AP$6) -> 0 | U53: =IF($AQ$6=0,0,$AQ$6) -> 0 | W53: =IF($AR$6=0,0,$AR$6) -> 0 | Y53: =IF($AS$6=0,0,$AS$6) -> 0 | AA53: =IF($AT$6=0,0,$AT$6) -> 0 | AC53: =IF($AU$6=0,0,$AU$6) -> 0 | AE53: =IF($AV$6=0,0,$AV$6) -> 0 | AK53: Jun | AL53: 100 | AM53: TRUE | AN53: TRUE | AO53: TRUE | AP53: TRUE | AQ53: TRUE | AR53: 5
A54: =Labels!$B$123 -> Grossesse/Maternité art. 15 CCT | F54: =Labels!$B$124 -> gm | G54: =IF($AJ$7=0,0,$AJ$7) -> 0 | I54: =IF($AK$7=0,0,$AK$7) -> 0 | K54: =IF($AL$7=0,0,$AL$7) -> 0 | M54: =IF($AM$7=0,0,$AM$7) -> 0 | O54: =IF($AN$7=0,0,$AN$7) -> 0 | Q54: =IF($AO$7=0,0,$AO$7) -> 0 | S54: =IF($AP$7=0,0,$AP$7) -> 0 | U54: =IF($AQ$7=0,0,$AQ$7) -> 0 | W54: =IF($AR$7=0,0,$AR$7) -> 0 | Y54: =IF($AS$7=0,0,$AS$7) -> 0 | AA54: =IF($AT$7=0,0,$AT$7) -> 0 | AC54: =IF($AU$7=0,0,$AU$7) -> 0 | AE54: =IF($AV$7=0,0,$AV$7) -> 0 | AK54: Jul | AL54: 100 | AM54: TRUE | AN54: TRUE | AO54: TRUE | AP54: TRUE | AQ54: TRUE | AR54: 5
A55: =Labels!$B$125 -> Militaire/Promotion/Protection civile art. 16 CCT | F55: =Labels!$B$126 -> mi | G55: =IF($AJ$8=0,0,$AJ$8) -> 0 | I55: =IF($AK$8=0,0,$AK$8) -> 0 | K55: =IF($AL$8=0,0,$AL$8) -> 0 | M55: =IF($AM$8=0,0,$AM$8) -> 0 | O55: =IF($AN$8=0,0,$AN$8) -> 0 | Q55: =IF($AO$8=0,0,$AO$8) -> 0 | S55: =IF($AP$8=0,0,$AP$8) -> 0 | U55: =IF($AQ$8=0,0,$AQ$8) -> 0 | W55: =IF($AR$8=0,0,$AR$8) -> 0 | Y55: =IF($AS$8=0,0,$AS$8) -> 0 | AA55: =IF($AT$8=0,0,$AT$8) -> 0 | AC55: =IF($AU$8=0,0,$AU$8) -> 0 | AE55: =IF($AV$8=0,0,$AV$8) -> 0 | AK55: Aug | AL55: 100 | AM55: TRUE | AN55: TRUE | AO55: TRUE | AP55: TRUE | AQ55: TRUE | AR55: 5
A56: =Labels!$B$127 -> Chômage partiel et perte de travail cause d'intempéries | F56: =Labels!$B$128 -> ch | G56: =IF($AJ$11=0,0,$AJ$11) -> 0 | I56: =IF($AK$11=0,0,$AK$11) -> 0 | K56: =IF($AL$11=0,0,$AL$11) -> 0 | M56: =IF($AM$11=0,0,$AM$11) -> 0 | O56: =IF($AN$11=0,0,$AN$11) -> 0 | Q56: =IF($AO$11=0,0,$AO$11) -> 0 | S56: =IF($AP$11=0,0,$AP$11) -> 0 | U56: =IF($AQ$11=0,0,$AQ$11) -> 0 | W56: =IF($AR$11=0,0,$AR$11) -> 0 | Y56: =IF($AS$11=0,0,$AS$11) -> 0 | AA56: =IF($AT$11=0,0,$AT$11) -> 0 | AC56: =IF($AU$11=0,0,$AU$11) -> 0 | AE56: =IF($AV$11=0,0,$AV$11) -> 0 | AK56: Sep | AL56: 100 | AM56: TRUE | AN56: TRUE | AO56: TRUE | AP56: TRUE | AQ56: TRUE | AR56: 5
A57: =Labels!$B$129 -> Ecole professionnelle | F57: =Labels!$B$130 -> ep | G57: =IF($AJ$9=0,0,$AJ$9) -> 0 | I57: =IF($AK$9=0,0,$AK$9) -> 0 | K57: =IF($AL$9=0,0,$AL$9) -> 0 | M57: =IF($AM$9=0,0,$AM$9) -> 0 | O57: =IF($AN$9=0,0,$AN$9) -> 0 | Q57: =IF($AO$9=0,0,$AO$9) -> 0 | S57: =IF($AP$9=0,0,$AP$9) -> 0 | U57: =IF($AQ$9=0,0,$AQ$9) -> 0 | W57: =IF($AR$9=0,0,$AR$9) -> 0 | Y57: =IF($AS$9=0,0,$AS$9) -> 0 | AA57: =IF($AT$9=0,0,$AT$9) -> 0 | AC57: =IF($AU$9=0,0,$AU$9) -> 0 | AE57: =IF($AV$9=0,0,$AV$9) -> 0 | AK57: Okt | AL57: 100 | AM57: TRUE | AN57: TRUE | AO57: TRUE | AP57: TRUE | AQ57: TRUE | AR57: 5
A58: =Labels!$B$131 -> Cours | F58: =Labels!$B$132 -> co | G58: =IF($AJ$10=0,0,$AJ$10) -> 0 | I58: =IF($AK$10=0,0,$AK$10) -> 0 | K58: =IF($AL$10=0,0,$AL$10) -> 0 | M58: =IF($AM$10=0,0,$AM$10) -> 0 | O58: =IF($AN$10=0,0,$AN$10) -> 0 | Q58: =IF($AO$10=0,0,$AO$10) -> 0 | S58: =IF($AP$10=0,0,$AP$10) -> 0 | U58: =IF($AQ$10=0,0,$AQ$10) -> 0 | W58: =IF($AR$10=0,0,$AR$10) -> 0 | Y58: =IF($AS$10=0,0,$AS$10) -> 0 | AA58: =IF($AT$10=0,0,$AT$10) -> 0 | AC58: =IF($AU$10=0,0,$AU$10) -> 0 | AE58: =IF($AV$10=0,0,$AV$10) -> 0 | AK58: Nov | AL58: 100 | AM58: TRUE | AN58: TRUE | AO58: TRUE | AP58: TRUE | AQ58: TRUE | AR58: 5
A59: =Labels!$B$133 -> Heures de compensation | B59: =Labels!$B$134 -> de l'année passée | F59: =Labels!$B$135 -> cp | G59: =IF($AJ$12=0,0,$AJ$12) -> 0 | I59: =IF($AK$12=0,0,$AK$12) -> 0 | K59: =IF($AL$12=0,0,$AL$12) -> 0 | M59: =IF($AM$12=0,0,$AM$12) -> 0 | O59: =IF($AN$12=0,0,$AN$12) -> 0 | Q59: =IF($AO$12=0,0,$AO$12) -> 0 | S59: =IF($AP$12=0,0,$AP$12) -> 0 | U59: =IF($AQ$12=0,0,$AQ$12) -> 0 | W59: =IF($AR$12=0,0,$AR$12) -> 0 | AE59: =IF($AV$12=0,0,$AV$12) -> 0 | AK59: Dez | AL59: 100 | AM59: TRUE | AN59: TRUE | AO59: TRUE | AP59: TRUE | AQ59: TRUE | AR59: 5
B60: =Labels!$B$136 -> de l'année en cours (contrôle) | F60: =Labels!$B$137 -> cc | G60: =IF($AJ$15=0,0,$AJ$15) -> 0 | I60: =IF($AK$15=0,0,$AK$15) -> 0 | K60: =IF($AL$15=0,0,$AL$15) -> 0 | M60: =IF($AM$15=0,0,$AM$15) -> 0 | O60: =IF($AN$15=0,0,$AN$15) -> 0 | Q60: =IF($AO$15=0,0,$AO$15) -> 0 | S60: =IF($AP$15=0,0,$AP$15) -> 0 | U60: =IF($AQ$15=0,0,$AQ$15) -> 0 | W60: =IF($AR$15=0,0,$AR$15) -> 0 | Y60: =IF($AS$15=0,0,$AS$15) -> 0 | AA60: =IF($AT$15=0,0,$AT$15) -> 0 | AC60: =IF($AU$15=0,0,$AU$15) -> 0 | AE60: =IF($AV$15=0,0,$AV$15) -> 0 | AI60: Abbildung Wochentage für Formel => | AK60: Avg | AL60: =SUM(AL48:AL59)/12 -> 100 | AM60: 2 | AN60: 3 | AO60: 4 | AP60: 5 | AQ60: 6
A61: =Labels!$B$138 -> Paiement des heures | B61: =Labels!$B$139 -> de l'année passée | G61: =IF($AJ$21=0,0,$AJ$21) -> 0 | I61: =IF($AK$21=0,0,$AK$21) -> 0 | K61: =IF($AL$21=0,0,$AL$21) -> 0 | M61: =IF($AM$21=0,0,$AM$21) -> 0 | O61: =IF($AN$21=0,0,$AN$21) -> 0 | Q61: =IF($AO$21=0,0,$AO$21) -> 0 | S61: =IF($AP$21=0,0,$AP$21) -> 0 | U61: =IF($AQ$21=0,0,$AQ$21) -> 0 | W61: =IF($AR$21=0,0,$AR$21) -> 0 | AE61: =IF($AV$21=0,0,$AV$21) -> 0
A62: =Labels!$B$140 -> Différence en heures | B62: =Labels!$B$141 -> après compensation et paiement | G62: =IF(ROUND($P$4,3)=0,0,$P$4-G59-G61) -> 0 | I62: =IF(ROUND(G62,3)=0,0,G62-(SUM(I59+I61))) -> 0 | K62: =IF(ROUND(I62,3)=0,0,I62-K61-K59) -> 0 | M62: =IF(ROUND(K62,3)=0,0,K62-(SUM(M61+M59))) -> 0 | O62: =IF(ROUND(M62,3)=0,0,M62-(SUM(O61+O59))) -> 0 | Q62: =IF(ROUND(O62,3)=0,0,O62-(SUM(Q61+Q59))) -> 0 | S62: =IF(ROUND(Q62,3)=0,0,Q62-(SUM(S61+S59))) -> 0 | U62: =IF(ROUND(S62,3)=0,0,S62-(SUM(U61+U59))) -> 0 | W62: =IF(ROUND(U62,3)=0,0,U62-(SUM(W61+W59))) -> 0 | Y62: =IF($W$62<0.1,"",AY44) ->  | AI62: Anstellungsdetails Expertenmodus | AK62: Name: | AL62: Muster Peter | AO62: Default-% | AQ62: 100
A63: =Labels!$B$138 -> Paiement des heures | B63: =Labels!$B$142 -> de l'année en cours | G63: =IF($AJ$22=0,0,$AJ$22) -> 0 | I63: =IF($AK$22=0,0,$AK$22) -> 0 | K63: =IF($AL$22=0,0,$AL$22) -> 0 | M63: =IF($AM$22=0,0,$AM$22) -> 0 | O63: =IF($AN$22=0,0,$AN$22) -> 0 | Q63: =IF($AO$22=0,0,$AO$22) -> 0 | S63: =IF($AP$22=0,0,$AP$22) -> 0 | U63: =IF($AQ$22=0,0,$AQ$22) -> 0 | W63: =IF($AR$22=0,0,$AR$22) -> 0 | Y63: =IF($AS$22=0,0,$AS$22) -> 0 | AA63: =IF($AT$22=0,0,$AT$22) -> 0 | AC63: =IF($AU$22=0,0,$AU$22) -> 0 | AE63: =IF($AV$22=0,0,$AV$22) -> 0
A64: =Labels!$B$143 -> Heures manquantes | B64: =Labels!$B$144 -> de l'année en cours (contrôle) | F64: =Labels!$B$145 -> hm | G64: =IF($AJ$14=0,0,$AJ$14) -> 0 | I64: =IF($AK$14=0,0,$AK$14) -> 0 | K64: =IF($AL$14=0,0,$AL$14) -> 0 | M64: =IF($AM$14=0,0,$AM$14) -> 0 | O64: =IF($AN$14=0,0,$AN$14) -> 0 | Q64: =IF($AO$14=0,0,$AO$14) -> 0 | S64: =IF($AP$14=0,0,$AP$14) -> 0 | U64: =IF($AQ$14=0,0,$AQ$14) -> 0 | W64: =IF($AR$14=0,0,$AR$14) -> 0 | Y64: =IF($AS$14=0,0,$AS$14) -> 0 | AA64: =IF($AT$14=0,0,$AT$14) -> 0 | AC64: =IF($AU$14=0,0,$AU$14) -> 0 | AE64: =IF($AV$14=0,0,$AV$14) -> 0 | AL64: % | AM64: MO | AN64: DI | AO64: MI | AP64: DO | AQ64: FR | AR64: P-AT
A65: =Labels!$B$146 -> Total (majorations inclus) | B65: =Labels!$B$147 -> heures productives et inproductives | G65: =IF($AG$35=0,0,$AG$35) -> 0 | I65: =IF($AG$100=0,0,$AG$100) -> 0 | K65: =IF($AG$165=0,0,$AG$165) -> 0 | M65: =IF($AG$230=0,0,$AG$230) -> 0 | O65: =IF($AG$295=0,0,$AG$295) -> 0 | Q65: =IF($AG$360=0,0,$AG$360) -> 0 | S65: =IF($AG$425=0,0,$AG$425) -> 0 | U65: =IF($AG$490=0,0,$AG$490) -> 0 | W65: =IF($AG$555=0,0,$AG$555) -> 0 | Y65: =IF($AG$620=0,0,$AG$620) -> 0 | AA65: =IF($AG$685=0,0,$AG$685) -> 0 | AC65: =IF($AG$750=0,0,$AG$750) -> 0 | AE65: =SUM($G$65:$AD$65) -> 0 | AK65: Jan | AL65: =SUM(AM65:AQ65)/5 -> 100 | AM65: 100 | AN65: 100 | AO65: 100 | AP65: 100 | AQ65: 100 | AR65: =SUM(AM65:AQ65)/100 -> 5
A66: =Labels!$B$148 -> Comparaison des heures | B66: =Labels!$B$149 -> aux heures théorique CCT (heures manquantes de l'année passée incl.) | G66: =IF($AG$37=0,0,$AG$37)-$AE$34+$P$5 -> -176 | I66: =IF($AG$102=0,0,$AG$102)-$AE$99 -> -160 | K66: =IF($AG$167=0,0,$AG$167)-$AE$164 -> -184 | M66: =IF($AG$232=0,0,$AG$232)-$AE$229 -> -160 | O66: =IF($AG$297=0,0,$AG$297)-$AE$294 -> -184 | Q66: =IF($AG$362=0,0,$AG$362)-$AE$359 -> -176 | S66: =IF($AG$427=0,0,$AG$427)-$AE$424 -> -168 | U66: =IF($AG$492=0,0,$AG$492)-$AE$489 -> -184 | W66: =IF($AG$557=0,0,$AG$557)-$AE$554 -> -168 | Y66: =IF($AG$622=0,0,$AG$622)-$AE$619 -> -176 | AA66: =IF($AG$687=0,0,$AG$687)-$AE$684 -> -176 | AC66: =IF($AG$752=0,0,$AG$752)-$AE$749 -> -168 | AE66: =SUM($G$66:$AD$66) -> -2080 | AK66: Feb | AL66: =SUM(AM66:AQ66)/5 -> 100 | AM66: 100 | AN66: 100 | AO66: 100 | AP66: 100 | AQ66: 100 | AR66: =SUM(AM66:AQ66)/100 -> 5
B67: =Labels!$B$151 -> aux heures théorique (cumulées) | G67: =IF(G40=0,0,$G$66) -> -176 | I67: =IF(I40=0,0,SUM($G$66:$J$66)) -> -336 | K67: =IF(K40=0,0,SUM($G$66:$L$66)) -> -520 | M67: =IF(M40=0,0,SUM($G$66:$N$66)) -> -680 | O67: =IF(O40=0,0,SUM($G$66:$P$66)) -> -864 | Q67: =IF(Q40=0,0,SUM($G$66:$R$66)) -> -1040 | S67: =IF(S40=0,0,SUM($G$66:$T$66)) -> -1208 | U67: =IF(U40=0,0,SUM($G$66:$V$66)) -> -1392 | W67: =IF(W40=0,0,SUM($G$66:$X$66)) -> -1560 | Y67: =IF(Y40=0,0,SUM($G$66:$Z$66)) -> -1736 | AA67: =IF(AA40=0,0,SUM($G$66:$AB$66)) -> -1912 | AC67: =IF(AC40=0,0,SUM($G$66:$AD$66)) -> -2080 | AK67: Mrz | AL67: 100 | AM67: 100 | AN67: 100 | AO67: 100 | AP67: 100 | AQ67: 100 | AR67: 5
A68: =Labels!$B$153 -> Vacances (contrôle) | B68: =Labels!$B$154 -> Vacances année passée | G68: =IF($AA$4=0,0,$AA$4) -> 0 | I68: =Labels!$B$155 -> Vacances selon art 12.1 CCT | M68: =IF($AA$5=0,0,$AA$5) -> 0 | O68: =Labels!$B$156 -> Total des vacances | S68: =SUM(G68+M68) -> 0 | U68: =Labels!$B$157 -> Vacances prises | Y68: =IF($AV$4=0,0,$AV$4) -> 0 | AA68: =Labels!$B$158 -> Vacances restantes | AE68: =IF(S68=0,0,S68-Y68) -> 0 | AK68: Apr | AL68: 100 | AM68: 100 | AN68: 100 | AO68: 100 | AP68: 100 | AQ68: 100 | AR68: 5
AK69: Mai | AL69: 100 | AM69: 100 | AN69: 100 | AO69: 100 | AP69: 100 | AQ69: 100 | AR69: 5
AK70: Jun | AL70: 100 | AM70: 100 | AN70: 100 | AO70: 100 | AP70: 100 | AQ70: 100 | AR70: 5
A71: =$A$3 -> Nom/Prénom | B71: =IF($B$3="","",$B$3) -> Modèle Pierre | AF71: =AF3 -> 0 | AK71: Jul | AL71: 100 | AM71: 100 | AN71: 100 | AO71: 100 | AP71: 100 | AQ71: 100 | AR71: 5
A72: =$A$4 -> Emploi % | B72: =$AL$49 -> 100 | D72: =Labels!B90 -> en février | AK72: Aug | AL72: 100 | AM72: 100 | AN72: 100 | AO72: 100 | AP72: 100 | AQ72: 100 | AR72: 5
A73: =$A$5 -> Solde année en cours | D73: =IF($AE$66=0,0,$AE$66) -> -2080 | AK73: Sep | AL73: 100 | AM73: 100 | AN73: 100 | AO73: 100 | AP73: 100 | AQ73: 100 | AR73: 5
A74: =TEXT(DATE(YEAR(AP29),MONTH(AP29)+1,1),"MMMM"&Labels!B13) -> février | B74: =$B$9 -> Solde mois + / - | F74: =(AG77-(SUM(AG78:AG92)-AE99))*-1 -> -160 | K74: =$K$9 -> = | L74: =$L$9 -> Les cases marquées en jaune doivent être remplies (les autres seront calculées automatiquement) | AG74: =COUNT(B77:AF77)&" "&Labels!$B$63 -> 20 Jours | AK74: Okt | AL74: 100 | AM74: 100 | AN74: 100 | AO74: 100 | AP74: 100 | AQ74: 100 | AR74: 5
A75: =$A$10 -> Jour | B75: =AF10+1 -> 2023-02-01 | C75: =B75+1 -> 2023-02-02 | D75: 2023-02-03 | E75: 2023-02-04 | F75: 2023-02-05 | G75: 2023-02-06 | H75: 2023-02-07 | I75: 2023-02-08 | J75: 2023-02-09 | K75: 2023-02-10 | L75: 2023-02-11 | M75: 2023-02-12 | N75: 2023-02-13 | O75: 2023-02-14 | P75: 2023-02-15 | Q75: 2023-02-16 | R75: 2023-02-17 | S75: 2023-02-18 | T75: 2023-02-19 | U75: 2023-02-20 | V75: 2023-02-21 | W75: 2023-02-22 | X75: 2023-02-23 | Y75: 2023-02-24 | Z75: 2023-02-25 | AA75: 2023-02-26 | AB75: 2023-02-27 | AC75: 2023-02-28 | AD75: =IF(istSchaltjahr,$AC$75+1,"") ->  | AK75: Nov | AL75: 100 | AM75: 100 | AN75: 100 | AO75: 100 | AP75: 100 | AQ75: 100 | AR75: 5
A76: =$A$11 -> semaine civile | B76: =IF(B75="","",TRUNC((B75-DATE(YEAR(B75+3-MOD(B75-2,7)),1,MOD(B75-2,7)-9))/7)) -> 5 | C76: 5 | D76: 5 | E76: 5 | F76: 5 | G76: 6 | H76: 6 | I76: 6 | J76: 6 | K76: 6 | L76: 6 | M76: 6 | N76: 7 | O76: 7 | P76: 7 | Q76: 7 | R76: 7 | S76: 7 | T76: 7 | U76: 8 | V76: 8 | W76: 8 | X76: 8 | Y76: 8 | Z76: 8 | AA76: 8 | AB76: 9 | AC76: 9 | AD76: =IF(istSchaltjahr,TRUNC((AD75-DATE(YEAR(AD75+3-MOD(AD75-2,7)),1,MOD(AD75-2,7)-9))/7),"") ->  | AH76: Woche | AK76: Dez | AL76: 100 | AM76: 100 | AN76: 100 | AO76: 100 | AP76: 100 | AQ76: 100 | AR76: 5
A77: =$A$12 -> Théorique sel. CCT | B77: =IF(AND(MOD(B75,7)>=2,SUMPRODUCT(($AM$60:$AQ$60=MOD(B75,7))*$AM$49:$AQ$49),B854=""),$J$7*SUMPRODUCT(($AM$77:$AQ$77=MOD(B75,7))*$AM$66:$AQ$66)%,"") -> 8 | C77: =IF(AND(MOD(C75,7)>=2,SUMPRODUCT(($AM$60:$AQ$60=MOD(C75,7))*$AM$49:$AQ$49),C854=""),$J$7*SUMPRODUCT(($AM$77:$AQ$77=MOD(C75,7))*$AM$66:$AQ$66)%,"") -> 8 | D77: =IF(AND(MOD(D75,7)>=2,SUMPRODUCT(($AM$60:$AQ$60=MOD(D75,7))*$AM$49:$AQ$49),D854=""),$J$7*SUMPRODUCT(($AM$77:$AQ$77=MOD(D75,7))*$AM$66:$AQ$66)%,"") -> 8 | E77: =IF(AND(MOD(E75,7)>=2,SUMPRODUCT(($AM$60:$AQ$60=MOD(E75,7))*$AM$49:$AQ$49),E854=""),$J$7*SUMPRODUCT(($AM$77:$AQ$77=MOD(E75,7))*$AM$66:$AQ$66)%,"") ->  | F77: =IF(AND(MOD(F75,7)>=2,SUMPRODUCT(($AM$60:$AQ$60=MOD(F75,7))*$AM$49:$AQ$49),F854=""),$J$7*SUMPRODUCT(($AM$77:$AQ$77=MOD(F75,7))*$AM$66:$AQ$66)%,"") ->  | G77: =IF(AND(MOD(G75,7)>=2,SUMPRODUCT(($AM$60:$AQ$60=MOD(G75,7))*$AM$49:$AQ$49),G854=""),$J$7*SUMPRODUCT(($AM$77:$AQ$77=MOD(G75,7))*$AM$66:$AQ$66)%,"") -> 8 | H77: =IF(AND(MOD(H75,7)>=2,SUMPRODUCT(($AM$60:$AQ$60=MOD(H75,7))*$AM$49:$AQ$49),H854=""),$J$7*SUMPRODUCT(($AM$77:$AQ$77=MOD(H75,7))*$AM$66:$AQ$66)%,"") -> 8 | I77: =IF(AND(MOD(I75,7)>=2,SUMPRODUCT(($AM$60:$AQ$60=MOD(I75,7))*$AM$49:$AQ$49),I854=""),$J$7*SUMPRODUCT(($AM$77:$AQ$77=MOD(I75,7))*$AM$66:$AQ$66)%,"") -> 8 | J77: =IF(AND(MOD(J75,7)>=2,SUMPRODUCT(($AM$60:$AQ$60=MOD(J75,7))*$AM$49:$AQ$49),J854=""),$J$7*SUMPRODUCT(($AM$77:$AQ$77=MOD(J75,7))*$AM$66:$AQ$66)%,"") -> 8 | K77: =IF(AND(MOD(K75,7)>=2,SUMPRODUCT(($AM$60:$AQ$60=MOD(K75,7))*$AM$49:$AQ$49),K854=""),$J$7*SUMPRODUCT(($AM$77:$AQ$77=MOD(K75,7))*$AM$66:$AQ$66)%,"") -> 8 | L77: =IF(AND(MOD(L75,7)>=2,SUMPRODUCT(($AM$60:$AQ$60=MOD(L75,7))*$AM$49:$AQ$49),L854=""),$J$7*SUMPRODUCT(($AM$77:$AQ$77=MOD(L75,7))*$AM$66:$AQ$66)%,"") ->  | M77: =IF(AND(MOD(M75,7)>=2,SUMPRODUCT(($AM$60:$AQ$60=MOD(M75,7))*$AM$49:$AQ$49),M854=""),$J$7*SUMPRODUCT(($AM$77:$AQ$77=MOD(M75,7))*$AM$66:$AQ$66)%,"") ->  | N77: =IF(AND(MOD(N75,7)>=2,SUMPRODUCT(($AM$60:$AQ$60=MOD(N75,7))*$AM$49:$AQ$49),N854=""),$J$7*SUMPRODUCT(($AM$77:$AQ$77=MOD(N75,7))*$AM$66:$AQ$66)%,"") -> 8 | O77: =IF(AND(MOD(O75,7)>=2,SUMPRODUCT(($AM$60:$AQ$60=MOD(O75,7))*$AM$49:$AQ$49),O854=""),$J$7*SUMPRODUCT(($AM$77:$AQ$77=MOD(O75,7))*$AM$66:$AQ$66)%,"") -> 8 | P77: =IF(AND(MOD(P75,7)>=2,SUMPRODUCT(($AM$60:$AQ$60=MOD(P75,7))*$AM$49:$AQ$49),P854=""),$J$7*SUMPRODUCT(($AM$77:$AQ$77=MOD(P75,7))*$AM$66:$AQ$66)%,"") -> 8 | Q77: =IF(AND(MOD(Q75,7)>=2,SUMPRODUCT(($AM$60:$AQ$60=MOD(Q75,7))*$AM$49:$AQ$49),Q854=""),$J$7*SUMPRODUCT(($AM$77:$AQ$77=MOD(Q75,7))*$AM$66:$AQ$66)%,"") -> 8 | R77: =IF(AND(MOD(R75,7)>=2,SUMPRODUCT(($AM$60:$AQ$60=MOD(R75,7))*$AM$49:$AQ$49),R854=""),$J$7*SUMPRODUCT(($AM$77:$AQ$77=MOD(R75,7))*$AM$66:$AQ$66)%,"") -> 8 | S77: =IF(AND(MOD(S75,7)>=2,SUMPRODUCT(($AM$60:$AQ$60=MOD(S75,7))*$AM$49:$AQ$49),S854=""),$J$7*SUMPRODUCT(($AM$77:$AQ$77=MOD(S75,7))*$AM$66:$AQ$66)%,"") ->  | T77: =IF(AND(MOD(T75,7)>=2,SUMPRODUCT(($AM$60:$AQ$60=MOD(T75,7))*$AM$49:$AQ$49),T854=""),$J$7*SUMPRODUCT(($AM$77:$AQ$77=MOD(T75,7))*$AM$66:$AQ$66)%,"") ->  | U77: =IF(AND(MOD(U75,7)>=2,SUMPRODUCT(($AM$60:$AQ$60=MOD(U75,7))*$AM$49:$AQ$49),U854=""),$J$7*SUMPRODUCT(($AM$77:$AQ$77=MOD(U75,7))*$AM$66:$AQ$66)%,"") -> 8 | V77: =IF(AND(MOD(V75,7)>=2,SUMPRODUCT(($AM$60:$AQ$60=MOD(V75,7))*$AM$49:$AQ$49),V854=""),$J$7*SUMPRODUCT(($AM$77:$AQ$77=MOD(V75,7))*$AM$66:$AQ$66)%,"") -> 8 | W77: =IF(AND(MOD(W75,7)>=2,SUMPRODUCT(($AM$60:$AQ$60=MOD(W75,7))*$AM$49:$AQ$49),W854=""),$J$7*SUMPRODUCT(($AM$77:$AQ$77=MOD(W75,7))*$AM$66:$AQ$66)%,"") -> 8 | X77: =IF(AND(MOD(X75,7)>=2,SUMPRODUCT(($AM$60:$AQ$60=MOD(X75,7))*$AM$49:$AQ$49),X854=""),$J$7*SUMPRODUCT(($AM$77:$AQ$77=MOD(X75,7))*$AM$66:$AQ$66)%,"") -> 8 | Y77: =IF(AND(MOD(Y75,7)>=2,SUMPRODUCT(($AM$60:$AQ$60=MOD(Y75,7))*$AM$49:$AQ$49),Y854=""),$J$7*SUMPRODUCT(($AM$77:$AQ$77=MOD(Y75,7))*$AM$66:$AQ$66)%,"") -> 8 | Z77: =IF(AND(MOD(Z75,7)>=2,SUMPRODUCT(($AM$60:$AQ$60=MOD(Z75,7))*$AM$49:$AQ$49),Z854=""),$J$7*SUMPRODUCT(($AM$77:$AQ$77=MOD(Z75,7))*$AM$66:$AQ$66)%,"") ->  | AA77: =IF(AND(MOD(AA75,7)>=2,SUMPRODUCT(($AM$60:$AQ$60=MOD(AA75,7))*$AM$49:$AQ$49),AA854=""),$J$7*SUMPRODUCT(($AM$77:$AQ$77=MOD(AA75,7))*$AM$66:$AQ$66)%,"") ->  | AB77: =IF(AND(MOD(AB75,7)>=2,SUMPRODUCT(($AM$60:$AQ$60=MOD(AB75,7))*$AM$49:$AQ$49),AB854=""),$J$7*SUMPRODUCT(($AM$77:$AQ$77=MOD(AB75,7))*$AM$66:$AQ$66)%,"") -> 8 | AC77: =IF(AND(MOD(AC75,7)>=2,SUMPRODUCT(($AM$60:$AQ$60=MOD(AC75,7))*$AM$49:$AQ$49),AC854=""),$J$7*SUMPRODUCT(($AM$77:$AQ$77=MOD(AC75,7))*$AM$66:$AQ$66)%,"") -> 8 | AD77: =IF(istSchaltjahr,IF(AND(MOD(AD75,7)>=2,SUMPRODUCT(($AM$60:$AQ$60=MOD(AD75,7))*$AM$49:$AQ$49),AD854=""),$J$7*SUMPRODUCT(($AM$77:$AQ$77=MOD(AD75,7))*$AM$66:$AQ$66)%,""),"") ->  | AG77: =IF($AD$75="",SUM(B77:AC77),SUM(B77:AF77)) -> 160 | AH77: [00] | AI77: Abbildung Wochentage für Formel => | AK77: Avg | AL77: =SUM(AL65:AL76)/12 -> 100 | AM77: 2 | AN77: 3 | AO77: 4 | AP77: 5 | AQ77: 6
A78: =$A$13 -> Absences | B78: =B870 -> 0 | C78: =C870 -> 0 | D78: 0 | E78: 0 | F78: 0 | G78: 0 | H78: 0 | I78: 0 | J78: 0 | K78: 0 | L78: 0 | M78: 0 | N78: 0 | O78: 0 | P78: 0 | Q78: 0 | R78: 0 | S78: 0 | T78: 0 | U78: 0 | V78: 0 | W78: 0 | X78: 0 | Y78: 0 | Z78: 0 | AA78: 0 | AB78: 0 | AC78: 0 | AD78: =IF(istSchaltjahr,AD870,"") ->  | AG78: =SUM($AK$3:$AK$13) -> 0 | AH78: [01]
A79: =$A$14 -> Code | B79: =IF(SUM(B857:B869)<>0,IF(MAX(B857:B869)<B870,Labels!$B$163,INDEX($AH$857:$AH$869,MATCH(MAX(B857:B869),B857:B869,0))),"") ->  | C79: =IF(SUM(C857:C869)<>0,IF(MAX(C857:C869)<C870,Labels!$B$163,INDEX($AH$857:$AH$869,MATCH(MAX(C857:C869),C857:C869,0))),"") ->  | D79: =IF(SUM(D857:D869)<>0,IF(MAX(D857:D869)<D870,Labels!$B$163,INDEX($AH$857:$AH$869,MATCH(MAX(D857:D869),D857:D869,0))),"") ->  | E79: =IF(SUM(E857:E869)<>0,IF(MAX(E857:E869)<E870,Labels!$B$163,INDEX($AH$857:$AH$869,MATCH(MAX(E857:E869),E857:E869,0))),"") ->  | F79: =IF(SUM(F857:F869)<>0,IF(MAX(F857:F869)<F870,Labels!$B$163,INDEX($AH$857:$AH$869,MATCH(MAX(F857:F869),F857:F869,0))),"") ->  | G79: =IF(SUM(G857:G869)<>0,IF(MAX(G857:G869)<G870,Labels!$B$163,INDEX($AH$857:$AH$869,MATCH(MAX(G857:G869),G857:G869,0))),"") ->  | H79: =IF(SUM(H857:H869)<>0,IF(MAX(H857:H869)<H870,Labels!$B$163,INDEX($AH$857:$AH$869,MATCH(MAX(H857:H869),H857:H869,0))),"") ->  | I79: =IF(SUM(I857:I869)<>0,IF(MAX(I857:I869)<I870,Labels!$B$163,INDEX($AH$857:$AH$869,MATCH(MAX(I857:I869),I857:I869,0))),"") ->  | J79: =IF(SUM(J857:J869)<>0,IF(MAX(J857:J869)<J870,Labels!$B$163,INDEX($AH$857:$AH$869,MATCH(MAX(J857:J869),J857:J869,0))),"") ->  | K79: =IF(SUM(K857:K869)<>0,IF(MAX(K857:K869)<K870,Labels!$B$163,INDEX($AH$857:$AH$869,MATCH(MAX(K857:K869),K857:K869,0))),"") ->  | L79: =IF(SUM(L857:L869)<>0,IF(MAX(L857:L869)<L870,Labels!$B$163,INDEX($AH$857:$AH$869,MATCH(MAX(L857:L869),L857:L869,0))),"") ->  | M79: =IF(SUM(M857:M869)<>0,IF(MAX(M857:M869)<M870,Labels!$B$163,INDEX($AH$857:$AH$869,MATCH(MAX(M857:M869),M857:M869,0))),"") ->  | N79: =IF(SUM(N857:N869)<>0,IF(MAX(N857:N869)<N870,Labels!$B$163,INDEX($AH$857:$AH$869,MATCH(MAX(N857:N869),N857:N869,0))),"") ->  | O79: =IF(SUM(O857:O869)<>0,IF(MAX(O857:O869)<O870,Labels!$B$163,INDEX($AH$857:$AH$869,MATCH(MAX(O857:O869),O857:O869,0))),"") ->  | P79: =IF(SUM(P857:P869)<>0,IF(MAX(P857:P869)<P870,Labels!$B$163,INDEX($AH$857:$AH$869,MATCH(MAX(P857:P869),P857:P869,0))),"") ->  | Q79: =IF(SUM(Q857:Q869)<>0,IF(MAX(Q857:Q869)<Q870,Labels!$B$163,INDEX($AH$857:$AH$869,MATCH(MAX(Q857:Q869),Q857:Q869,0))),"") ->  | R79: =IF(SUM(R857:R869)<>0,IF(MAX(R857:R869)<R870,Labels!$B$163,INDEX($AH$857:$AH$869,MATCH(MAX(R857:R869),R857:R869,0))),"") ->  | S79: =IF(SUM(S857:S869)<>0,IF(MAX(S857:S869)<S870,Labels!$B$163,INDEX($AH$857:$AH$869,MATCH(MAX(S857:S869),S857:S869,0))),"") ->  | T79: =IF(SUM(T857:T869)<>0,IF(MAX(T857:T869)<T870,Labels!$B$163,INDEX($AH$857:$AH$869,MATCH(MAX(T857:T869),T857:T869,0))),"") ->  | U79: =IF(SUM(U857:U869)<>0,IF(MAX(U857:U869)<U870,Labels!$B$163,INDEX($AH$857:$AH$869,MATCH(MAX(U857:U869),U857:U869,0))),"") ->  | V79: =IF(SUM(V857:V869)<>0,IF(MAX(V857:V869)<V870,Labels!$B$163,INDEX($AH$857:$AH$869,MATCH(MAX(V857:V869),V857:V869,0))),"") ->  | W79: =IF(SUM(W857:W869)<>0,IF(MAX(W857:W869)<W870,Labels!$B$163,INDEX($AH$857:$AH$869,MATCH(MAX(W857:W869),W857:W869,0))),"") ->  | X79: =IF(SUM(X857:X869)<>0,IF(MAX(X857:X869)<X870,Labels!$B$163,INDEX($AH$857:$AH$869,MATCH(MAX(X857:X869),X857:X869,0))),"") ->  | Y79: =IF(SUM(Y857:Y869)<>0,IF(MAX(Y857:Y869)<Y870,Labels!$B$163,INDEX($AH$857:$AH$869,MATCH(MAX(Y857:Y869),Y857:Y869,0))),"") ->  | Z79: =IF(SUM(Z857:Z869)<>0,IF(MAX(Z857:Z869)<Z870,Labels!$B$163,INDEX($AH$857:$AH$869,MATCH(MAX(Z857:Z869),Z857:Z869,0))),"") ->  | AA79: =IF(SUM(AA857:AA869)<>0,IF(MAX(AA857:AA869)<AA870,Labels!$B$163,INDEX($AH$857:$AH$869,MATCH(MAX(AA857:AA869),AA857:AA869,0))),"") ->  | AB79: =IF(SUM(AB857:AB869)<>0,IF(MAX(AB857:AB869)<AB870,Labels!$B$163,INDEX($AH$857:$AH$869,MATCH(MAX(AB857:AB869),AB857:AB869,0))),"") ->  | AC79: =IF(SUM(AC857:AC869)<>0,IF(MAX(AC857:AC869)<AC870,Labels!$B$163,INDEX($AH$857:$AH$869,MATCH(MAX(AC857:AC869),AC857:AC869,0))),"") ->  | AD79: =IF(istSchaltjahr,IF(SUM(AD857:AD869)<>0,IF(MAX(AD857:AD869)<AD870,Labels!$B$163,INDEX($AH$857:$AH$869,MATCH(MAX(AD857:AD869),AD857:AD869,0))),""),"") ->  | AG79: =$AK$16*-1 -> 0 | AH79: [02]
A80: =$A$15 -> 00h00-06h00 1) | AG80: =IF($AD$75="",SUM(B80:AC80),SUM(B80:AF80)) -> 0 | AH80: [04]
A81: =$A$16 -> 06h00-20h00 2) | AG81: =IF($AD$75="",SUM(B81:AC81),SUM(B81:AF81)) -> 0 | AH81: [03]
A82: =$A$17 -> 20h00-24h00 3) | AG82: =IF($AD$75="",SUM(B82:AC82),SUM(B82:AF82)) -> 0 | AH82: [05]
A83: =$A$18 -> Jours fériés "jf" | B83: =IF(WEEKDAY(B75,2)<=6,IF(CALENDRIER!E5="x",Labels!$B$118,""),"") ->  | C83: =IF(WEEKDAY(C75,2)<=6,IF(CALENDRIER!F5="x",Labels!$B$118,""),"") ->  | D83: =IF(WEEKDAY(D75,2)<=6,IF(CALENDRIER!G5="x",Labels!$B$118,""),"") ->  | E83: =IF(WEEKDAY(E75,2)<=6,IF(CALENDRIER!H5="x",Labels!$B$118,""),"") ->  | F83: =IF(WEEKDAY(F75,2)<=6,IF(CALENDRIER!I5="x",Labels!$B$118,""),"") ->  | G83: =IF(WEEKDAY(G75,2)<=6,IF(CALENDRIER!J5="x",Labels!$B$118,""),"") ->  | H83: =IF(WEEKDAY(H75,2)<=6,IF(CALENDRIER!K5="x",Labels!$B$118,""),"") ->  | I83: =IF(WEEKDAY(I75,2)<=6,IF(CALENDRIER!L5="x",Labels!$B$118,""),"") ->  | J83: =IF(WEEKDAY(J75,2)<=6,IF(CALENDRIER!M5="x",Labels!$B$118,""),"") ->  | K83: =IF(WEEKDAY(K75,2)<=6,IF(CALENDRIER!N5="x",Labels!$B$118,""),"") ->  | L83: =IF(WEEKDAY(L75,2)<=6,IF(CALENDRIER!O5="x",Labels!$B$118,""),"") ->  | M83: =IF(WEEKDAY(M75,2)<=6,IF(CALENDRIER!P5="x",Labels!$B$118,""),"") ->  | N83: =IF(WEEKDAY(N75,2)<=6,IF(CALENDRIER!Q5="x",Labels!$B$118,""),"") ->  | O83: =IF(WEEKDAY(O75,2)<=6,IF(CALENDRIER!R5="x",Labels!$B$118,""),"") ->  | P83: =IF(WEEKDAY(P75,2)<=6,IF(CALENDRIER!S5="x",Labels!$B$118,""),"") ->  | Q83: =IF(WEEKDAY(Q75,2)<=6,IF(CALENDRIER!T5="x",Labels!$B$118,""),"") ->  | R83: =IF(WEEKDAY(R75,2)<=6,IF(CALENDRIER!U5="x",Labels!$B$118,""),"") ->  | S83: =IF(WEEKDAY(S75,2)<=6,IF(CALENDRIER!V5="x",Labels!$B$118,""),"") ->  | T83: =IF(WEEKDAY(T75,2)<=6,IF(CALENDRIER!W5="x",Labels!$B$118,""),"") ->  | U83: =IF(WEEKDAY(U75,2)<=6,IF(CALENDRIER!X5="x",Labels!$B$118,""),"") ->  | V83: =IF(WEEKDAY(V75,2)<=6,IF(CALENDRIER!Y5="x",Labels!$B$118,""),"") ->  | W83: =IF(WEEKDAY(W75,2)<=6,IF(CALENDRIER!Z5="x",Labels!$B$118,""),"") ->  | X83: =IF(WEEKDAY(X75,2)<=6,IF(CALENDRIER!AA5="x",Labels!$B$118,""),"") ->  | Y83: =IF(WEEKDAY(Y75,2)<=6,IF(CALENDRIER!AB5="x",Labels!$B$118,""),"") ->  | Z83: =IF(WEEKDAY(Z75,2)<=6,IF(CALENDRIER!AC5="x",Labels!$B$118,""),"") ->  | AA83: =IF(WEEKDAY(AA75,2)<=6,IF(CALENDRIER!AD5="x",Labels!$B$118,""),"") ->  | AB83: =IF(WEEKDAY(AB75,2)<=6,IF(CALENDRIER!AE5="x",Labels!$B$118,""),"") ->  | AC83: =IF(WEEKDAY(AC75,2)<=6,IF(CALENDRIER!AF5="x",Labels!$B$118,""),"") ->  | AD83: =IF(istSchaltjahr,IF(WEEKDAY(AD75,2)<=6,IF(CALENDRIER!AG5="x",Labels!$B$118,""),""),"") ->  | AE83: =IF(WEEKDAY(AE75,2)<=6,IF(CALENDRIER!AH5="x",Labels!$B$118,""),"") ->  | AF83: =IF(WEEKDAY(AF75,2)<=6,IF(CALENDRIER!AI5="x",Labels!$B$118,""),"") ->  | AH83: FT
A84: =$A$19 -> Majoration "jf" | B84: =IF(AND(B83=Labels!$B$118,WEEKDAY(B75,2)<6,B$77<>""),$J$7*SUMPRODUCT(($AM$77:$AQ$77=MOD(B75,7))*$AM$66:$AQ$66)%,"") ->  | C84: =IF(AND(C83=Labels!$B$118,WEEKDAY(C75,2)<6,C$77<>""),$J$7*SUMPRODUCT(($AM$77:$AQ$77=MOD(C75,7))*$AM$66:$AQ$66)%,"") ->  | D84: =IF(AND(D83=Labels!$B$118,WEEKDAY(D75,2)<6,D$77<>""),$J$7*SUMPRODUCT(($AM$77:$AQ$77=MOD(D75,7))*$AM$66:$AQ$66)%,"") ->  | E84: =IF(AND(E83=Labels!$B$118,WEEKDAY(E75,2)<6,E$77<>""),$J$7*SUMPRODUCT(($AM$77:$AQ$77=MOD(E75,7))*$AM$66:$AQ$66)%,"") ->  | F84: =IF(AND(F83=Labels!$B$118,WEEKDAY(F75,2)<6,F$77<>""),$J$7*SUMPRODUCT(($AM$77:$AQ$77=MOD(F75,7))*$AM$66:$AQ$66)%,"") ->  | G84: =IF(AND(G83=Labels!$B$118,WEEKDAY(G75,2)<6,G$77<>""),$J$7*SUMPRODUCT(($AM$77:$AQ$77=MOD(G75,7))*$AM$66:$AQ$66)%,"") ->  | H84: =IF(AND(H83=Labels!$B$118,WEEKDAY(H75,2)<6,H$77<>""),$J$7*SUMPRODUCT(($AM$77:$AQ$77=MOD(H75,7))*$AM$66:$AQ$66)%,"") ->  | I84: =IF(AND(I83=Labels!$B$118,WEEKDAY(I75,2)<6,I$77<>""),$J$7*SUMPRODUCT(($AM$77:$AQ$77=MOD(I75,7))*$AM$66:$AQ$66)%,"") ->  | J84: =IF(AND(J83=Labels!$B$118,WEEKDAY(J75,2)<6,J$77<>""),$J$7*SUMPRODUCT(($AM$77:$AQ$77=MOD(J75,7))*$AM$66:$AQ$66)%,"") ->  | K84: =IF(AND(K83=Labels!$B$118,WEEKDAY(K75,2)<6,K$77<>""),$J$7*SUMPRODUCT(($AM$77:$AQ$77=MOD(K75,7))*$AM$66:$AQ$66)%,"") ->  | L84: =IF(AND(L83=Labels!$B$118,WEEKDAY(L75,2)<6,L$77<>""),$J$7*SUMPRODUCT(($AM$77:$AQ$77=MOD(L75,7))*$AM$66:$AQ$66)%,"") ->  | M84: =IF(AND(M83=Labels!$B$118,WEEKDAY(M75,2)<6,M$77<>""),$J$7*SUMPRODUCT(($AM$77:$AQ$77=MOD(M75,7))*$AM$66:$AQ$66)%,"") ->  | N84: =IF(AND(N83=Labels!$B$118,WEEKDAY(N75,2)<6,N$77<>""),$J$7*SUMPRODUCT(($AM$77:$AQ$77=MOD(N75,7))*$AM$66:$AQ$66)%,"") ->  | O84: =IF(AND(O83=Labels!$B$118,WEEKDAY(O75,2)<6,O$77<>""),$J$7*SUMPRODUCT(($AM$77:$AQ$77=MOD(O75,7))*$AM$66:$AQ$66)%,"") ->  | P84: =IF(AND(P83=Labels!$B$118,WEEKDAY(P75,2)<6,P$77<>""),$J$7*SUMPRODUCT(($AM$77:$AQ$77=MOD(P75,7))*$AM$66:$AQ$66)%,"") ->  | Q84: =IF(AND(Q83=Labels!$B$118,WEEKDAY(Q75,2)<6,Q$77<>""),$J$7*SUMPRODUCT(($AM$77:$AQ$77=MOD(Q75,7))*$AM$66:$AQ$66)%,"") ->  | R84: =IF(AND(R83=Labels!$B$118,WEEKDAY(R75,2)<6,R$77<>""),$J$7*SUMPRODUCT(($AM$77:$AQ$77=MOD(R75,7))*$AM$66:$AQ$66)%,"") ->  | S84: =IF(AND(S83=Labels!$B$118,WEEKDAY(S75,2)<6,S$77<>""),$J$7*SUMPRODUCT(($AM$77:$AQ$77=MOD(S75,7))*$AM$66:$AQ$66)%,"") ->  | T84: =IF(AND(T83=Labels!$B$118,WEEKDAY(T75,2)<6,T$77<>""),$J$7*SUMPRODUCT(($AM$77:$AQ$77=MOD(T75,7))*$AM$66:$AQ$66)%,"") ->  | U84: =IF(AND(U83=Labels!$B$118,WEEKDAY(U75,2)<6,U$77<>""),$J$7*SUMPRODUCT(($AM$77:$AQ$77=MOD(U75,7))*$AM$66:$AQ$66)%,"") ->  | V84: =IF(AND(V83=Labels!$B$118,WEEKDAY(V75,2)<6,V$77<>""),$J$7*SUMPRODUCT(($AM$77:$AQ$77=MOD(V75,7))*$AM$66:$AQ$66)%,"") ->  | W84: =IF(AND(W83=Labels!$B$118,WEEKDAY(W75,2)<6,W$77<>""),$J$7*SUMPRODUCT(($AM$77:$AQ$77=MOD(W75,7))*$AM$66:$AQ$66)%,"") ->  | X84: =IF(AND(X83=Labels!$B$118,WEEKDAY(X75,2)<6,X$77<>""),$J$7*SUMPRODUCT(($AM$77:$AQ$77=MOD(X75,7))*$AM$66:$AQ$66)%,"") ->  | Y84: =IF(AND(Y83=Labels!$B$118,WEEKDAY(Y75,2)<6,Y$77<>""),$J$7*SUMPRODUCT(($AM$77:$AQ$77=MOD(Y75,7))*$AM$66:$AQ$66)%,"") ->  | Z84: =IF(AND(Z83=Labels!$B$118,WEEKDAY(Z75,2)<6,Z$77<>""),$J$7*SUMPRODUCT(($AM$77:$AQ$77=MOD(Z75,7))*$AM$66:$AQ$66)%,"") ->  | AA84: =IF(AND(AA83=Labels!$B$118,WEEKDAY(AA75,2)<6,AA$77<>""),$J$7*SUMPRODUCT(($AM$77:$AQ$77=MOD(AA75,7))*$AM$66:$AQ$66)%,"") ->  | AB84: =IF(AND(AB83=Labels!$B$118,WEEKDAY(AB75,2)<6,AB$77<>""),$J$7*SUMPRODUCT(($AM$77:$AQ$77=MOD(AB75,7))*$AM$66:$AQ$66)%,"") ->  | AC84: =IF(AND(AC83=Labels!$B$118,WEEKDAY(AC75,2)<6,AC$77<>""),$J$7*SUMPRODUCT(($AM$77:$AQ$77=MOD(AC75,7))*$AM$66:$AQ$66)%,"") ->  | AD84: =IF(istSchaltjahr,IF(AND(AD83=Labels!$B$118,WEEKDAY(AD75,2)<6,AD$77<>""),$J$7*SUMPRODUCT(($AM$77:$AQ$77=MOD(AD75,7))*$AM$66:$AQ$66)%,""),"") ->  | AE84: =IF(AND(AE83=Labels!$B$118,WEEKDAY(AE75,2)<6),$J$7*$B$72%,"") ->  | AF84: =IF(AND(AF83=Labels!$B$118,WEEKDAY(AF75,2)<6),$J$7*$B$72%,"") ->  | AG84: =IF($AD$75="",SUM(B84:AC84),SUM(B84:AF84)) -> 0 | AH84: [06]
A85: =$A$20 -> total quotidien | B85: =SUM(B80:B82) -> 0 | C85: =SUM(C80:C82) -> 0 | D85: 0 | E85: 0 | F85: 0 | G85: 0 | H85: 0 | I85: 0 | J85: 0 | K85: 0 | L85: 0 | M85: 0 | N85: 0 | O85: 0 | P85: 0 | Q85: 0 | R85: 0 | S85: 0 | T85: 0 | U85: 0 | V85: 0 | W85: 0 | X85: 0 | Y85: 0 | Z85: 0 | AA85: 0 | AB85: 0 | AC85: 0 | AD85: =IF(istSchaltjahr,SUM(AD80:AD82),"") ->  | AH85: TT
A86: =$A$21 -> . | AH86: R
A87: =$A$22 -> . | AH87: R
A88: =$A$23 -> transition mois | B88: =IF(WEEKDAY(B75)=1,TEXT(B75-1,"MMM"&Labels!B13),"") ->  | AC88: =IF(AND(WEEKDAY(AC75)>1,WEEKDAY(AC75)<7,AD75=""),TEXT(DATE($B$5,MONTH(AC75)+1,1),"MMM"&Labels!B13),"") -> mars | AD88: =IF(ISERROR(WEEKDAY(AD75)),"",IF(AND(WEEKDAY(AD75)>1,WEEKDAY(AD75)<7),TEXT(DATE($B$5,MONTH(AD75)+1,1),"MMM"&Labels!B13),"")) ->  | AH88: MNT
A89: =$A$24 -> Total hebdomadaire | B89: =IF(WEEKDAY(B75)=7,SUMIF($B11:$AF11,B76,$B20:$AF20)+SUMIF($B76:$AF76,B76,$B85:$AF85)+SUMIF($B141:$AF141,B76,$B150:$AF150),B88) ->  | C89: =IF(WEEKDAY(C75)=7,SUMIF($B11:$AF11,C76,$B20:$AF20)+SUMIF($B76:$AF76,C76,$B85:$AF85)+SUMIF($B141:$AF141,C76,$B150:$AF150),"") ->  | E89: 0 | L89: 0 | S89: 0 | Z89: 0 | AC89: =IF(WEEKDAY(AC75)=7,SUMIF($B11:$AF11,AC76,$B20:$AF20)+SUMIF($B76:$AF76,AC76,$B85:$AF85)+SUMIF($B141:$AF141,AC76,$B150:$AF150),AC88) -> mars | AD89: =IF(ISERROR(WEEKDAY(AD75)=7),"",IF(WEEKDAY(AD75)=7,SUMIF($B11:$AF11,AD76,$B20:$AF20)+SUMIF($B76:$AF76,AD76,$B85:$AF85)+SUMIF($B141:$AF141,AD76,$B150:$AF150),AD88)) ->  | AH89: WT
A90: =$A$25 -> Majorations temp. 1) | B90: =IF(B97="FALSCH","",B97) ->  | C90: =IF(C97="FALSCH","",C97) ->  | AG90: =IF($AD$75="",SUM(B90:AC90),SUM(B90:AF90)) -> 0 | AH90: [07]
A91: =$A$26 -> Majorations temp. 2) | B91: =IF((B80+B82)=0,"",SUM(B80,B82)) ->  | C91: =IF((C80+C82)=0,"",SUM(C80,C82)) ->  | AG91: 0 | AH91: [08]
A92: =$A$27 -> Majorations temp. 3) | B92: =SUM(B93:B96) -> 0 | C92: =SUM(C93:C96) -> 0 | D92: 0 | E92: 0 | F92: 0 | G92: 0 | H92: 0 | I92: 0 | J92: 0 | K92: 0 | L92: 0 | M92: 0 | N92: 0 | O92: 0 | P92: 0 | Q92: 0 | R92: 0 | S92: 0 | T92: 0 | U92: 0 | V92: 0 | W92: 0 | X92: 0 | Y92: 0 | Z92: 0 | AA92: 0 | AB92: 0 | AC92: 0 | AD92: =IF(ISERROR(WEEKDAY(AD75)=1),"",SUM(AD93:AD96)) ->  | AG92: 0 | AH92: [09]
A93: =$A$28 -> Dimanche journée | B93: =IF(WEEKDAY(B75)=1,B81,"") ->  | C93: =IF(WEEKDAY(C75)=1,C81,"") ->  | F93: 0 | M93: 0 | T93: 0 | AA93: 0 | AD93: =IF(ISERROR(WEEKDAY(AD75)=1),"",IF(WEEKDAY(AD75)=1,AD81,"")) ->  | AG93: 0 | AH93: [09-ST]
A94: =$A$29 -> Dimanche nuit | B94: =IF(WEEKDAY(B75)=1,SUM(B80+B82),"") ->  | C94: =IF(WEEKDAY(C75)=1,SUM(C80+C82),"") ->  | F94: 0 | M94: 0 | T94: 0 | AA94: 0 | AD94: =IF(ISERROR(WEEKDAY(AD75)=1),"",IF(WEEKDAY(AD75)=1,SUM(AD80+AD82),"")) ->  | AG94: 0 | AH94: [09-SN]
A95: =$A$30 -> jf-jomajoration | B95: =IF(B83=Labels!$B$118,B81,"") ->  | C95: =IF(C83=Labels!$B$118,C81,"") ->  | D95: =IF(D83=Labels!$B$118,D81,"") ->  | E95: =IF(E83=Labels!$B$118,E81,"") ->  | F95: =IF(F83=Labels!$B$118,F81,"") ->  | G95: =IF(G83=Labels!$B$118,G81,"") ->  | H95: =IF(H83=Labels!$B$118,H81,"") ->  | I95: =IF(I83=Labels!$B$118,I81,"") ->  | J95: =IF(J83=Labels!$B$118,J81,"") ->  | K95: =IF(K83=Labels!$B$118,K81,"") ->  | L95: =IF(L83=Labels!$B$118,L81,"") ->  | M95: =IF(M83=Labels!$B$118,M81,"") ->  | N95: =IF(N83=Labels!$B$118,N81,"") ->  | O95: =IF(O83=Labels!$B$118,O81,"") ->  | P95: =IF(P83=Labels!$B$118,P81,"") ->  | Q95: =IF(Q83=Labels!$B$118,Q81,"") ->  | R95: =IF(R83=Labels!$B$118,R81,"") ->  | S95: =IF(S83=Labels!$B$118,S81,"") ->  | T95: =IF(T83=Labels!$B$118,T81,"") ->  | U95: =IF(U83=Labels!$B$118,U81,"") ->  | V95: =IF(V83=Labels!$B$118,V81,"") ->  | W95: =IF(W83=Labels!$B$118,W81,"") ->  | X95: =IF(X83=Labels!$B$118,X81,"") ->  | Y95: =IF(Y83=Labels!$B$118,Y81,"") ->  | Z95: =IF(Z83=Labels!$B$118,Z81,"") ->  | AA95: =IF(AA83=Labels!$B$118,AA81,"") ->  | AB95: =IF(AB83=Labels!$B$118,AB81,"") ->  | AC95: =IF(AC83=Labels!$B$118,AC81,"") ->  | AD95: =IF(AD83=Labels!$B$118,AD81,"") ->  | AG95: 0 | AH95: [09-FT]
A96: =$A$31 -> jf-numajoration | B96: =IF(B83=Labels!$B$118,SUM(B80,B82),"") ->  | C96: =IF(C83=Labels!$B$118,SUM(C80,C82),"") ->  | D96: =IF(D83=Labels!$B$118,SUM(D80,D82),"") ->  | E96: =IF(E83=Labels!$B$118,SUM(E80,E82),"") ->  | F96: =IF(F83=Labels!$B$118,SUM(F80,F82),"") ->  | G96: =IF(G83=Labels!$B$118,SUM(G80,G82),"") ->  | H96: =IF(H83=Labels!$B$118,SUM(H80,H82),"") ->  | I96: =IF(I83=Labels!$B$118,SUM(I80,I82),"") ->  | J96: =IF(J83=Labels!$B$118,SUM(J80,J82),"") ->  | K96: =IF(K83=Labels!$B$118,SUM(K80,K82),"") ->  | L96: =IF(L83=Labels!$B$118,SUM(L80,L82),"") ->  | M96: =IF(M83=Labels!$B$118,SUM(M80,M82),"") ->  | N96: =IF(N83=Labels!$B$118,SUM(N80,N82),"") ->  | O96: =IF(O83=Labels!$B$118,SUM(O80,O82),"") ->  | P96: =IF(P83=Labels!$B$118,SUM(P80,P82),"") ->  | Q96: =IF(Q83=Labels!$B$118,SUM(Q80,Q82),"") ->  | R96: =IF(R83=Labels!$B$118,SUM(R80,R82),"") ->  | S96: =IF(S83=Labels!$B$118,SUM(S80,S82),"") ->  | T96: =IF(T83=Labels!$B$118,SUM(T80,T82),"") ->  | U96: =IF(U83=Labels!$B$118,SUM(U80,U82),"") ->  | V96: =IF(V83=Labels!$B$118,SUM(V80,V82),"") ->  | W96: =IF(W83=Labels!$B$118,SUM(W80,W82),"") ->  | X96: =IF(X83=Labels!$B$118,SUM(X80,X82),"") ->  | Y96: =IF(Y83=Labels!$B$118,SUM(Y80,Y82),"") ->  | Z96: =IF(Z83=Labels!$B$118,SUM(Z80,Z82),"") ->  | AA96: =IF(AA83=Labels!$B$118,SUM(AA80,AA82),"") ->  | AB96: =IF(AB83=Labels!$B$118,SUM(AB80,AB82),"") ->  | AC96: =IF(AC83=Labels!$B$118,SUM(AC80,AC82),"") ->  | AD96: =IF(AD83=Labels!$B$118,SUM(AD80,AD82),"") ->  | AG96: 0 | AH96: [09-FN]
A97: =$A$32 -> majoration caché (total hebd.) | B97: =IF($B72>=80,IF(OR(ISTEXT(B89),B89="",B89<$B$7),"",ROUND(((B89-$B$7)*25%)/25,4)*25),IF(B85>($B$7/5),ROUND(((B85-($B$7/5))*25%)/25,4)*25,"")) ->  | C97: =IF($B72>=80,IF(OR(ISTEXT(C89),C89="",C89<$B$7),"",ROUND(((C89-$B$7)*25%)/25,4)*25),IF(C85>($B$7/5),ROUND(((C85-($B$7/5))*25%)/25,4)*25,"")) ->  | AD97: =IF(istSchaltjahr,IF($B72>=80,IF(OR(ISTEXT(AD89),AD89="",AD89<$B$7),"",ROUND(((AD89-$B$7)*25%)/25,4)*25),IF(AD85>($B$7/5),ROUND(((AD85-($B$7/5))*25%)/25,4)*25,"")),"") ->  | AE97: =YEAR(AC75) -> 2023 | AG97: =AG81 -> 0 | AH97: [03]
B98: =$B$33 -> 1) 25% majoration temporelle pour depassement les heures maximales | L98: =$L$33 -> 2) 100% majoration temporelle pour travail de nuit | T98: =$T$33 -> Saisie des heures payées l'année passée | AG98: =SUM(AG80,AG82) -> 0 | AH98: [4-5]
B99: =$B$34 -> 3) 100% majoration temporelle pour travail du dimanche et jour férié | T99: =$T$34 -> Saisie des heures payées exercice en cours (heures supplémentaires) | AG99: =SUM(AG80:AG82) -> 0 | AH99: [3-5]
A100: =$A$35 -> Notes | AG100: =SUM(AG78:AG92) -> 0 | AH100: [10]
AG101: =AG77 -> 160 | AH101: [00]
A102: =IF(AG854=0,"","effektives Pensum: "&ROUND(COUNT(B77:AF77)/(AG854+COUNT(B77:AF77))%*B72%*20,0)/20&" %") ->  | AG102: =SUM(AG100-AG101) -> -160 | AH102: [11]
A104: =Labels!$B$103 -> Résumé | G104: =Labels!$B$77 -> Jan | I104: =Labels!$B$78 -> Fév | K104: =Labels!$B$79 -> Mar | M104: =Labels!$B$80 -> Avr | O104: =Labels!$B$81 -> Mai | Q104: =Labels!$B$82 -> Jun | S104: =Labels!$B$83 -> Jul | U104: =Labels!$B$84 -> Aoû | W104: =Labels!$B$85 -> Sep | Y104: =Labels!$B$86 -> Oct | AA104: =Labels!$B$87 -> Nov | AC104: =Labels!$B$88 -> Déc | AE104: =Labels!$B$101 -> Année
A105: =Labels!$B$20 -> Emploi % | G105: =IF($B$4=0,0,$B$4) -> 100 | I105: =IF($B$72=0,0,$B$72) -> 100 | K105: =IF($B$137=0,0,$B$137) -> 100 | M105: =IF($B$202=0,0,$B$202) -> 100 | O105: =IF($B$267=0,0,$B$267) -> 100 | Q105: =IF($B$332=0,0,$B$332) -> 100 | S105: =IF($B$397=0,0,$B$397) -> 100 | U105: =IF($B$462=0,0,$B$462) -> 100 | W105: =IF($B$527=0,0,$B$527) -> 100 | Y105: =IF($B$592=0,0,$B$592) -> 100 | AA105: =IF($B$657=0,0,$B$657) -> 100 | AC105: =IF($B$722=0,0,$B$722) -> 100
A106: =Labels!$B$104 -> Heures théoriques selon CCT | G106: =IF($AG$36=0,0,$AG$36) -> 176 | I106: =IF($AG$101=0,0,$AG$101) -> 160 | K106: =IF($AG$142=0,0,$AG$142) -> 184 | M106: =IF($AG$231=0,0,$AG$231) -> 160 | O106: =IF($AG$296=0,0,$AG$296) -> 184 | Q106: =IF($AG$361=0,0,$AG$361) -> 176 | S106: =IF($AG$426=0,0,$AG$426) -> 168 | U106: =IF($AG$491=0,0,$AG$491) -> 184 | W106: =IF($AG$556=0,0,$AG$556) -> 168 | Y106: =IF($AG$621=0,0,$AG$621) -> 176 | AA106: =IF($AG$686=0,0,$AG$686) -> 176 | AC106: =IF($AG$751=0,0,$AG$751) -> 168 | AE106: =SUM(G106:AD106) -> 2080
A107: =Labels!$B$105 -> Total heures productives | B107: =Labels!$B$106 -> 06.00 - 20.00 h | G107: =IF($AG$32=0,0,$AG$32) -> 0 | I107: =IF($AG$96=0,0,$AG$96) -> 0 | K107: =IF($AG$161=0,0,$AG$161) -> 0 | M107: =IF($AG$226=0,0,$AG$226) -> 0 | O107: =IF($AG$291=0,0,$AG$291) -> 0 | Q107: =IF($AG$356=0,0,$AG$356) -> 0 | S107: =IF($AG$421=0,0,$AG$421) -> 0 | U107: =IF($AG$486=0,0,$AG$486) -> 0 | W107: =IF($AG$551=0,0,$AG$551) -> 0 | Y107: =IF($AG$616=0,0,$AG$616) -> 0 | AA107: =IF($AG$681=0,0,$AG$681) -> 0 | AC107: =IF($AG$746=0,0,$AG$746) -> 0 | AE107: =SUM(G107:AD107) -> 0
B108: =Labels!$B$107 -> nuit, dimanche et jour férié | G108: =IF($AG$33=0,0,$AG$33) -> 0 | I108: =IF($AG$97=0,0,$AG$97) -> 0 | K108: =IF($AG$162=0,0,$AG$162) -> 0 | M108: =IF($AG$227=0,0,$AG$227) -> 0 | O108: =IF($AG$292=0,0,$AG$292) -> 0 | Q108: =IF($AG$357=0,0,$AG$357) -> 0 | S108: =IF($AG$422=0,0,$AG$422) -> 0 | U108: =IF($AG$487=0,0,$AG$487) -> 0 | W108: =IF($AG$552=0,0,$AG$552) -> 0 | Y108: =IF($AG$617=0,0,$AG$617) -> 0 | AA108: =IF($AG$682=0,0,$AG$682) -> 0 | AC108: =IF($AG$747=0,0,$AG$747) -> 0 | AE108: =SUM(G108:AD108) -> 0
A109: =Labels!$B$108 -> Majorations temporelles | B109: =Labels!$B$109 -> depassement des heures maximales | G109: =IF($AG$25=0,0,$AG$25) -> 0 | I109: =IF($AG$89=0,0,$AG$89) -> 0 | K109: =IF($AG$154=0,0,$AG$154) -> 0 | M109: =IF($AG$219=0,0,$AG$219) -> 0 | O109: =IF($AG$284=0,0,$AG$284) -> 0 | Q109: =IF($AG$349=0,0,$AG$349) -> 0 | S109: =IF($AG$414=0,0,$AG$414) -> 0 | U109: =IF($AG$479=0,0,$AG$479) -> 0 | W109: =IF($AG$544=0,0,$AG$544) -> 0 | Y109: =IF($AG$609=0,0,$AG$609) -> 0 | AA109: =IF($AG$674=0,0,$AG$674) -> 0 | AC109: =IF($AG$739=0,0,$AG$739) -> 0 | AE109: =SUM(G109:AD109) -> 0
B110: =Labels!$B$110 -> nuit, dimanche et jour férié | G110: =IF($AJ$23=0,0,$AJ$23) -> 0 | I110: =IF($AK$23=0,0,$AK$23) -> 0 | K110: =IF($AL$23=0,0,$AL$23) -> 0 | M110: =IF($AM$23=0,0,$AM$23) -> 0 | O110: =IF($AN$23=0,0,$AN$23) -> 0 | Q110: =IF($AO$23=0,0,$AO$23) -> 0 | S110: =IF($AP$23=0,0,$AP$23) -> 0 | U110: =IF($AQ$23=0,0,$AQ$23) -> 0 | W110: =IF($AR$23=0,0,$AR$23) -> 0 | Y110: =IF($AS$23=0,0,$AS$23) -> 0 | AA110: =IF($AT$23=0,0,$AT$23) -> 0 | AC110: =IF($AU$23=0,0,$AU$23) -> 0 | AE110: =SUM(G110:AD110) -> 0
A111: =Labels!$B$111 -> Heures inproductives
A112: =Labels!$B$112 -> Absences art. 11 CCT | F112: =Labels!$B$113 -> ab | G112: =IF($AJ$3=0,0,$AJ$3) -> 0 | I112: =IF($AK$3=0,0,$AK$3) -> 0 | K112: =IF($AL$3=0,0,$AL$3) -> 0 | M112: =IF($AM$3=0,0,$AM$3) -> 0 | O112: =IF($AN$3=0,0,$AN$3) -> 0 | Q112: =IF($AO$3=0,0,$AO$3) -> 0 | S112: =IF($AP$3=0,0,$AP$3) -> 0 | U112: =IF($AQ$3=0,0,$AQ$3) -> 0 | W112: =IF($AR$3=0,0,$AR$3) -> 0 | Y112: =IF($AS$3=0,0,$AS$3) -> 0 | AA112: =IF(AT$3=0,0,$AT$3) -> 0 | AC112: =IF($AU$3=0,0,$AU$3) -> 0 | AE112: =IF($AV$3=0,0,$AV$3) -> 0
A113: =Labels!$B$114 -> Vacances art. 12.1 CCT | F113: =Labels!$B$115 -> va | G113: =IF($AJ$4=0,0,$AJ$4) -> 0 | I113: =IF($AK$4=0,0,$AK$4) -> 0 | K113: =IF($AL$4=0,0,$AL$4) -> 0 | M113: =IF($AM$4=0,0,$AM$4) -> 0 | O113: =IF($AN$4=0,0,$AN$4) -> 0 | Q113: =IF($AO$4=0,0,$AO$4) -> 0 | S113: =IF($AP$4=0,0,$AP$4) -> 0 | U113: =IF($AQ$4=0,0,$AQ$4) -> 0 | W113: =IF($AR$4=0,0,$AR$4) -> 0 | Y113: =IF($AS$4=0,0,$AS$4) -> 0 | AA113: =IF($AT$4=0,0,$AT$4) -> 0 | AC113: =IF($AU$4=0,0,$AU$4) -> 0 | AE113: =IF($AV$4=0,0,$AV$4) -> 0
A114: =Labels!$B$181 -> vacances non payées | F114: =Labels!$B$182 -> vn | G114: =IF($AJ$13=0,0,$AJ$13) -> 0 | I114: =IF($AK$13=0,0,$AK$13) -> 0 | K114: =IF($AL$13=0,0,$AL$13) -> 0 | M114: =IF($AM$13=0,0,$AM$13) -> 0 | O114: =IF($AN$13=0,0,$AN$13) -> 0 | Q114: =IF($AO$13=0,0,$AO$13) -> 0 | S114: =IF($AP$13=0,0,$AP$13) -> 0 | U114: =IF($AQ$13=0,0,$AQ$13) -> 0 | W114: =IF($AR$13=0,0,$AR$13) -> 0 | Y114: =IF($AS$13=0,0,$AS$13) -> 0 | AA114: =IF($AT$13=0,0,$AT$13) -> 0 | AC114: =IF($AU$13=0,0,$AU$13) -> 0 | AE114: =IF($AV$13=0,0,$AV$13) -> 0
A115: =Labels!$B$116 -> Jours fériés art. 12.2 CCT | C115: =IF($AJ$20="","",$AJ$20) ->  | F115: =Labels!$B$118 -> jf | G115: =IF($AJ$18=0,0,$AJ$18) -> 0 | I115: =IF($AK$18=0,0,$AK$18) -> 0 | K115: =IF($AL$18=0,0,$AL$18) -> 0 | M115: =IF($AM$18=0,0,$AM$18) -> 0 | O115: =IF($AN$18=0,0,$AN$18) -> 0 | Q115: =IF($AO$18=0,0,$AO$18) -> 0 | S115: =IF($AP$18=0,0,$AP$18) -> 0 | U115: =IF($AQ$18=0,0,$AQ$18) -> 0 | W115: =IF($AR$18=0,0,$AR$18) -> 0 | Y115: =IF($AS$18=0,0,$AS$18) -> 0 | AA115: =IF($AT$18=0,0,$AT$18) -> 0 | AC115: =IF($AU$18=0,0,$AU$18) -> 0 | AE115: =IF($AV$18=0,0,$AV$18) -> 0
A116: =Labels!$B$119 -> Maladie art. 13 CCT | F116: =Labels!$B$120 -> ma | G116: =IF($AJ$5=0,0,$AJ$5) -> 0 | I116: =IF($AK$5=0,0,$AK$5) -> 0 | K116: =IF($AL$5=0,0,$AL$5) -> 0 | M116: =IF($AM$5=0,0,$AM$5) -> 0 | O116: =IF($AN$5=0,0,$AN$5) -> 0 | Q116: =IF($AO$5=0,0,$AO$5) -> 0 | S116: =IF($AP$5=0,0,$AP$5) -> 0 | U116: =IF($AQ$5=0,0,$AQ$5) -> 0 | W116: =IF($AR$5=0,0,$AR$5) -> 0 | Y116: =IF($AS$5=0,0,$AS$5) -> 0 | AA116: =IF($AT$5=0,0,$AT$5) -> 0 | AC116: =IF($AU$5=0,0,$AU$5) -> 0 | AE116: =IF($AV$5=0,0,$AV$5) -> 0
A117: =Labels!$B$184 -> non payeé | G117: =IF(AJ$16=0,0,AJ$16) -> 0 | I117: =IF($AK$16=0,0,$AK$16) -> 0 | K117: =IF($AL$16=0,0,$AL$16) -> 0 | M117: =IF($AM$16=0,0,$AM$16) -> 0 | O117: =IF($AN$16=0,0,$AN$16) -> 0 | Q117: =IF($AO$16=0,0,$AO$16) -> 0 | S117: =IF($AP$16=0,0,$AP$16) -> 0 | U117: =IF($AQ$16=0,0,$AQ$16) -> 0 | W117: =IF($AR$16=0,0,$AR$16) -> 0 | Y117: =IF($AS$16=0,0,$AS$16) -> 0 | AA117: =IF($AT$16=0,0,$AT$16) -> 0 | AC117: =IF($AU$16=0,0,$AU$16) -> 0 | AE117: =IF($AV$16=0,0,$AV$16) -> 0
A118: =Labels!$B$121 -> Accident art. 14 CCT | F118: =Labels!$B$122 -> ac | G118: =IF($AJ$6=0,0,$AJ$6) -> 0 | I118: =IF($AK$6=0,0,$AK$6) -> 0 | K118: =IF($AL$6=0,0,$AL$6) -> 0 | M118: =IF($AM$6=0,0,$AM$6) -> 0 | O118: =IF($AN$6=0,0,$AN$6) -> 0 | Q118: =IF($AO$6=0,0,$AO$6) -> 0 | S118: =IF($AP$6=0,0,$AP$6) -> 0 | U118: =IF($AQ$6=0,0,$AQ$6) -> 0 | W118: =IF($AR$6=0,0,$AR$6) -> 0 | Y118: =IF($AS$6=0,0,$AS$6) -> 0 | AA118: =IF($AT$6=0,0,$AT$6) -> 0 | AC118: =IF($AU$6=0,0,$AU$6) -> 0 | AE118: =IF($AV$6=0,0,$AV$6) -> 0
A119: =Labels!$B$123 -> Grossesse/Maternité art. 15 CCT | F119: =Labels!$B$124 -> gm | G119: =IF($AJ$7=0,0,$AJ$7) -> 0 | I119: =IF($AK$7=0,0,$AK$7) -> 0 | K119: =IF($AL$7=0,0,$AL$7) -> 0 | M119: =IF($AM$7=0,0,$AM$7) -> 0 | O119: =IF($AN$7=0,0,$AN$7) -> 0 | Q119: =IF($AO$7=0,0,$AO$7) -> 0 | S119: =IF($AP$7=0,0,$AP$7) -> 0 | U119: =IF($AQ$7=0,0,$AQ$7) -> 0 | W119: =IF($AR$7=0,0,$AR$7) -> 0 | Y119: =IF($AS$7=0,0,$AS$7) -> 0 | AA119: =IF($AT$7=0,0,$AT$7) -> 0 | AC119: =IF($AU$7=0,0,$AU$7) -> 0 | AE119: =IF($AV$7=0,0,$AV$7) -> 0
A120: =Labels!$B$125 -> Militaire/Promotion/Protection civile art. 16 CCT | F120: =Labels!$B$126 -> mi | G120: =IF($AJ$8=0,0,$AJ$8) -> 0 | I120: =IF($AK$8=0,0,$AK$8) -> 0 | K120: =IF($AL$8=0,0,$AL$8) -> 0 | M120: =IF($AM$8=0,0,$AM$8) -> 0 | O120: =IF($AN$8=0,0,$AN$8) -> 0 | Q120: =IF($AO$8=0,0,$AO$8) -> 0 | S120: =IF($AP$8=0,0,$AP$8) -> 0 | U120: =IF($AQ$8=0,0,$AQ$8) -> 0 | W120: =IF($AR$8=0,0,$AR$8) -> 0 | Y120: =IF($AS$8=0,0,$AS$8) -> 0 | AA120: =IF($AT$8=0,0,$AT$8) -> 0 | AC120: =IF($AU$8=0,0,$AU$8) -> 0 | AE120: =IF($AV$8=0,0,$AV$8) -> 0
A121: =Labels!$B$127 -> Chômage partiel et perte de travail cause d'intempéries | F121: =Labels!$B$128 -> ch | G121: =IF($AJ$11=0,0,$AJ$11) -> 0 | I121: =IF($AK$11=0,0,$AK$11) -> 0 | K121: =IF($AL$11=0,0,$AL$11) -> 0 | M121: =IF($AM$11=0,0,$AM$11) -> 0 | O121: =IF($AN$11=0,0,$AN$11) -> 0 | Q121: =IF($AO$11=0,0,$AO$11) -> 0 | S121: =IF($AP$11=0,0,$AP$11) -> 0 | U121: =IF($AQ$11=0,0,$AQ$11) -> 0 | W121: =IF($AR$11=0,0,$AR$11) -> 0 | Y121: =IF($AS$11=0,0,$AS$11) -> 0 | AA121: =IF($AT$11=0,0,$AT$11) -> 0 | AC121: =IF($AU$11=0,0,$AU$11) -> 0 | AE121: =IF($AV$11=0,0,$AV$11) -> 0
A122: =Labels!$B$129 -> Ecole professionnelle | F122: =Labels!$B$130 -> ep | G122: =IF($AJ$9=0,0,$AJ$9) -> 0 | I122: =IF($AK$9=0,0,$AK$9) -> 0 | K122: =IF($AL$9=0,0,$AL$9) -> 0 | M122: =IF($AM$9=0,0,$AM$9) -> 0 | O122: =IF($AN$9=0,0,$AN$9) -> 0 | Q122: =IF($AO$9=0,0,$AO$9) -> 0 | S122: =IF($AP$9=0,0,$AP$9) -> 0 | U122: =IF($AQ$9=0,0,$AQ$9) -> 0 | W122: =IF($AR$9=0,0,$AR$9) -> 0 | Y122: =IF($AS$9=0,0,$AS$9) -> 0 | AA122: =IF($AT$9=0,0,$AT$9) -> 0 | AC122: =IF($AU$9=0,0,$AU$9) -> 0 | AE122: =IF($AV$9=0,0,$AV$9) -> 0
A123: =Labels!$B$131 -> Cours | F123: =Labels!$B$132 -> co | G123: =IF($AJ$10=0,0,$AJ$10) -> 0 | I123: =IF($AK$10=0,0,$AK$10) -> 0 | K123: =IF($AL$10=0,0,$AL$10) -> 0 | M123: =IF($AM$10=0,0,$AM$10) -> 0 | O123: =IF($AN$10=0,0,$AN$10) -> 0 | Q123: =IF($AO$10=0,0,$AO$10) -> 0 | S123: =IF($AP$10=0,0,$AP$10) -> 0 | U123: =IF($AQ$10=0,0,$AQ$10) -> 0 | W123: =IF($AR$10=0,0,$AR$10) -> 0 | Y123: =IF($AS$10=0,0,$AS$10) -> 0 | AA123: =IF($AT$10=0,0,$AT$10) -> 0 | AC123: =IF($AU$10=0,0,$AU$10) -> 0 | AE123: =IF($AV$10=0,0,$AV$10) -> 0
A124: =Labels!$B$133 -> Heures de compensation | B124: =Labels!$B$134 -> de l'année passée | F124: =Labels!$B$135 -> cp | G124: =IF($AJ$12=0,0,$AJ$12) -> 0 | I124: =IF($AK$12=0,0,$AK$12) -> 0 | K124: =IF($AL$12=0,0,$AL$12) -> 0 | M124: =IF($AM$12=0,0,$AM$12) -> 0 | O124: =IF($AN$12=0,0,$AN$12) -> 0 | Q124: =IF($AO$12=0,0,$AO$12) -> 0 | S124: =IF($AP$12=0,0,$AP$12) -> 0 | U124: =IF($AQ$12=0,0,$AQ$12) -> 0 | W124: =IF($AR$12=0,0,$AR$12) -> 0 | AE124: =IF($AV$12=0,0,$AV$12) -> 0
B125: =Labels!$B$136 -> de l'année en cours (contrôle) | F125: =Labels!$B$137 -> cc | G125: =IF($AJ$15=0,0,$AJ$15) -> 0 | I125: =IF($AK$15=0,0,$AK$15) -> 0 | K125: =IF($AL$15=0,0,$AL$15) -> 0 | M125: =IF($AM$15=0,0,$AM$15) -> 0 | O125: =IF($AN$15=0,0,$AN$15) -> 0 | Q125: =IF($AO$15=0,0,$AO$15) -> 0 | S125: =IF($AP$15=0,0,$AP$15) -> 0 | U125: =IF($AQ$15=0,0,$AQ$15) -> 0 | W125: =IF($AR$15=0,0,$AR$15) -> 0 | Y125: =IF($AS$15=0,0,$AS$15) -> 0 | AA125: =IF($AT$15=0,0,$AT$15) -> 0 | AC125: =IF($AU$15=0,0,$AU$15) -> 0 | AE125: =IF($AV$15=0,0,$AV$15) -> 0
A126: =Labels!$B$138 -> Paiement des heures | B126: =Labels!$B$139 -> de l'année passée | G126: =IF($AJ$21=0,0,$AJ$21) -> 0 | I126: =IF($AK$21=0,0,$AK$21) -> 0 | K126: =IF($AL$21=0,0,$AL$21) -> 0 | M126: =IF($AM$21=0,0,$AM$21) -> 0 | O126: =IF($AN$21=0,0,$AN$21) -> 0 | Q126: =IF($AO$21=0,0,$AO$21) -> 0 | S126: =IF($AP$21=0,0,$AP$21) -> 0 | U126: =IF($AQ$21=0,0,$AQ$21) -> 0 | W126: =IF($AR$21=0,0,$AR$21) -> 0 | AE126: =IF($AV$21=0,0,$AV$21) -> 0
A127: =Labels!$B$140 -> Différence en heures | B127: =Labels!$B$141 -> après compensation et paiement | G127: =IF(ROUND($P$4,3)=0,0,$P$4-G124-G126) -> 0 | I127: =IF(ROUND(G127,3)=0,0,G127-(SUM(I124+I126))) -> 0 | K127: =IF(ROUND(I127,3)=0,0,I127-K126-K124) -> 0 | M127: =IF(ROUND(K127,3)=0,0,K127-(SUM(M126+M124))) -> 0 | O127: =IF(ROUND(M127,3)=0,0,M127-(SUM(O126+O124))) -> 0 | Q127: =IF(ROUND(O127,3)=0,0,O127-(SUM(Q126+Q124))) -> 0 | S127: =IF(ROUND(Q127,3)=0,0,Q127-(SUM(S126+S124))) -> 0 | U127: =IF(ROUND(S127,3)=0,0,S127-(SUM(U126+U124))) -> 0 | W127: =IF(ROUND(U127,3)=0,0,U127-(SUM(W126+W124))) -> 0 | Y127: =IF($W$62<0.1,"",AY109) -> 
A128: =Labels!$B$138 -> Paiement des heures | B128: =Labels!$B$142 -> de l'année en cours | G128: =IF($AJ$22=0,0,$AJ$22) -> 0 | I128: =IF($AK$22=0,0,$AK$22) -> 0 | K128: =IF($AL$22=0,0,$AL$22) -> 0 | M128: =IF($AM$22=0,0,$AM$22) -> 0 | O128: =IF($AN$22=0,0,$AN$22) -> 0 | Q128: =IF($AO$22=0,0,$AO$22) -> 0 | S128: =IF($AP$22=0,0,$AP$22) -> 0 | U128: =IF($AQ$22=0,0,$AQ$22) -> 0 | W128: =IF($AR$22=0,0,$AR$22) -> 0 | Y128: =IF($AS$22=0,0,$AS$22) -> 0 | AA128: =IF($AT$22=0,0,$AT$22) -> 0 | AC128: =IF($AU$22=0,0,$AU$22) -> 0 | AE128: =IF($AV$22=0,0,$AV$22) -> 0
A129: =Labels!$B$143 -> Heures manquantes | B129: =Labels!$B$144 -> de l'année en cours (contrôle) | F129: =Labels!$B$145 -> hm | G129: =IF($AJ$14=0,0,$AJ$14) -> 0 | I129: =IF($AK$14=0,0,$AK$14) -> 0 | K129: =IF($AL$14=0,0,$AL$14) -> 0 | M129: =IF($AM$14=0,0,$AM$14) -> 0 | O129: =IF($AN$14=0,0,$AN$14) -> 0 | Q129: =IF($AO$14=0,0,$AO$14) -> 0 | S129: =IF($AP$14=0,0,$AP$14) -> 0 | U129: =IF($AQ$14=0,0,$AQ$14) -> 0 | W129: =IF($AR$14=0,0,$AR$14) -> 0 | Y129: =IF($AS$14=0,0,$AS$14) -> 0 | AA129: =IF($AT$14=0,0,$AT$14) -> 0 | AC129: =IF($AU$14=0,0,$AU$14) -> 0 | AE129: =IF($AV$14=0,0,$AV$14) -> 0
A130: =Labels!$B$146 -> Total (majorations inclus) | B130: =Labels!$B$147 -> heures productives et inproductives | G130: =IF($AG$35=0,0,$AG$35) -> 0 | I130: =IF($AG$100=0,0,$AG$100) -> 0 | K130: =IF($AG$165=0,0,$AG$165) -> 0 | M130: =IF($AG$230=0,0,$AG$230) -> 0 | O130: =IF($AG$295=0,0,$AG$295) -> 0 | Q130: =IF($AG$360=0,0,$AG$360) -> 0 | S130: =IF($AG$425=0,0,$AG$425) -> 0 | U130: =IF($AG$490=0,0,$AG$490) -> 0 | W130: =IF($AG$555=0,0,$AG$555) -> 0 | Y130: =IF($AG$620=0,0,$AG$620) -> 0 | AA130: =IF($AG$685=0,0,$AG$685) -> 0 | AC130: =IF($AG$750=0,0,$AG$750) -> 0 | AE130: =SUM($G$65:$AD$65) -> 0
A131: =Labels!$B$148 -> Comparaison des heures | B131: =Labels!$B$149 -> aux heures théorique CCT (heures manquantes de l'année passée incl.) | G131: =IF($AG$37=0,0,$AG$37)-$AE$34+$P$5 -> -176 | I131: =IF($AG$102=0,0,$AG$102)-$AE$99 -> -160 | K131: =IF($AG$167=0,0,$AG$167)-$AE$164 -> -184 | M131: =IF($AG$232=0,0,$AG$232)-$AE$229 -> -160 | O131: =IF($AG$297=0,0,$AG$297)-$AE$294 -> -184 | Q131: =IF($AG$362=0,0,$AG$362)-$AE$359 -> -176 | S131: =IF($AG$427=0,0,$AG$427)-$AE$424 -> -168 | U131: =IF($AG$492=0,0,$AG$492)-$AE$489 -> -184 | W131: =IF($AG$557=0,0,$AG$557)-$AE$554 -> -168 | Y131: =IF($AG$622=0,0,$AG$622)-$AE$619 -> -176 | AA131: =IF($AG$687=0,0,$AG$687)-$AE$684 -> -176 | AC131: =IF($AG$752=0,0,$AG$752)-$AE$749 -> -168 | AE131: =SUM($G$66:$AD$66) -> -2080
B132: =Labels!$B$151 -> aux heures théorique (cumulées) | G132: =IF(G105=0,0,$G$66) -> -176 | I132: =IF(I105=0,0,SUM($G$66:$J$66)) -> -336 | K132: =IF(K105=0,0,SUM($G$66:$L$66)) -> -520 | M132: =IF(M105=0,0,SUM($G$66:$N$66)) -> -680 | O132: =IF(O105=0,0,SUM($G$66:$P$66)) -> -864 | Q132: =IF(Q105=0,0,SUM($G$66:$R$66)) -> -1040 | S132: =IF(S105=0,0,SUM($G$66:$T$66)) -> -1208 | U132: =IF(U105=0,0,SUM($G$66:$V$66)) -> -1392 | W132: =IF(W105=0,0,SUM($G$66:$X$66)) -> -1560 | Y132: =IF(Y105=0,0,SUM($G$66:$Z$66)) -> -1736 | AA132: =IF(AA105=0,0,SUM($G$66:$AB$66)) -> -1912 | AC132: =IF(AC105=0,0,SUM($G$66:$AD$66)) -> -2080
A133: =Labels!$B$153 -> Vacances (contrôle) | B133: =Labels!$B$154 -> Vacances année passée | G133: =IF($AA$4=0,0,$AA$4) -> 0 | I133: =Labels!$B$155 -> Vacances selon art 12.1 CCT | M133: =IF($AA$5=0,0,$AA$5) -> 0 | O133: =Labels!$B$156 -> Total des vacances | S133: =SUM(G133+M133) -> 0 | U133: =Labels!$B$157 -> Vacances prises | Y133: =IF($AV$4=0,0,$AV$4) -> 0 | AA133: =Labels!$B$158 -> Vacances restantes | AE133: =IF(S133=0,0,S133-Y133) -> 0
A136: =$A$3 -> Nom/Prénom | B136: =IF($B$3="","",$B$3) -> Modèle Pierre | AF136: =AF3 -> 0
A137: =$A$4 -> Emploi % | B137: =$AL$50 -> 100 | D137: =Labels!B91 -> en mars
A138: =$A$5 -> Solde année en cours | D138: =IF($AE$66=0,0,$AE$66) -> -2080
A139: =TEXT(DATE(YEAR(AP29),MONTH(AP29)+2,1),"MMMM"&Labels!B13) -> mars | B139: =$B$9 -> Solde mois + / - | F139: =(AG142-(SUM(AG143:AG156)-AE164))*-1 -> -184 | K139: =$K$9 -> = | L139: =$L$9 -> Les cases marquées en jaune doivent être remplies (les autres seront calculées automatiquement) | AG139: =COUNT(B142:AF142)&" "&Labels!$B$63 -> 23 Jours
A140: =$A$10 -> Jour | B140: =IF(MOD($AE$97,4)>=1,$AC$75+1,$AC$75+2) -> 2023-03-01 | C140: =B140+1 -> 2023-03-02 | D140: 2023-03-03 | E140: 2023-03-04 | F140: 2023-03-05 | G140: 2023-03-06 | H140: 2023-03-07 | I140: 2023-03-08 | J140: 2023-03-09 | K140: 2023-03-10 | L140: 2023-03-11 | M140: 2023-03-12 | N140: 2023-03-13 | O140: 2023-03-14 | P140: 2023-03-15 | Q140: 2023-03-16 | R140: 2023-03-17 | S140: 2023-03-18 | T140: 2023-03-19 | U140: 2023-03-20 | V140: 2023-03-21 | W140: 2023-03-22 | X140: 2023-03-23 | Y140: 2023-03-24 | Z140: 2023-03-25 | AA140: 2023-03-26 | AB140: 2023-03-27 | AC140: 2023-03-28 | AD140: 2023-03-29 | AE140: 2023-03-30 | AF140: 2023-03-31
A141: =$A$11 -> semaine civile | B141: =IF(B140="","",TRUNC((B140-DATE(YEAR(B140+3-MOD(B140-2,7)),1,MOD(B140-2,7)-9))/7)) -> 9 | C141: 9 | D141: 9 | E141: 9 | F141: 9 | G141: 10 | H141: 10 | I141: 10 | J141: 10 | K141: 10 | L141: 10 | M141: 10 | N141: 11 | O141: 11 | P141: 11 | Q141: 11 | R141: 11 | S141: 11 | T141: 11 | U141: 12 | V141: 12 | W141: 12 | X141: 12 | Y141: 12 | Z141: 12 | AA141: 12 | AB141: 13 | AC141: 13 | AD141: 13 | AE141: 13 | AF141: 13 | AH141: Woche
A142: =$A$12 -> Théorique sel. CCT | B142: =IF(AND(MOD(B140,7)>=2,SUMPRODUCT(($AM$60:$AQ$60=MOD(B140,7))*$AM$50:$AQ$50),B879=""),$J$7*SUMPRODUCT(($AM$77:$AQ$77=MOD(B140,7))*$AM$67:$AQ$67)%,"") -> 8 | C142: =IF(AND(MOD(C140,7)>=2,SUMPRODUCT(($AM$60:$AQ$60=MOD(C140,7))*$AM$50:$AQ$50),C879=""),$J$7*SUMPRODUCT(($AM$77:$AQ$77=MOD(C140,7))*$AM$67:$AQ$67)%,"") -> 8 | D142: =IF(AND(MOD(D140,7)>=2,SUMPRODUCT(($AM$60:$AQ$60=MOD(D140,7))*$AM$50:$AQ$50),D879=""),$J$7*SUMPRODUCT(($AM$77:$AQ$77=MOD(D140,7))*$AM$67:$AQ$67)%,"") -> 8 | E142: =IF(AND(MOD(E140,7)>=2,SUMPRODUCT(($AM$60:$AQ$60=MOD(E140,7))*$AM$50:$AQ$50),E879=""),$J$7*SUMPRODUCT(($AM$77:$AQ$77=MOD(E140,7))*$AM$67:$AQ$67)%,"") ->  | F142: =IF(AND(MOD(F140,7)>=2,SUMPRODUCT(($AM$60:$AQ$60=MOD(F140,7))*$AM$50:$AQ$50),F879=""),$J$7*SUMPRODUCT(($AM$77:$AQ$77=MOD(F140,7))*$AM$67:$AQ$67)%,"") ->  | G142: =IF(AND(MOD(G140,7)>=2,SUMPRODUCT(($AM$60:$AQ$60=MOD(G140,7))*$AM$50:$AQ$50),G879=""),$J$7*SUMPRODUCT(($AM$77:$AQ$77=MOD(G140,7))*$AM$67:$AQ$67)%,"") -> 8 | H142: =IF(AND(MOD(H140,7)>=2,SUMPRODUCT(($AM$60:$AQ$60=MOD(H140,7))*$AM$50:$AQ$50),H879=""),$J$7*SUMPRODUCT(($AM$77:$AQ$77=MOD(H140,7))*$AM$67:$AQ$67)%,"") -> 8 | I142: =IF(AND(MOD(I140,7)>=2,SUMPRODUCT(($AM$60:$AQ$60=MOD(I140,7))*$AM$50:$AQ$50),I879=""),$J$7*SUMPRODUCT(($AM$77:$AQ$77=MOD(I140,7))*$AM$67:$AQ$67)%,"") -> 8 | J142: =IF(AND(MOD(J140,7)>=2,SUMPRODUCT(($AM$60:$AQ$60=MOD(J140,7))*$AM$50:$AQ$50),J879=""),$J$7*SUMPRODUCT(($AM$77:$AQ$77=MOD(J140,7))*$AM$67:$AQ$67)%,"") -> 8 | K142: =IF(AND(MOD(K140,7)>=2,SUMPRODUCT(($AM$60:$AQ$60=MOD(K140,7))*$AM$50:$AQ$50),K879=""),$J$7*SUMPRODUCT(($AM$77:$AQ$77=MOD(K140,7))*$AM$67:$AQ$67)%,"") -> 8 | L142: =IF(AND(MOD(L140,7)>=2,SUMPRODUCT(($AM$60:$AQ$60=MOD(L140,7))*$AM$50:$AQ$50),L879=""),$J$7*SUMPRODUCT(($AM$77:$AQ$77=MOD(L140,7))*$AM$67:$AQ$67)%,"") ->  | M142: =IF(AND(MOD(M140,7)>=2,SUMPRODUCT(($AM$60:$AQ$60=MOD(M140,7))*$AM$50:$AQ$50),M879=""),$J$7*SUMPRODUCT(($AM$77:$AQ$77=MOD(M140,7))*$AM$67:$AQ$67)%,"") ->  | N142: =IF(AND(MOD(N140,7)>=2,SUMPRODUCT(($AM$60:$AQ$60=MOD(N140,7))*$AM$50:$AQ$50),N879=""),$J$7*SUMPRODUCT(($AM$77:$AQ$77=MOD(N140,7))*$AM$67:$AQ$67)%,"") -> 8 | O142: =IF(AND(MOD(O140,7)>=2,SUMPRODUCT(($AM$60:$AQ$60=MOD(O140,7))*$AM$50:$AQ$50),O879=""),$J$7*SUMPRODUCT(($AM$77:$AQ$77=MOD(O140,7))*$AM$67:$AQ$67)%,"") -> 8 | P142: =IF(AND(MOD(P140,7)>=2,SUMPRODUCT(($AM$60:$AQ$60=MOD(P140,7))*$AM$50:$AQ$50),P879=""),$J$7*SUMPRODUCT(($AM$77:$AQ$77=MOD(P140,7))*$AM$67:$AQ$67)%,"") -> 8 | Q142: =IF(AND(MOD(Q140,7)>=2,SUMPRODUCT(($AM$60:$AQ$60=MOD(Q140,7))*$AM$50:$AQ$50),Q879=""),$J$7*SUMPRODUCT(($AM$77:$AQ$77=MOD(Q140,7))*$AM$67:$AQ$67)%,"") -> 8 | R142: =IF(AND(MOD(R140,7)>=2,SUMPRODUCT(($AM$60:$AQ$60=MOD(R140,7))*$AM$50:$AQ$50),R879=""),$J$7*SUMPRODUCT(($AM$77:$AQ$77=MOD(R140,7))*$AM$67:$AQ$67)%,"") -> 8 | S142: =IF(AND(MOD(S140,7)>=2,SUMPRODUCT(($AM$60:$AQ$60=MOD(S140,7))*$AM$50:$AQ$50),S879=""),$J$7*SUMPRODUCT(($AM$77:$AQ$77=MOD(S140,7))*$AM$67:$AQ$67)%,"") ->  | T142: =IF(AND(MOD(T140,7)>=2,SUMPRODUCT(($AM$60:$AQ$60=MOD(T140,7))*$AM$50:$AQ$50),T879=""),$J$7*SUMPRODUCT(($AM$77:$AQ$77=MOD(T140,7))*$AM$67:$AQ$67)%,"") ->  | U142: =IF(AND(MOD(U140,7)>=2,SUMPRODUCT(($AM$60:$AQ$60=MOD(U140,7))*$AM$50:$AQ$50),U879=""),$J$7*SUMPRODUCT(($AM$77:$AQ$77=MOD(U140,7))*$AM$67:$AQ$67)%,"") -> 8 | V142: =IF(AND(MOD(V140,7)>=2,SUMPRODUCT(($AM$60:$AQ$60=MOD(V140,7))*$AM$50:$AQ$50),V879=""),$J$7*SUMPRODUCT(($AM$77:$AQ$77=MOD(V140,7))*$AM$67:$AQ$67)%,"") -> 8 | W142: =IF(AND(MOD(W140,7)>=2,SUMPRODUCT(($AM$60:$AQ$60=MOD(W140,7))*$AM$50:$AQ$50),W879=""),$J$7*SUMPRODUCT(($AM$77:$AQ$77=MOD(W140,7))*$AM$67:$AQ$67)%,"") -> 8 | X142: =IF(AND(MOD(X140,7)>=2,SUMPRODUCT(($AM$60:$AQ$60=MOD(X140,7))*$AM$50:$AQ$50),X879=""),$J$7*SUMPRODUCT(($AM$77:$AQ$77=MOD(X140,7))*$AM$67:$AQ$67)%,"") -> 8 | Y142: =IF(AND(MOD(Y140,7)>=2,SUMPRODUCT(($AM$60:$AQ$60=MOD(Y140,7))*$AM$50:$AQ$50),Y879=""),$J$7*SUMPRODUCT(($AM$77:$AQ$77=MOD(Y140,7))*$AM$67:$AQ$67)%,"") -> 8 | Z142: =IF(AND(MOD(Z140,7)>=2,SUMPRODUCT(($AM$60:$AQ$60=MOD(Z140,7))*$AM$50:$AQ$50),Z879=""),$J$7*SUMPRODUCT(($AM$77:$AQ$77=MOD(Z140,7))*$AM$67:$AQ$67)%,"") ->  | AA142: =IF(AND(MOD(AA140,7)>=2,SUMPRODUCT(($AM$60:$AQ$60=MOD(AA140,7))*$AM$50:$AQ$50),AA879=""),$J$7*SUMPRODUCT(($AM$77:$AQ$77=MOD(AA140,7))*$AM$67:$AQ$67)%,"") ->  | AB142: =IF(AND(MOD(AB140,7)>=2,SUMPRODUCT(($AM$60:$AQ$60=MOD(AB140,7))*$AM$50:$AQ$50),AB879=""),$J$7*SUMPRODUCT(($AM$77:$AQ$77=MOD(AB140,7))*$AM$67:$AQ$67)%,"") -> 8 | AC142: =IF(AND(MOD(AC140,7)>=2,SUMPRODUCT(($AM$60:$AQ$60=MOD(AC140,7))*$AM$50:$AQ$50),AC879=""),$J$7*SUMPRODUCT(($AM$77:$AQ$77=MOD(AC140,7))*$AM$67:$AQ$67)%,"") -> 8 | AD142: =IF(AND(MOD(AD140,7)>=2,SUMPRODUCT(($AM$60:$AQ$60=MOD(AD140,7))*$AM$50:$AQ$50),AD879=""),$J$7*SUMPRODUCT(($AM$77:$AQ$77=MOD(AD140,7))*$AM$67:$AQ$67)%,"") -> 8 | AE142: =IF(AND(MOD(AE140,7)>=2,SUMPRODUCT(($AM$60:$AQ$60=MOD(AE140,7))*$AM$50:$AQ$50),AE879=""),$J$7*SUMPRODUCT(($AM$77:$AQ$77=MOD(AE140,7))*$AM$67:$AQ$67)%,"") -> 8 | AF142: =IF(AND(MOD(AF140,7)>=2,SUMPRODUCT(($AM$60:$AQ$60=MOD(AF140,7))*$AM$50:$AQ$50),AF879=""),$J$7*SUMPRODUCT(($AM$77:$AQ$77=MOD(AF140,7))*$AM$67:$AQ$67)%,"") -> 8 | AG142: =SUM(B142:AF142) -> 184 | AH142: [00]
A143: =$A$13 -> Absences | B143: =B895 -> 0 | C143: =C895 -> 0 | D143: 0 | E143: 0 | F143: 0 | G143: 0 | H143: 0 | I143: 0 | J143: 0 | K143: 0 | L143: 0 | M143: 0 | N143: 0 | O143: 0 | P143: 0 | Q143: 0 | R143: 0 | S143: 0 | T143: 0 | U143: 0 | V143: 0 | W143: 0 | X143: 0 | Y143: 0 | Z143: 0 | AA143: 0 | AB143: 0 | AC143: 0 | AD143: 0 | AE143: 0 | AF143: 0 | AG143: =SUM($AL$3:$AL$13) -> 0 | AH143: [01]
A144: =$A$14 -> Code | B144: =IF(SUM(B882:B894)<>0,IF(MAX(B882:B894)<B895,Labels!$B$163,INDEX($AH$881:$AH$893,MATCH(MAX(B882:B894),B882:B894,0))),"") ->  | C144: =IF(SUM(C882:C894)<>0,IF(MAX(C882:C894)<C895,Labels!$B$163,INDEX($AH$881:$AH$893,MATCH(MAX(C882:C894),C882:C894,0))),"") ->  | D144: =IF(SUM(D882:D894)<>0,IF(MAX(D882:D894)<D895,Labels!$B$163,INDEX($AH$881:$AH$893,MATCH(MAX(D882:D894),D882:D894,0))),"") ->  | E144: =IF(SUM(E882:E894)<>0,IF(MAX(E882:E894)<E895,Labels!$B$163,INDEX($AH$881:$AH$893,MATCH(MAX(E882:E894),E882:E894,0))),"") ->  | F144: =IF(SUM(F882:F894)<>0,IF(MAX(F882:F894)<F895,Labels!$B$163,INDEX($AH$881:$AH$893,MATCH(MAX(F882:F894),F882:F894,0))),"") ->  | G144: =IF(SUM(G882:G894)<>0,IF(MAX(G882:G894)<G895,Labels!$B$163,INDEX($AH$881:$AH$893,MATCH(MAX(G882:G894),G882:G894,0))),"") ->  | H144: =IF(SUM(H882:H894)<>0,IF(MAX(H882:H894)<H895,Labels!$B$163,INDEX($AH$881:$AH$893,MATCH(MAX(H882:H894),H882:H894,0))),"") ->  | I144: =IF(SUM(I882:I894)<>0,IF(MAX(I882:I894)<I895,Labels!$B$163,INDEX($AH$881:$AH$893,MATCH(MAX(I882:I894),I882:I894,0))),"") ->  | J144: =IF(SUM(J882:J894)<>0,IF(MAX(J882:J894)<J895,Labels!$B$163,INDEX($AH$881:$AH$893,MATCH(MAX(J882:J894),J882:J894,0))),"") ->  | K144: =IF(SUM(K882:K894)<>0,IF(MAX(K882:K894)<K895,Labels!$B$163,INDEX($AH$881:$AH$893,MATCH(MAX(K882:K894),K882:K894,0))),"") ->  | L144: =IF(SUM(L882:L894)<>0,IF(MAX(L882:L894)<L895,Labels!$B$163,INDEX($AH$881:$AH$893,MATCH(MAX(L882:L894),L882:L894,0))),"") ->  | M144: =IF(SUM(M882:M894)<>0,IF(MAX(M882:M894)<M895,Labels!$B$163,INDEX($AH$881:$AH$893,MATCH(MAX(M882:M894),M882:M894,0))),"") ->  | N144: =IF(SUM(N882:N894)<>0,IF(MAX(N882:N894)<N895,Labels!$B$163,INDEX($AH$881:$AH$893,MATCH(MAX(N882:N894),N882:N894,0))),"") ->  | O144: =IF(SUM(O882:O894)<>0,IF(MAX(O882:O894)<O895,Labels!$B$163,INDEX($AH$881:$AH$893,MATCH(MAX(O882:O894),O882:O894,0))),"") ->  | P144: =IF(SUM(P882:P894)<>0,IF(MAX(P882:P894)<P895,Labels!$B$163,INDEX($AH$881:$AH$893,MATCH(MAX(P882:P894),P882:P894,0))),"") ->  | Q144: =IF(SUM(Q882:Q894)<>0,IF(MAX(Q882:Q894)<Q895,Labels!$B$163,INDEX($AH$881:$AH$893,MATCH(MAX(Q882:Q894),Q882:Q894,0))),"") ->  | R144: =IF(SUM(R882:R894)<>0,IF(MAX(R882:R894)<R895,Labels!$B$163,INDEX($AH$881:$AH$893,MATCH(MAX(R882:R894),R882:R894,0))),"") ->  | S144: =IF(SUM(S882:S894)<>0,IF(MAX(S882:S894)<S895,Labels!$B$163,INDEX($AH$881:$AH$893,MATCH(MAX(S882:S894),S882:S894,0))),"") ->  | T144: =IF(SUM(T882:T894)<>0,IF(MAX(T882:T894)<T895,Labels!$B$163,INDEX($AH$881:$AH$893,MATCH(MAX(T882:T894),T882:T894,0))),"") ->  | U144: =IF(SUM(U882:U894)<>0,IF(MAX(U882:U894)<U895,Labels!$B$163,INDEX($AH$881:$AH$893,MATCH(MAX(U882:U894),U882:U894,0))),"") ->  | V144: =IF(SUM(V882:V894)<>0,IF(MAX(V882:V894)<V895,Labels!$B$163,INDEX($AH$881:$AH$893,MATCH(MAX(V882:V894),V882:V894,0))),"") ->  | W144: =IF(SUM(W882:W894)<>0,IF(MAX(W882:W894)<W895,Labels!$B$163,INDEX($AH$881:$AH$893,MATCH(MAX(W882:W894),W882:W894,0))),"") ->  | X144: =IF(SUM(X882:X894)<>0,IF(MAX(X882:X894)<X895,Labels!$B$163,INDEX($AH$881:$AH$893,MATCH(MAX(X882:X894),X882:X894,0))),"") ->  | Y144: =IF(SUM(Y882:Y894)<>0,IF(MAX(Y882:Y894)<Y895,Labels!$B$163,INDEX($AH$881:$AH$893,MATCH(MAX(Y882:Y894),Y882:Y894,0))),"") ->  | Z144: =IF(SUM(Z882:Z894)<>0,IF(MAX(Z882:Z894)<Z895,Labels!$B$163,INDEX($AH$881:$AH$893,MATCH(MAX(Z882:Z894),Z882:Z894,0))),"") ->  | AA144: =IF(SUM(AA882:AA894)<>0,IF(MAX(AA882:AA894)<AA895,Labels!$B$163,INDEX($AH$881:$AH$893,MATCH(MAX(AA882:AA894),AA882:AA894,0))),"") ->  | AB144: =IF(SUM(AB882:AB894)<>0,IF(MAX(AB882:AB894)<AB895,Labels!$B$163,INDEX($AH$881:$AH$893,MATCH(MAX(AB882:AB894),AB882:AB894,0))),"") ->  | AC144: =IF(SUM(AC882:AC894)<>0,IF(MAX(AC882:AC894)<AC895,Labels!$B$163,INDEX($AH$881:$AH$893,MATCH(MAX(AC882:AC894),AC882:AC894,0))),"") ->  | AD144: =IF(SUM(AD882:AD894)<>0,IF(MAX(AD882:AD894)<AD895,Labels!$B$163,INDEX($AH$881:$AH$893,MATCH(MAX(AD882:AD894),AD882:AD894,0))),"") ->  | AE144: =IF(SUM(AE882:AE894)<>0,IF(MAX(AE882:AE894)<AE895,Labels!$B$163,INDEX($AH$881:$AH$893,MATCH(MAX(AE882:AE894),AE882:AE894,0))),"") ->  | AF144: =IF(SUM(AF882:AF894)<>0,IF(MAX(AF882:AF894)<AF895,Labels!$B$163,INDEX($AH$881:$AH$893,MATCH(MAX(AF882:AF894),AF882:AF894,0))),"") ->  | AG144: =$AL$16*-1 -> 0 | AH144: [02]
A145: =$A$15 -> 00h00-06h00 1) | AG145: =SUM(B145:AF145) -> 0 | AH145: [04]
A146: =$A$16 -> 06h00-20h00 2) | AG146: =SUM(B146:AF146) -> 0 | AH146: [03]
A147: =$A$17 -> 20h00-24h00 3) | AG147: =SUM(B147:AF147) -> 0 | AH147: [05]
A148: =$A$18 -> Jours fériés "jf" | B148: =IF(WEEKDAY(B140,2)<=6,IF(CALENDRIER!E7="x",Labels!$B$118,""),"") ->  | C148: =IF(WEEKDAY(C140,2)<=6,IF(CALENDRIER!F7="x",Labels!$B$118,""),"") ->  | D148: =IF(WEEKDAY(D140,2)<=6,IF(CALENDRIER!G7="x",Labels!$B$118,""),"") ->  | E148: =IF(WEEKDAY(E140,2)<=6,IF(CALENDRIER!H7="x",Labels!$B$118,""),"") ->  | F148: =IF(WEEKDAY(F140,2)<=6,IF(CALENDRIER!I7="x",Labels!$B$118,""),"") ->  | G148: =IF(WEEKDAY(G140,2)<=6,IF(CALENDRIER!J7="x",Labels!$B$118,""),"") ->  | H148: =IF(WEEKDAY(H140,2)<=6,IF(CALENDRIER!K7="x",Labels!$B$118,""),"") ->  | I148: =IF(WEEKDAY(I140,2)<=6,IF(CALENDRIER!L7="x",Labels!$B$118,""),"") ->  | J148: =IF(WEEKDAY(J140,2)<=6,IF(CALENDRIER!M7="x",Labels!$B$118,""),"") ->  | K148: =IF(WEEKDAY(K140,2)<=6,IF(CALENDRIER!N7="x",Labels!$B$118,""),"") ->  | L148: =IF(WEEKDAY(L140,2)<=6,IF(CALENDRIER!O7="x",Labels!$B$118,""),"") ->  | M148: =IF(WEEKDAY(M140,2)<=6,IF(CALENDRIER!P7="x",Labels!$B$118,""),"") ->  | N148: =IF(WEEKDAY(N140,2)<=6,IF(CALENDRIER!Q7="x",Labels!$B$118,""),"") ->  | O148: =IF(WEEKDAY(O140,2)<=6,IF(CALENDRIER!R7="x",Labels!$B$118,""),"") ->  | P148: =IF(WEEKDAY(P140,2)<=6,IF(CALENDRIER!S7="x",Labels!$B$118,""),"") ->  | Q148: =IF(WEEKDAY(Q140,2)<=6,IF(CALENDRIER!T7="x",Labels!$B$118,""),"") ->  | R148: =IF(WEEKDAY(R140,2)<=6,IF(CALENDRIER!U7="x",Labels!$B$118,""),"") ->  | S148: =IF(WEEKDAY(S140,2)<=6,IF(CALENDRIER!V7="x",Labels!$B$118,""),"") ->  | T148: =IF(WEEKDAY(T140,2)<=6,IF(CALENDRIER!W7="x",Labels!$B$118,""),"") ->  | U148: =IF(WEEKDAY(U140,2)<=6,IF(CALENDRIER!X7="x",Labels!$B$118,""),"") ->  | V148: =IF(WEEKDAY(V140,2)<=6,IF(CALENDRIER!Y7="x",Labels!$B$118,""),"") ->  | W148: =IF(WEEKDAY(W140,2)<=6,IF(CALENDRIER!Z7="x",Labels!$B$118,""),"") ->  | X148: =IF(WEEKDAY(X140,2)<=6,IF(CALENDRIER!AA7="x",Labels!$B$118,""),"") ->  | Y148: =IF(WEEKDAY(Y140,2)<=6,IF(CALENDRIER!AB7="x",Labels!$B$118,""),"") ->  | Z148: =IF(WEEKDAY(Z140,2)<=6,IF(CALENDRIER!AC7="x",Labels!$B$118,""),"") ->  | AA148: =IF(WEEKDAY(AA140,2)<=6,IF(CALENDRIER!AD7="x",Labels!$B$118,""),"") ->  | AB148: =IF(WEEKDAY(AB140,2)<=6,IF(CALENDRIER!AE7="x",Labels!$B$118,""),"") ->  | AC148: =IF(WEEKDAY(AC140,2)<=6,IF(CALENDRIER!AF7="x",Labels!$B$118,""),"") ->  | AD148: =IF(WEEKDAY(AD140,2)<=6,IF(CALENDRIER!AG7="x",Labels!$B$118,""),"") ->  | AE148: =IF(WEEKDAY(AE140,2)<=6,IF(CALENDRIER!AH7="x",Labels!$B$118,""),"") ->  | AF148: =IF(WEEKDAY(AF140,2)<=6,IF(CALENDRIER!AI7="x",Labels!$B$118,""),"") ->  | AH148: FT
A149: =$A$19 -> Majoration "jf" | B149: =IF(AND(B148=Labels!$B$118,WEEKDAY(B140,2)<6,B$142<>""),$J$7*SUMPRODUCT(($AM$77:$AQ$77=MOD(B140,7))*$AM$67:$AQ$67)%,"") ->  | C149: =IF(AND(C148=Labels!$B$118,WEEKDAY(C140,2)<6,C$142<>""),$J$7*SUMPRODUCT(($AM$77:$AQ$77=MOD(C140,7))*$AM$67:$AQ$67)%,"") ->  | D149: =IF(AND(D148=Labels!$B$118,WEEKDAY(D140,2)<6,D$142<>""),$J$7*SUMPRODUCT(($AM$77:$AQ$77=MOD(D140,7))*$AM$67:$AQ$67)%,"") ->  | E149: =IF(AND(E148=Labels!$B$118,WEEKDAY(E140,2)<6,E$142<>""),$J$7*SUMPRODUCT(($AM$77:$AQ$77=MOD(E140,7))*$AM$67:$AQ$67)%,"") ->  | F149: =IF(AND(F148=Labels!$B$118,WEEKDAY(F140,2)<6,F$142<>""),$J$7*SUMPRODUCT(($AM$77:$AQ$77=MOD(F140,7))*$AM$67:$AQ$67)%,"") ->  | G149: =IF(AND(G148=Labels!$B$118,WEEKDAY(G140,2)<6,G$142<>""),$J$7*SUMPRODUCT(($AM$77:$AQ$77=MOD(G140,7))*$AM$67:$AQ$67)%,"") ->  | H149: =IF(AND(H148=Labels!$B$118,WEEKDAY(H140,2)<6,H$142<>""),$J$7*SUMPRODUCT(($AM$77:$AQ$77=MOD(H140,7))*$AM$67:$AQ$67)%,"") ->  | I149: =IF(AND(I148=Labels!$B$118,WEEKDAY(I140,2)<6,I$142<>""),$J$7*SUMPRODUCT(($AM$77:$AQ$77=MOD(I140,7))*$AM$67:$AQ$67)%,"") ->  | J149: =IF(AND(J148=Labels!$B$118,WEEKDAY(J140,2)<6,J$142<>""),$J$7*SUMPRODUCT(($AM$77:$AQ$77=MOD(J140,7))*$AM$67:$AQ$67)%,"") ->  | K149: =IF(AND(K148=Labels!$B$118,WEEKDAY(K140,2)<6,K$142<>""),$J$7*SUMPRODUCT(($AM$77:$AQ$77=MOD(K140,7))*$AM$67:$AQ$67)%,"") ->  | L149: =IF(AND(L148=Labels!$B$118,WEEKDAY(L140,2)<6,L$142<>""),$J$7*SUMPRODUCT(($AM$77:$AQ$77=MOD(L140,7))*$AM$67:$AQ$67)%,"") ->  | M149: =IF(AND(M148=Labels!$B$118,WEEKDAY(M140,2)<6,M$142<>""),$J$7*SUMPRODUCT(($AM$77:$AQ$77=MOD(M140,7))*$AM$67:$AQ$67)%,"") ->  | N149: =IF(AND(N148=Labels!$B$118,WEEKDAY(N140,2)<6,N$142<>""),$J$7*SUMPRODUCT(($AM$77:$AQ$77=MOD(N140,7))*$AM$67:$AQ$67)%,"") ->  | O149: =IF(AND(O148=Labels!$B$118,WEEKDAY(O140,2)<6,O$142<>""),$J$7*SUMPRODUCT(($AM$77:$AQ$77=MOD(O140,7))*$AM$67:$AQ$67)%,"") ->  | P149: =IF(AND(P148=Labels!$B$118,WEEKDAY(P140,2)<6,P$142<>""),$J$7*SUMPRODUCT(($AM$77:$AQ$77=MOD(P140,7))*$AM$67:$AQ$67)%,"") ->  | Q149: =IF(AND(Q148=Labels!$B$118,WEEKDAY(Q140,2)<6,Q$142<>""),$J$7*SUMPRODUCT(($AM$77:$AQ$77=MOD(Q140,7))*$AM$67:$AQ$67)%,"") ->  | R149: =IF(AND(R148=Labels!$B$118,WEEKDAY(R140,2)<6,R$142<>""),$J$7*SUMPRODUCT(($AM$77:$AQ$77=MOD(R140,7))*$AM$67:$AQ$67)%,"") ->  | S149: =IF(AND(S148=Labels!$B$118,WEEKDAY(S140,2)<6,S$142<>""),$J$7*SUMPRODUCT(($AM$77:$AQ$77=MOD(S140,7))*$AM$67:$AQ$67)%,"") ->  | T149: =IF(AND(T148=Labels!$B$118,WEEKDAY(T140,2)<6,T$142<>""),$J$7*SUMPRODUCT(($AM$77:$AQ$77=MOD(T140,7))*$AM$67:$AQ$67)%,"") ->  | U149: =IF(AND(U148=Labels!$B$118,WEEKDAY(U140,2)<6,U$142<>""),$J$7*SUMPRODUCT(($AM$77:$AQ$77=MOD(U140,7))*$AM$67:$AQ$67)%,"") ->  | V149: =IF(AND(V148=Labels!$B$118,WEEKDAY(V140,2)<6,V$142<>""),$J$7*SUMPRODUCT(($AM$77:$AQ$77=MOD(V140,7))*$AM$67:$AQ$67)%,"") ->  | W149: =IF(AND(W148=Labels!$B$118,WEEKDAY(W140,2)<6,W$142<>""),$J$7*SUMPRODUCT(($AM$77:$AQ$77=MOD(W140,7))*$AM$67:$AQ$67)%,"") ->  | X149: =IF(AND(X148=Labels!$B$118,WEEKDAY(X140,2)<6,X$142<>""),$J$7*SUMPRODUCT(($AM$77:$AQ$77=MOD(X140,7))*$AM$67:$AQ$67)%,"") ->  | Y149: =IF(AND(Y148=Labels!$B$118,WEEKDAY(Y140,2)<6,Y$142<>""),$J$7*SUMPRODUCT(($AM$77:$AQ$77=MOD(Y140,7))*$AM$67:$AQ$67)%,"") ->  | Z149: =IF(AND(Z148=Labels!$B$118,WEEKDAY(Z140,2)<6,Z$142<>""),$J$7*SUMPRODUCT(($AM$77:$AQ$77=MOD(Z140,7))*$AM$67:$AQ$67)%,"") ->  | AA149: =IF(AND(AA148=Labels!$B$118,WEEKDAY(AA140,2)<6,AA$142<>""),$J$7*SUMPRODUCT(($AM$77:$AQ$77=MOD(AA140,7))*$AM$67:$AQ$67)%,"") ->  | AB149: =IF(AND(AB148=Labels!$B$118,WEEKDAY(AB140,2)<6,AB$142<>""),$J$7*SUMPRODUCT(($AM$77:$AQ$77=MOD(AB140,7))*$AM$67:$AQ$67)%,"") ->  | AC149: =IF(AND(AC148=Labels!$B$118,WEEKDAY(AC140,2)<6,AC$142<>""),$J$7*SUMPRODUCT(($AM$77:$AQ$77=MOD(AC140,7))*$AM$67:$AQ$67)%,"") ->  | AD149: =IF(AND(AD148=Labels!$B$118,WEEKDAY(AD140,2)<6,AD$142<>""),$J$7*SUMPRODUCT(($AM$77:$AQ$77=MOD(AD140,7))*$AM$67:$AQ$67)%,"") ->  | AE149: =IF(AND(AE148=Labels!$B$118,WEEKDAY(AE140,2)<6,AE$142<>""),$J$7*SUMPRODUCT(($AM$77:$AQ$77=MOD(AE140,7))*$AM$67:$AQ$67)%,"") ->  | AF149: =IF(AND(AF148=Labels!$B$118,WEEKDAY(AF140,2)<6,AF$142<>""),$J$7*SUMPRODUCT(($AM$77:$AQ$77=MOD(AF140,7))*$AM$67:$AQ$67)%,"") ->  | AG149: =SUM(B149:AF149) -> 0 | AH149: [06]
A150: =$A$20 -> total quotidien | B150: =SUM(B145:B147) -> 0 | C150: =SUM(C145:C147) -> 0 | D150: 0 | E150: 0 | F150: 0 | G150: 0 | H150: 0 | I150: 0 | J150: 0 | K150: 0 | L150: 0 | M150: 0 | N150: 0 | O150: 0 | P150: 0 | Q150: 0 | R150: 0 | S150: 0 | T150: 0 | U150: 0 | V150: 0 | W150: 0 | X150: 0 | Y150: 0 | Z150: 0 | AA150: 0 | AB150: 0 | AC150: 0 | AD150: 0 | AE150: 0 | AF150: 0 | AH150: TT
A151: =$A$21 -> . | AH151: R
A152: =$A$22 -> . | AH152: R
A153: =$A$23 -> transition mois | B153: =IF(WEEKDAY(B140)=1,TEXT(B140-1,"MMM"&Labels!B13),"") ->  | AF153: =IF(AND(WEEKDAY(AF140)>1,WEEKDAY(AF140)<7),TEXT(DATE($B$5,MONTH(AF140)+1,1),"MMM"&Labels!B13),"") -> avr. | AH153: MNT
A154: =$A$24 -> Total hebdomadaire | B154: =IF(WEEKDAY(B140)=7,SUMIF($B76:$AF76,B141,$B85:$AF85)+SUMIF($B141:$AF141,B141,$B150:$AF150)+SUMIF($B206:$AF206,B141,$B215:$AF215),B153) ->  | C154: =IF(WEEKDAY(C140)=7,SUMIF($B76:$AF76,C141,$B85:$AF85)+SUMIF($B141:$AF141,C141,$B150:$AF150)+SUMIF($B206:$AF206,C141,$B215:$AF215),"") ->  | E154: 0 | L154: 0 | S154: 0 | Z154: 0 | AF154: =IF(WEEKDAY(AF140)=7,SUMIF($B76:$AF76,AF141,$B85:$AF85)+SUMIF($B141:$AF141,AF141,$B150:$AF150)+SUMIF($B206:$AF206,AF141,$B215:$AF215),AF153) -> avr. | AH154: WT
A155: =$A$25 -> Majorations temp. 1) | B155: =IF(B162="FALSCH","",B162) ->  | C155: =IF(C162="FALSCH","",C162) ->  | AG155: =SUM(B155:AF155) -> 0 | AH155: [07]
A156: =$A$26 -> Majorations temp. 2) | B156: =IF((B145+B147)=0,"",SUM(B145,B147)) ->  | C156: =IF((C145+C147)=0,"",SUM(C145,C147)) ->  | AG156: 0 | AH156: [08]
A157: =$A$27 -> Majorations temp. 3) | B157: =SUM(B158:B161) -> 0 | C157: =SUM(C158:C161) -> 0 | D157: 0 | E157: 0 | F157: 0 | G157: 0 | H157: 0 | I157: 0 | J157: 0 | K157: 0 | L157: 0 | M157: 0 | N157: 0 | O157: 0 | P157: 0 | Q157: 0 | R157: 0 | S157: 0 | T157: 0 | U157: 0 | V157: 0 | W157: 0 | X157: 0 | Y157: 0 | Z157: 0 | AA157: 0 | AB157: 0 | AC157: 0 | AD157: 0 | AE157: 0 | AF157: 0 | AG157: 0 | AH157: [09]
A158: =$A$28 -> Dimanche journée | B158: =IF(WEEKDAY(B140)=1,B146,"") ->  | C158: =IF(WEEKDAY(C140)=1,C146,"") ->  | F158: 0 | M158: 0 | T158: 0 | AA158: 0 | AG158: 0 | AH158: [09-ST]
A159: =$A$29 -> Dimanche nuit | B159: =IF(WEEKDAY(B140)=1,SUM(B145+B147),"") ->  | C159: =IF(WEEKDAY(C140)=1,SUM(C145+C147),"") ->  | F159: 0 | M159: 0 | T159: 0 | AA159: 0 | AG159: 0 | AH159: [09-SN]
A160: =$A$30 -> jf-jomajoration | B160: =IF(B148=Labels!$B$118,B146,"") ->  | C160: =IF(C148=Labels!$B$118,C146,"") ->  | D160: =IF(D148=Labels!$B$118,D146,"") ->  | E160: =IF(E148=Labels!$B$118,E146,"") ->  | F160: =IF(F148=Labels!$B$118,F146,"") ->  | G160: =IF(G148=Labels!$B$118,G146,"") ->  | H160: =IF(H148=Labels!$B$118,H146,"") ->  | I160: =IF(I148=Labels!$B$118,I146,"") ->  | J160: =IF(J148=Labels!$B$118,J146,"") ->  | K160: =IF(K148=Labels!$B$118,K146,"") ->  | L160: =IF(L148=Labels!$B$118,L146,"") ->  | M160: =IF(M148=Labels!$B$118,M146,"") ->  | N160: =IF(N148=Labels!$B$118,N146,"") ->  | O160: =IF(O148=Labels!$B$118,O146,"") ->  | P160: =IF(P148=Labels!$B$118,P146,"") ->  | Q160: =IF(Q148=Labels!$B$118,Q146,"") ->  | R160: =IF(R148=Labels!$B$118,R146,"") ->  | S160: =IF(S148=Labels!$B$118,S146,"") ->  | T160: =IF(T148=Labels!$B$118,T146,"") ->  | U160: =IF(U148=Labels!$B$118,U146,"") ->  | V160: =IF(V148=Labels!$B$118,V146,"") ->  | W160: =IF(W148=Labels!$B$118,W146,"") ->  | X160: =IF(X148=Labels!$B$118,X146,"") ->  | Y160: =IF(Y148=Labels!$B$118,Y146,"") ->  | Z160: =IF(Z148=Labels!$B$118,Z146,"") ->  | AA160: =IF(AA148=Labels!$B$118,AA146,"") ->  | AB160: =IF(AB148=Labels!$B$118,AB146,"") ->  | AC160: =IF(AC148=Labels!$B$118,AC146,"") ->  | AD160: =IF(AD148=Labels!$B$118,AD146,"") ->  | AE160: =IF(AE148=Labels!$B$118,AE146,"") ->  | AF160: =IF(AF148=Labels!$B$118,AF146,"") ->  | AG160: 0 | AH160: [09-FT]
A161: =$A$31 -> jf-numajoration | B161: =IF(B148=Labels!$B$118,SUM(B145,B147),"") ->  | C161: =IF(C148=Labels!$B$118,SUM(C145,C147),"") ->  | D161: =IF(D148=Labels!$B$118,SUM(D145,D147),"") ->  | E161: =IF(E148=Labels!$B$118,SUM(E145,E147),"") ->  | F161: =IF(F148=Labels!$B$118,SUM(F145,F147),"") ->  | G161: =IF(G148=Labels!$B$118,SUM(G145,G147),"") ->  | H161: =IF(H148=Labels!$B$118,SUM(H145,H147),"") ->  | I161: =IF(I148=Labels!$B$118,SUM(I145,I147),"") ->  | J161: =IF(J148=Labels!$B$118,SUM(J145,J147),"") ->  | K161: =IF(K148=Labels!$B$118,SUM(K145,K147),"") ->  | L161: =IF(L148=Labels!$B$118,SUM(L145,L147),"") ->  | M161: =IF(M148=Labels!$B$118,SUM(M145,M147),"") ->  | N161: =IF(N148=Labels!$B$118,SUM(N145,N147),"") ->  | O161: =IF(O148=Labels!$B$118,SUM(O145,O147),"") ->  | P161: =IF(P148=Labels!$B$118,SUM(P145,P147),"") ->  | Q161: =IF(Q148=Labels!$B$118,SUM(Q145,Q147),"") ->  | R161: =IF(R148=Labels!$B$118,SUM(R145,R147),"") ->  | S161: =IF(S148=Labels!$B$118,SUM(S145,S147),"") ->  | T161: =IF(T148=Labels!$B$118,SUM(T145,T147),"") ->  | U161: =IF(U148=Labels!$B$118,SUM(U145,U147),"") ->  | V161: =IF(V148=Labels!$B$118,SUM(V145,V147),"") ->  | W161: =IF(W148=Labels!$B$118,SUM(W145,W147),"") ->  | X161: =IF(X148=Labels!$B$118,SUM(X145,X147),"") ->  | Y161: =IF(Y148=Labels!$B$118,SUM(Y145,Y147),"") ->  | Z161: =IF(Z148=Labels!$B$118,SUM(Z145,Z147),"") ->  | AA161: =IF(AA148=Labels!$B$118,SUM(AA145,AA147),"") ->  | AB161: =IF(AB148=Labels!$B$118,SUM(AB145,AB147),"") ->  | AC161: =IF(AC148=Labels!$B$118,SUM(AC145,AC147),"") ->  | AD161: =IF(AD148=Labels!$B$118,SUM(AD145,AD147),"") ->  | AE161: =IF(AE148=Labels!$B$118,SUM(AE145,AE147),"") ->  | AF161: =IF(AF148=Labels!$B$118,SUM(AF145,AF147),"") ->  | AG161: 0 | AH161: [09-FN]
A162: =$A$32 -> majoration caché (total hebd.) | B162: =IF($B137>=80,IF(OR(ISTEXT(B154),B154="",B154<$B$7),"",ROUND(((B154-$B$7)*25%)/25,4)*25),IF(B150>($B$7/5),ROUND(((B150-($B$7/5))*25%)/25,4)*25,"")) ->  | C162: =IF($B137>=80,IF(OR(ISTEXT(C154),C154="",C154<$B$7),"",ROUND(((C154-$B$7)*25%)/25,4)*25),IF(C150>($B$7/5),ROUND(((C150-($B$7/5))*25%)/25,4)*25,"")) ->  | AG162: =AG146 -> 0 | AH162: [03]
B163: =$B$33 -> 1) 25% majoration temporelle pour depassement les heures maximales | L163: =$L$33 -> 2) 100% majoration temporelle pour travail de nuit | T163: =$T$33 -> Saisie des heures payées l'année passée | AG163: =SUM(AG145+AG147) -> 0 | AH163: [4-5]
B164: =$B$34 -> 3) 100% majoration temporelle pour travail du dimanche et jour férié | T164: =$T$34 -> Saisie des heures payées exercice en cours (heures supplémentaires) | AG164: =SUM(AG145:AG147) -> 0 | AH164: [3-5]
A165: =$A$35 -> Notes | AG165: =SUM(AG143:AG157) -> 0 | AH165: [10]
AG166: =AG142 -> 184 | AH166: [00]
A167: =IF(AG879=0,"","effektives Pensum: "&ROUND(COUNT(B142:AF142)/(AG879+COUNT(B142:AF142))%*B137%*20,0)/20&" %") ->  | AG167: =SUM(AG165-AG166) -> -184 | AH167: [11]
A169: =Labels!$B$103 -> Résumé | G169: =Labels!$B$77 -> Jan | I169: =Labels!$B$78 -> Fév | K169: =Labels!$B$79 -> Mar | M169: =Labels!$B$80 -> Avr | O169: =Labels!$B$81 -> Mai | Q169: =Labels!$B$82 -> Jun | S169: =Labels!$B$83 -> Jul | U169: =Labels!$B$84 -> Aoû | W169: =Labels!$B$85 -> Sep | Y169: =Labels!$B$86 -> Oct | AA169: =Labels!$B$87 -> Nov | AC169: =Labels!$B$88 -> Déc | AE169: =Labels!$B$101 -> Année
A170: =Labels!$B$20 -> Emploi % | G170: =IF($B$4=0,0,$B$4) -> 100 | I170: =IF($B$72=0,0,$B$72) -> 100 | K170: =IF($B$137=0,0,$B$137) -> 100 | M170: =IF($B$202=0,0,$B$202) -> 100 | O170: =IF($B$267=0,0,$B$267) -> 100 | Q170: =IF($B$332=0,0,$B$332) -> 100 | S170: =IF($B$397=0,0,$B$397) -> 100 | U170: =IF($B$462=0,0,$B$462) -> 100 | W170: =IF($B$527=0,0,$B$527) -> 100 | Y170: =IF($B$592=0,0,$B$592) -> 100 | AA170: =IF($B$657=0,0,$B$657) -> 100 | AC170: =IF($B$722=0,0,$B$722) -> 100
A171: =Labels!$B$104 -> Heures théoriques selon CCT | G171: =IF($AG$36=0,0,$AG$36) -> 176 | I171: =IF($AG$101=0,0,$AG$101) -> 160 | K171: =IF($AG$142=0,0,$AG$142) -> 184 | M171: =IF($AG$231=0,0,$AG$231) -> 160 | O171: =IF($AG$296=0,0,$AG$296) -> 184 | Q171: =IF($AG$361=0,0,$AG$361) -> 176 | S171: =IF($AG$426=0,0,$AG$426) -> 168 | U171: =IF($AG$491=0,0,$AG$491) -> 184 | W171: =IF($AG$556=0,0,$AG$556) -> 168 | Y171: =IF($AG$621=0,0,$AG$621) -> 176 | AA171: =IF($AG$686=0,0,$AG$686) -> 176 | AC171: =IF($AG$751=0,0,$AG$751) -> 168 | AE171: =SUM(G171:AD171) -> 2080
A172: =Labels!$B$105 -> Total heures productives | B172: =Labels!$B$106 -> 06.00 - 20.00 h | G172: =IF($AG$32=0,0,$AG$32) -> 0 | I172: =IF($AG$96=0,0,$AG$96) -> 0 | K172: =IF($AG$161=0,0,$AG$161) -> 0 | M172: =IF($AG$226=0,0,$AG$226) -> 0 | O172: =IF($AG$291=0,0,$AG$291) -> 0 | Q172: =IF($AG$356=0,0,$AG$356) -> 0 | S172: =IF($AG$421=0,0,$AG$421) -> 0 | U172: =IF($AG$486=0,0,$AG$486) -> 0 | W172: =IF($AG$551=0,0,$AG$551) -> 0 | Y172: =IF($AG$616=0,0,$AG$616) -> 0 | AA172: =IF($AG$681=0,0,$AG$681) -> 0 | AC172: =IF($AG$746=0,0,$AG$746) -> 0 | AE172: =SUM(G172:AD172) -> 0
B173: =Labels!$B$107 -> nuit, dimanche et jour férié | G173: =IF($AG$33=0,0,$AG$33) -> 0 | I173: =IF($AG$97=0,0,$AG$97) -> 0 | K173: =IF($AG$162=0,0,$AG$162) -> 0 | M173: =IF($AG$227=0,0,$AG$227) -> 0 | O173: =IF($AG$292=0,0,$AG$292) -> 0 | Q173: =IF($AG$357=0,0,$AG$357) -> 0 | S173: =IF($AG$422=0,0,$AG$422) -> 0 | U173: =IF($AG$487=0,0,$AG$487) -> 0 | W173: =IF($AG$552=0,0,$AG$552) -> 0 | Y173: =IF($AG$617=0,0,$AG$617) -> 0 | AA173: =IF($AG$682=0,0,$AG$682) -> 0 | AC173: =IF($AG$747=0,0,$AG$747) -> 0 | AE173: =SUM(G173:AD173) -> 0
A174: =Labels!$B$108 -> Majorations temporelles | B174: =Labels!$B$109 -> depassement des heures maximales | G174: =IF($AG$25=0,0,$AG$25) -> 0 | I174: =IF($AG$89=0,0,$AG$89) -> 0 | K174: =IF($AG$154=0,0,$AG$154) -> 0 | M174: =IF($AG$219=0,0,$AG$219) -> 0 | O174: =IF($AG$284=0,0,$AG$284) -> 0 | Q174: =IF($AG$349=0,0,$AG$349) -> 0 | S174: =IF($AG$414=0,0,$AG$414) -> 0 | U174: =IF($AG$479=0,0,$AG$479) -> 0 | W174: =IF($AG$544=0,0,$AG$544) -> 0 | Y174: =IF($AG$609=0,0,$AG$609) -> 0 | AA174: =IF($AG$674=0,0,$AG$674) -> 0 | AC174: =IF($AG$739=0,0,$AG$739) -> 0 | AE174: =SUM(G174:AD174) -> 0
B175: =Labels!$B$110 -> nuit, dimanche et jour férié | G175: =IF($AJ$23=0,0,$AJ$23) -> 0 | I175: =IF($AK$23=0,0,$AK$23) -> 0 | K175: =IF($AL$23=0,0,$AL$23) -> 0 | M175: =IF($AM$23=0,0,$AM$23) -> 0 | O175: =IF($AN$23=0,0,$AN$23) -> 0 | Q175: =IF($AO$23=0,0,$AO$23) -> 0 | S175: =IF($AP$23=0,0,$AP$23) -> 0 | U175: =IF($AQ$23=0,0,$AQ$23) -> 0 | W175: =IF($AR$23=0,0,$AR$23) -> 0 | Y175: =IF($AS$23=0,0,$AS$23) -> 0 | AA175: =IF($AT$23=0,0,$AT$23) -> 0 | AC175: =IF($AU$23=0,0,$AU$23) -> 0 | AE175: =SUM(G175:AD175) -> 0
A176: =Labels!$B$111 -> Heures inproductives
A177: =Labels!$B$112 -> Absences art. 11 CCT | F177: =Labels!$B$113 -> ab | G177: =IF($AJ$3=0,0,$AJ$3) -> 0 | I177: =IF($AK$3=0,0,$AK$3) -> 0 | K177: =IF($AL$3=0,0,$AL$3) -> 0 | M177: =IF($AM$3=0,0,$AM$3) -> 0 | O177: =IF($AN$3=0,0,$AN$3) -> 0 | Q177: =IF($AO$3=0,0,$AO$3) -> 0 | S177: =IF($AP$3=0,0,$AP$3) -> 0 | U177: =IF($AQ$3=0,0,$AQ$3) -> 0 | W177: =IF($AR$3=0,0,$AR$3) -> 0 | Y177: =IF($AS$3=0,0,$AS$3) -> 0 | AA177: =IF(AT$3=0,0,$AT$3) -> 0 | AC177: =IF($AU$3=0,0,$AU$3) -> 0 | AE177: =IF($AV$3=0,0,$AV$3) -> 0
A178: =Labels!$B$114 -> Vacances art. 12.1 CCT | F178: =Labels!$B$115 -> va | G178: =IF($AJ$4=0,0,$AJ$4) -> 0 | I178: =IF($AK$4=0,0,$AK$4) -> 0 | K178: =IF($AL$4=0,0,$AL$4) -> 0 | M178: =IF($AM$4=0,0,$AM$4) -> 0 | O178: =IF($AN$4=0,0,$AN$4) -> 0 | Q178: =IF($AO$4=0,0,$AO$4) -> 0 | S178: =IF($AP$4=0,0,$AP$4) -> 0 | U178: =IF($AQ$4=0,0,$AQ$4) -> 0 | W178: =IF($AR$4=0,0,$AR$4) -> 0 | Y178: =IF($AS$4=0,0,$AS$4) -> 0 | AA178: =IF($AT$4=0,0,$AT$4) -> 0 | AC178: =IF($AU$4=0,0,$AU$4) -> 0 | AE178: =IF($AV$4=0,0,$AV$4) -> 0
A179: =Labels!$B$181 -> vacances non payées | F179: =Labels!$B$182 -> vn | G179: =IF($AJ$13=0,0,$AJ$13) -> 0 | I179: =IF($AK$13=0,0,$AK$13) -> 0 | K179: =IF($AL$13=0,0,$AL$13) -> 0 | M179: =IF($AM$13=0,0,$AM$13) -> 0 | O179: =IF($AN$13=0,0,$AN$13) -> 0 | Q179: =IF($AO$13=0,0,$AO$13) -> 0 | S179: =IF($AP$13=0,0,$AP$13) -> 0 | U179: =IF($AQ$13=0,0,$AQ$13) -> 0 | W179: =IF($AR$13=0,0,$AR$13) -> 0 | Y179: =IF($AS$13=0,0,$AS$13) -> 0 | AA179: =IF($AT$13=0,0,$AT$13) -> 0 | AC179: =IF($AU$13=0,0,$AU$13) -> 0 | AE179: =IF($AV$13=0,0,$AV$13) -> 0
A180: =Labels!$B$116 -> Jours fériés art. 12.2 CCT | C180: =IF($AJ$20="","",$AJ$20) ->  | F180: =Labels!$B$118 -> jf | G180: =IF($AJ$18=0,0,$AJ$18) -> 0 | I180: =IF($AK$18=0,0,$AK$18) -> 0 | K180: =IF($AL$18=0,0,$AL$18) -> 0 | M180: =IF($AM$18=0,0,$AM$18) -> 0 | O180: =IF($AN$18=0,0,$AN$18) -> 0 | Q180: =IF($AO$18=0,0,$AO$18) -> 0 | S180: =IF($AP$18=0,0,$AP$18) -> 0 | U180: =IF($AQ$18=0,0,$AQ$18) -> 0 | W180: =IF($AR$18=0,0,$AR$18) -> 0 | Y180: =IF($AS$18=0,0,$AS$18) -> 0 | AA180: =IF($AT$18=0,0,$AT$18) -> 0 | AC180: =IF($AU$18=0,0,$AU$18) -> 0 | AE180: =IF($AV$18=0,0,$AV$18) -> 0
A181: =Labels!$B$119 -> Maladie art. 13 CCT | F181: =Labels!$B$120 -> ma | G181: =IF($AJ$5=0,0,$AJ$5) -> 0 | I181: =IF($AK$5=0,0,$AK$5) -> 0 | K181: =IF($AL$5=0,0,$AL$5) -> 0 | M181: =IF($AM$5=0,0,$AM$5) -> 0 | O181: =IF($AN$5=0,0,$AN$5) -> 0 | Q181: =IF($AO$5=0,0,$AO$5) -> 0 | S181: =IF($AP$5=0,0,$AP$5) -> 0 | U181: =IF($AQ$5=0,0,$AQ$5) -> 0 | W181: =IF($AR$5=0,0,$AR$5) -> 0 | Y181: =IF($AS$5=0,0,$AS$5) -> 0 | AA181: =IF($AT$5=0,0,$AT$5) -> 0 | AC181: =IF($AU$5=0,0,$AU$5) -> 0 | AE181: =IF($AV$5=0,0,$AV$5) -> 0
A182: =Labels!$B$184 -> non payeé | G182: =IF(AJ$16=0,0,AJ$16) -> 0 | I182: =IF($AK$16=0,0,$AK$16) -> 0 | K182: =IF($AL$16=0,0,$AL$16) -> 0 | M182: =IF($AM$16=0,0,$AM$16) -> 0 | O182: =IF($AN$16=0,0,$AN$16) -> 0 | Q182: =IF($AO$16=0,0,$AO$16) -> 0 | S182: =IF($AP$16=0,0,$AP$16) -> 0 | U182: =IF($AQ$16=0,0,$AQ$16) -> 0 | W182: =IF($AR$16=0,0,$AR$16) -> 0 | Y182: =IF($AS$16=0,0,$AS$16) -> 0 | AA182: =IF($AT$16=0,0,$AT$16) -> 0 | AC182: =IF($AU$16=0,0,$AU$16) -> 0 | AE182: =IF($AV$16=0,0,$AV$16) -> 0
A183: =Labels!$B$121 -> Accident art. 14 CCT | F183: =Labels!$B$122 -> ac | G183: =IF($AJ$6=0,0,$AJ$6) -> 0 | I183: =IF($AK$6=0,0,$AK$6) -> 0 | K183: =IF($AL$6=0,0,$AL$6) -> 0 | M183: =IF($AM$6=0,0,$AM$6) -> 0 | O183: =IF($AN$6=0,0,$AN$6) -> 0 | Q183: =IF($AO$6=0,0,$AO$6) -> 0 | S183: =IF($AP$6=0,0,$AP$6) -> 0 | U183: =IF($AQ$6=0,0,$AQ$6) -> 0 | W183: =IF($AR$6=0,0,$AR$6) -> 0 | Y183: =IF($AS$6=0,0,$AS$6) -> 0 | AA183: =IF($AT$6=0,0,$AT$6) -> 0 | AC183: =IF($AU$6=0,0,$AU$6) -> 0 | AE183: =IF($AV$6=0,0,$AV$6) -> 0
A184: =Labels!$B$123 -> Grossesse/Maternité art. 15 CCT | F184: =Labels!$B$124 -> gm | G184: =IF($AJ$7=0,0,$AJ$7) -> 0 | I184: =IF($AK$7=0,0,$AK$7) -> 0 | K184: =IF($AL$7=0,0,$AL$7) -> 0 | M184: =IF($AM$7=0,0,$AM$7) -> 0 | O184: =IF($AN$7=0,0,$AN$7) -> 0 | Q184: =IF($AO$7=0,0,$AO$7) -> 0 | S184: =IF($AP$7=0,0,$AP$7) -> 0 | U184: =IF($AQ$7=0,0,$AQ$7) -> 0 | W184: =IF($AR$7=0,0,$AR$7) -> 0 | Y184: =IF($AS$7=0,0,$AS$7) -> 0 | AA184: =IF($AT$7=0,0,$AT$7) -> 0 | AC184: =IF($AU$7=0,0,$AU$7) -> 0 | AE184: =IF($AV$7=0,0,$AV$7) -> 0
A185: =Labels!$B$125 -> Militaire/Promotion/Protection civile art. 16 CCT | F185: =Labels!$B$126 -> mi | G185: =IF($AJ$8=0,0,$AJ$8) -> 0 | I185: =IF($AK$8=0,0,$AK$8) -> 0 | K185: =IF($AL$8=0,0,$AL$8) -> 0 | M185: =IF($AM$8=0,0,$AM$8) -> 0 | O185: =IF($AN$8=0,0,$AN$8) -> 0 | Q185: =IF($AO$8=0,0,$AO$8) -> 0 | S185: =IF($AP$8=0,0,$AP$8) -> 0 | U185: =IF($AQ$8=0,0,$AQ$8) -> 0 | W185: =IF($AR$8=0,0,$AR$8) -> 0 | Y185: =IF($AS$8=0,0,$AS$8) -> 0 | AA185: =IF($AT$8=0,0,$AT$8) -> 0 | AC185: =IF($AU$8=0,0,$AU$8) -> 0 | AE185: =IF($AV$8=0,0,$AV$8) -> 0
A186: =Labels!$B$127 -> Chômage partiel et perte de travail cause d'intempéries | F186: =Labels!$B$128 -> ch | G186: =IF($AJ$11=0,0,$AJ$11) -> 0 | I186: =IF($AK$11=0,0,$AK$11) -> 0 | K186: =IF($AL$11=0,0,$AL$11) -> 0 | M186: =IF($AM$11=0,0,$AM$11) -> 0 | O186: =IF($AN$11=0,0,$AN$11) -> 0 | Q186: =IF($AO$11=0,0,$AO$11) -> 0 | S186: =IF($AP$11=0,0,$AP$11) -> 0 | U186: =IF($AQ$11=0,0,$AQ$11) -> 0 | W186: =IF($AR$11=0,0,$AR$11) -> 0 | Y186: =IF($AS$11=0,0,$AS$11) -> 0 | AA186: =IF($AT$11=0,0,$AT$11) -> 0 | AC186: =IF($AU$11=0,0,$AU$11) -> 0 | AE186: =IF($AV$11=0,0,$AV$11) -> 0
A187: =Labels!$B$129 -> Ecole professionnelle | F187: =Labels!$B$130 -> ep | G187: =IF($AJ$9=0,0,$AJ$9) -> 0 | I187: =IF($AK$9=0,0,$AK$9) -> 0 | K187: =IF($AL$9=0,0,$AL$9) -> 0 | M187: =IF($AM$9=0,0,$AM$9) -> 0 | O187: =IF($AN$9=0,0,$AN$9) -> 0 | Q187: =IF($AO$9=0,0,$AO$9) -> 0 | S187: =IF($AP$9=0,0,$AP$9) -> 0 | U187: =IF($AQ$9=0,0,$AQ$9) -> 0 | W187: =IF($AR$9=0,0,$AR$9) -> 0 | Y187: =IF($AS$9=0,0,$AS$9) -> 0 | AA187: =IF($AT$9=0,0,$AT$9) -> 0 | AC187: =IF($AU$9=0,0,$AU$9) -> 0 | AE187: =IF($AV$9=0,0,$AV$9) -> 0
A188: =Labels!$B$131 -> Cours | F188: =Labels!$B$132 -> co | G188: =IF($AJ$10=0,0,$AJ$10) -> 0 | I188: =IF($AK$10=0,0,$AK$10) -> 0 | K188: =IF($AL$10=0,0,$AL$10) -> 0 | M188: =IF($AM$10=0,0,$AM$10) -> 0 | O188: =IF($AN$10=0,0,$AN$10) -> 0 | Q188: =IF($AO$10=0,0,$AO$10) -> 0 | S188: =IF($AP$10=0,0,$AP$10) -> 0 | U188: =IF($AQ$10=0,0,$AQ$10) -> 0 | W188: =IF($AR$10=0,0,$AR$10) -> 0 | Y188: =IF($AS$10=0,0,$AS$10) -> 0 | AA188: =IF($AT$10=0,0,$AT$10) -> 0 | AC188: =IF($AU$10=0,0,$AU$10) -> 0 | AE188: =IF($AV$10=0,0,$AV$10) -> 0
A189: =Labels!$B$133 -> Heures de compensation | B189: =Labels!$B$134 -> de l'année passée | F189: =Labels!$B$135 -> cp | G189: =IF($AJ$12=0,0,$AJ$12) -> 0 | I189: =IF($AK$12=0,0,$AK$12) -> 0 | K189: =IF($AL$12=0,0,$AL$12) -> 0 | M189: =IF($AM$12=0,0,$AM$12) -> 0 | O189: =IF($AN$12=0,0,$AN$12) -> 0 | Q189: =IF($AO$12=0,0,$AO$12) -> 0 | S189: =IF($AP$12=0,0,$AP$12) -> 0 | U189: =IF($AQ$12=0,0,$AQ$12) -> 0 | W189: =IF($AR$12=0,0,$AR$12) -> 0 | AE189: =IF($AV$12=0,0,$AV$12) -> 0
B190: =Labels!$B$136 -> de l'année en cours (contrôle) | F190: =Labels!$B$137 -> cc | G190: =IF($AJ$15=0,0,$AJ$15) -> 0 | I190: =IF($AK$15=0,0,$AK$15) -> 0 | K190: =IF($AL$15=0,0,$AL$15) -> 0 | M190: =IF($AM$15=0,0,$AM$15) -> 0 | O190: =IF($AN$15=0,0,$AN$15) -> 0 | Q190: =IF($AO$15=0,0,$AO$15) -> 0 | S190: =IF($AP$15=0,0,$AP$15) -> 0 | U190: =IF($AQ$15=0,0,$AQ$15) -> 0 | W190: =IF($AR$15=0,0,$AR$15) -> 0 | Y190: =IF($AS$15=0,0,$AS$15) -> 0 | AA190: =IF($AT$15=0,0,$AT$15) -> 0 | AC190: =IF($AU$15=0,0,$AU$15) -> 0 | AE190: =IF($AV$15=0,0,$AV$15) -> 0
A191: =Labels!$B$138 -> Paiement des heures | B191: =Labels!$B$139 -> de l'année passée | G191: =IF($AJ$21=0,0,$AJ$21) -> 0 | I191: =IF($AK$21=0,0,$AK$21) -> 0 | K191: =IF($AL$21=0,0,$AL$21) -> 0 | M191: =IF($AM$21=0,0,$AM$21) -> 0 | O191: =IF($AN$21=0,0,$AN$21) -> 0 | Q191: =IF($AO$21=0,0,$AO$21) -> 0 | S191: =IF($AP$21=0,0,$AP$21) -> 0 | U191: =IF($AQ$21=0,0,$AQ$21) -> 0 | W191: =IF($AR$21=0,0,$AR$21) -> 0 | AE191: =IF($AV$21=0,0,$AV$21) -> 0
A192: =Labels!$B$140 -> Différence en heures | B192: =Labels!$B$141 -> après compensation et paiement | G192: =IF(ROUND($P$4,3)=0,0,$P$4-G189-G191) -> 0 | I192: =IF(ROUND(G192,3)=0,0,G192-(SUM(I189+I191))) -> 0 | K192: =IF(ROUND(I192,3)=0,0,I192-K191-K189) -> 0 | M192: =IF(ROUND(K192,3)=0,0,K192-(SUM(M191+M189))) -> 0 | O192: =IF(ROUND(M192,3)=0,0,M192-(SUM(O191+O189))) -> 0 | Q192: =IF(ROUND(O192,3)=0,0,O192-(SUM(Q191+Q189))) -> 0 | S192: =IF(ROUND(Q192,3)=0,0,Q192-(SUM(S191+S189))) -> 0 | U192: =IF(ROUND(S192,3)=0,0,S192-(SUM(U191+U189))) -> 0 | W192: =IF(ROUND(U192,3)=0,0,U192-(SUM(W191+W189))) -> 0 | Y192: =IF($W$62<0.1,"",AY174) -> 
A193: =Labels!$B$138 -> Paiement des heures | B193: =Labels!$B$142 -> de l'année en cours | G193: =IF($AJ$22=0,0,$AJ$22) -> 0 | I193: =IF($AK$22=0,0,$AK$22) -> 0 | K193: =IF($AL$22=0,0,$AL$22) -> 0 | M193: =IF($AM$22=0,0,$AM$22) -> 0 | O193: =IF($AN$22=0,0,$AN$22) -> 0 | Q193: =IF($AO$22=0,0,$AO$22) -> 0 | S193: =IF($AP$22=0,0,$AP$22) -> 0 | U193: =IF($AQ$22=0,0,$AQ$22) -> 0 | W193: =IF($AR$22=0,0,$AR$22) -> 0 | Y193: =IF($AS$22=0,0,$AS$22) -> 0 | AA193: =IF($AT$22=0,0,$AT$22) -> 0 | AC193: =IF($AU$22=0,0,$AU$22) -> 0 | AE193: =IF($AV$22=0,0,$AV$22) -> 0
A194: =Labels!$B$143 -> Heures manquantes | B194: =Labels!$B$144 -> de l'année en cours (contrôle) | F194: =Labels!$B$145 -> hm | G194: =IF($AJ$14=0,0,$AJ$14) -> 0 | I194: =IF($AK$14=0,0,$AK$14) -> 0 | K194: =IF($AL$14=0,0,$AL$14) -> 0 | M194: =IF($AM$14=0,0,$AM$14) -> 0 | O194: =IF($AN$14=0,0,$AN$14) -> 0 | Q194: =IF($AO$14=0,0,$AO$14) -> 0 | S194: =IF($AP$14=0,0,$AP$14) -> 0 | U194: =IF($AQ$14=0,0,$AQ$14) -> 0 | W194: =IF($AR$14=0,0,$AR$14) -> 0 | Y194: =IF($AS$14=0,0,$AS$14) -> 0 | AA194: =IF($AT$14=0,0,$AT$14) -> 0 | AC194: =IF($AU$14=0,0,$AU$14) -> 0 | AE194: =IF($AV$14=0,0,$AV$14) -> 0
A195: =Labels!$B$146 -> Total (majorations inclus) | B195: =Labels!$B$147 -> heures productives et inproductives | G195: =IF($AG$35=0,0,$AG$35) -> 0 | I195: =IF($AG$100=0,0,$AG$100) -> 0 | K195: =IF($AG$165=0,0,$AG$165) -> 0 | M195: =IF($AG$230=0,0,$AG$230) -> 0 | O195: =IF($AG$295=0,0,$AG$295) -> 0 | Q195: =IF($AG$360=0,0,$AG$360) -> 0 | S195: =IF($AG$425=0,0,$AG$425) -> 0 | U195: =IF($AG$490=0,0,$AG$490) -> 0 | W195: =IF($AG$555=0,0,$AG$555) -> 0 | Y195: =IF($AG$620=0,0,$AG$620) -> 0 | AA195: =IF($AG$685=0,0,$AG$685) -> 0 | AC195: =IF($AG$750=0,0,$AG$750) -> 0 | AE195: =SUM($G$65:$AD$65) -> 0
A196: =Labels!$B$148 -> Comparaison des heures | B196: =Labels!$B$149 -> aux heures théorique CCT (heures manquantes de l'année passée incl.) | G196: =IF($AG$37=0,0,$AG$37)-$AE$34+$P$5 -> -176 | I196: =IF($AG$102=0,0,$AG$102)-$AE$99 -> -160 | K196: =IF($AG$167=0,0,$AG$167)-$AE$164 -> -184 | M196: =IF($AG$232=0,0,$AG$232)-$AE$229 -> -160 | O196: =IF($AG$297=0,0,$AG$297)-$AE$294 -> -184 | Q196: =IF($AG$362=0,0,$AG$362)-$AE$359 -> -176 | S196: =IF($AG$427=0,0,$AG$427)-$AE$424 -> -168 | U196: =IF($AG$492=0,0,$AG$492)-$AE$489 -> -184 | W196: =IF($AG$557=0,0,$AG$557)-$AE$554 -> -168 | Y196: =IF($AG$622=0,0,$AG$622)-$AE$619 -> -176 | AA196: =IF($AG$687=0,0,$AG$687)-$AE$684 -> -176 | AC196: =IF($AG$752=0,0,$AG$752)-$AE$749 -> -168 | AE196: =SUM($G$66:$AD$66) -> -2080
B197: =Labels!$B$151 -> aux heures théorique (cumulées) | G197: =IF(G170=0,0,$G$66) -> -176 | I197: =IF(I170=0,0,SUM($G$66:$J$66)) -> -336 | K197: =IF(K170=0,0,SUM($G$66:$L$66)) -> -520 | M197: =IF(M170=0,0,SUM($G$66:$N$66)) -> -680 | O197: =IF(O170=0,0,SUM($G$66:$P$66)) -> -864 | Q197: =IF(Q170=0,0,SUM($G$66:$R$66)) -> -1040 | S197: =IF(S170=0,0,SUM($G$66:$T$66)) -> -1208 | U197: =IF(U170=0,0,SUM($G$66:$V$66)) -> -1392 | W197: =IF(W170=0,0,SUM($G$66:$X$66)) -> -1560 | Y197: =IF(Y170=0,0,SUM($G$66:$Z$66)) -> -1736 | AA197: =IF(AA170=0,0,SUM($G$66:$AB$66)) -> -1912 | AC197: =IF(AC170=0,0,SUM($G$66:$AD$66)) -> -2080
A198: =Labels!$B$153 -> Vacances (contrôle) | B198: =Labels!$B$154 -> Vacances année passée | G198: =IF($AA$4=0,0,$AA$4) -> 0 | I198: =Labels!$B$155 -> Vacances selon art 12.1 CCT | M198: =IF($AA$5=0,0,$AA$5) -> 0 | O198: =Labels!$B$156 -> Total des vacances | S198: =SUM(G198+M198) -> 0 | U198: =Labels!$B$157 -> Vacances prises | Y198: =IF($AV$4=0,0,$AV$4) -> 0 | AA198: =Labels!$B$158 -> Vacances restantes | AE198: =IF(S198=0,0,S198-Y198) -> 0
A201: =$A$3 -> Nom/Prénom | B201: =IF($B$3="","",$B$3) -> Modèle Pierre | AF201: =AF3 -> 0
A202: =$A$4 -> Emploi % | B202: =$AL$51 -> 100 | D202: =Labels!B92 -> en avril
A203: =$A$5 -> Solde année en cours | D203: =IF($AE$66=0,0,$AE$66) -> -2080
A204: =TEXT(DATE(YEAR(AP29),MONTH(AP29)+3,1),"MMMM"&Labels!B13) -> avril | B204: =$B$9 -> Solde mois + / - | F204: =(AG206-(SUM(AG207:AG221)-AE229))*-1 -> 160 | K204: =$K$9 -> = | L204: =$L$9 -> Les cases marquées en jaune doivent être remplies (les autres seront calculées automatiquement) | AG204: =COUNT(B207:AF207)&" "&Labels!$B$63 -> 20 Jours
A205: =$A$10 -> Jour | B205: =AF140+1 -> 2023-04-01 | C205: =B205+1 -> 2023-04-02 | D205: =C205+1 -> 2023-04-03 | E205: 2023-04-04 | F205: 2023-04-05 | G205: 2023-04-06 | H205: 2023-04-07 | I205: 2023-04-08 | J205: 2023-04-09 | K205: 2023-04-10 | L205: 2023-04-11 | M205: 2023-04-12 | N205: 2023-04-13 | O205: 2023-04-14 | P205: 2023-04-15 | Q205: 2023-04-16 | R205: 2023-04-17 | S205: 2023-04-18 | T205: 2023-04-19 | U205: 2023-04-20 | V205: 2023-04-21 | W205: 2023-04-22 | X205: 2023-04-23 | Y205: 2023-04-24 | Z205: 2023-04-25 | AA205: 2023-04-26 | AB205: 2023-04-27 | AC205: 2023-04-28 | AD205: 2023-04-29 | AE205: 2023-04-30
A206: =$A$11 -> semaine civile | B206: =IF(B205="","",TRUNC((B205-DATE(YEAR(B205+3-MOD(B205-2,7)),1,MOD(B205-2,7)-9))/7)) -> 13 | C206: 13 | D206: 14 | E206: 14 | F206: 14 | G206: 14 | H206: 14 | I206: 14 | J206: 14 | K206: 15 | L206: 15 | M206: 15 | N206: 15 | O206: 15 | P206: 15 | Q206: 15 | R206: 16 | S206: 16 | T206: 16 | U206: 16 | V206: 16 | W206: 16 | X206: 16 | Y206: 17 | Z206: 17 | AA206: 17 | AB206: 17 | AC206: 17 | AD206: 17 | AE206: 17 | AH206: Woche
... 831 more rows

Sheet CONTRÔLE
A1: =Labels!B164 -> Sélectionnez le mois désiré en un clic Sélectionnez le mois à imprimer en un clic
A2: =Labels!B17 &B5 -> Contrôle des heures de travail 2023 | AG2: 2023 | AI2: Hilfstabelle | AJ2: =Labels!B77 -> Jan | AK2: =Labels!B78 -> Fév | AL2: =Labels!B79 -> Mar | AM2: =Labels!B80 -> Avr | AN2: =Labels!B81 -> Mai | AO2: =Labels!B82 -> Jun | AP2: =Labels!B83 -> Jul | AQ2: =Labels!B84 -> Aoû | AR2: =Labels!B85 -> Sep | AS2: =Labels!B86 -> Oct | AT2: =Labels!B87 -> Nov | AU2: =Labels!B88 -> Déc | AV2: =Labels!B102 -> Total | AX2: Legenden, Erklärungen & Meldungen
A3: =Labels!B18 -> Nom/Prénom | B3: =Labels!B19 -> Modèle Pierre | AI3: =Labels!B113 -> ab | AJ3: =AG835 -> 0 | AK3: =AG860 -> 0 | AL3: =AG885 -> 0 | AM3: =AG910 -> 0 | AN3: =AG935 -> 0 | AO3: =AG960 -> 0 | AP3: =AG985 -> 0 | AQ3: =AG1010 -> 0 | AR3: =AG1035 -> 0 | AS3: =AG1060 -> 0 | AT3: =AG1085 -> 0 | AU3: =AG1110 -> 0 | AV3: =SUM(AJ3:AU3) -> 0
A4: =Labels!B20 -> Emploi % | B4: =$AL$48 -> 100 | D4: =Labels!B89 -> en janvier | K4: =Labels!B22 -> Solde année passée (+) | U4: =Labels!B24 -> Solde vacances année passée | AC4: =Labels!B26 -> Heures | AI4: =Labels!B115 -> va | AJ4: =AG832 -> 0 | AK4: =AG857 -> 0 | AL4: =AG882 -> 0 | AM4: =AG907 -> 0 | AN4: =AG932 -> 0 | AO4: =AG957 -> 0 | AP4: =AG982 -> 0 | AQ4: =AG1007 -> 0 | AR4: =AG1032 -> 0 | AS4: =AG1057 -> 0 | AT4: =AG1082 -> 0 | AU4: =AG1107 -> 0 | AV4: 0 | AX4: Legende Stunden zu Zuschläge (DE)
A5: =Labels!B21 -> Solde année en cours | B5: =AG2 -> 2023 | D5: =IF($AE$66=0,0,$AE$66) -> -2080 | K5: =Labels!B23 -> Solde année passée (-) | U5: =Labels!B25 -> Vacances selon art. 12.1. CCT | AA5: 0 | AC5: =Labels!B26 -> Heures | AI5: =Labels!B120 -> ma | AJ5: =AG836 -> 0 | AK5: =AG861 -> 0 | AL5: =AG886 -> 0 | AM5: =AG911 -> 0 | AN5: =AG936 -> 0 | AO5: =AG961 -> 0 | AP5: =AG986 -> 0 | AQ5: =AG1011 -> 0 | AR5: =AG1036 -> 0 | AS5: =AG1061 -> 0 | AT5: =AG1086 -> 0 | AU5: =AG1111 -> 0 | AV5: 0
AI6: =Labels!B122 -> ac | AJ6: 0 | AK6: 0 | AL6: 0 | AM6: 0 | AN6: 0 | AO6: 0 | AP6: 0 | AQ6: 0 | AR6: 0 | AS6: 0 | AT6: 0 | AU6: 0 | AV6: 0 | AX6: [00] | AY6: Sollstunden (Wochentage MO-FR)
A7: =IF(ISERROR(DATEVALUE(TEXT("01.01."&B5,"TT.MM.JJ"))),"01/01/"&B5,"01.01."&B5) -> 01.01.2023 | B7: 48 | C7: =Labels!B27 -> max heures / semain CCT | J7: 8 | K7: =Labels!B28 -> heures/jour CCT | P7: =IF(MOD(YEAR($A$7),400)=0,"n",IF(MOD(YEAR($A$7),100)=0,"n",IF(MOD(YEAR($A$7),4)=0,"j","n"))) -> n | Q7: =Labels!B29 -> Année bissextile (j/n) | U7: =NETWORKDAYS(DATE(B5,1,1),DATE(B5,12,31)) -> 260 | V7: =Labels!B30 -> jours ouvrables (année) | Z7: =J7*U7 -> 2080 | AA7: =Labels!B31 -> brut annuel d'heures | AI7: =Labels!B124 -> gm | AJ7: 0 | AK7: 0 | AL7: 0 | AM7: 0 | AN7: 0 | AO7: 0 | AP7: 0 | AQ7: 0 | AR7: 0 | AS7: 0 | AT7: 0 | AU7: 0 | AV7: 0 | AX7: [01] | AY7: Unproduktive Stunden (Feiertag, Absenzen)
AI8: =Labels!B126 -> mi | AJ8: 0 | AK8: 0 | AL8: 0 | AM8: 0 | AN8: 0 | AO8: 0 | AP8: 0 | AQ8: 0 | AR8: 0 | AS8: 0 | AT8: 0 | AU8: 0 | AV8: 0 | AX8: [02] | AY8: Karenztage (in Minusstunden)
A9: =TEXT(AP29,"MMMM"&Labels!B13) -> janvier | B9: =Labels!B32 -> Solde mois + / - | F9: =(AG12-(SUM(AG13:AG27)-AE34))*-1 -> -176 | K9: =Labels!B33 -> = | L9: =Labels!B34 -> Les cases marquées en jaune doivent être remplies (les autres seront calculées automatiquement) | AI9: =Labels!B130 -> ep | AJ9: 0 | AK9: 0 | AL9: 0 | AM9: 0 | AN9: 0 | AO9: 0 | AP9: 0 | AQ9: 0 | AR9: 0 | AS9: 0 | AT9: 0 | AU9: 0 | AV9: 0 | AX9: [03] | AY9: Produktive Stunden Tag (Arbeitstage) 06.00-20.00 Uhr
A10: =Labels!B35 -> Jour | B10: =AP29 -> 2023-01-01 | C10: =B10+1 -> 2023-01-02 | D10: 2023-01-03 | E10: 2023-01-04 | F10: 2023-01-05 | G10: 2023-01-06 | H10: 2023-01-07 | I10: 2023-01-08 | J10: 2023-01-09 | K10: 2023-01-10 | L10: 2023-01-11 | M10: 2023-01-12 | N10: 2023-01-13 | O10: 2023-01-14 | P10: 2023-01-15 | Q10: 2023-01-16 | R10: 2023-01-17 | S10: 2023-01-18 | T10: 2023-01-19 | U10: 2023-01-20 | V10: 2023-01-21 | W10: 2023-01-22 | X10: 2023-01-23 | Y10: 2023-01-24 | Z10: 2023-01-25 | AA10: 2023-01-26 | AB10: 2023-01-27 | AC10: 2023-01-28 | AD10: 2023-01-29 | AE10: 2023-01-30 | AF10: 2023-01-31 | AG10: =COUNT(B12:AF12)&" "&Labels!$B$63 -> 22 Jours | AI10: =Labels!B132 -> co | AJ10: 0 | AK10: 0 | AL10: 0 | AM10: 0 | AN10: 0 | AO10: 0 | AP10: 0 | AQ10: 0 | AR10: 0 | AS10: 0 | AT10: 0 | AU10: 0 | AV10: 0 | AX10: [03b] | AY10: Produktive Std. 6-20 Uhr (kein Arbeitstag)
A11: =Labels!B36 -> semaine civile | B11: =IF(B10="","",TRUNC((B10-DATE(YEAR(B10+3-MOD(B10-2,7)),1,MOD(B10-2,7)-9))/7)) -> 52 | C11: =IF(C10="","",TRUNC((C10-DATE(YEAR(C10+3-MOD(C10-2,7)),1,MOD(C10-2,7)-9))/7)) -> 1 | D11: 1 | E11: 1 | F11: 1 | G11: 1 | H11: 1 | I11: 1 | J11: 2 | K11: 2 | L11: 2 | M11: 2 | N11: 2 | O11: 2 | P11: 2 | Q11: 3 | R11: 3 | S11: 3 | T11: 3 | U11: 3 | V11: 3 | W11: 3 | X11: 4 | Y11: 4 | Z11: 4 | AA11: 4 | AB11: 4 | AC11: 4 | AD11: 4 | AE11: 5 | AF11: 5 | AH11: Woche | AI11: =Labels!B128 -> ch | AJ11: 0 | AK11: 0 | AL11: 0 | AM11: 0 | AN11: 0 | AO11: 0 | AP11: 0 | AQ11: 0 | AR11: 0 | AS11: 0 | AT11: 0 | AU11: 0 | AV11: 0 | AX11: [04] | AY11: Produktive Stunden Nacht 00.00-06.00 Uhr
A12: =Labels!B37 -> Théorique sel. CCT | B12: =IF(AND(MOD(B10,7)>=2,SUMPRODUCT(($AM$60:$AQ$60=MOD(B10,7))*$AM$48:$AQ$48),B829=""),$J$7*SUMPRODUCT(($AM$77:$AQ$77=MOD(B10,7))*$AM$65:$AQ$65)%,"") ->  | C12: =IF(AND(MOD(C10,7)>=2,SUMPRODUCT(($AM$60:$AQ$60=MOD(C10,7))*$AM$48:$AQ$48),C829=""),$J$7*SUMPRODUCT(($AM$77:$AQ$77=MOD(C10,7))*$AM$65:$AQ$65)%,"") -> 8 | D12: =IF(AND(MOD(D10,7)>=2,SUMPRODUCT(($AM$60:$AQ$60=MOD(D10,7))*$AM$48:$AQ$48),D829=""),$J$7*SUMPRODUCT(($AM$77:$AQ$77=MOD(D10,7))*$AM$65:$AQ$65)%,"") -> 8 | E12: =IF(AND(MOD(E10,7)>=2,SUMPRODUCT(($AM$60:$AQ$60=MOD(E10,7))*$AM$48:$AQ$48),E829=""),$J$7*SUMPRODUCT(($AM$77:$AQ$77=MOD(E10,7))*$AM$65:$AQ$65)%,"") -> 8 | F12: =IF(AND(MOD(F10,7)>=2,SUMPRODUCT(($AM$60:$AQ$60=MOD(F10,7))*$AM$48:$AQ$48),F829=""),$J$7*SUMPRODUCT(($AM$77:$AQ$77=MOD(F10,7))*$AM$65:$AQ$65)%,"") -> 8 | G12: =IF(AND(MOD(G10,7)>=2,SUMPRODUCT(($AM$60:$AQ$60=MOD(G10,7))*$AM$48:$AQ$48),G829=""),$J$7*SUMPRODUCT(($AM$77:$AQ$77=MOD(G10,7))*$AM$65:$AQ$65)%,"") -> 8 | H12: =IF(AND(MOD(H10,7)>=2,SUMPRODUCT(($AM$60:$AQ$60=MOD(H10,7))*$AM$48:$AQ$48),H829=""),$J$7*SUMPRODUCT(($AM$77:$AQ$77=MOD(H10,7))*$AM$65:$AQ$65)%,"") ->  | I12: =IF(AND(MOD(I10,7)>=2,SUMPRODUCT(($AM$60:$AQ$60=MOD(I10,7))*$AM$48:$AQ$48),I829=""),$J$7*SUMPRODUCT(($AM$77:$AQ$77=MOD(I10,7))*$AM$65:$AQ$65)%,"") ->  | J12: =IF(AND(MOD(J10,7)>=2,SUMPRODUCT(($AM$60:$AQ$60=MOD(J10,7))*$AM$48:$AQ$48),J829=""),$J$7*SUMPRODUCT(($AM$77:$AQ$77=MOD(J10,7))*$AM$65:$AQ$65)%,"") -> 8 | K12: =IF(AND(MOD(K10,7)>=2,SUMPRODUCT(($AM$60:$AQ$60=MOD(K10,7))*$AM$48:$AQ$48),K829=""),$J$7*SUMPRODUCT(($AM$77:$AQ$77=MOD(K10,7))*$AM$65:$AQ$65)%,"") -> 8 | L12: =IF(AND(MOD(L10,7)>=2,SUMPRODUCT(($AM$60:$AQ$60=MOD(L10,7))*$AM$48:$AQ$48),L829=""),$J$7*SUMPRODUCT(($AM$77:$AQ$77=MOD(L10,7))*$AM$65:$AQ$65)%,"") -> 8 | M12: =IF(AND(MOD(M10,7)>=2,SUMPRODUCT(($AM$60:$AQ$60=MOD(M10,7))*$AM$48:$AQ$48),M829=""),$J$7*SUMPRODUCT(($AM$77:$AQ$77=MOD(M10,7))*$AM$65:$AQ$65)%,"") -> 8 | N12: =IF(AND(MOD(N10,7)>=2,SUMPRODUCT(($AM$60:$AQ$60=MOD(N10,7))*$AM$48:$AQ$48),N829=""),$J$7*SUMPRODUCT(($AM$77:$AQ$77=MOD(N10,7))*$AM$65:$AQ$65)%,"") -> 8 | O12: =IF(AND(MOD(O10,7)>=2,SUMPRODUCT(($AM$60:$AQ$60=MOD(O10,7))*$AM$48:$AQ$48),O829=""),$J$7*SUMPRODUCT(($AM$77:$AQ$77=MOD(O10,7))*$AM$65:$AQ$65)%,"") ->  | P12: =IF(AND(MOD(P10,7)>=2,SUMPRODUCT(($AM$60:$AQ$60=MOD(P10,7))*$AM$48:$AQ$48),P829=""),$J$7*SUMPRODUCT(($AM$77:$AQ$77=MOD(P10,7))*$AM$65:$AQ$65)%,"") ->  | Q12: =IF(AND(MOD(Q10,7)>=2,SUMPRODUCT(($AM$60:$AQ$60=MOD(Q10,7))*$AM$48:$AQ$48),Q829=""),$J$7*SUMPRODUCT(($AM$77:$AQ$77=MOD(Q10,7))*$AM$65:$AQ$65)%,"") -> 8 | R12: =IF(AND(MOD(R10,7)>=2,SUMPRODUCT(($AM$60:$AQ$60=MOD(R10,7))*$AM$48:$AQ$48),R829=""),$J$7*SUMPRODUCT(($AM$77:$AQ$77=MOD(R10,7))*$AM$65:$AQ$65)%,"") -> 8 | S12: =IF(AND(MOD(S10,7)>=2,SUMPRODUCT(($AM$60:$AQ$60=MOD(S10,7))*$AM$48:$AQ$48),S829=""),$J$7*SUMPRODUCT(($AM$77:$AQ$77=MOD(S10,7))*$AM$65:$AQ$65)%,"") -> 8 | T12: =IF(AND(MOD(T10,7)>=2,SUMPRODUCT(($AM$60:$AQ$60=MOD(T10,7))*$AM$48:$AQ$48),T829=""),$J$7*SUMPRODUCT(($AM$77:$AQ$77=MOD(T10,7))*$AM$65:$AQ$65)%,"") -> 8 | U12: =IF(AND(MOD(U10,7)>=2,SUMPRODUCT(($AM$60:$AQ$60=MOD(U10,7))*$AM$48:$AQ$48),U829=""),$J$7*SUMPRODUCT(($AM$77:$AQ$77=MOD(U10,7))*$AM$65:$AQ$65)%,"") -> 8 | V12: =IF(AND(MOD(V10,7)>=2,SUMPRODUCT(($AM$60:$AQ$60=MOD(V10,7))*$AM$48:$AQ$48),V829=""),$J$7*SUMPRODUCT(($AM$77:$AQ$77=MOD(V10,7))*$AM$65:$AQ$65)%,"") ->  | W12: =IF(AND(MOD(W10,7)>=2,SUMPRODUCT(($AM$60:$AQ$60=MOD(W10,7))*$AM$48:$AQ$48),W829=""),$J$7*SUMPRODUCT(($AM$77:$AQ$77=MOD(W10,7))*$AM$65:$AQ$65)%,"") ->  | X12: =IF(AND(MOD(X10,7)>=2,SUMPRODUCT(($AM$60:$AQ$60=MOD(X10,7))*$AM$48:$AQ$48),X829=""),$J$7*SUMPRODUCT(($AM$77:$AQ$77=MOD(X10,7))*$AM$65:$AQ$65)%,"") -> 8 | Y12: =IF(AND(MOD(Y10,7)>=2,SUMPRODUCT(($AM$60:$AQ$60=MOD(Y10,7))*$AM$48:$AQ$48),Y829=""),$J$7*SUMPRODUCT(($AM$77:$AQ$77=MOD(Y10,7))*$AM$65:$AQ$65)%,"") -> 8 | Z12: =IF(AND(MOD(Z10,7)>=2,SUMPRODUCT(($AM$60:$AQ$60=MOD(Z10,7))*$AM$48:$AQ$48),Z829=""),$J$7*SUMPRODUCT(($AM$77:$AQ$77=MOD(Z10,7))*$AM$65:$AQ$65)%,"") -> 8 | AA12: =IF(AND(MOD(AA10,7)>=2,SUMPRODUCT(($AM$60:$AQ$60=MOD(AA10,7))*$AM$48:$AQ$48),AA829=""),$J$7*SUMPRODUCT(($AM$77:$AQ$77=MOD(AA10,7))*$AM$65:$AQ$65)%,"") -> 8 | AB12: =IF(AND(MOD(AB10,7)>=2,SUMPRODUCT(($AM$60:$AQ$60=MOD(AB10,7))*$AM$48:$AQ$48),AB829=""),$J$7*SUMPRODUCT(($AM$77:$AQ$77=MOD(AB10,7))*$AM$65:$AQ$65)%,"") -> 8 | AC12: =IF(AND(MOD(AC10,7)>=2,SUMPRODUCT(($AM$60:$AQ$60=MOD(AC10,7))*$AM$48:$AQ$48),AC829=""),$J$7*SUMPRODUCT(($AM$77:$AQ$77=MOD(AC10,7))*$AM$65:$AQ$65)%,"") ->  | AD12: =IF(AND(MOD(AD10,7)>=2,SUMPRODUCT(($AM$60:$AQ$60=MOD(AD10,7))*$AM$48:$AQ$48),AD829=""),$J$7*SUMPRODUCT(($AM$77:$AQ$77=MOD(AD10,7))*$AM$65:$AQ$65)%,"") ->  | AE12: =IF(AND(MOD(AE10,7)>=2,SUMPRODUCT(($AM$60:$AQ$60=MOD(AE10,7))*$AM$48:$AQ$48),AE829=""),$J$7*SUMPRODUCT(($AM$77:$AQ$77=MOD(AE10,7))*$AM$65:$AQ$65)%,"") -> 8 | AF12: =IF(AND(MOD(AF10,7)>=2,SUMPRODUCT(($AM$60:$AQ$60=MOD(AF10,7))*$AM$48:$AQ$48),AF829=""),$J$7*SUMPRODUCT(($AM$77:$AQ$77=MOD(AF10,7))*$AM$65:$AQ$65)%,"") -> 8 | AG12: =SUM(B12:AF12) -> 176 | AH12: [00] | AI12: =Labels!B135 -> cp | AJ12: =AG833 -> 0 | AK12: =AG858 -> 0 | AL12: =AG883 -> 0 | AM12: =AG908 -> 0 | AN12: =AG933 -> 0 | AO12: =AG958 -> 0 | AP12: =AG983 -> 0 | AQ12: =AG1008 -> 0 | AR12: =AG1033 -> 0 | AS12: =AG1058 -> 0 | AT12: =AG1083 -> 0 | AU12: =AG1108 -> 0 | AV12: =SUM(AJ12:AU12) -> 0 | AX12: [05] | AY12: Produktive Stunden Nacht 20.00-00.00 Uhr
A13: =Labels!B38 -> Absences | B13: =B845 -> 0 | C13: 0 | D13: 0 | E13: 0 | F13: 0 | G13: 0 | H13: 0 | I13: 0 | J13: 0 | K13: 0 | L13: 0 | M13: 0 | N13: 0 | O13: 0 | P13: 0 | Q13: 0 | R13: 0 | S13: 0 | T13: 0 | U13: 0 | V13: 0 | W13: 0 | X13: 0 | Y13: 0 | Z13: 0 | AA13: 0 | AB13: 0 | AC13: 0 | AD13: 0 | AE13: 0 | AF13: 0 | AG13: =SUM($AJ$3:$AJ$13) -> 0 | AH13: [01] | AI13: =Labels!B180 -> vn | AJ13: =AG843 -> 0 | AK13: =AG868 -> 0 | AL13: =AG893 -> 0 | AM13: =AG918 -> 0 | AN13: =AG943 -> 0 | AO13: =AG968 -> 0 | AP13: =AG993 -> 0 | AQ13: =AG1018 -> 0 | AR13: =AG1043 -> 0 | AS13: =AG1068 -> 0 | AT13: =AG1093 -> 0 | AU13: =AG1118 -> 0 | AV13: 0 | AX13: [06] | AY13: Feiertagsgutschrift gemäss Anstellungsprozent
A14: =Labels!B39 -> Code | B14: =IF(SUM(B832:B844)<>0,IF(MAX(B832:B844)<B845,Labels!$B$163,INDEX($AH$832:$AH$844,MATCH(MAX(B832:B844),B832:B844,0))),"") ->  | C14: =IF(SUM(C832:C844)<>0,IF(MAX(C832:C844)<C845,Labels!$B$163,INDEX($AH$832:$AH$844,MATCH(MAX(C832:C844),C832:C844,0))),"") ->  | D14: =IF(SUM(D832:D844)<>0,IF(MAX(D832:D844)<D845,Labels!$B$163,INDEX($AH$832:$AH$844,MATCH(MAX(D832:D844),D832:D844,0))),"") ->  | E14: =IF(SUM(E832:E844)<>0,IF(MAX(E832:E844)<E845,Labels!$B$163,INDEX($AH$832:$AH$844,MATCH(MAX(E832:E844),E832:E844,0))),"") ->  | F14: =IF(SUM(F832:F844)<>0,IF(MAX(F832:F844)<F845,Labels!$B$163,INDEX($AH$832:$AH$844,MATCH(MAX(F832:F844),F832:F844,0))),"") ->  | G14: =IF(SUM(G832:G844)<>0,IF(MAX(G832:G844)<G845,Labels!$B$163,INDEX($AH$832:$AH$844,MATCH(MAX(G832:G844),G832:G844,0))),"") ->  | H14: =IF(SUM(H832:H844)<>0,IF(MAX(H832:H844)<H845,Labels!$B$163,INDEX($AH$832:$AH$844,MATCH(MAX(H832:H844),H832:H844,0))),"") ->  | I14: =IF(SUM(I832:I844)<>0,IF(MAX(I832:I844)<I845,Labels!$B$163,INDEX($AH$832:$AH$844,MATCH(MAX(I832:I844),I832:I844,0))),"") ->  | J14: =IF(SUM(J832:J844)<>0,IF(MAX(J832:J844)<J845,Labels!$B$163,INDEX($AH$832:$AH$844,MATCH(MAX(J832:J844),J832:J844,0))),"") ->  | K14: =IF(SUM(K832:K844)<>0,IF(MAX(K832:K844)<K845,Labels!$B$163,INDEX($AH$832:$AH$844,MATCH(MAX(K832:K844),K832:K844,0))),"") ->  | L14: =IF(SUM(L832:L844)<>0,IF(MAX(L832:L844)<L845,Labels!$B$163,INDEX($AH$832:$AH$844,MATCH(MAX(L832:L844),L832:L844,0))),"") ->  | M14: =IF(SUM(M832:M844)<>0,IF(MAX(M832:M844)<M845,Labels!$B$163,INDEX($AH$832:$AH$844,MATCH(MAX(M832:M844),M832:M844,0))),"") ->  | N14: =IF(SUM(N832:N844)<>0,IF(MAX(N832:N844)<N845,Labels!$B$163,INDEX($AH$832:$AH$844,MATCH(MAX(N832:N844),N832:N844,0))),"") ->  | O14: =IF(SUM(O832:O844)<>0,IF(MAX(O832:O844)<O845,Labels!$B$163,INDEX($AH$832:$AH$844,MATCH(MAX(O832:O844),O832:O844,0))),"") ->  | P14: =IF(SUM(P832:P844)<>0,IF(MAX(P832:P844)<P845,Labels!$B$163,INDEX($AH$832:$AH$844,MATCH(MAX(P832:P844),P832:P844,0))),"") ->  | Q14: =IF(SUM(Q832:Q844)<>0,IF(MAX(Q832:Q844)<Q845,Labels!$B$163,INDEX($AH$832:$AH$844,MATCH(MAX(Q832:Q844),Q832:Q844,0))),"") ->  | R14: =IF(SUM(R832:R844)<>0,IF(MAX(R832:R844)<R845,Labels!$B$163,INDEX($AH$832:$AH$844,MATCH(MAX(R832:R844),R832:R844,0))),"") ->  | S14: =IF(SUM(S832:S844)<>0,IF(MAX(S832:S844)<S845,Labels!$B$163,INDEX($AH$832:$AH$844,MATCH(MAX(S832:S844),S832:S844,0))),"") ->  | T14: =IF(SUM(T832:T844)<>0,IF(MAX(T832:T844)<T845,Labels!$B$163,INDEX($AH$832:$AH$844,MATCH(MAX(T832:T844),T832:T844,0))),"") ->  | U14: =IF(SUM(U832:U844)<>0,IF(MAX(U832:U844)<U845,Labels!$B$163,INDEX($AH$832:$AH$844,MATCH(MAX(U832:U844),U832:U844,0))),"") ->  | V14: =IF(SUM(V832:V844)<>0,IF(MAX(V832:V844)<V845,Labels!$B$163,INDEX($AH$832:$AH$844,MATCH(MAX(V832:V844),V832:V844,0))),"") ->  | W14: =IF(SUM(W832:W844)<>0,IF(MAX(W832:W844)<W845,Labels!$B$163,INDEX($AH$832:$AH$844,MATCH(MAX(W832:W844),W832:W844,0))),"") ->  | X14: =IF(SUM(X832:X844)<>0,IF(MAX(X832:X844)<X845,Labels!$B$163,INDEX($AH$832:$AH$844,MATCH(MAX(X832:X844),X832:X844,0))),"") ->  | Y14: =IF(SUM(Y832:Y844)<>0,IF(MAX(Y832:Y844)<Y845,Labels!$B$163,INDEX($AH$832:$AH$844,MATCH(MAX(Y832:Y844),Y832:Y844,0))),"") ->  | Z14: =IF(SUM(Z832:Z844)<>0,IF(MAX(Z832:Z844)<Z845,Labels!$B$163,INDEX($AH$832:$AH$844,MATCH(MAX(Z832:Z844),Z832:Z844,0))),"") ->  | AA14: =IF(SUM(AA832:AA844)<>0,IF(MAX(AA832:AA844)<AA845,Labels!$B$163,INDEX($AH$832:$AH$844,MATCH(MAX(AA832:AA844),AA832:AA844,0))),"") ->  | AB14: =IF(SUM(AB832:AB844)<>0,IF(MAX(AB832:AB844)<AB845,Labels!$B$163,INDEX($AH$832:$AH$844,MATCH(MAX(AB832:AB844),AB832:AB844,0))),"") ->  | AC14: =IF(SUM(AC832:AC844)<>0,IF(MAX(AC832:AC844)<AC845,Labels!$B$163,INDEX($AH$832:$AH$844,MATCH(MAX(AC832:AC844),AC832:AC844,0))),"") ->  | AD14: =IF(SUM(AD832:AD844)<>0,IF(MAX(AD832:AD844)<AD845,Labels!$B$163,INDEX($AH$832:$AH$844,MATCH(MAX(AD832:AD844),AD832:AD844,0))),"") ->  | AE14: =IF(SUM(AE832:AE844)<>0,IF(MAX(AE832:AE844)<AE845,Labels!$B$163,INDEX($AH$832:$AH$844,MATCH(MAX(AE832:AE844),AE832:AE844,0))),"") ->  | AF14: =IF(SUM(AF832:AF844)<>0,IF(MAX(AF832:AF844)<AF845,Labels!$B$163,INDEX($AH$832:$AH$844,MATCH(MAX(AF832:AF844),AF832:AF844,0))),"") ->  | AG14: =$AJ$16*-1 -> 0 | AH14: [02] | AI14: =Labels!B145 -> hm | AJ14: =AG844 -> 0 | AK14: =AG869 -> 0 | AL14: =AG894 -> 0 | AM14: =AG919 -> 0 | AN14: =AG944 -> 0 | AO14: =AG969 -> 0 | AP14: =AG994 -> 0 | AQ14: =AG1019 -> 0 | AR14: =AG1044 -> 0 | AS14: =AG1069 -> 0 | AT14: =AG1094 -> 0 | AU14: =AG1119 -> 0 | AV14: 0 | AX14: [07] | AY14: Zeitzuschlag 1 - Überschreitung Höchstarbeitszeit
A15: =Labels!B40 -> 00h00-06h00 1) | AG15: =SUM(B15:AF15) -> 0 | AH15: [04] | AI15: =Labels!B137 -> cc | AJ15: =AG834 -> 0 | AK15: =AG859 -> 0 | AL15: =AG884 -> 0 | AM15: =AG909 -> 0 | AN15: =AG934 -> 0 | AO15: =AG959 -> 0 | AP15: =AG984 -> 0 | AQ15: =AG1009 -> 0 | AR15: =AG1034 -> 0 | AS15: =AG1059 -> 0 | AT15: =AG1084 -> 0 | AU15: =AG1109 -> 0 | AV15: 0 | AX15: [08] | AY15: Zeitzuschlag 2 - Nachtarbeit
A16: =Labels!B41 -> 06h00-20h00 2) | AG16: =SUMPRODUCT(B16:AF16*(B12:AF12<>""))-SUMPRODUCT(B16:AF16*(B18:AF18="ft")) -> 0 | AH16: [03] | AI16: Karenztage | AJ16: =SUMPRODUCT((B830:AF830="x")*B836:AF836) -> 0 | AK16: =SUMPRODUCT((B855:AF855="x")*B861:AF861) -> 0 | AL16: =SUMPRODUCT((B880:AF880="x")*B886:AF886) -> 0 | AM16: =SUMPRODUCT((B905:AF905="x")*B911:AF911) -> 0 | AN16: =SUMPRODUCT((B930:AF930="x")*B936:AF936) -> 0 | AO16: =SUMPRODUCT((B955:AF955="x")*B961:AF961) -> 0 | AP16: =SUMPRODUCT((B980:AF980="x")*B986:AF986) -> 0 | AQ16: =SUMPRODUCT((B1005:AF1005="x")*B1011:AF1011) -> 0 | AR16: =SUMPRODUCT((B1030:AF1030="x")*B1036:AF1036) -> 0 | AS16: =SUMPRODUCT((B1055:AF1055="x")*B1061:AF1061) -> 0 | AT16: =SUMPRODUCT((B1080:AF1080="x")*B1086:AF1086) -> 0 | AU16: =SUMPRODUCT((B1105:AF1105="x")*B1111:AF1111) -> 0 | AV16: 0 | AX16: [09] | AY16: Zeitzuschlag 3 - Sonn- und Feiertagsarbeit (Tag und Nacht)
A17: =Labels!B42 -> 20h00-24h00 3) | AG17: =SUM(B17:AF17) -> 0 | AH17: [05] | AI17: Anz Karenztage | AJ17: =AG830 -> 0 | AK17: =AG855 -> 0 | AL17: =AG880 -> 0 | AM17: =AG905 -> 0 | AN17: =AG930 -> 0 | AO17: =AG955 -> 0 | AP17: =AG980 -> 0 | AQ17: =AG1005 -> 0 | AR17: =AG1030 -> 0 | AS17: =AG1055 -> 0 | AT17: =AG1080 -> 0 | AU17: =AG1105 -> 0 | AV17: 0 | AX17: [10] | AY17: Total gearbeitete Std. im Monat mit Zeitzuschlägen und Absenzen (ohne Berücks. ausbez. Std)
A18: =Labels!B43 -> Jours fériés "jf" | B18: =IF(WEEKDAY(B10,2)<=6,IF(CALENDRIER!E3="x",Labels!$B$118,""),"") ->  | C18: =IF(WEEKDAY(C10,2)<=6,IF(CALENDRIER!F3="x",Labels!$B$118,""),"") ->  | D18: =IF(WEEKDAY(D10,2)<=6,IF(CALENDRIER!G3="x",Labels!$B$118,""),"") ->  | E18: =IF(WEEKDAY(E10,2)<=6,IF(CALENDRIER!H3="x",Labels!$B$118,""),"") ->  | F18: =IF(WEEKDAY(F10,2)<=6,IF(CALENDRIER!I3="x",Labels!$B$118,""),"") ->  | G18: =IF(WEEKDAY(G10,2)<=6,IF(CALENDRIER!J3="x",Labels!$B$118,""),"") ->  | H18: =IF(WEEKDAY(H10,2)<=6,IF(CALENDRIER!K3="x",Labels!$B$118,""),"") ->  | I18: =IF(WEEKDAY(I10,2)<=6,IF(CALENDRIER!L3="x",Labels!$B$118,""),"") ->  | J18: =IF(WEEKDAY(J10,2)<=6,IF(CALENDRIER!M3="x",Labels!$B$118,""),"") ->  | K18: =IF(WEEKDAY(K10,2)<=6,IF(CALENDRIER!N3="x",Labels!$B$118,""),"") ->  | L18: =IF(WEEKDAY(L10,2)<=6,IF(CALENDRIER!O3="x",Labels!$B$118,""),"") ->  | M18: =IF(WEEKDAY(M10,2)<=6,IF(CALENDRIER!P3="x",Labels!$B$118,""),"") ->  | N18: =IF(WEEKDAY(N10,2)<=6,IF(CALENDRIER!Q3="x",Labels!$B$118,""),"") ->  | O18: =IF(WEEKDAY(O10,2)<=6,IF(CALENDRIER!R3="x",Labels!$B$118,""),"") ->  | P18: =IF(WEEKDAY(P10,2)<=6,IF(CALENDRIER!S3="x",Labels!$B$118,""),"") ->  | Q18: =IF(WEEKDAY(Q10,2)<=6,IF(CALENDRIER!T3="x",Labels!$B$118,""),"") ->  | R18: =IF(WEEKDAY(R10,2)<=6,IF(CALENDRIER!U3="x",Labels!$B$118,""),"") ->  | S18: =IF(WEEKDAY(S10,2)<=6,IF(CALENDRIER!V3="x",Labels!$B$118,""),"") ->  | T18: =IF(WEEKDAY(T10,2)<=6,IF(CALENDRIER!W3="x",Labels!$B$118,""),"") ->  | U18: =IF(WEEKDAY(U10,2)<=6,IF(CALENDRIER!X3="x",Labels!$B$118,""),"") ->  | V18: =IF(WEEKDAY(V10,2)<=6,IF(CALENDRIER!Y3="x",Labels!$B$118,""),"") ->  | W18: =IF(WEEKDAY(W10,2)<=6,IF(CALENDRIER!Z3="x",Labels!$B$118,""),"") ->  | X18: =IF(WEEKDAY(X10,2)<=6,IF(CALENDRIER!AA3="x",Labels!$B$118,""),"") ->  | Y18: =IF(WEEKDAY(Y10,2)<=6,IF(CALENDRIER!AB3="x",Labels!$B$118,""),"") ->  | Z18: =IF(WEEKDAY(Z10,2)<=6,IF(CALENDRIER!AC3="x",Labels!$B$118,""),"") ->  | AA18: =IF(WEEKDAY(AA10,2)<=6,IF(CALENDRIER!AD3="x",Labels!$B$118,""),"") ->  | AB18: =IF(WEEKDAY(AB10,2)<=6,IF(CALENDRIER!AE3="x",Labels!$B$118,""),"") ->  | AC18: =IF(WEEKDAY(AC10,2)<=6,IF(CALENDRIER!AF3="x",Labels!$B$118,""),"") ->  | AD18: =IF(WEEKDAY(AD10,2)<=6,IF(CALENDRIER!AG3="x",Labels!$B$118,""),"") ->  | AE18: =IF(WEEKDAY(AE10,2)<=6,IF(CALENDRIER!AH3="x",Labels!$B$118,""),"") ->  | AF18: =IF(WEEKDAY(AF10,2)<=6,IF(CALENDRIER!AI3="x",Labels!$B$118,""),"") ->  | AG18: =SUM(B16:AF16)-AG16 -> 0 | AH18: [03b] | AI18: =Labels!B118 -> jf | AJ18: =SUMIF($B$18:$AF$18,$AI$18,$B$19:$AF$19) -> 0 | AK18: =SUMIF($B$83:$AD$83,$AI$18,$B$84:$AD$84) -> 0 | AL18: =SUMIF($B$148:$AF$148,$AI$18,$B$149:$AF$149) -> 0 | AM18: =SUMIF($B$213:$AE$213,$AI$18,$B$214:$AE$214) -> 0 | AN18: =SUMIF($B$278:$AF$278,$AI$18,$B$279:$AF$279) -> 0 | AO18: =SUMIF($B$343:$AE$343,$AI$18,$B$344:$AE$344) -> 0 | AP18: =SUMIF($B$408:$AF$408,$AI$18,$B$409:$AF$409) -> 0 | AQ18: =SUMIF($B$473:$AF$473,$AI$18,$B$474:$AF$474) -> 0 | AR18: =SUMIF($B$538:$AE$538,$AI$18,$B$539:$AE$539) -> 0 | AS18: =SUMIF($B$603:$AF$603,$AI$18,$B$604:$AF$604) -> 0 | AT18: =SUMIF($B$668:$AE$668,$AI$18,$B$669:$AE$669) -> 0 | AU18: =SUMIF($B$733:$AF$733,$AI$18,$B$734:$AF$734) -> 0 | AV18: =SUM(AJ18:AU18) -> 0 | AX18: [11] | AY18: Saldo (ohne ausbez. Std.)
A19: =Labels!B44 -> Majoration "jf" | B19: =IF(AND(B18=Labels!$B$118,WEEKDAY(B10,2)<6,B$12<>""),$J$7*SUMPRODUCT(($AM$77:$AQ$77=MOD(B10,7))*$AM$65:$AQ$65)%,"") ->  | C19: =IF(AND(C18=Labels!$B$118,WEEKDAY(C10,2)<6,C$12<>""),$J$7*SUMPRODUCT(($AM$77:$AQ$77=MOD(C10,7))*$AM$65:$AQ$65)%,"") ->  | D19: =IF(AND(D18=Labels!$B$118,WEEKDAY(D10,2)<6,D$12<>""),$J$7*SUMPRODUCT(($AM$77:$AQ$77=MOD(D10,7))*$AM$65:$AQ$65)%,"") ->  | E19: =IF(AND(E18=Labels!$B$118,WEEKDAY(E10,2)<6,E$12<>""),$J$7*SUMPRODUCT(($AM$77:$AQ$77=MOD(E10,7))*$AM$65:$AQ$65)%,"") ->  | F19: =IF(AND(F18=Labels!$B$118,WEEKDAY(F10,2)<6,F$12<>""),$J$7*SUMPRODUCT(($AM$77:$AQ$77=MOD(F10,7))*$AM$65:$AQ$65)%,"") ->  | G19: =IF(AND(G18=Labels!$B$118,WEEKDAY(G10,2)<6,G$12<>""),$J$7*SUMPRODUCT(($AM$77:$AQ$77=MOD(G10,7))*$AM$65:$AQ$65)%,"") ->  | H19: =IF(AND(H18=Labels!$B$118,WEEKDAY(H10,2)<6,H$12<>""),$J$7*SUMPRODUCT(($AM$77:$AQ$77=MOD(H10,7))*$AM$65:$AQ$65)%,"") ->  | I19: =IF(AND(I18=Labels!$B$118,WEEKDAY(I10,2)<6,I$12<>""),$J$7*SUMPRODUCT(($AM$77:$AQ$77=MOD(I10,7))*$AM$65:$AQ$65)%,"") ->  | J19: =IF(AND(J18=Labels!$B$118,WEEKDAY(J10,2)<6,J$12<>""),$J$7*SUMPRODUCT(($AM$77:$AQ$77=MOD(J10,7))*$AM$65:$AQ$65)%,"") ->  | K19: =IF(AND(K18=Labels!$B$118,WEEKDAY(K10,2)<6,K$12<>""),$J$7*SUMPRODUCT(($AM$77:$AQ$77=MOD(K10,7))*$AM$65:$AQ$65)%,"") ->  | L19: =IF(AND(L18=Labels!$B$118,WEEKDAY(L10,2)<6,L$12<>""),$J$7*SUMPRODUCT(($AM$77:$AQ$77=MOD(L10,7))*$AM$65:$AQ$65)%,"") ->  | M19: =IF(AND(M18=Labels!$B$118,WEEKDAY(M10,2)<6,M$12<>""),$J$7*SUMPRODUCT(($AM$77:$AQ$77=MOD(M10,7))*$AM$65:$AQ$65)%,"") ->  | N19: =IF(AND(N18=Labels!$B$118,WEEKDAY(N10,2)<6,N$12<>""),$J$7*SUMPRODUCT(($AM$77:$AQ$77=MOD(N10,7))*$AM$65:$AQ$65)%,"") ->  | O19: =IF(AND(O18=Labels!$B$118,WEEKDAY(O10,2)<6,O$12<>""),$J$7*SUMPRODUCT(($AM$77:$AQ$77=MOD(O10,7))*$AM$65:$AQ$65)%,"") ->  | P19: =IF(AND(P18=Labels!$B$118,WEEKDAY(P10,2)<6,P$12<>""),$J$7*SUMPRODUCT(($AM$77:$AQ$77=MOD(P10,7))*$AM$65:$AQ$65)%,"") ->  | Q19: =IF(AND(Q18=Labels!$B$118,WEEKDAY(Q10,2)<6,Q$12<>""),$J$7*SUMPRODUCT(($AM$77:$AQ$77=MOD(Q10,7))*$AM$65:$AQ$65)%,"") ->  | R19: =IF(AND(R18=Labels!$B$118,WEEKDAY(R10,2)<6,R$12<>""),$J$7*SUMPRODUCT(($AM$77:$AQ$77=MOD(R10,7))*$AM$65:$AQ$65)%,"") ->  | S19: =IF(AND(S18=Labels!$B$118,WEEKDAY(S10,2)<6,S$12<>""),$J$7*SUMPRODUCT(($AM$77:$AQ$77=MOD(S10,7))*$AM$65:$AQ$65)%,"") ->  | T19: =IF(AND(T18=Labels!$B$118,WEEKDAY(T10,2)<6,T$12<>""),$J$7*SUMPRODUCT(($AM$77:$AQ$77=MOD(T10,7))*$AM$65:$AQ$65)%,"") ->  | U19: =IF(AND(U18=Labels!$B$118,WEEKDAY(U10,2)<6,U$12<>""),$J$7*SUMPRODUCT(($AM$77:$AQ$77=MOD(U10,7))*$AM$65:$AQ$65)%,"") ->  | V19: =IF(AND(V18=Labels!$B$118,WEEKDAY(V10,2)<6,V$12<>""),$J$7*SUMPRODUCT(($AM$77:$AQ$77=MOD(V10,7))*$AM$65:$AQ$65)%,"") ->  | W19: =IF(AND(W18=Labels!$B$118,WEEKDAY(W10,2)<6,W$12<>""),$J$7*SUMPRODUCT(($AM$77:$AQ$77=MOD(W10,7))*$AM$65:$AQ$65)%,"") ->  | X19: =IF(AND(X18=Labels!$B$118,WEEKDAY(X10,2)<6,X$12<>""),$J$7*SUMPRODUCT(($AM$77:$AQ$77=MOD(X10,7))*$AM$65:$AQ$65)%,"") ->  | Y19: =IF(AND(Y18=Labels!$B$118,WEEKDAY(Y10,2)<6,Y$12<>""),$J$7*SUMPRODUCT(($AM$77:$AQ$77=MOD(Y10,7))*$AM$65:$AQ$65)%,"") ->  | Z19: =IF(AND(Z18=Labels!$B$118,WEEKDAY(Z10,2)<6,Z$12<>""),$J$7*SUMPRODUCT(($AM$77:$AQ$77=MOD(Z10,7))*$AM$65:$AQ$65)%,"") ->  | AA19: =IF(AND(AA18=Labels!$B$118,WEEKDAY(AA10,2)<6,AA$12<>""),$J$7*SUMPRODUCT(($AM$77:$AQ$77=MOD(AA10,7))*$AM$65:$AQ$65)%,"") ->  | AB19: =IF(AND(AB18=Labels!$B$118,WEEKDAY(AB10,2)<6,AB$12<>""),$J$7*SUMPRODUCT(($AM$77:$AQ$77=MOD(AB10,7))*$AM$65:$AQ$65)%,"") ->  | AC19: =IF(AND(AC18=Labels!$B$118,WEEKDAY(AC10,2)<6,AC$12<>""),$J$7*SUMPRODUCT(($AM$77:$AQ$77=MOD(AC10,7))*$AM$65:$AQ$65)%,"") ->  | AD19: =IF(AND(AD18=Labels!$B$118,WEEKDAY(AD10,2)<6,AD$12<>""),$J$7*SUMPRODUCT(($AM$77:$AQ$77=MOD(AD10,7))*$AM$65:$AQ$65)%,"") ->  | AE19: =IF(AND(AE18=Labels!$B$118,WEEKDAY(AE10,2)<6,AE$12<>""),$J$7*SUMPRODUCT(($AM$77:$AQ$77=MOD(AE10,7))*$AM$65:$AQ$65)%,"") ->  | AF19: =IF(AND(AF18=Labels!$B$118,WEEKDAY(AF10,2)<6,AF$12<>""),$J$7*SUMPRODUCT(($AM$77:$AQ$77=MOD(AF10,7))*$AM$65:$AQ$65)%,"") ->  | AG19: =SUM(B19:AF19) -> 0 | AH19: [06] | AI19: =Labels!B160 -> Nombre jf | AJ19: =COUNTIF($B$18:$AF$18,$AI$18) -> 0 | AK19: =COUNTIF($B$83:$AD$83,$AI$18) -> 0 | AL19: =COUNTIF($B$148:$AF$148,$AI$18) -> 0 | AM19: =COUNTIF($B$213:$AE$213,$AI$18) -> 0 | AN19: =COUNTIF($B$278:$AF$278,$AI$18) -> 0 | AO19: =COUNTIF($B$343:$AE$343,$AI$18) -> 0 | AP19: =COUNTIF($B$408:$AF$408,$AI$18) -> 0 | AQ19: =COUNTIF($B$473:$AF$473,$AI$18) -> 0 | AR19: =COUNTIF($B$538:$AE$538,$AI$18) -> 0 | AS19: =COUNTIF($B$603:$AF$603,$AI$18) -> 0 | AT19: =COUNTIF($B$668:$AE$668,$AI$18) -> 0 | AU19: =COUNTIF($B$733:$AF$733,$AI$18) -> 0 | AV19: 0
A20: =Labels!B45 -> total quotidien | B20: =SUM(B15:B17) -> 0 | C20: =SUM(C15:C17) -> 0 | D20: 0 | E20: 0 | F20: 0 | G20: 0 | H20: 0 | I20: 0 | J20: 0 | K20: 0 | L20: 0 | M20: 0 | N20: 0 | O20: 0 | P20: 0 | Q20: 0 | R20: 0 | S20: 0 | T20: 0 | U20: 0 | V20: 0 | W20: 0 | X20: 0 | Y20: 0 | Z20: 0 | AA20: 0 | AB20: 0 | AC20: 0 | AD20: 0 | AE20: 0 | AF20: 0 | AH20: TT | AI20: =Labels!B161 -> Message | AJ20: =IF($AV$19>9,"(" & $AV$19 & " = " & Labels!B117,"") -> 
A21: =Labels!B46 -> . | AH21: R | AI21: Bez VoJa | AJ21: =$AE$33 -> 0 | AK21: =$AE$98 -> 0 | AL21: =$AE$163 -> 0 | AM21: =$AE$228 -> 0 | AN21: =$AE$293 -> 0 | AO21: =$AE$358 -> 0 | AP21: =$AE$423 -> 0 | AQ21: =$AE$488 -> 0 | AR21: =$AE$553 -> 0 | AV21: =SUM(AJ21:AU21) -> 0
A22: =Labels!B47 -> . | AH22: R | AI22: Bez LaJa | AJ22: =$AE$34 -> 0 | AK22: =$AE$99 -> 0 | AL22: =$AE$164 -> 0 | AM22: =$AE$229 -> 0 | AN22: =$AE$294 -> 0 | AO22: =$AE$359 -> 0 | AP22: =$AE$424 -> 0 | AQ22: =$AE$489 -> 0 | AR22: =$AE$554 -> 0 | AS22: =$AE$619 -> 0 | AT22: =$AE$684 -> 0 | AU22: =$AE$749 -> 0 | AV22: =SUM(AJ22:AU22) -> 0
A23: =Labels!B48 -> transition mois | B23: =IF(WEEKDAY(B10)=1,TEXT(B10-1,"MMM"&Labels!B13),"") -> déc. | AF23: =IF(AND(WEEKDAY(AF10)>1,WEEKDAY(AF10)<7),TEXT(DATE($B$5,MONTH(AF10)+1,1),"MMM"&Labels!B13),"") -> févr. | AH23: MNT | AI23: Zuschläge Nacht/Sonn-/Feiertag | AJ23: =SUM(AG26+AG27) -> 0 | AK23: =SUM(AG91+AG92) -> 0 | AL23: =SUM(AG156+AG157) -> 0 | AM23: =SUM(AG221+AG222) -> 0 | AN23: =SUM(AG286+AG287) -> 0 | AO23: =SUM(AG351+AG352) -> 0 | AP23: =SUM(AG416+AG417) -> 0 | AQ23: =SUM(AG481+AG482) -> 0 | AR23: =SUM(AG546+AG547) -> 0 | AS23: =SUM(AG611+AG612) -> 0 | AT23: =SUM(AG676+AG677) -> 0 | AU23: =SUM(AG741+AG742) -> 0 | AV23: =SUM(AJ23:AU23) -> 0
A24: =Labels!B49 -> Total hebdomadaire | B24: =IF(WEEKDAY(B10)=7,SUMIF($B11:$AF11,B11,$B20:$AF20)+SUMIF($B76:$AD76,B11,$B85:$AD85),IF(WEEKDAY(B10)=1,SUMIF($B11:$AF11,B11,$B20:$AF20)+SUMIF($B76:$AD76,B11,$B85:$AD85),"")) -> 0 | C24: =IF(WEEKDAY(C10)=7,SUMIF($B11:$AF11,C11,$B20:$AF20)+SUMIF($B76:$AD76,C11,$B85:$AD85),"") ->  | H24: 0 | O24: 0 | V24: 0 | AC24: 0 | AF24: =IF(WEEKDAY(AF10)=7,SUMIF($B11:$AF11,AF11,$B20:$AF20)+SUMIF($B76:$AD76,AF11,$B85:$AD85),AF23) -> févr. | AH24: WT | AX24: Legende Absenztypen (DE)
A25: =Labels!B50 -> Majorations temp. 1) | B25: =IF(B32="FALSCH","",B32) ->  | C25: =IF(C32="FALSCH","",C32) ->  | AG25: =SUM(B25:AF25) -> 0 | AH25: [07]
A26: =Labels!B51 -> Majorations temp. 2) | B26: =IF((B15+B17)=0,"",SUM(B15,B17)) ->  | C26: =IF((C15+C17)=0,"",SUM(C15,C17)) ->  | D26: =IF((D15+D17)=0,"",SUM(D15,D17)) ->  | E26: =IF((E15+E17)=0,"",SUM(E15,E17)) ->  | AG26: 0 | AH26: [08] | AX26: a | AY26: Absenzen, Kurzabsenzen Art. 11 GAV
A27: =Labels!B52 -> Majorations temp. 3) | B27: =SUM(B28:B31) -> 0 | C27: 0 | D27: 0 | E27: 0 | F27: 0 | G27: 0 | H27: 0 | I27: 0 | J27: 0 | K27: 0 | L27: 0 | M27: 0 | N27: 0 | O27: 0 | P27: 0 | Q27: 0 | R27: 0 | S27: 0 | T27: 0 | U27: 0 | V27: 0 | W27: 0 | X27: 0 | Y27: 0 | Z27: 0 | AA27: 0 | AB27: 0 | AC27: 0 | AD27: 0 | AE27: 0 | AF27: 0 | AG27: 0 | AH27: [09] | AI27: Konfiguration (lokal) | AX27: f | AY27: Ferien Art. 12.1. GAV
A28: =Labels!B53 -> Dimanche journée | B28: =IF(WEEKDAY(B10)=1,B16,"") -> 0 | C28: =IF(WEEKDAY(C10)=1,C16,"") ->  | I28: 0 | P28: 0 | W28: 0 | AD28: 0 | AG28: 0 | AH28: [09-ST] | AX28: k | AY28: Krankheit Art. 13 GAV
A29: =Labels!B54 -> Dimanche nuit | B29: =IF(WEEKDAY(B10)=1,SUM(B15+B17),"") -> 0 | C29: =IF(WEEKDAY(C10)=1,SUM(C15+C17),"") ->  | I29: 0 | P29: 0 | W29: 0 | AD29: 0 | AG29: 0 | AH29: [09-SN] | AI29: Erster Januar aktuelles Jahr | AP29: =DATE(YEAR($A$7),MONTH($A$7),DAY($A$7)) -> 2023-01-01 | AX29: m | AY29: Militär, Zivilschutz Art. 16 GAV
A30: =Labels!B55 -> jf-jomajoration | B30: =IF(B18=Labels!$B$118,B16,"") ->  | C30: =IF(C18=Labels!$B$118,C16,"") ->  | D30: =IF(D18=Labels!$B$118,D16,"") ->  | E30: =IF(E18=Labels!$B$118,E16,"") ->  | F30: =IF(F18=Labels!$B$118,F16,"") ->  | G30: =IF(G18=Labels!$B$118,G16,"") ->  | H30: =IF(H18=Labels!$B$118,H16,"") ->  | I30: =IF(I18=Labels!$B$118,I16,"") ->  | J30: =IF(J18=Labels!$B$118,J16,"") ->  | K30: =IF(K18=Labels!$B$118,K16,"") ->  | L30: =IF(L18=Labels!$B$118,L16,"") ->  | M30: =IF(M18=Labels!$B$118,M16,"") ->  | N30: =IF(N18=Labels!$B$118,N16,"") ->  | O30: =IF(O18=Labels!$B$118,O16,"") ->  | P30: =IF(P18=Labels!$B$118,P16,"") ->  | Q30: =IF(Q18=Labels!$B$118,Q16,"") ->  | R30: =IF(R18=Labels!$B$118,R16,"") ->  | S30: =IF(S18=Labels!$B$118,S16,"") ->  | T30: =IF(T18=Labels!$B$118,T16,"") ->  | U30: =IF(U18=Labels!$B$118,U16,"") ->  | V30: =IF(V18=Labels!$B$118,V16,"") ->  | W30: =IF(W18=Labels!$B$118,W16,"") ->  | X30: =IF(X18=Labels!$B$118,X16,"") ->  | Y30: =IF(Y18=Labels!$B$118,Y16,"") ->  | Z30: =IF(Z18=Labels!$B$118,Z16,"") ->  | AA30: =IF(AA18=Labels!$B$118,AA16,"") ->  | AB30: =IF(AB18=Labels!$B$118,AB16,"") ->  | AC30: =IF(AC18=Labels!$B$118,AC16,"") ->  | AD30: =IF(AD18=Labels!$B$118,AD16,"") ->  | AE30: =IF(AE18=Labels!$B$118,AE16,"") ->  | AF30: =IF(AF18=Labels!$B$118,AF16,"") ->  | AG30: 0 | AH30: [09-FT] | AI30: (Berechnungsgrundlage Kalender) | AX30: s | AY30: Schwanger-/Mutterschaft Art. 15 GAV
A31: =Labels!B56 -> jf-numajoration | B31: =IF(B18=Labels!$B$118,SUM(B15,B17),"") ->  | C31: =IF(C18=Labels!$B$118,SUM(C15,C17),"") ->  | D31: =IF(D18=Labels!$B$118,SUM(D15,D17),"") ->  | E31: =IF(E18=Labels!$B$118,SUM(E15,E17),"") ->  | F31: =IF(F18=Labels!$B$118,SUM(F15,F17),"") ->  | G31: =IF(G18=Labels!$B$118,SUM(G15,G17),"") ->  | H31: =IF(H18=Labels!$B$118,SUM(H15,H17),"") ->  | I31: =IF(I18=Labels!$B$118,SUM(I15,I17),"") ->  | J31: =IF(J18=Labels!$B$118,SUM(J15,J17),"") ->  | K31: =IF(K18=Labels!$B$118,SUM(K15,K17),"") ->  | L31: =IF(L18=Labels!$B$118,SUM(L15,L17),"") ->  | M31: =IF(M18=Labels!$B$118,SUM(M15,M17),"") ->  | N31: =IF(N18=Labels!$B$118,SUM(N15,N17),"") ->  | O31: =IF(O18=Labels!$B$118,SUM(O15,O17),"") ->  | P31: =IF(P18=Labels!$B$118,SUM(P15,P17),"") ->  | Q31: =IF(Q18=Labels!$B$118,SUM(Q15,Q17),"") ->  | R31: =IF(R18=Labels!$B$118,SUM(R15,R17),"") ->  | S31: =IF(S18=Labels!$B$118,SUM(S15,S17),"") ->  | T31: =IF(T18=Labels!$B$118,SUM(T15,T17),"") ->  | U31: =IF(U18=Labels!$B$118,SUM(U15,U17),"") ->  | V31: =IF(V18=Labels!$B$118,SUM(V15,V17),"") ->  | W31: =IF(W18=Labels!$B$118,SUM(W15,W17),"") ->  | X31: =IF(X18=Labels!$B$118,SUM(X15,X17),"") ->  | Y31: =IF(Y18=Labels!$B$118,SUM(Y15,Y17),"") ->  | Z31: =IF(Z18=Labels!$B$118,SUM(Z15,Z17),"") ->  | AA31: =IF(AA18=Labels!$B$118,SUM(AA15,AA17),"") ->  | AB31: =IF(AB18=Labels!$B$118,SUM(AB15,AB17),"") ->  | AC31: =IF(AC18=Labels!$B$118,SUM(AC15,AC17),"") ->  | AD31: =IF(AD18=Labels!$B$118,SUM(AD15,AD17),"") ->  | AE31: =IF(AE18=Labels!$B$118,SUM(AE15,AE17),"") ->  | AF31: =IF(AF18=Labels!$B$118,SUM(AF15,AF17),"") ->  | AG31: 0 | AH31: [09-FN] | AX31: u | AY31: Unfall Art. 14 GAV
A32: =Labels!B57 -> majoration caché (total hebd.) | B32: =IF($B4>=80,IF(OR(ISTEXT(B24),B24="",B24<$B$7),"",ROUND(((B24-$B$7)*25%)/25,4)*25),IF(B20>($B$7/5),ROUND(((B20-($B$7/5))*25%)/25,4)*25,"")) ->  | C32: =IF($B4>=80,IF(OR(ISTEXT(C24),C24="",C24<$B$7),"",ROUND(((C24-$B$7)*25%)/25,4)*25),IF(C20>($B$7/5),ROUND(((C20-($B$7/5))*25%)/25,4)*25,"")) ->  | AG32: =AG16 -> 0 | AH32: [03] | AI32: Schaltjahr | AP32: =IF(ISERROR(("29.02."&timesheetYear)*1),FALSE,TRUE) -> FALSE | AX32: bs | AY32: Berufsschule
B33: =Labels!B58 -> 1) 25% majoration temporelle pour depassement les heures maximales | L33: =Labels!B59 -> 2) 100% majoration temporelle pour travail de nuit | T33: =Labels!B61 -> Saisie des heures payées l'année passée | AG33: =SUM(AG15+AG17) -> 0 | AH33: [4-5] | AX33: fe | AY33: Fehlstunden zur Information ohne Berechnung in der Zusammenfassung
B34: =Labels!B60 -> 3) 100% majoration temporelle pour travail du dimanche et jour férié | T34: =Labels!B62 -> Saisie des heures payées exercice en cours (heures supplémentaires) | AG34: =SUM(AG15:AG17) -> 0 | AH34: [3-5] | AI34: Hilfszelle Feiertage | AQ34: =Labels!$B$118 -> jf | AX34: ka | AY34: Kurzabeit, Schlechtwetterausfälle
A35: =Labels!B159 -> Notes | AG35: =SUM(AG13:AG27) -> 0 | AH35: [10] | AX35: kj | AY35: Kompensation laufendes Jahr siehe Zusammenfassung
AG36: =AG12 -> 176 | AH36: [00] | AI36: aktueller Kalender | AK36: calendar | AQ36: CALENDRIER | AX36: ku | AY36: Kurse
A37: =IF(AG829=0,"","effektives Pensum: "&ROUND(COUNT(B12:AF12)/(AG829+COUNT(B12:AF12))%*B4%*20,0)/20&" %") ->  | AG37: =SUM(AG35-AG36) -> -176 | AH37: [11] | AX37: kv | AY37: Kompensation Vorjahressaldo für Abrechnung in der Zusammenfassung
AX38: fu | AY38: Ferien unbezahlt
A39: =Labels!$B$103 -> Résumé | G39: =Labels!$B$77 -> Jan | I39: =Labels!$B$78 -> Fév | K39: =Labels!$B$79 -> Mar | M39: =Labels!$B$80 -> Avr | O39: =Labels!$B$81 -> Mai | Q39: =Labels!$B$82 -> Jun | S39: =Labels!$B$83 -> Jul | U39: =Labels!$B$84 -> Aoû | W39: =Labels!$B$85 -> Sep | Y39: =Labels!$B$86 -> Oct | AA39: =Labels!$B$87 -> Nov | AC39: =Labels!$B$88 -> Déc | AE39: =Labels!$B$101 -> Année | AI39: alter Kalender | AK39: calendar1 | AQ39: Kalender Müller
A40: =Labels!$B$20 -> Emploi % | G40: =IF($B$4=0,0,$B$4) -> 100 | I40: =IF($B$72=0,0,$B$72) -> 100 | K40: =IF($B$137=0,0,$B$137) -> 100 | M40: =IF($B$202=0,0,$B$202) -> 100 | O40: =IF($B$267=0,0,$B$267) -> 100 | Q40: =IF($B$332=0,0,$B$332) -> 100 | S40: =IF($B$397=0,0,$B$397) -> 100 | U40: =IF($B$462=0,0,$B$462) -> 100 | W40: =IF($B$527=0,0,$B$527) -> 100 | Y40: =IF($B$592=0,0,$B$592) -> 100 | AA40: =IF($B$657=0,0,$B$657) -> 100 | AC40: =IF($B$722=0,0,$B$722) -> 100 | AI40: neuer Kalender | AK40: calendar | AQ40: KALENDER
A41: =Labels!$B$104 -> Heures théoriques selon CCT | G41: =IF($AG$36=0,0,$AG$36) -> 176 | I41: =IF($AG$101=0,0,$AG$101) -> 160 | K41: =IF($AG$142=0,0,$AG$142) -> 184 | M41: =IF($AG$231=0,0,$AG$231) -> 160 | O41: =IF($AG$296=0,0,$AG$296) -> 184 | Q41: =IF($AG$361=0,0,$AG$361) -> 176 | S41: =IF($AG$426=0,0,$AG$426) -> 168 | U41: =IF($AG$491=0,0,$AG$491) -> 184 | W41: =IF($AG$556=0,0,$AG$556) -> 168 | Y41: =IF($AG$621=0,0,$AG$621) -> 176 | AA41: =IF($AG$686=0,0,$AG$686) -> 176 | AC41: =IF($AG$751=0,0,$AG$751) -> 168 | AE41: =SUM(G41:AD41) -> 2080
A42: =Labels!$B$105 -> Total heures productives | B42: =Labels!$B$106 -> 06.00 - 20.00 h | G42: =IF($AG$32=0,0,$AG$32) -> 0 | I42: =IF($AG$97=0,0,$AG$97) -> 0 | K42: =IF($AG$162=0,0,$AG$162) -> 0 | M42: =IF($AG$227=0,0,$AG$227) -> 0 | O42: =IF($AG$292=0,0,$AG$292) -> 0 | Q42: =IF($AG$357=0,0,$AG$357) -> 0 | S42: =IF($AG$422=0,0,$AG$422) -> 0 | U42: =IF($AG$487=0,0,$AG$487) -> 0 | W42: =IF($AG$552=0,0,$AG$552) -> 0 | Y42: =IF($AG$617=0,0,$AG$617) -> 0 | AA42: =IF($AG$682=0,0,$AG$682) -> 0 | AC42: =IF($AG$747=0,0,$AG$747) -> 0 | AE42: =SUM(G42:AD42) -> 0 | AX42: Meldungen & Beschriftungen
B43: =Labels!$B$107 -> nuit, dimanche et jour férié | G43: =IF(AND($AG$33=0,$AG$18=0),0,$AG$33+$AG$18) -> 0 | I43: =IF(AND($AG$98=0,$AG$83=0),0,$AG$98+$AG$83) -> 0 | K43: =IF(AND($AG$163=0,$AG$148=0),0,$AG$163+$AG$148) -> 0 | M43: =IF(AND($AG$228=0,$AG$213=0),0,$AG$228+$AG$213) -> 0 | O43: =IF(AND($AG$293=0,$AG$278=0),0,$AG$293+$AG$278) -> 0 | Q43: =IF(AND($AG$358=0,$AG$343=0),0,$AG$358+$AG$343) -> 0 | S43: =IF(AND($AG$423=0,$AG$408=0),0,$AG$423+$AG$408) -> 0 | U43: =IF(AND($AG$488=0,$AG$473=0),0,$AG$488+$AG$473) -> 0 | W43: =IF(AND($AG$553=0,$AG$538=0),0,$AG$553+$AG$538) -> 0 | Y43: =IF(AND($AG$618=0,$AG$603=0),0,$AG$618+$AG$603) -> 0 | AA43: =IF(AND($AG$683=0,$AG$668=0),0,$AG$683+$AG$668) -> 0 | AC43: =IF(AND($AG$748=0,$AG$733=0),0,$AG$748+$AG$733) -> 0 | AE43: =SUM(G43:AD43) -> 0
A44: =Labels!$B$108 -> Majorations temporelles | B44: =Labels!$B$109 -> depassement des heures maximales | G44: =IF($AG$25=0,0,$AG$25) -> 0 | I44: =IF($AG$90=0,0,$AG$90) -> 0 | K44: =IF($AG$155=0,0,$AG$155) -> 0 | M44: =IF($AG$220=0,0,$AG$220) -> 0 | O44: =IF($AG$285=0,0,$AG$285) -> 0 | Q44: =IF($AG$350=0,0,$AG$350) -> 0 | S44: =IF($AG$415=0,0,$AG$415) -> 0 | U44: =IF($AG$480=0,0,$AG$480) -> 0 | W44: =IF($AG$545=0,0,$AG$545) -> 0 | Y44: =IF($AG$610=0,0,$AG$610) -> 0 | AA44: =IF($AG$675=0,0,$AG$675) -> 0 | AC44: =IF($AG$740=0,0,$AG$740) -> 0 | AE44: =SUM(G44:AD44) -> 0 | AY44: ="Das Vorjahresguthaben beträgt noch "&TEXT(W62,"0.0000")&" Std." -> Das Vorjahresguthaben beträgt noch 0.0000 Std.
B45: =Labels!$B$110 -> nuit, dimanche et jour férié | G45: =IF($AJ$23=0,0,$AJ$23) -> 0 | I45: =IF($AK$23=0,0,$AK$23) -> 0 | K45: =IF($AL$23=0,0,$AL$23) -> 0 | M45: =IF($AM$23=0,0,$AM$23) -> 0 | O45: =IF($AN$23=0,0,$AN$23) -> 0 | Q45: =IF($AO$23=0,0,$AO$23) -> 0 | S45: =IF($AP$23=0,0,$AP$23) -> 0 | U45: =IF($AQ$23=0,0,$AQ$23) -> 0 | W45: =IF($AR$23=0,0,$AR$23) -> 0 | Y45: =IF($AS$23=0,0,$AS$23) -> 0 | AA45: =IF($AT$23=0,0,$AT$23) -> 0 | AC45: =IF($AU$23=0,0,$AU$23) -> 0 | AE45: =SUM(G45:AD45) -> 0 | AI45: Anstellungsdetails | AK45: Name: | AL45: Muster Peter | AO45: Default-% | AQ45: 100 | AY45: Total
A46: =Labels!$B$111 -> Heures inproductives
A47: =Labels!$B$112 -> Absences art. 11 CCT | F47: =Labels!$B$113 -> ab | G47: =IF($AJ$3=0,0,$AJ$3) -> 0 | I47: =IF($AK$3=0,0,$AK$3) -> 0 | K47: =IF($AL$3=0,0,$AL$3) -> 0 | M47: =IF($AM$3=0,0,$AM$3) -> 0 | O47: =IF($AN$3=0,0,$AN$3) -> 0 | Q47: =IF($AO$3=0,0,$AO$3) -> 0 | S47: =IF($AP$3=0,0,$AP$3) -> 0 | U47: =IF($AQ$3=0,0,$AQ$3) -> 0 | W47: =IF($AR$3=0,0,$AR$3) -> 0 | Y47: =IF($AS$3=0,0,$AS$3) -> 0 | AA47: =IF(AT$3=0,0,$AT$3) -> 0 | AC47: =IF($AU$3=0,0,$AU$3) -> 0 | AE47: =IF($AV$3=0,0,$AV$3) -> 0 | AI47: Ganzes Jahr gleich? | AJ47: TRUE | AL47: % | AM47: MO | AN47: DI | AO47: MI | AP47: DO | AQ47: FR | AR47: Arbeitst.
A48: =Labels!$B$114 -> Vacances art. 12.1 CCT | F48: =Labels!$B$115 -> va | G48: =IF($AJ$4=0,0,$AJ$4) -> 0 | I48: =IF($AK$4=0,0,$AK$4) -> 0 | K48: =IF($AL$4=0,0,$AL$4) -> 0 | M48: =IF($AM$4=0,0,$AM$4) -> 0 | O48: =IF($AN$4=0,0,$AN$4) -> 0 | Q48: =IF($AO$4=0,0,$AO$4) -> 0 | S48: =IF($AP$4=0,0,$AP$4) -> 0 | U48: =IF($AQ$4=0,0,$AQ$4) -> 0 | W48: =IF($AR$4=0,0,$AR$4) -> 0 | Y48: =IF($AS$4=0,0,$AS$4) -> 0 | AA48: =IF($AT$4=0,0,$AT$4) -> 0 | AC48: =IF($AU$4=0,0,$AU$4) -> 0 | AE48: =IF($AV$4=0,0,$AV$4) -> 0 | AI48: Expertenmodus | AJ48: FALSE | AK48: Jan | AL48: =AL65 -> 100 | AM48: =IF(AM65>0,TRUE,FALSE) -> TRUE | AN48: =IF(AN65>0,TRUE,FALSE) -> TRUE | AO48: TRUE | AP48: TRUE | AQ48: TRUE | AR48: =COUNTIF(AM48:AQ48,TRUE) -> 5
A49: =Labels!$B$181 -> vacances non payées | F49: =Labels!$B$182 -> vn | G49: =IF($AJ$13=0,0,$AJ$13) -> 0 | I49: =IF($AK$13=0,0,$AK$13) -> 0 | K49: =IF($AL$13=0,0,$AL$13) -> 0 | M49: =IF($AM$13=0,0,$AM$13) -> 0 | O49: =IF($AN$13=0,0,$AN$13) -> 0 | Q49: =IF($AO$13=0,0,$AO$13) -> 0 | S49: =IF($AP$13=0,0,$AP$13) -> 0 | U49: =IF($AQ$13=0,0,$AQ$13) -> 0 | W49: =IF($AR$13=0,0,$AR$13) -> 0 | Y49: =IF($AS$13=0,0,$AS$13) -> 0 | AA49: =IF($AT$13=0,0,$AT$13) -> 0 | AC49: =IF($AU$13=0,0,$AU$13) -> 0 | AE49: =IF($AV$13=0,0,$AV$13) -> 0 | AK49: Feb | AL49: =AL66 -> 100 | AM49: =IF(AM66>0,TRUE,FALSE) -> TRUE | AN49: TRUE | AO49: TRUE | AP49: TRUE | AQ49: TRUE | AR49: =COUNTIF(AM49:AQ49,TRUE) -> 5
A50: =Labels!$B$116 -> Jours fériés art. 12.2 CCT | C50: =IF($AJ$20="","",$AJ$20) ->  | F50: =Labels!$B$118 -> jf | G50: =IF($AJ$18=0,0,$AJ$18) -> 0 | I50: =IF($AK$18=0,0,$AK$18) -> 0 | K50: =IF($AL$18=0,0,$AL$18) -> 0 | M50: =IF($AM$18=0,0,$AM$18) -> 0 | O50: =IF($AN$18=0,0,$AN$18) -> 0 | Q50: =IF($AO$18=0,0,$AO$18) -> 0 | S50: =IF($AP$18=0,0,$AP$18) -> 0 | U50: =IF($AQ$18=0,0,$AQ$18) -> 0 | W50: =IF($AR$18=0,0,$AR$18) -> 0 | Y50: =IF($AS$18=0,0,$AS$18) -> 0 | AA50: =IF($AT$18=0,0,$AT$18) -> 0 | AC50: =IF($AU$18=0,0,$AU$18) -> 0 | AE50: =IF($AV$18=0,0,$AV$18) -> 0 | AK50: Mrz | AL50: 100 | AM50: =IF(AM67>0,TRUE,FALSE) -> TRUE | AN50: TRUE | AO50: TRUE | AP50: TRUE | AQ50: TRUE | AR50: 5
A51: =Labels!$B$119 -> Maladie art. 13 CCT | F51: =Labels!$B$120 -> ma | G51: =IF($AJ$5=0,0,$AJ$5) -> 0 | I51: =IF($AK$5=0,0,$AK$5) -> 0 | K51: =IF($AL$5=0,0,$AL$5) -> 0 | M51: =IF($AM$5=0,0,$AM$5) -> 0 | O51: =IF($AN$5=0,0,$AN$5) -> 0 | Q51: =IF($AO$5=0,0,$AO$5) -> 0 | S51: =IF($AP$5=0,0,$AP$5) -> 0 | U51: =IF($AQ$5=0,0,$AQ$5) -> 0 | W51: =IF($AR$5=0,0,$AR$5) -> 0 | Y51: =IF($AS$5=0,0,$AS$5) -> 0 | AA51: =IF($AT$5=0,0,$AT$5) -> 0 | AC51: =IF($AU$5=0,0,$AU$5) -> 0 | AE51: =IF($AV$5=0,0,$AV$5) -> 0 | AK51: Apr | AL51: 100 | AM51: =IF(AM68>0,TRUE,FALSE) -> TRUE | AN51: TRUE | AO51: TRUE | AP51: TRUE | AQ51: TRUE | AR51: 5
A52: =Labels!$B$184 -> non payeé | G52: =IF(AJ$16=0,0,AJ$16) -> 0 | I52: =IF($AK$16=0,0,$AK$16) -> 0 | K52: =IF($AL$16=0,0,$AL$16) -> 0 | M52: =IF($AM$16=0,0,$AM$16) -> 0 | O52: =IF($AN$16=0,0,$AN$16) -> 0 | Q52: =IF($AO$16=0,0,$AO$16) -> 0 | S52: =IF($AP$16=0,0,$AP$16) -> 0 | U52: =IF($AQ$16=0,0,$AQ$16) -> 0 | W52: =IF($AR$16=0,0,$AR$16) -> 0 | Y52: =IF($AS$16=0,0,$AS$16) -> 0 | AA52: =IF($AT$16=0,0,$AT$16) -> 0 | AC52: =IF($AU$16=0,0,$AU$16) -> 0 | AE52: =IF($AV$16=0,0,$AV$16) -> 0 | AK52: Mai | AL52: 100 | AM52: =IF(AM69>0,TRUE,FALSE) -> TRUE | AN52: TRUE | AO52: TRUE | AP52: TRUE | AQ52: TRUE | AR52: 5
A53: =Labels!$B$121 -> Accident art. 14 CCT | F53: =Labels!$B$122 -> ac | G53: =IF($AJ$6=0,0,$AJ$6) -> 0 | I53: =IF($AK$6=0,0,$AK$6) -> 0 | K53: =IF($AL$6=0,0,$AL$6) -> 0 | M53: =IF($AM$6=0,0,$AM$6) -> 0 | O53: =IF($AN$6=0,0,$AN$6) -> 0 | Q53: =IF($AO$6=0,0,$AO$6) -> 0 | S53: =IF($AP$6=0,0,$AP$6) -> 0 | U53: =IF($AQ$6=0,0,$AQ$6) -> 0 | W53: =IF($AR$6=0,0,$AR$6) -> 0 | Y53: =IF($AS$6=0,0,$AS$6) -> 0 | AA53: =IF($AT$6=0,0,$AT$6) -> 0 | AC53: =IF($AU$6=0,0,$AU$6) -> 0 | AE53: =IF($AV$6=0,0,$AV$6) -> 0 | AK53: Jun | AL53: 100 | AM53: =IF(AM70>0,TRUE,FALSE) -> TRUE | AN53: TRUE | AO53: TRUE | AP53: TRUE | AQ53: TRUE | AR53: 5
A54: =Labels!$B$123 -> Grossesse/Maternité art. 15 CCT | F54: =Labels!$B$124 -> gm | G54: =IF($AJ$7=0,0,$AJ$7) -> 0 | I54: =IF($AK$7=0,0,$AK$7) -> 0 | K54: =IF($AL$7=0,0,$AL$7) -> 0 | M54: =IF($AM$7=0,0,$AM$7) -> 0 | O54: =IF($AN$7=0,0,$AN$7) -> 0 | Q54: =IF($AO$7=0,0,$AO$7) -> 0 | S54: =IF($AP$7=0,0,$AP$7) -> 0 | U54: =IF($AQ$7=0,0,$AQ$7) -> 0 | W54: =IF($AR$7=0,0,$AR$7) -> 0 | Y54: =IF($AS$7=0,0,$AS$7) -> 0 | AA54: =IF($AT$7=0,0,$AT$7) -> 0 | AC54: =IF($AU$7=0,0,$AU$7) -> 0 | AE54: =IF($AV$7=0,0,$AV$7) -> 0 | AK54: Jul | AL54: 100 | AM54: =IF(AM71>0,TRUE,FALSE) -> TRUE | AN54: TRUE | AO54: TRUE | AP54: TRUE | AQ54: TRUE | AR54: 5
A55: =Labels!$B$125 -> Militaire/Promotion/Protection civile art. 16 CCT | F55: =Labels!$B$126 -> mi | G55: =IF($AJ$8=0,0,$AJ$8) -> 0 | I55: =IF($AK$8=0,0,$AK$8) -> 0 | K55: =IF($AL$8=0,0,$AL$8) -> 0 | M55: =IF($AM$8=0,0,$AM$8) -> 0 | O55: =IF($AN$8=0,0,$AN$8) -> 0 | Q55: =IF($AO$8=0,0,$AO$8) -> 0 | S55: =IF($AP$8=0,0,$AP$8) -> 0 | U55: =IF($AQ$8=0,0,$AQ$8) -> 0 | W55: =IF($AR$8=0,0,$AR$8) -> 0 | Y55: =IF($AS$8=0,0,$AS$8) -> 0 | AA55: =IF($AT$8=0,0,$AT$8) -> 0 | AC55: =IF($AU$8=0,0,$AU$8) -> 0 | AE55: =IF($AV$8=0,0,$AV$8) -> 0 | AK55: Aug | AL55: 100 | AM55: =IF(AM72>0,TRUE,FALSE) -> TRUE | AN55: TRUE | AO55: TRUE | AP55: TRUE | AQ55: TRUE | AR55: 5
A56: =Labels!$B$127 -> Chômage partiel et perte de travail cause d'intempéries | F56: =Labels!$B$128 -> ch | G56: =IF($AJ$11=0,0,$AJ$11) -> 0 | I56: =IF($AK$11=0,0,$AK$11) -> 0 | K56: =IF($AL$11=0,0,$AL$11) -> 0 | M56: =IF($AM$11=0,0,$AM$11) -> 0 | O56: =IF($AN$11=0,0,$AN$11) -> 0 | Q56: =IF($AO$11=0,0,$AO$11) -> 0 | S56: =IF($AP$11=0,0,$AP$11) -> 0 | U56: =IF($AQ$11=0,0,$AQ$11) -> 0 | W56: =IF($AR$11=0,0,$AR$11) -> 0 | Y56: =IF($AS$11=0,0,$AS$11) -> 0 | AA56: =IF($AT$11=0,0,$AT$11) -> 0 | AC56: =IF($AU$11=0,0,$AU$11) -> 0 | AE56: =IF($AV$11=0,0,$AV$11) -> 0 | AK56: Sep | AL56: 100 | AM56: =IF(AM73>0,TRUE,FALSE) -> TRUE | AN56: TRUE | AO56: TRUE | AP56: TRUE | AQ56: TRUE | AR56: 5
A57: =Labels!$B$129 -> Ecole professionnelle | F57: =Labels!$B$130 -> ep | G57: =IF($AJ$9=0,0,$AJ$9) -> 0 | I57: =IF($AK$9=0,0,$AK$9) -> 0 | K57: =IF($AL$9=0,0,$AL$9) -> 0 | M57: =IF($AM$9=0,0,$AM$9) -> 0 | O57: =IF($AN$9=0,0,$AN$9) -> 0 | Q57: =IF($AO$9=0,0,$AO$9) -> 0 | S57: =IF($AP$9=0,0,$AP$9) -> 0 | U57: =IF($AQ$9=0,0,$AQ$9) -> 0 | W57: =IF($AR$9=0,0,$AR$9) -> 0 | Y57: =IF($AS$9=0,0,$AS$9) -> 0 | AA57: =IF($AT$9=0,0,$AT$9) -> 0 | AC57: =IF($AU$9=0,0,$AU$9) -> 0 | AE57: =IF($AV$9=0,0,$AV$9) -> 0 | AK57: Okt | AL57: 100 | AM57: =IF(AM74>0,TRUE,FALSE) -> TRUE | AN57: TRUE | AO57: TRUE | AP57: TRUE | AQ57: TRUE | AR57: 5
A58: =Labels!$B$131 -> Cours | F58: =Labels!$B$132 -> co | G58: =IF($AJ$10=0,0,$AJ$10) -> 0 | I58: =IF($AK$10=0,0,$AK$10) -> 0 | K58: =IF($AL$10=0,0,$AL$10) -> 0 | M58: =IF($AM$10=0,0,$AM$10) -> 0 | O58: =IF($AN$10=0,0,$AN$10) -> 0 | Q58: =IF($AO$10=0,0,$AO$10) -> 0 | S58: =IF($AP$10=0,0,$AP$10) -> 0 | U58: =IF($AQ$10=0,0,$AQ$10) -> 0 | W58: =IF($AR$10=0,0,$AR$10) -> 0 | Y58: =IF($AS$10=0,0,$AS$10) -> 0 | AA58: =IF($AT$10=0,0,$AT$10) -> 0 | AC58: =IF($AU$10=0,0,$AU$10) -> 0 | AE58: =IF($AV$10=0,0,$AV$10) -> 0 | AK58: Nov | AL58: 100 | AM58: =IF(AM75>0,TRUE,FALSE) -> TRUE | AN58: TRUE | AO58: TRUE | AP58: TRUE | AQ58: TRUE | AR58: 5
A59: =Labels!$B$133 -> Heures de compensation | B59: =Labels!$B$134 -> de l'année passée | F59: =Labels!$B$135 -> cp | G59: =IF($AJ$12=0,0,$AJ$12) -> 0 | I59: =IF($AK$12=0,0,$AK$12) -> 0 | K59: =IF($AL$12=0,0,$AL$12) -> 0 | M59: =IF($AM$12=0,0,$AM$12) -> 0 | O59: =IF($AN$12=0,0,$AN$12) -> 0 | Q59: =IF($AO$12=0,0,$AO$12) -> 0 | S59: =IF($AP$12=0,0,$AP$12) -> 0 | U59: =IF($AQ$12=0,0,$AQ$12) -> 0 | W59: =IF($AR$12=0,0,$AR$12) -> 0 | AE59: =IF($AV$12=0,0,$AV$12) -> 0 | AK59: Dez | AL59: 100 | AM59: =IF(AM76>0,TRUE,FALSE) -> TRUE | AN59: TRUE | AO59: TRUE | AP59: TRUE | AQ59: TRUE | AR59: 5
B60: =Labels!$B$136 -> de l'année en cours (contrôle) | F60: =Labels!$B$137 -> cc | G60: =IF($AJ$15=0,0,$AJ$15) -> 0 | I60: =IF($AK$15=0,0,$AK$15) -> 0 | K60: =IF($AL$15=0,0,$AL$15) -> 0 | M60: =IF($AM$15=0,0,$AM$15) -> 0 | O60: =IF($AN$15=0,0,$AN$15) -> 0 | Q60: =IF($AO$15=0,0,$AO$15) -> 0 | S60: =IF($AP$15=0,0,$AP$15) -> 0 | U60: =IF($AQ$15=0,0,$AQ$15) -> 0 | W60: =IF($AR$15=0,0,$AR$15) -> 0 | Y60: =IF($AS$15=0,0,$AS$15) -> 0 | AA60: =IF($AT$15=0,0,$AT$15) -> 0 | AC60: =IF($AU$15=0,0,$AU$15) -> 0 | AE60: =IF($AV$15=0,0,$AV$15) -> 0 | AI60: Abbildung Wochentage für Formel => | AK60: Avg | AL60: =SUM(AL48:AL59)/12 -> 100 | AM60: 2 | AN60: 3 | AO60: 4 | AP60: 5 | AQ60: 6
A61: =Labels!$B$138 -> Paiement des heures | B61: =Labels!$B$139 -> de l'année passée | G61: =IF($AJ$21=0,0,$AJ$21) -> 0 | I61: =IF($AK$21=0,0,$AK$21) -> 0 | K61: =IF($AL$21=0,0,$AL$21) -> 0 | M61: =IF($AM$21=0,0,$AM$21) -> 0 | O61: =IF($AN$21=0,0,$AN$21) -> 0 | Q61: =IF($AO$21=0,0,$AO$21) -> 0 | S61: =IF($AP$21=0,0,$AP$21) -> 0 | U61: =IF($AQ$21=0,0,$AQ$21) -> 0 | W61: =IF($AR$21=0,0,$AR$21) -> 0 | AE61: =IF($AV$21=0,0,$AV$21) -> 0
A62: =Labels!$B$140 -> Différence en heures | B62: =Labels!$B$141 -> après compensation et paiement | G62: =IF(ROUND($P$4,3)=0,0,$P$4-G59-G61) -> 0 | I62: =IF(ROUND(G62,3)=0,0,G62-(SUM(I59+I61))) -> 0 | K62: =IF(ROUND(I62,3)=0,0,I62-K61-K59) -> 0 | M62: =IF(ROUND(K62,3)=0,0,K62-(SUM(M61+M59))) -> 0 | O62: =IF(ROUND(M62,3)=0,0,M62-(SUM(O61+O59))) -> 0 | Q62: =IF(ROUND(O62,3)=0,0,O62-(SUM(Q61+Q59))) -> 0 | S62: =IF(ROUND(Q62,3)=0,0,Q62-(SUM(S61+S59))) -> 0 | U62: =IF(ROUND(S62,3)=0,0,S62-(SUM(U61+U59))) -> 0 | W62: =IF(ROUND(U62,3)=0,0,U62-(SUM(W61+W59))) -> 0 | Y62: =IF($W$62<0.1,"",AY44) ->  | AI62: Anstellungsdetails Expertenmodus | AK62: Name: | AL62: Muster Peter | AO62: Default-% | AQ62: 100
A63: =Labels!$B$138 -> Paiement des heures | B63: =Labels!$B$142 -> de l'année en cours | G63: =IF($AJ$22=0,0,$AJ$22) -> 0 | I63: =IF($AK$22=0,0,$AK$22) -> 0 | K63: =IF($AL$22=0,0,$AL$22) -> 0 | M63: =IF($AM$22=0,0,$AM$22) -> 0 | O63: =IF($AN$22=0,0,$AN$22) -> 0 | Q63: =IF($AO$22=0,0,$AO$22) -> 0 | S63: =IF($AP$22=0,0,$AP$22) -> 0 | U63: =IF($AQ$22=0,0,$AQ$22) -> 0 | W63: =IF($AR$22=0,0,$AR$22) -> 0 | Y63: =IF($AS$22=0,0,$AS$22) -> 0 | AA63: =IF($AT$22=0,0,$AT$22) -> 0 | AC63: =IF($AU$22=0,0,$AU$22) -> 0 | AE63: =IF($AV$22=0,0,$AV$22) -> 0
A64: =Labels!$B$143 -> Heures manquantes | B64: =Labels!$B$144 -> de l'année en cours (contrôle) | F64: =Labels!$B$145 -> hm | G64: =IF($AJ$14=0,0,$AJ$14) -> 0 | I64: =IF($AK$14=0,0,$AK$14) -> 0 | K64: =IF($AL$14=0,0,$AL$14) -> 0 | M64: =IF($AM$14=0,0,$AM$14) -> 0 | O64: =IF($AN$14=0,0,$AN$14) -> 0 | Q64: =IF($AO$14=0,0,$AO$14) -> 0 | S64: =IF($AP$14=0,0,$AP$14) -> 0 | U64: =IF($AQ$14=0,0,$AQ$14) -> 0 | W64: =IF($AR$14=0,0,$AR$14) -> 0 | Y64: =IF($AS$14=0,0,$AS$14) -> 0 | AA64: =IF($AT$14=0,0,$AT$14) -> 0 | AC64: =IF($AU$14=0,0,$AU$14) -> 0 | AE64: =IF($AV$14=0,0,$AV$14) -> 0 | AL64: % | AM64: MO | AN64: DI | AO64: MI | AP64: DO | AQ64: FR | AR64: P-AT
A65: =Labels!$B$146 -> Total (majorations inclus) | B65: =Labels!$B$147 -> heures productives et inproductives | G65: =IF($AG$35=0,0,$AG$35) -> 0 | I65: =IF($AG$100=0,0,$AG$100) -> 0 | K65: =IF($AG$165=0,0,$AG$165) -> 0 | M65: =IF($AG$230=0,0,$AG$230) -> 0 | O65: =IF($AG$295=0,0,$AG$295) -> 0 | Q65: =IF($AG$360=0,0,$AG$360) -> 0 | S65: =IF($AG$425=0,0,$AG$425) -> 0 | U65: =IF($AG$490=0,0,$AG$490) -> 0 | W65: =IF($AG$555=0,0,$AG$555) -> 0 | Y65: =IF($AG$620=0,0,$AG$620) -> 0 | AA65: =IF($AG$685=0,0,$AG$685) -> 0 | AC65: =IF($AG$750=0,0,$AG$750) -> 0 | AE65: =SUM($G$65:$AD$65) -> 0 | AK65: Jan | AL65: =SUM(AM65:AQ65)/5 -> 100 | AM65: 100 | AN65: 100 | AO65: 100 | AP65: 100 | AQ65: 100 | AR65: =SUM(AM65:AQ65)/100 -> 5
A66: =Labels!$B$148 -> Comparaison des heures | B66: =Labels!$B$149 -> aux heures théorique CCT (heures manquantes de l'année passée incl.) | G66: =IF($AG$37=0,0,$AG$37)-$AE$34+$P$5 -> -176 | I66: =IF($AG$102=0,0,$AG$102)-$AE$99 -> -160 | K66: =IF($AG$167=0,0,$AG$167)-$AE$164 -> -184 | M66: =IF($AG$232=0,0,$AG$232)-$AE$229 -> -160 | O66: =IF($AG$297=0,0,$AG$297)-$AE$294 -> -184 | Q66: =IF($AG$362=0,0,$AG$362)-$AE$359 -> -176 | S66: =IF($AG$427=0,0,$AG$427)-$AE$424 -> -168 | U66: =IF($AG$492=0,0,$AG$492)-$AE$489 -> -184 | W66: =IF($AG$557=0,0,$AG$557)-$AE$554 -> -168 | Y66: =IF($AG$622=0,0,$AG$622)-$AE$619 -> -176 | AA66: =IF($AG$687=0,0,$AG$687)-$AE$684 -> -176 | AC66: =IF($AG$752=0,0,$AG$752)-$AE$749 -> -168 | AE66: =SUM($G$66:$AD$66) -> -2080 | AK66: Feb | AL66: =SUM(AM66:AQ66)/5 -> 100 | AM66: 100 | AN66: 100 | AO66: 100 | AP66: 100 | AQ66: 100 | AR66: =SUM(AM66:AQ66)/100 -> 5
B67: =Labels!$B$151 -> aux heures théorique (cumulées) | G67: =IF(G40=0,0,$G$66) -> -176 | I67: =IF(I40=0,0,SUM($G$66:$J$66)) -> -336 | K67: =IF(K40=0,0,SUM($G$66:$L$66)) -> -520 | M67: =IF(M40=0,0,SUM($G$66:$N$66)) -> -680 | O67: =IF(O40=0,0,SUM($G$66:$P$66)) -> -864 | Q67: =IF(Q40=0,0,SUM($G$66:$R$66)) -> -1040 | S67: =IF(S40=0,0,SUM($G$66:$T$66)) -> -1208 | U67: =IF(U40=0,0,SUM($G$66:$V$66)) -> -1392 | W67: =IF(W40=0,0,SUM($G$66:$X$66)) -> -1560 | Y67: =IF(Y40=0,0,SUM($G$66:$Z$66)) -> -1736 | AA67: =IF(AA40=0,0,SUM($G$66:$AB$66)) -> -1912 | AC67: =IF(AC40=0,0,SUM($G$66:$AD$66)) -> -2080 | AK67: Mrz | AL67: 100 | AM67: 100 | AN67: 100 | AO67: 100 | AP67: 100 | AQ67: 100 | AR67: 5
A68: =Labels!$B$153 -> Vacances (contrôle) | B68: =Labels!$B$154 -> Vacances année passée | G68: =IF($AA$4=0,0,$AA$4) -> 0 | I68: =Labels!$B$155 -> Vacances selon art 12.1 CCT | M68: =IF($AA$5=0,0,$AA$5) -> 0 | O68: =Labels!$B$156 -> Total des vacances | S68: =SUM(G68+M68) -> 0 | U68: =Labels!$B$157 -> Vacances prises | Y68: =IF($AV$4=0,0,$AV$4) -> 0 | AA68: =Labels!$B$158 -> Vacances restantes | AE68: =IF(S68=0,0,S68-Y68) -> 0 | AK68: Apr | AL68: 100 | AM68: 100 | AN68: 100 | AO68: 100 | AP68: 100 | AQ68: 100 | AR68: 5
AK69: Mai | AL69: 100 | AM69: 100 | AN69: 100 | AO69: 100 | AP69: 100 | AQ69: 100 | AR69: 5
AK70: Jun | AL70: 100 | AM70: 100 | AN70: 100 | AO70: 100 | AP70: 100 | AQ70: 100 | AR70: 5
A71: =$A$3 -> Nom/Prénom | B71: =IF($B$3="","",$B$3) -> Modèle Pierre | AF71: =AF3 -> 0 | AK71: Jul | AL71: 100 | AM71: 100 | AN71: 100 | AO71: 100 | AP71: 100 | AQ71: 100 | AR71: 5
A72: =$A$4 -> Emploi % | B72: =$AL$49 -> 100 | D72: =Labels!B90 -> en février | AK72: Aug | AL72: 100 | AM72: 100 | AN72: 100 | AO72: 100 | AP72: 100 | AQ72: 100 | AR72: 5
A73: =$A$5 -> Solde année en cours | D73: =IF($AE$66=0,0,$AE$66) -> -2080 | AK73: Sep | AL73: 100 | AM73: 100 | AN73: 100 | AO73: 100 | AP73: 100 | AQ73: 100 | AR73: 5
A74: =TEXT(DATE(YEAR(AP29),MONTH(AP29)+1,1),"MMMM"&Labels!B13) -> février | B74: =$B$9 -> Solde mois + / - | F74: =(AG77-(SUM(AG78:AG92)-AE99))*-1 -> -160 | K74: =$K$9 -> = | L74: =$L$9 -> Les cases marquées en jaune doivent être remplies (les autres seront calculées automatiquement) | AG74: =COUNT(B77:AF77)&" "&Labels!$B$63 -> 20 Jours | AK74: Okt | AL74: 100 | AM74: 100 | AN74: 100 | AO74: 100 | AP74: 100 | AQ74: 100 | AR74: 5
A75: =$A$10 -> Jour | B75: =AF10+1 -> 2023-02-01 | C75: =B75+1 -> 2023-02-02 | D75: 2023-02-03 | E75: 2023-02-04 | F75: 2023-02-05 | G75: 2023-02-06 | H75: 2023-02-07 | I75: 2023-02-08 | J75: 2023-02-09 | K75: 2023-02-10 | L75: 2023-02-11 | M75: 2023-02-12 | N75: 2023-02-13 | O75: 2023-02-14 | P75: 2023-02-15 | Q75: 2023-02-16 | R75: 2023-02-17 | S75: 2023-02-18 | T75: 2023-02-19 | U75: 2023-02-20 | V75: 2023-02-21 | W75: 2023-02-22 | X75: 2023-02-23 | Y75: 2023-02-24 | Z75: 2023-02-25 | AA75: 2023-02-26 | AB75: 2023-02-27 | AC75: 2023-02-28 | AD75: =IF(istSchaltjahr,$AC$75+1,"") ->  | AK75: Nov | AL75: 100 | AM75: 100 | AN75: 100 | AO75: 100 | AP75: 100 | AQ75: 100 | AR75: 5
A76: =$A$11 -> semaine civile | B76: =IF(B75="","",TRUNC((B75-DATE(YEAR(B75+3-MOD(B75-2,7)),1,MOD(B75-2,7)-9))/7)) -> 5 | C76: 5 | D76: 5 | E76: 5 | F76: 5 | G76: 6 | H76: 6 | I76: 6 | J76: 6 | K76: 6 | L76: 6 | M76: 6 | N76: 7 | O76: 7 | P76: 7 | Q76: 7 | R76: 7 | S76: 7 | T76: 7 | U76: 8 | V76: 8 | W76: 8 | X76: 8 | Y76: 8 | Z76: 8 | AA76: 8 | AB76: 9 | AC76: 9 | AD76: =IF(istSchaltjahr,TRUNC((AD75-DATE(YEAR(AD75+3-MOD(AD75-2,7)),1,MOD(AD75-2,7)-9))/7),"") ->  | AH76: Woche | AK76: Dez | AL76: 100 | AM76: 100 | AN76: 100 | AO76: 100 | AP76: 100 | AQ76: 100 | AR76: 5
A77: =$A$12 -> Théorique sel. CCT | B77: =IF(AND(MOD(B75,7)>=2,SUMPRODUCT(($AM$60:$AQ$60=MOD(B75,7))*$AM$49:$AQ$49),B854=""),$J$7*SUMPRODUCT(($AM$77:$AQ$77=MOD(B75,7))*$AM$66:$AQ$66)%,"") -> 8 | C77: =IF(AND(MOD(C75,7)>=2,SUMPRODUCT(($AM$60:$AQ$60=MOD(C75,7))*$AM$49:$AQ$49),C854=""),$J$7*SUMPRODUCT(($AM$77:$AQ$77=MOD(C75,7))*$AM$66:$AQ$66)%,"") -> 8 | D77: =IF(AND(MOD(D75,7)>=2,SUMPRODUCT(($AM$60:$AQ$60=MOD(D75,7))*$AM$49:$AQ$49),D854=""),$J$7*SUMPRODUCT(($AM$77:$AQ$77=MOD(D75,7))*$AM$66:$AQ$66)%,"") -> 8 | E77: =IF(AND(MOD(E75,7)>=2,SUMPRODUCT(($AM$60:$AQ$60=MOD(E75,7))*$AM$49:$AQ$49),E854=""),$J$7*SUMPRODUCT(($AM$77:$AQ$77=MOD(E75,7))*$AM$66:$AQ$66)%,"") ->  | F77: =IF(AND(MOD(F75,7)>=2,SUMPRODUCT(($AM$60:$AQ$60=MOD(F75,7))*$AM$49:$AQ$49),F854=""),$J$7*SUMPRODUCT(($AM$77:$AQ$77=MOD(F75,7))*$AM$66:$AQ$66)%,"") ->  | G77: =IF(AND(MOD(G75,7)>=2,SUMPRODUCT(($AM$60:$AQ$60=MOD(G75,7))*$AM$49:$AQ$49),G854=""),$J$7*SUMPRODUCT(($AM$77:$AQ$77=MOD(G75,7))*$AM$66:$AQ$66)%,"") -> 8 | H77: =IF(AND(MOD(H75,7)>=2,SUMPRODUCT(($AM$60:$AQ$60=MOD(H75,7))*$AM$49:$AQ$49),H854=""),$J$7*SUMPRODUCT(($AM$77:$AQ$77=MOD(H75,7))*$AM$66:$AQ$66)%,"") -> 8 | I77: =IF(AND(MOD(I75,7)>=2,SUMPRODUCT(($AM$60:$AQ$60=MOD(I75,7))*$AM$49:$AQ$49),I854=""),$J$7*SUMPRODUCT(($AM$77:$AQ$77=MOD(I75,7))*$AM$66:$AQ$66)%,"") -> 8 | J77: =IF(AND(MOD(J75,7)>=2,SUMPRODUCT(($AM$60:$AQ$60=MOD(J75,7))*$AM$49:$AQ$49),J854=""),$J$7*SUMPRODUCT(($AM$77:$AQ$77=MOD(J75,7))*$AM$66:$AQ$66)%,"") -> 8 | K77: =IF(AND(MOD(K75,7)>=2,SUMPRODUCT(($AM$60:$AQ$60=MOD(K75,7))*$AM$49:$AQ$49),K854=""),$J$7*SUMPRODUCT(($AM$77:$AQ$77=MOD(K75,7))*$AM$66:$AQ$66)%,"") -> 8 | L77: =IF(AND(MOD(L75,7)>=2,SUMPRODUCT(($AM$60:$AQ$60=MOD(L75,7))*$AM$49:$AQ$49),L854=""),$J$7*SUMPRODUCT(($AM$77:$AQ$77=MOD(L75,7))*$AM$66:$AQ$66)%,"") ->  | M77: =IF(AND(MOD(M75,7)>=2,SUMPRODUCT(($AM$60:$AQ$60=MOD(M75,7))*$AM$49:$AQ$49),M854=""),$J$7*SUMPRODUCT(($AM$77:$AQ$77=MOD(M75,7))*$AM$66:$AQ$66)%,"") ->  | N77: =IF(AND(MOD(N75,7)>=2,SUMPRODUCT(($AM$60:$AQ$60=MOD(N75,7))*$AM$49:$AQ$49),N854=""),$J$7*SUMPRODUCT(($AM$77:$AQ$77=MOD(N75,7))*$AM$66:$AQ$66)%,"") -> 8 | O77: =IF(AND(MOD(O75,7)>=2,SUMPRODUCT(($AM$60:$AQ$60=MOD(O75,7))*$AM$49:$AQ$49),O854=""),$J$7*SUMPRODUCT(($AM$77:$AQ$77=MOD(O75,7))*$AM$66:$AQ$66)%,"") -> 8 | P77: =IF(AND(MOD(P75,7)>=2,SUMPRODUCT(($AM$60:$AQ$60=MOD(P75,7))*$AM$49:$AQ$49),P854=""),$J$7*SUMPRODUCT(($AM$77:$AQ$77=MOD(P75,7))*$AM$66:$AQ$66)%,"") -> 8 | Q77: =IF(AND(MOD(Q75,7)>=2,SUMPRODUCT(($AM$60:$AQ$60=MOD(Q75,7))*$AM$49:$AQ$49),Q854=""),$J$7*SUMPRODUCT(($AM$77:$AQ$77=MOD(Q75,7))*$AM$66:$AQ$66)%,"") -> 8 | R77: =IF(AND(MOD(R75,7)>=2,SUMPRODUCT(($AM$60:$AQ$60=MOD(R75,7))*$AM$49:$AQ$49),R854=""),$J$7*SUMPRODUCT(($AM$77:$AQ$77=MOD(R75,7))*$AM$66:$AQ$66)%,"") -> 8 | S77: =IF(AND(MOD(S75,7)>=2,SUMPRODUCT(($AM$60:$AQ$60=MOD(S75,7))*$AM$49:$AQ$49),S854=""),$J$7*SUMPRODUCT(($AM$77:$AQ$77=MOD(S75,7))*$AM$66:$AQ$66)%,"") ->  | T77: =IF(AND(MOD(T75,7)>=2,SUMPRODUCT(($AM$60:$AQ$60=MOD(T75,7))*$AM$49:$AQ$49),T854=""),$J$7*SUMPRODUCT(($AM$77:$AQ$77=MOD(T75,7))*$AM$66:$AQ$66)%,"") ->  | U77: =IF(AND(MOD(U75,7)>=2,SUMPRODUCT(($AM$60:$AQ$60=MOD(U75,7))*$AM$49:$AQ$49),U854=""),$J$7*SUMPRODUCT(($AM$77:$AQ$77=MOD(U75,7))*$AM$66:$AQ$66)%,"") -> 8 | V77: =IF(AND(MOD(V75,7)>=2,SUMPRODUCT(($AM$60:$AQ$60=MOD(V75,7))*$AM$49:$AQ$49),V854=""),$J$7*SUMPRODUCT(($AM$77:$AQ$77=MOD(V75,7))*$AM$66:$AQ$66)%,"") -> 8 | W77: =IF(AND(MOD(W75,7)>=2,SUMPRODUCT(($AM$60:$AQ$60=MOD(W75,7))*$AM$49:$AQ$49),W854=""),$J$7*SUMPRODUCT(($AM$77:$AQ$77=MOD(W75,7))*$AM$66:$AQ$66)%,"") -> 8 | X77: =IF(AND(MOD(X75,7)>=2,SUMPRODUCT(($AM$60:$AQ$60=MOD(X75,7))*$AM$49:$AQ$49),X854=""),$J$7*SUMPRODUCT(($AM$77:$AQ$77=MOD(X75,7))*$AM$66:$AQ$66)%,"") -> 8 | Y77: =IF(AND(MOD(Y75,7)>=2,SUMPRODUCT(($AM$60:$AQ$60=MOD(Y75,7))*$AM$49:$AQ$49),Y854=""),$J$7*SUMPRODUCT(($AM$77:$AQ$77=MOD(Y75,7))*$AM$66:$AQ$66)%,"") -> 8 | Z77: =IF(AND(MOD(Z75,7)>=2,SUMPRODUCT(($AM$60:$AQ$60=MOD(Z75,7))*$AM$49:$AQ$49),Z854=""),$J$7*SUMPRODUCT(($AM$77:$AQ$77=MOD(Z75,7))*$AM$66:$AQ$66)%,"") ->  | AA77: =IF(AND(MOD(AA75,7)>=2,SUMPRODUCT(($AM$60:$AQ$60=MOD(AA75,7))*$AM$49:$AQ$49),AA854=""),$J$7*SUMPRODUCT(($AM$77:$AQ$77=MOD(AA75,7))*$AM$66:$AQ$66)%,"") ->  | AB77: =IF(AND(MOD(AB75,7)>=2,SUMPRODUCT(($AM$60:$AQ$60=MOD(AB75,7))*$AM$49:$AQ$49),AB854=""),$J$7*SUMPRODUCT(($AM$77:$AQ$77=MOD(AB75,7))*$AM$66:$AQ$66)%,"") -> 8 | AC77: =IF(AND(MOD(AC75,7)>=2,SUMPRODUCT(($AM$60:$AQ$60=MOD(AC75,7))*$AM$49:$AQ$49),AC854=""),$J$7*SUMPRODUCT(($AM$77:$AQ$77=MOD(AC75,7))*$AM$66:$AQ$66)%,"") -> 8 | AD77: =IF(istSchaltjahr,IF(AND(MOD(AD75,7)>=2,SUMPRODUCT(($AM$60:$AQ$60=MOD(AD75,7))*$AM$49:$AQ$49),AD854=""),$J$7*SUMPRODUCT(($AM$77:$AQ$77=MOD(AD75,7))*$AM$66:$AQ$66)%,""),"") ->  | AG77: =IF($AD$75="",SUM(B77:AC77),SUM(B77:AF77)) -> 160 | AH77: [00] | AI77: Abbildung Wochentage für Formel => | AK77: Avg | AL77: =SUM(AL65:AL76)/12 -> 100 | AM77: 2 | AN77: 3 | AO77: 4 | AP77: 5 | AQ77: 6
A78: =$A$13 -> Absences | B78: =B870 -> 0 | C78: =C870 -> 0 | D78: 0 | E78: 0 | F78: 0 | G78: 0 | H78: 0 | I78: 0 | J78: 0 | K78: 0 | L78: 0 | M78: 0 | N78: 0 | O78: 0 | P78: 0 | Q78: 0 | R78: 0 | S78: 0 | T78: 0 | U78: 0 | V78: 0 | W78: 0 | X78: 0 | Y78: 0 | Z78: 0 | AA78: 0 | AB78: 0 | AC78: 0 | AD78: =IF(istSchaltjahr,AD870,"") ->  | AG78: =SUM($AK$3:$AK$13) -> 0 | AH78: [01]
A79: =$A$14 -> Code | B79: =IF(SUM(B857:B869)<>0,IF(MAX(B857:B869)<B870,Labels!$B$163,INDEX($AH$857:$AH$869,MATCH(MAX(B857:B869),B857:B869,0))),"") ->  | C79: =IF(SUM(C857:C869)<>0,IF(MAX(C857:C869)<C870,Labels!$B$163,INDEX($AH$857:$AH$869,MATCH(MAX(C857:C869),C857:C869,0))),"") ->  | D79: =IF(SUM(D857:D869)<>0,IF(MAX(D857:D869)<D870,Labels!$B$163,INDEX($AH$857:$AH$869,MATCH(MAX(D857:D869),D857:D869,0))),"") ->  | E79: =IF(SUM(E857:E869)<>0,IF(MAX(E857:E869)<E870,Labels!$B$163,INDEX($AH$857:$AH$869,MATCH(MAX(E857:E869),E857:E869,0))),"") ->  | F79: =IF(SUM(F857:F869)<>0,IF(MAX(F857:F869)<F870,Labels!$B$163,INDEX($AH$857:$AH$869,MATCH(MAX(F857:F869),F857:F869,0))),"") ->  | G79: =IF(SUM(G857:G869)<>0,IF(MAX(G857:G869)<G870,Labels!$B$163,INDEX($AH$857:$AH$869,MATCH(MAX(G857:G869),G857:G869,0))),"") ->  | H79: =IF(SUM(H857:H869)<>0,IF(MAX(H857:H869)<H870,Labels!$B$163,INDEX($AH$857:$AH$869,MATCH(MAX(H857:H869),H857:H869,0))),"") ->  | I79: =IF(SUM(I857:I869)<>0,IF(MAX(I857:I869)<I870,Labels!$B$163,INDEX($AH$857:$AH$869,MATCH(MAX(I857:I869),I857:I869,0))),"") ->  | J79: =IF(SUM(J857:J869)<>0,IF(MAX(J857:J869)<J870,Labels!$B$163,INDEX($AH$857:$AH$869,MATCH(MAX(J857:J869),J857:J869,0))),"") ->  | K79: =IF(SUM(K857:K869)<>0,IF(MAX(K857:K869)<K870,Labels!$B$163,INDEX($AH$857:$AH$869,MATCH(MAX(K857:K869),K857:K869,0))),"") ->  | L79: =IF(SUM(L857:L869)<>0,IF(MAX(L857:L869)<L870,Labels!$B$163,INDEX($AH$857:$AH$869,MATCH(MAX(L857:L869),L857:L869,0))),"") ->  | M79: =IF(SUM(M857:M869)<>0,IF(MAX(M857:M869)<M870,Labels!$B$163,INDEX($AH$857:$AH$869,MATCH(MAX(M857:M869),M857:M869,0))),"") ->  | N79: =IF(SUM(N857:N869)<>0,IF(MAX(N857:N869)<N870,Labels!$B$163,INDEX($AH$857:$AH$869,MATCH(MAX(N857:N869),N857:N869,0))),"") ->  | O79: =IF(SUM(O857:O869)<>0,IF(MAX(O857:O869)<O870,Labels!$B$163,INDEX($AH$857:$AH$869,MATCH(MAX(O857:O869),O857:O869,0))),"") ->  | P79: =IF(SUM(P857:P869)<>0,IF(MAX(P857:P869)<P870,Labels!$B$163,INDEX($AH$857:$AH$869,MATCH(MAX(P857:P869),P857:P869,0))),"") ->  | Q79: =IF(SUM(Q857:Q869)<>0,IF(MAX(Q857:Q869)<Q870,Labels!$B$163,INDEX($AH$857:$AH$869,MATCH(MAX(Q857:Q869),Q857:Q869,0))),"") ->  | R79: =IF(SUM(R857:R869)<>0,IF(MAX(R857:R869)<R870,Labels!$B$163,INDEX($AH$857:$AH$869,MATCH(MAX(R857:R869),R857:R869,0))),"") ->  | S79: =IF(SUM(S857:S869)<>0,IF(MAX(S857:S869)<S870,Labels!$B$163,INDEX($AH$857:$AH$869,MATCH(MAX(S857:S869),S857:S869,0))),"") ->  | T79: =IF(SUM(T857:T869)<>0,IF(MAX(T857:T869)<T870,Labels!$B$163,INDEX($AH$857:$AH$869,MATCH(MAX(T857:T869),T857:T869,0))),"") ->  | U79: =IF(SUM(U857:U869)<>0,IF(MAX(U857:U869)<U870,Labels!$B$163,INDEX($AH$857:$AH$869,MATCH(MAX(U857:U869),U857:U869,0))),"") ->  | V79: =IF(SUM(V857:V869)<>0,IF(MAX(V857:V869)<V870,Labels!$B$163,INDEX($AH$857:$AH$869,MATCH(MAX(V857:V869),V857:V869,0))),"") ->  | W79: =IF(SUM(W857:W869)<>0,IF(MAX(W857:W869)<W870,Labels!$B$163,INDEX($AH$857:$AH$869,MATCH(MAX(W857:W869),W857:W869,0))),"") ->  | X79: =IF(SUM(X857:X869)<>0,IF(MAX(X857:X869)<X870,Labels!$B$163,INDEX($AH$857:$AH$869,MATCH(MAX(X857:X869),X857:X869,0))),"") ->  | Y79: =IF(SUM(Y857:Y869)<>0,IF(MAX(Y857:Y869)<Y870,Labels!$B$163,INDEX($AH$857:$AH$869,MATCH(MAX(Y857:Y869),Y857:Y869,0))),"") ->  | Z79: =IF(SUM(Z857:Z869)<>0,IF(MAX(Z857:Z869)<Z870,Labels!$B$163,INDEX($AH$857:$AH$869,MATCH(MAX(Z857:Z869),Z857:Z869,0))),"") ->  | AA79: =IF(SUM(AA857:AA869)<>0,IF(MAX(AA857:AA869)<AA870,Labels!$B$163,INDEX($AH$857:$AH$869,MATCH(MAX(AA857:AA869),AA857:AA869,0))),"") ->  | AB79: =IF(SUM(AB857:AB869)<>0,IF(MAX(AB857:AB869)<AB870,Labels!$B$163,INDEX($AH$857:$AH$869,MATCH(MAX(AB857:AB869),AB857:AB869,0))),"") ->  | AC79: =IF(SUM(AC857:AC869)<>0,IF(MAX(AC857:AC869)<AC870,Labels!$B$163,INDEX($AH$857:$AH$869,MATCH(MAX(AC857:AC869),AC857:AC869,0))),"") ->  | AD79: =IF(istSchaltjahr,IF(SUM(AD857:AD869)<>0,IF(MAX(AD857:AD869)<AD870,Labels!$B$163,INDEX($AH$857:$AH$869,MATCH(MAX(AD857:AD869),AD857:AD869,0))),""),"") ->  | AG79: =$AK$16*-1 -> 0 | AH79: [02]
A80: =$A$15 -> 00h00-06h00 1) | AG80: =SUM(B80:AF80) -> 0 | AH80: [04]
A81: =$A$16 -> 06h00-20h00 2) | AG81: =SUMPRODUCT(B81:AF81*(B77:AF77<>""))-SUMPRODUCT(B81:AF81*(B83:AF83="ft")) -> 0 | AH81: [03]
A82: =$A$17 -> 20h00-24h00 3) | AG82: =SUM(B82:AF82) -> 0 | AH82: [05]
A83: =$A$18 -> Jours fériés "jf" | B83: =IF(WEEKDAY(B75,2)<=6,IF(CALENDRIER!E5="x",Labels!$B$118,""),"") ->  | C83: =IF(WEEKDAY(C75,2)<=6,IF(CALENDRIER!F5="x",Labels!$B$118,""),"") ->  | D83: =IF(WEEKDAY(D75,2)<=6,IF(CALENDRIER!G5="x",Labels!$B$118,""),"") ->  | E83: =IF(WEEKDAY(E75,2)<=6,IF(CALENDRIER!H5="x",Labels!$B$118,""),"") ->  | F83: =IF(WEEKDAY(F75,2)<=6,IF(CALENDRIER!I5="x",Labels!$B$118,""),"") ->  | G83: =IF(WEEKDAY(G75,2)<=6,IF(CALENDRIER!J5="x",Labels!$B$118,""),"") ->  | H83: =IF(WEEKDAY(H75,2)<=6,IF(CALENDRIER!K5="x",Labels!$B$118,""),"") ->  | I83: =IF(WEEKDAY(I75,2)<=6,IF(CALENDRIER!L5="x",Labels!$B$118,""),"") ->  | J83: =IF(WEEKDAY(J75,2)<=6,IF(CALENDRIER!M5="x",Labels!$B$118,""),"") ->  | K83: =IF(WEEKDAY(K75,2)<=6,IF(CALENDRIER!N5="x",Labels!$B$118,""),"") ->  | L83: =IF(WEEKDAY(L75,2)<=6,IF(CALENDRIER!O5="x",Labels!$B$118,""),"") ->  | M83: =IF(WEEKDAY(M75,2)<=6,IF(CALENDRIER!P5="x",Labels!$B$118,""),"") ->  | N83: =IF(WEEKDAY(N75,2)<=6,IF(CALENDRIER!Q5="x",Labels!$B$118,""),"") ->  | O83: =IF(WEEKDAY(O75,2)<=6,IF(CALENDRIER!R5="x",Labels!$B$118,""),"") ->  | P83: =IF(WEEKDAY(P75,2)<=6,IF(CALENDRIER!S5="x",Labels!$B$118,""),"") ->  | Q83: =IF(WEEKDAY(Q75,2)<=6,IF(CALENDRIER!T5="x",Labels!$B$118,""),"") ->  | R83: =IF(WEEKDAY(R75,2)<=6,IF(CALENDRIER!U5="x",Labels!$B$118,""),"") ->  | S83: =IF(WEEKDAY(S75,2)<=6,IF(CALENDRIER!V5="x",Labels!$B$118,""),"") ->  | T83: =IF(WEEKDAY(T75,2)<=6,IF(CALENDRIER!W5="x",Labels!$B$118,""),"") ->  | U83: =IF(WEEKDAY(U75,2)<=6,IF(CALENDRIER!X5="x",Labels!$B$118,""),"") ->  | V83: =IF(WEEKDAY(V75,2)<=6,IF(CALENDRIER!Y5="x",Labels!$B$118,""),"") ->  | W83: =IF(WEEKDAY(W75,2)<=6,IF(CALENDRIER!Z5="x",Labels!$B$118,""),"") ->  | X83: =IF(WEEKDAY(X75,2)<=6,IF(CALENDRIER!AA5="x",Labels!$B$118,""),"") ->  | Y83: =IF(WEEKDAY(Y75,2)<=6,IF(CALENDRIER!AB5="x",Labels!$B$118,""),"") ->  | Z83: =IF(WEEKDAY(Z75,2)<=6,IF(CALENDRIER!AC5="x",Labels!$B$118,""),"") ->  | AA83: =IF(WEEKDAY(AA75,2)<=6,IF(CALENDRIER!AD5="x",Labels!$B$118,""),"") ->  | AB83: =IF(WEEKDAY(AB75,2)<=6,IF(CALENDRIER!AE5="x",Labels!$B$118,""),"") ->  | AC83: =IF(WEEKDAY(AC75,2)<=6,IF(CALENDRIER!AF5="x",Labels!$B$118,""),"") ->  | AD83: =IF(istSchaltjahr,IF(WEEKDAY(AD75,2)<=6,IF(CALENDRIER!AG5="x",Labels!$B$118,""),""),"") ->  | AE83: =IF(WEEKDAY(AE75,2)<=6,IF(CALENDRIER!AH5="x",Labels!$B$118,""),"") ->  | AF83: =IF(WEEKDAY(AF75,2)<=6,IF(CALENDRIER!AI5="x",Labels!$B$118,""),"") ->  | AG83: =SUM(B81:AF81)-AG81 -> 0 | AH83: [03b]
A84: =$A$19 -> Majoration "jf" | B84: =IF(AND(B83=Labels!$B$118,WEEKDAY(B75,2)<6,B$77<>""),$J$7*SUMPRODUCT(($AM$77:$AQ$77=MOD(B75,7))*$AM$66:$AQ$66)%,"") ->  | C84: =IF(AND(C83=Labels!$B$118,WEEKDAY(C75,2)<6,C$77<>""),$J$7*SUMPRODUCT(($AM$77:$AQ$77=MOD(C75,7))*$AM$66:$AQ$66)%,"") ->  | D84: =IF(AND(D83=Labels!$B$118,WEEKDAY(D75,2)<6,D$77<>""),$J$7*SUMPRODUCT(($AM$77:$AQ$77=MOD(D75,7))*$AM$66:$AQ$66)%,"") ->  | E84: =IF(AND(E83=Labels!$B$118,WEEKDAY(E75,2)<6,E$77<>""),$J$7*SUMPRODUCT(($AM$77:$AQ$77=MOD(E75,7))*$AM$66:$AQ$66)%,"") ->  | F84: =IF(AND(F83=Labels!$B$118,WEEKDAY(F75,2)<6,F$77<>""),$J$7*SUMPRODUCT(($AM$77:$AQ$77=MOD(F75,7))*$AM$66:$AQ$66)%,"") ->  | G84: =IF(AND(G83=Labels!$B$118,WEEKDAY(G75,2)<6,G$77<>""),$J$7*SUMPRODUCT(($AM$77:$AQ$77=MOD(G75,7))*$AM$66:$AQ$66)%,"") ->  | H84: =IF(AND(H83=Labels!$B$118,WEEKDAY(H75,2)<6,H$77<>""),$J$7*SUMPRODUCT(($AM$77:$AQ$77=MOD(H75,7))*$AM$66:$AQ$66)%,"") ->  | I84: =IF(AND(I83=Labels!$B$118,WEEKDAY(I75,2)<6,I$77<>""),$J$7*SUMPRODUCT(($AM$77:$AQ$77=MOD(I75,7))*$AM$66:$AQ$66)%,"") ->  | J84: =IF(AND(J83=Labels!$B$118,WEEKDAY(J75,2)<6,J$77<>""),$J$7*SUMPRODUCT(($AM$77:$AQ$77=MOD(J75,7))*$AM$66:$AQ$66)%,"") ->  | K84: =IF(AND(K83=Labels!$B$118,WEEKDAY(K75,2)<6,K$77<>""),$J$7*SUMPRODUCT(($AM$77:$AQ$77=MOD(K75,7))*$AM$66:$AQ$66)%,"") ->  | L84: =IF(AND(L83=Labels!$B$118,WEEKDAY(L75,2)<6,L$77<>""),$J$7*SUMPRODUCT(($AM$77:$AQ$77=MOD(L75,7))*$AM$66:$AQ$66)%,"") ->  | M84: =IF(AND(M83=Labels!$B$118,WEEKDAY(M75,2)<6,M$77<>""),$J$7*SUMPRODUCT(($AM$77:$AQ$77=MOD(M75,7))*$AM$66:$AQ$66)%,"") ->  | N84: =IF(AND(N83=Labels!$B$118,WEEKDAY(N75,2)<6,N$77<>""),$J$7*SUMPRODUCT(($AM$77:$AQ$77=MOD(N75,7))*$AM$66:$AQ$66)%,"") ->  | O84: =IF(AND(O83=Labels!$B$118,WEEKDAY(O75,2)<6,O$77<>""),$J$7*SUMPRODUCT(($AM$77:$AQ$77=MOD(O75,7))*$AM$66:$AQ$66)%,"") ->  | P84: =IF(AND(P83=Labels!$B$118,WEEKDAY(P75,2)<6,P$77<>""),$J$7*SUMPRODUCT(($AM$77:$AQ$77=MOD(P75,7))*$AM$66:$AQ$66)%,"") ->  | Q84: =IF(AND(Q83=Labels!$B$118,WEEKDAY(Q75,2)<6,Q$77<>""),$J$7*SUMPRODUCT(($AM$77:$AQ$77=MOD(Q75,7))*$AM$66:$AQ$66)%,"") ->  | R84: =IF(AND(R83=Labels!$B$118,WEEKDAY(R75,2)<6,R$77<>""),$J$7*SUMPRODUCT(($AM$77:$AQ$77=MOD(R75,7))*$AM$66:$AQ$66)%,"") ->  | S84: =IF(AND(S83=Labels!$B$118,WEEKDAY(S75,2)<6,S$77<>""),$J$7*SUMPRODUCT(($AM$77:$AQ$77=MOD(S75,7))*$AM$66:$AQ$66)%,"") ->  | T84: =IF(AND(T83=Labels!$B$118,WEEKDAY(T75,2)<6,T$77<>""),$J$7*SUMPRODUCT(($AM$77:$AQ$77=MOD(T75,7))*$AM$66:$AQ$66)%,"") ->  | U84: =IF(AND(U83=Labels!$B$118,WEEKDAY(U75,2)<6,U$77<>""),$J$7*SUMPRODUCT(($AM$77:$AQ$77=MOD(U75,7))*$AM$66:$AQ$66)%,"") ->  | V84: =IF(AND(V83=Labels!$B$118,WEEKDAY(V75,2)<6,V$77<>""),$J$7*SUMPRODUCT(($AM$77:$AQ$77=MOD(V75,7))*$AM$66:$AQ$66)%,"") ->  | W84: =IF(AND(W83=Labels!$B$118,WEEKDAY(W75,2)<6,W$77<>""),$J$7*SUMPRODUCT(($AM$77:$AQ$77=MOD(W75,7))*$AM$66:$AQ$66)%,"") ->  | X84: =IF(AND(X83=Labels!$B$118,WEEKDAY(X75,2)<6,X$77<>""),$J$7*SUMPRODUCT(($AM$77:$AQ$77=MOD(X75,7))*$AM$66:$AQ$66)%,"") ->  | Y84: =IF(AND(Y83=Labels!$B$118,WEEKDAY(Y75,2)<6,Y$77<>""),$J$7*SUMPRODUCT(($AM$77:$AQ$77=MOD(Y75,7))*$AM$66:$AQ$66)%,"") ->  | Z84: =IF(AND(Z83=Labels!$B$118,WEEKDAY(Z75,2)<6,Z$77<>""),$J$7*SUMPRODUCT(($AM$77:$AQ$77=MOD(Z75,7))*$AM$66:$AQ$66)%,"") ->  | AA84: =IF(AND(AA83=Labels!$B$118,WEEKDAY(AA75,2)<6,AA$77<>""),$J$7*SUMPRODUCT(($AM$77:$AQ$77=MOD(AA75,7))*$AM$66:$AQ$66)%,"") ->  | AB84: =IF(AND(AB83=Labels!$B$118,WEEKDAY(AB75,2)<6,AB$77<>""),$J$7*SUMPRODUCT(($AM$77:$AQ$77=MOD(AB75,7))*$AM$66:$AQ$66)%,"") ->  | AC84: =IF(AND(AC83=Labels!$B$118,WEEKDAY(AC75,2)<6,AC$77<>""),$J$7*SUMPRODUCT(($AM$77:$AQ$77=MOD(AC75,7))*$AM$66:$AQ$66)%,"") ->  | AD84: =IF(istSchaltjahr,IF(AND(AD83=Labels!$B$118,WEEKDAY(AD75,2)<6,AD$77<>""),$J$7*SUMPRODUCT(($AM$77:$AQ$77=MOD(AD75,7))*$AM$66:$AQ$66)%,""),"") ->  | AE84: =IF(AND(AE83=Labels!$B$118,WEEKDAY(AE75,2)<6),$J$7*$B$72%,"") ->  | AF84: =IF(AND(AF83=Labels!$B$118,WEEKDAY(AF75,2)<6),$J$7*$B$72%,"") ->  | AG84: =IF($AD$75="",SUM(B84:AC84),SUM(B84:AF84)) -> 0 | AH84: [06]
A85: =$A$20 -> total quotidien | B85: =SUM(B80:B82) -> 0 | C85: =SUM(C80:C82) -> 0 | D85: 0 | E85: 0 | F85: 0 | G85: 0 | H85: 0 | I85: 0 | J85: 0 | K85: 0 | L85: 0 | M85: 0 | N85: 0 | O85: 0 | P85: 0 | Q85: 0 | R85: 0 | S85: 0 | T85: 0 | U85: 0 | V85: 0 | W85: 0 | X85: 0 | Y85: 0 | Z85: 0 | AA85: 0 | AB85: 0 | AC85: 0 | AD85: =IF(istSchaltjahr,SUM(AD80:AD82),"") ->  | AH85: TT
A86: =$A$21 -> . | AH86: R
A87: =$A$22 -> . | AH87: R
A88: =$A$23 -> transition mois | B88: =IF(WEEKDAY(B75)=1,TEXT(B75-1,"MMM"&Labels!B13),"") ->  | AC88: =IF(AND(WEEKDAY(AC75)>1,WEEKDAY(AC75)<7,AD75=""),TEXT(DATE($B$5,MONTH(AC75)+1,1),"MMM"&Labels!B13),"") -> mars | AD88: =IF(ISERROR(WEEKDAY(AD75)),"",IF(AND(WEEKDAY(AD75)>1,WEEKDAY(AD75)<7),TEXT(DATE($B$5,MONTH(AD75)+1,1),"MMM"&Labels!B13),"")) ->  | AH88: MNT
A89: =$A$24 -> Total hebdomadaire | B89: =IF(WEEKDAY(B75)=7,SUMIF($B11:$AF11,B76,$B20:$AF20)+SUMIF($B76:$AF76,B76,$B85:$AF85)+SUMIF($B141:$AF141,B76,$B150:$AF150),B88) ->  | C89: =IF(WEEKDAY(C75)=7,SUMIF($B11:$AF11,C76,$B20:$AF20)+SUMIF($B76:$AF76,C76,$B85:$AF85)+SUMIF($B141:$AF141,C76,$B150:$AF150),"") ->  | E89: 0 | L89: 0 | S89: 0 | Z89: 0 | AC89: =IF(WEEKDAY(AC75)=7,SUMIF($B11:$AF11,AC76,$B20:$AF20)+SUMIF($B76:$AF76,AC76,$B85:$AF85)+SUMIF($B141:$AF141,AC76,$B150:$AF150),AC88) -> mars | AD89: =IF(ISERROR(WEEKDAY(AD75)=7),"",IF(WEEKDAY(AD75)=7,SUMIF($B11:$AF11,AD76,$B20:$AF20)+SUMIF($B76:$AF76,AD76,$B85:$AF85)+SUMIF($B141:$AF141,AD76,$B150:$AF150),AD88)) ->  | AH89: WT
A90: =$A$25 -> Majorations temp. 1) | B90: =IF(B97="FALSCH","",B97) ->  | C90: =IF(C97="FALSCH","",C97) ->  | AG90: =IF($AD$75="",SUM(B90:AC90),SUM(B90:AF90)) -> 0 | AH90: [07]
A91: =$A$26 -> Majorations temp. 2) | B91: =IF((B80+B82)=0,"",SUM(B80,B82)) ->  | C91: =IF((C80+C82)=0,"",SUM(C80,C82)) ->  | AG91: 0 | AH91: [08]
A92: =$A$27 -> Majorations temp. 3) | B92: =SUM(B93:B96) -> 0 | C92: =SUM(C93:C96) -> 0 | D92: 0 | E92: 0 | F92: 0 | G92: 0 | H92: 0 | I92: 0 | J92: 0 | K92: 0 | L92: 0 | M92: 0 | N92: 0 | O92: 0 | P92: 0 | Q92: 0 | R92: 0 | S92: 0 | T92: 0 | U92: 0 | V92: 0 | W92: 0 | X92: 0 | Y92: 0 | Z92: 0 | AA92: 0 | AB92: 0 | AC92: 0 | AD92: =IF(ISERROR(WEEKDAY(AD75)=1),"",SUM(AD93:AD96)) ->  | AG92: 0 | AH92: [09]
A93: =$A$28 -> Dimanche journée | B93: =IF(WEEKDAY(B75)=1,B81,"") ->  | C93: =IF(WEEKDAY(C75)=1,C81,"") ->  | F93: 0 | M93: 0 | T93: 0 | AA93: 0 | AD93: =IF(ISERROR(WEEKDAY(AD75)=1),"",IF(WEEKDAY(AD75)=1,AD81,"")) ->  | AG93: 0 | AH93: [09-ST]
A94: =$A$29 -> Dimanche nuit | B94: =IF(WEEKDAY(B75)=1,SUM(B80+B82),"") ->  | C94: =IF(WEEKDAY(C75)=1,SUM(C80+C82),"") ->  | F94: 0 | M94: 0 | T94: 0 | AA94: 0 | AD94: =IF(ISERROR(WEEKDAY(AD75)=1),"",IF(WEEKDAY(AD75)=1,SUM(AD80+AD82),"")) ->  | AG94: 0 | AH94: [09-SN]
A95: =$A$30 -> jf-jomajoration | B95: =IF(B83=Labels!$B$118,B81,"") ->  | C95: =IF(C83=Labels!$B$118,C81,"") ->  | D95: =IF(D83=Labels!$B$118,D81,"") ->  | E95: =IF(E83=Labels!$B$118,E81,"") ->  | F95: =IF(F83=Labels!$B$118,F81,"") ->  | G95: =IF(G83=Labels!$B$118,G81,"") ->  | H95: =IF(H83=Labels!$B$118,H81,"") ->  | I95: =IF(I83=Labels!$B$118,I81,"") ->  | J95: =IF(J83=Labels!$B$118,J81,"") ->  | K95: =IF(K83=Labels!$B$118,K81,"") ->  | L95: =IF(L83=Labels!$B$118,L81,"") ->  | M95: =IF(M83=Labels!$B$118,M81,"") ->  | N95: =IF(N83=Labels!$B$118,N81,"") ->  | O95: =IF(O83=Labels!$B$118,O81,"") ->  | P95: =IF(P83=Labels!$B$118,P81,"") ->  | Q95: =IF(Q83=Labels!$B$118,Q81,"") ->  | R95: =IF(R83=Labels!$B$118,R81,"") ->  | S95: =IF(S83=Labels!$B$118,S81,"") ->  | T95: =IF(T83=Labels!$B$118,T81,"") ->  | U95: =IF(U83=Labels!$B$118,U81,"") ->  | V95: =IF(V83=Labels!$B$118,V81,"") ->  | W95: =IF(W83=Labels!$B$118,W81,"") ->  | X95: =IF(X83=Labels!$B$118,X81,"") ->  | Y95: =IF(Y83=Labels!$B$118,Y81,"") ->  | Z95: =IF(Z83=Labels!$B$118,Z81,"") ->  | AA95: =IF(AA83=Labels!$B$118,AA81,"") ->  | AB95: =IF(AB83=Labels!$B$118,AB81,"") ->  | AC95: =IF(AC83=Labels!$B$118,AC81,"") ->  | AD95: =IF(AD83=Labels!$B$118,AD81,"") ->  | AG95: 0 | AH95: [09-FT]
A96: =$A$31 -> jf-numajoration | B96: =IF(B83=Labels!$B$118,SUM(B80,B82),"") ->  | C96: =IF(C83=Labels!$B$118,SUM(C80,C82),"") ->  | D96: =IF(D83=Labels!$B$118,SUM(D80,D82),"") ->  | E96: =IF(E83=Labels!$B$118,SUM(E80,E82),"") ->  | F96: =IF(F83=Labels!$B$118,SUM(F80,F82),"") ->  | G96: =IF(G83=Labels!$B$118,SUM(G80,G82),"") ->  | H96: =IF(H83=Labels!$B$118,SUM(H80,H82),"") ->  | I96: =IF(I83=Labels!$B$118,SUM(I80,I82),"") ->  | J96: =IF(J83=Labels!$B$118,SUM(J80,J82),"") ->  | K96: =IF(K83=Labels!$B$118,SUM(K80,K82),"") ->  | L96: =IF(L83=Labels!$B$118,SUM(L80,L82),"") ->  | M96: =IF(M83=Labels!$B$118,SUM(M80,M82),"") ->  | N96: =IF(N83=Labels!$B$118,SUM(N80,N82),"") ->  | O96: =IF(O83=Labels!$B$118,SUM(O80,O82),"") ->  | P96: =IF(P83=Labels!$B$118,SUM(P80,P82),"") ->  | Q96: =IF(Q83=Labels!$B$118,SUM(Q80,Q82),"") ->  | R96: =IF(R83=Labels!$B$118,SUM(R80,R82),"") ->  | S96: =IF(S83=Labels!$B$118,SUM(S80,S82),"") ->  | T96: =IF(T83=Labels!$B$118,SUM(T80,T82),"") ->  | U96: =IF(U83=Labels!$B$118,SUM(U80,U82),"") ->  | V96: =IF(V83=Labels!$B$118,SUM(V80,V82),"") ->  | W96: =IF(W83=Labels!$B$118,SUM(W80,W82),"") ->  | X96: =IF(X83=Labels!$B$118,SUM(X80,X82),"") ->  | Y96: =IF(Y83=Labels!$B$118,SUM(Y80,Y82),"") ->  | Z96: =IF(Z83=Labels!$B$118,SUM(Z80,Z82),"") ->  | AA96: =IF(AA83=Labels!$B$118,SUM(AA80,AA82),"") ->  | AB96: =IF(AB83=Labels!$B$118,SUM(AB80,AB82),"") ->  | AC96: =IF(AC83=Labels!$B$118,SUM(AC80,AC82),"") ->  | AD96: =IF(AD83=Labels!$B$118,SUM(AD80,AD82),"") ->  | AG96: 0 | AH96: [09-FN]
A97: =$A$32 -> majoration caché (total hebd.) | B97: =IF($B72>=80,IF(OR(ISTEXT(B89),B89="",B89<$B$7),"",ROUND(((B89-$B$7)*25%)/25,4)*25),IF(B85>($B$7/5),ROUND(((B85-($B$7/5))*25%)/25,4)*25,"")) ->  | C97: =IF($B72>=80,IF(OR(ISTEXT(C89),C89="",C89<$B$7),"",ROUND(((C89-$B$7)*25%)/25,4)*25),IF(C85>($B$7/5),ROUND(((C85-($B$7/5))*25%)/25,4)*25,"")) ->  | AD97: =IF(istSchaltjahr,IF($B72>=80,IF(OR(ISTEXT(AD89),AD89="",AD89<$B$7),"",ROUND(((AD89-$B$7)*25%)/25,4)*25),IF(AD85>($B$7/5),ROUND(((AD85-($B$7/5))*25%)/25,4)*25,"")),"") ->  | AE97: =YEAR(AC75) -> 2023 | AG97: =AG81 -> 0 | AH97: [03]
B98: =$B$33 -> 1) 25% majoration temporelle pour depassement les heures maximales | L98: =$L$33 -> 2) 100% majoration temporelle pour travail de nuit | T98: =$T$33 -> Saisie des heures payées l'année passée | AG98: =SUM(AG80,AG82) -> 0 | AH98: [4-5]
B99: =$B$34 -> 3) 100% majoration temporelle pour travail du dimanche et jour férié | T99: =$T$34 -> Saisie des heures payées exercice en cours (heures supplémentaires) | AG99: =SUM(AG80:AG82) -> 0 | AH99: [3-5]
A100: =$A$35 -> Notes | AG100: =SUM(AG78:AG92) -> 0 | AH100: [10]
AG101: =AG77 -> 160 | AH101: [00]
A102: =IF(AG854=0,"","effektives Pensum: "&ROUND(COUNT(B77:AF77)/(AG854+COUNT(B77:AF77))%*B72%*20,0)/20&" %") ->  | AG102: =SUM(AG100-AG101) -> -160 | AH102: [11]
A104: =Labels!$B$103 -> Résumé | G104: =Labels!$B$77 -> Jan | I104: =Labels!$B$78 -> Fév | K104: =Labels!$B$79 -> Mar | M104: =Labels!$B$80 -> Avr | O104: =Labels!$B$81 -> Mai | Q104: =Labels!$B$82 -> Jun | S104: =Labels!$B$83 -> Jul | U104: =Labels!$B$84 -> Aoû | W104: =Labels!$B$85 -> Sep | Y104: =Labels!$B$86 -> Oct | AA104: =Labels!$B$87 -> Nov | AC104: =Labels!$B$88 -> Déc | AE104: =Labels!$B$101 -> Année
A105: =Labels!$B$20 -> Emploi % | G105: =IF($B$4=0,0,$B$4) -> 100 | I105: =IF($B$72=0,0,$B$72) -> 100 | K105: =IF($B$137=0,0,$B$137) -> 100 | M105: =IF($B$202=0,0,$B$202) -> 100 | O105: =IF($B$267=0,0,$B$267) -> 100 | Q105: =IF($B$332=0,0,$B$332) -> 100 | S105: =IF($B$397=0,0,$B$397) -> 100 | U105: =IF($B$462=0,0,$B$462) -> 100 | W105: =IF($B$527=0,0,$B$527) -> 100 | Y105: =IF($B$592=0,0,$B$592) -> 100 | AA105: =IF($B$657=0,0,$B$657) -> 100 | AC105: =IF($B$722=0,0,$B$722) -> 100
A106: =Labels!$B$104 -> Heures théoriques selon CCT | G106: =IF($AG$36=0,0,$AG$36) -> 176 | I106: =IF($AG$101=0,0,$AG$101) -> 160 | K106: =IF($AG$142=0,0,$AG$142) -> 184 | M106: =IF($AG$231=0,0,$AG$231) -> 160 | O106: =IF($AG$296=0,0,$AG$296) -> 184 | Q106: =IF($AG$361=0,0,$AG$361) -> 176 | S106: =IF($AG$426=0,0,$AG$426) -> 168 | U106: =IF($AG$491=0,0,$AG$491) -> 184 | W106: =IF($AG$556=0,0,$AG$556) -> 168 | Y106: =IF($AG$621=0,0,$AG$621) -> 176 | AA106: =IF($AG$686=0,0,$AG$686) -> 176 | AC106: =IF($AG$751=0,0,$AG$751) -> 168 | AE106: =SUM(G106:AD106) -> 2080
A107: =Labels!$B$105 -> Total heures productives | B107: =Labels!$B$106 -> 06.00 - 20.00 h | G107: =IF($AG$32=0,0,$AG$32) -> 0 | I107: =IF($AG$97=0,0,$AG$97) -> 0 | K107: =IF($AG$162=0,0,$AG$162) -> 0 | M107: =IF($AG$227=0,0,$AG$227) -> 0 | O107: =IF($AG$292=0,0,$AG$292) -> 0 | Q107: =IF($AG$357=0,0,$AG$357) -> 0 | S107: =IF($AG$422=0,0,$AG$422) -> 0 | U107: =IF($AG$487=0,0,$AG$487) -> 0 | W107: =IF($AG$552=0,0,$AG$552) -> 0 | Y107: =IF($AG$617=0,0,$AG$617) -> 0 | AA107: =IF($AG$682=0,0,$AG$682) -> 0 | AC107: =IF($AG$747=0,0,$AG$747) -> 0 | AE107: =SUM(G107:AD107) -> 0
B108: =Labels!$B$107 -> nuit, dimanche et jour férié | G108: =IF(AND($AG$33=0,$AG$18=0),0,$AG$33+$AG$18) -> 0 | I108: =IF(AND($AG$98=0,$AG$83=0),0,$AG$98+$AG$83) -> 0 | K108: =IF(AND($AG$163=0,$AG$148=0),0,$AG$163+$AG$148) -> 0 | M108: =IF(AND($AG$228=0,$AG$213=0),0,$AG$228+$AG$213) -> 0 | O108: =IF(AND($AG$293=0,$AG$278=0),0,$AG$293+$AG$278) -> 0 | Q108: =IF(AND($AG$358=0,$AG$343=0),0,$AG$358+$AG$343) -> 0 | S108: =IF(AND($AG$423=0,$AG$408=0),0,$AG$423+$AG$408) -> 0 | U108: =IF(AND($AG$488=0,$AG$473=0),0,$AG$488+$AG$473) -> 0 | W108: =IF(AND($AG$553=0,$AG$538=0),0,$AG$553+$AG$538) -> 0 | Y108: =IF(AND($AG$618=0,$AG$603=0),0,$AG$618+$AG$603) -> 0 | AA108: =IF(AND($AG$683=0,$AG$668=0),0,$AG$683+$AG$668) -> 0 | AC108: =IF(AND($AG$748=0,$AG$733=0),0,$AG$748+$AG$733) -> 0 | AE108: =SUM(G108:AD108) -> 0
A109: =Labels!$B$108 -> Majorations temporelles | B109: =Labels!$B$109 -> depassement des heures maximales | G109: =IF($AG$25=0,0,$AG$25) -> 0 | I109: =IF($AG$90=0,0,$AG$90) -> 0 | K109: =IF($AG$155=0,0,$AG$155) -> 0 | M109: =IF($AG$220=0,0,$AG$220) -> 0 | O109: =IF($AG$285=0,0,$AG$285) -> 0 | Q109: =IF($AG$350=0,0,$AG$350) -> 0 | S109: =IF($AG$415=0,0,$AG$415) -> 0 | U109: =IF($AG$480=0,0,$AG$480) -> 0 | W109: =IF($AG$545=0,0,$AG$545) -> 0 | Y109: =IF($AG$610=0,0,$AG$610) -> 0 | AA109: =IF($AG$675=0,0,$AG$675) -> 0 | AC109: =IF($AG$740=0,0,$AG$740) -> 0 | AE109: =SUM(G109:AD109) -> 0
B110: =Labels!$B$110 -> nuit, dimanche et jour férié | G110: =IF($AJ$23=0,0,$AJ$23) -> 0 | I110: =IF($AK$23=0,0,$AK$23) -> 0 | K110: =IF($AL$23=0,0,$AL$23) -> 0 | M110: =IF($AM$23=0,0,$AM$23) -> 0 | O110: =IF($AN$23=0,0,$AN$23) -> 0 | Q110: =IF($AO$23=0,0,$AO$23) -> 0 | S110: =IF($AP$23=0,0,$AP$23) -> 0 | U110: =IF($AQ$23=0,0,$AQ$23) -> 0 | W110: =IF($AR$23=0,0,$AR$23) -> 0 | Y110: =IF($AS$23=0,0,$AS$23) -> 0 | AA110: =IF($AT$23=0,0,$AT$23) -> 0 | AC110: =IF($AU$23=0,0,$AU$23) -> 0 | AE110: =SUM(G110:AD110) -> 0
A111: =Labels!$B$111 -> Heures inproductives
A112: =Labels!$B$112 -> Absences art. 11 CCT | F112: =Labels!$B$113 -> ab | G112: =IF($AJ$3=0,0,$AJ$3) -> 0 | I112: =IF($AK$3=0,0,$AK$3) -> 0 | K112: =IF($AL$3=0,0,$AL$3) -> 0 | M112: =IF($AM$3=0,0,$AM$3) -> 0 | O112: =IF($AN$3=0,0,$AN$3) -> 0 | Q112: =IF($AO$3=0,0,$AO$3) -> 0 | S112: =IF($AP$3=0,0,$AP$3) -> 0 | U112: =IF($AQ$3=0,0,$AQ$3) -> 0 | W112: =IF($AR$3=0,0,$AR$3) -> 0 | Y112: =IF($AS$3=0,0,$AS$3) -> 0 | AA112: =IF(AT$3=0,0,$AT$3) -> 0 | AC112: =IF($AU$3=0,0,$AU$3) -> 0 | AE112: =IF($AV$3=0,0,$AV$3) -> 0
A113: =Labels!$B$114 -> Vacances art. 12.1 CCT | F113: =Labels!$B$115 -> va | G113: =IF($AJ$4=0,0,$AJ$4) -> 0 | I113: =IF($AK$4=0,0,$AK$4) -> 0 | K113: =IF($AL$4=0,0,$AL$4) -> 0 | M113: =IF($AM$4=0,0,$AM$4) -> 0 | O113: =IF($AN$4=0,0,$AN$4) -> 0 | Q113: =IF($AO$4=0,0,$AO$4) -> 0 | S113: =IF($AP$4=0,0,$AP$4) -> 0 | U113: =IF($AQ$4=0,0,$AQ$4) -> 0 | W113: =IF($AR$4=0,0,$AR$4) -> 0 | Y113: =IF($AS$4=0,0,$AS$4) -> 0 | AA113: =IF($AT$4=0,0,$AT$4) -> 0 | AC113: =IF($AU$4=0,0,$AU$4) -> 0 | AE113: =IF($AV$4=0,0,$AV$4) -> 0
A114: =Labels!$B$181 -> vacances non payées | F114: =Labels!$B$182 -> vn | G114: =IF($AJ$13=0,0,$AJ$13) -> 0 | I114: =IF($AK$13=0,0,$AK$13) -> 0 | K114: =IF($AL$13=0,0,$AL$13) -> 0 | M114: =IF($AM$13=0,0,$AM$13) -> 0 | O114: =IF($AN$13=0,0,$AN$13) -> 0 | Q114: =IF($AO$13=0,0,$AO$13) -> 0 | S114: =IF($AP$13=0,0,$AP$13) -> 0 | U114: =IF($AQ$13=0,0,$AQ$13) -> 0 | W114: =IF($AR$13=0,0,$AR$13) -> 0 | Y114: =IF($AS$13=0,0,$AS$13) -> 0 | AA114: =IF($AT$13=0,0,$AT$13) -> 0 | AC114: =IF($AU$13=0,0,$AU$13) -> 0 | AE114: =IF($AV$13=0,0,$AV$13) -> 0
A115: =Labels!$B$116 -> Jours fériés art. 12.2 CCT | C115: =IF($AJ$20="","",$AJ$20) ->  | F115: =Labels!$B$118 -> jf | G115: =IF($AJ$18=0,0,$AJ$18) -> 0 | I115: =IF($AK$18=0,0,$AK$18) -> 0 | K115: =IF($AL$18=0,0,$AL$18) -> 0 | M115: =IF($AM$18=0,0,$AM$18) -> 0 | O115: =IF($AN$18=0,0,$AN$18) -> 0 | Q115: =IF($AO$18=0,0,$AO$18) -> 0 | S115: =IF($AP$18=0,0,$AP$18) -> 0 | U115: =IF($AQ$18=0,0,$AQ$18) -> 0 | W115: =IF($AR$18=0,0,$AR$18) -> 0 | Y115: =IF($AS$18=0,0,$AS$18) -> 0 | AA115: =IF($AT$18=0,0,$AT$18) -> 0 | AC115: =IF($AU$18=0,0,$AU$18) -> 0 | AE115: =IF($AV$18=0,0,$AV$18) -> 0
A116: =Labels!$B$119 -> Maladie art. 13 CCT | F116: =Labels!$B$120 -> ma | G116: =IF($AJ$5=0,0,$AJ$5) -> 0 | I116: =IF($AK$5=0,0,$AK$5) -> 0 | K116: =IF($AL$5=0,0,$AL$5) -> 0 | M116: =IF($AM$5=0,0,$AM$5) -> 0 | O116: =IF($AN$5=0,0,$AN$5) -> 0 | Q116: =IF($AO$5=0,0,$AO$5) -> 0 | S116: =IF($AP$5=0,0,$AP$5) -> 0 | U116: =IF($AQ$5=0,0,$AQ$5) -> 0 | W116: =IF($AR$5=0,0,$AR$5) -> 0 | Y116: =IF($AS$5=0,0,$AS$5) -> 0 | AA116: =IF($AT$5=0,0,$AT$5) -> 0 | AC116: =IF($AU$5=0,0,$AU$5) -> 0 | AE116: =IF($AV$5=0,0,$AV$5) -> 0
A117: =Labels!$B$184 -> non payeé | G117: =IF(AJ$16=0,0,AJ$16) -> 0 | I117: =IF($AK$16=0,0,$AK$16) -> 0 | K117: =IF($AL$16=0,0,$AL$16) -> 0 | M117: =IF($AM$16=0,0,$AM$16) -> 0 | O117: =IF($AN$16=0,0,$AN$16) -> 0 | Q117: =IF($AO$16=0,0,$AO$16) -> 0 | S117: =IF($AP$16=0,0,$AP$16) -> 0 | U117: =IF($AQ$16=0,0,$AQ$16) -> 0 | W117: =IF($AR$16=0,0,$AR$16) -> 0 | Y117: =IF($AS$16=0,0,$AS$16) -> 0 | AA117: =IF($AT$16=0,0,$AT$16) -> 0 | AC117: =IF($AU$16=0,0,$AU$16) -> 0 | AE117: =IF($AV$16=0,0,$AV$16) -> 0
A118: =Labels!$B$121 -> Accident art. 14 CCT | F118: =Labels!$B$122 -> ac | G118: =IF($AJ$6=0,0,$AJ$6) -> 0 | I118: =IF($AK$6=0,0,$AK$6) -> 0 | K118: =IF($AL$6=0,0,$AL$6) -> 0 | M118: =IF($AM$6=0,0,$AM$6) -> 0 | O118: =IF($AN$6=0,0,$AN$6) -> 0 | Q118: =IF($AO$6=0,0,$AO$6) -> 0 | S118: =IF($AP$6=0,0,$AP$6) -> 0 | U118: =IF($AQ$6=0,0,$AQ$6) -> 0 | W118: =IF($AR$6=0,0,$AR$6) -> 0 | Y118: =IF($AS$6=0,0,$AS$6) -> 0 | AA118: =IF($AT$6=0,0,$AT$6) -> 0 | AC118: =IF($AU$6=0,0,$AU$6) -> 0 | AE118: =IF($AV$6=0,0,$AV$6) -> 0
A119: =Labels!$B$123 -> Grossesse/Maternité art. 15 CCT | F119: =Labels!$B$124 -> gm | G119: =IF($AJ$7=0,0,$AJ$7) -> 0 | I119: =IF($AK$7=0,0,$AK$7) -> 0 | K119: =IF($AL$7=0,0,$AL$7) -> 0 | M119: =IF($AM$7=0,0,$AM$7) -> 0 | O119: =IF($AN$7=0,0,$AN$7) -> 0 | Q119: =IF($AO$7=0,0,$AO$7) -> 0 | S119: =IF($AP$7=0,0,$AP$7) -> 0 | U119: =IF($AQ$7=0,0,$AQ$7) -> 0 | W119: =IF($AR$7=0,0,$AR$7) -> 0 | Y119: =IF($AS$7=0,0,$AS$7) -> 0 | AA119: =IF($AT$7=0,0,$AT$7) -> 0 | AC119: =IF($AU$7=0,0,$AU$7) -> 0 | AE119: =IF($AV$7=0,0,$AV$7) -> 0
A120: =Labels!$B$125 -> Militaire/Promotion/Protection civile art. 16 CCT | F120: =Labels!$B$126 -> mi | G120: =IF($AJ$8=0,0,$AJ$8) -> 0 | I120: =IF($AK$8=0,0,$AK$8) -> 0 | K120: =IF($AL$8=0,0,$AL$8) -> 0 | M120: =IF($AM$8=0,0,$AM$8) -> 0 | O120: =IF($AN$8=0,0,$AN$8) -> 0 | Q120: =IF($AO$8=0,0,$AO$8) -> 0 | S120: =IF($AP$8=0,0,$AP$8) -> 0 | U120: =IF($AQ$8=0,0,$AQ$8) -> 0 | W120: =IF($AR$8=0,0,$AR$8) -> 0 | Y120: =IF($AS$8=0,0,$AS$8) -> 0 | AA120: =IF($AT$8=0,0,$AT$8) -> 0 | AC120: =IF($AU$8=0,0,$AU$8) -> 0 | AE120: =IF($AV$8=0,0,$AV$8) -> 0
A121: =Labels!$B$127 -> Chômage partiel et perte de travail cause d'intempéries | F121: =Labels!$B$128 -> ch | G121: =IF($AJ$11=0,0,$AJ$11) -> 0 | I121: =IF($AK$11=0,0,$AK$11) -> 0 | K121: =IF($AL$11=0,0,$AL$11) -> 0 | M121: =IF($AM$11=0,0,$AM$11) -> 0 | O121: =IF($AN$11=0,0,$AN$11) -> 0 | Q121: =IF($AO$11=0,0,$AO$11) -> 0 | S121: =IF($AP$11=0,0,$AP$11) -> 0 | U121: =IF($AQ$11=0,0,$AQ$11) -> 0 | W121: =IF($AR$11=0,0,$AR$11) -> 0 | Y121: =IF($AS$11=0,0,$AS$11) -> 0 | AA121: =IF($AT$11=0,0,$AT$11) -> 0 | AC121: =IF($AU$11=0,0,$AU$11) -> 0 | AE121: =IF($AV$11=0,0,$AV$11) -> 0
A122: =Labels!$B$129 -> Ecole professionnelle | F122: =Labels!$B$130 -> ep | G122: =IF($AJ$9=0,0,$AJ$9) -> 0 | I122: =IF($AK$9=0,0,$AK$9) -> 0 | K122: =IF($AL$9=0,0,$AL$9) -> 0 | M122: =IF($AM$9=0,0,$AM$9) -> 0 | O122: =IF($AN$9=0,0,$AN$9) -> 0 | Q122: =IF($AO$9=0,0,$AO$9) -> 0 | S122: =IF($AP$9=0,0,$AP$9) -> 0 | U122: =IF($AQ$9=0,0,$AQ$9) -> 0 | W122: =IF($AR$9=0,0,$AR$9) -> 0 | Y122: =IF($AS$9=0,0,$AS$9) -> 0 | AA122: =IF($AT$9=0,0,$AT$9) -> 0 | AC122: =IF($AU$9=0,0,$AU$9) -> 0 | AE122: =IF($AV$9=0,0,$AV$9) -> 0
A123: =Labels!$B$131 -> Cours | F123: =Labels!$B$132 -> co | G123: =IF($AJ$10=0,0,$AJ$10) -> 0 | I123: =IF($AK$10=0,0,$AK$10) -> 0 | K123: =IF($AL$10=0,0,$AL$10) -> 0 | M123: =IF($AM$10=0,0,$AM$10) -> 0 | O123: =IF($AN$10=0,0,$AN$10) -> 0 | Q123: =IF($AO$10=0,0,$AO$10) -> 0 | S123: =IF($AP$10=0,0,$AP$10) -> 0 | U123: =IF($AQ$10=0,0,$AQ$10) -> 0 | W123: =IF($AR$10=0,0,$AR$10) -> 0 | Y123: =IF($AS$10=0,0,$AS$10) -> 0 | AA123: =IF($AT$10=0,0,$AT$10) -> 0 | AC123: =IF($AU$10=0,0,$AU$10) -> 0 | AE123: =IF($AV$10=0,0,$AV$10) -> 0
A124: =Labels!$B$133 -> Heures de compensation | B124: =Labels!$B$134 -> de l'année passée | F124: =Labels!$B$135 -> cp | G124: =IF($AJ$12=0,0,$AJ$12) -> 0 | I124: =IF($AK$12=0,0,$AK$12) -> 0 | K124: =IF($AL$12=0,0,$AL$12) -> 0 | M124: =IF($AM$12=0,0,$AM$12) -> 0 | O124: =IF($AN$12=0,0,$AN$12) -> 0 | Q124: =IF($AO$12=0,0,$AO$12) -> 0 | S124: =IF($AP$12=0,0,$AP$12) -> 0 | U124: =IF($AQ$12=0,0,$AQ$12) -> 0 | W124: =IF($AR$12=0,0,$AR$12) -> 0 | AE124: =IF($AV$12=0,0,$AV$12) -> 0
B125: =Labels!$B$136 -> de l'année en cours (contrôle) | F125: =Labels!$B$137 -> cc | G125: =IF($AJ$15=0,0,$AJ$15) -> 0 | I125: =IF($AK$15=0,0,$AK$15) -> 0 | K125: =IF($AL$15=0,0,$AL$15) -> 0 | M125: =IF($AM$15=0,0,$AM$15) -> 0 | O125: =IF($AN$15=0,0,$AN$15) -> 0 | Q125: =IF($AO$15=0,0,$AO$15) -> 0 | S125: =IF($AP$15=0,0,$AP$15) -> 0 | U125: =IF($AQ$15=0,0,$AQ$15) -> 0 | W125: =IF($AR$15=0,0,$AR$15) -> 0 | Y125: =IF($AS$15=0,0,$AS$15) -> 0 | AA125: =IF($AT$15=0,0,$AT$15) -> 0 | AC125: =IF($AU$15=0,0,$AU$15) -> 0 | AE125: =IF($AV$15=0,0,$AV$15) -> 0
A126: =Labels!$B$138 -> Paiement des heures | B126: =Labels!$B$139 -> de l'année passée | G126: =IF($AJ$21=0,0,$AJ$21) -> 0 | I126: =IF($AK$21=0,0,$AK$21) -> 0 | K126: =IF($AL$21=0,0,$AL$21) -> 0 | M126: =IF($AM$21=0,0,$AM$21) -> 0 | O126: =IF($AN$21=0,0,$AN$21) -> 0 | Q126: =IF($AO$21=0,0,$AO$21) -> 0 | S126: =IF($AP$21=0,0,$AP$21) -> 0 | U126: =IF($AQ$21=0,0,$AQ$21) -> 0 | W126: =IF($AR$21=0,0,$AR$21) -> 0 | AE126: =IF($AV$21=0,0,$AV$21) -> 0
A127: =Labels!$B$140 -> Différence en heures | B127: =Labels!$B$141 -> après compensation et paiement | G127: =IF(ROUND($P$4,3)=0,0,$P$4-G124-G126) -> 0 | I127: =IF(ROUND(G127,3)=0,0,G127-(SUM(I124+I126))) -> 0 | K127: =IF(ROUND(I127,3)=0,0,I127-K126-K124) -> 0 | M127: =IF(ROUND(K127,3)=0,0,K127-(SUM(M126+M124))) -> 0 | O127: =IF(ROUND(M127,3)=0,0,M127-(SUM(O126+O124))) -> 0 | Q127: =IF(ROUND(O127,3)=0,0,O127-(SUM(Q126+Q124))) -> 0 | S127: =IF(ROUND(Q127,3)=0,0,Q127-(SUM(S126+S124))) -> 0 | U127: =IF(ROUND(S127,3)=0,0,S127-(SUM(U126+U124))) -> 0 | W127: =IF(ROUND(U127,3)=0,0,U127-(SUM(W126+W124))) -> 0 | Y127: =IF($W$62<0.1,"",AY109) -> 
A128: =Labels!$B$138 -> Paiement des heures | B128: =Labels!$B$142 -> de l'année en cours | G128: =IF($AJ$22=0,0,$AJ$22) -> 0 | I128: =IF($AK$22=0,0,$AK$22) -> 0 | K128: =IF($AL$22=0,0,$AL$22) -> 0 | M128: =IF($AM$22=0,0,$AM$22) -> 0 | O128: =IF($AN$22=0,0,$AN$22) -> 0 | Q128: =IF($AO$22=0,0,$AO$22) -> 0 | S128: =IF($AP$22=0,0,$AP$22) -> 0 | U128: =IF($AQ$22=0,0,$AQ$22) -> 0 | W128: =IF($AR$22=0,0,$AR$22) -> 0 | Y128: =IF($AS$22=0,0,$AS$22) -> 0 | AA128: =IF($AT$22=0,0,$AT$22) -> 0 | AC128: =IF($AU$22=0,0,$AU$22) -> 0 | AE128: =IF($AV$22=0,0,$AV$22) -> 0
A129: =Labels!$B$143 -> Heures manquantes | B129: =Labels!$B$144 -> de l'année en cours (contrôle) | F129: =Labels!$B$145 -> hm | G129: =IF($AJ$14=0,0,$AJ$14) -> 0 | I129: =IF($AK$14=0,0,$AK$14) -> 0 | K129: =IF($AL$14=0,0,$AL$14) -> 0 | M129: =IF($AM$14=0,0,$AM$14) -> 0 | O129: =IF($AN$14=0,0,$AN$14) -> 0 | Q129: =IF($AO$14=0,0,$AO$14) -> 0 | S129: =IF($AP$14=0,0,$AP$14) -> 0 | U129: =IF($AQ$14=0,0,$AQ$14) -> 0 | W129: =IF($AR$14=0,0,$AR$14) -> 0 | Y129: =IF($AS$14=0,0,$AS$14) -> 0 | AA129: =IF($AT$14=0,0,$AT$14) -> 0 | AC129: =IF($AU$14=0,0,$AU$14) -> 0 | AE129: =IF($AV$14=0,0,$AV$14) -> 0
A130: =Labels!$B$146 -> Total (majorations inclus) | B130: =Labels!$B$147 -> heures productives et inproductives | G130: =IF($AG$35=0,0,$AG$35) -> 0 | I130: =IF($AG$100=0,0,$AG$100) -> 0 | K130: =IF($AG$165=0,0,$AG$165) -> 0 | M130: =IF($AG$230=0,0,$AG$230) -> 0 | O130: =IF($AG$295=0,0,$AG$295) -> 0 | Q130: =IF($AG$360=0,0,$AG$360) -> 0 | S130: =IF($AG$425=0,0,$AG$425) -> 0 | U130: =IF($AG$490=0,0,$AG$490) -> 0 | W130: =IF($AG$555=0,0,$AG$555) -> 0 | Y130: =IF($AG$620=0,0,$AG$620) -> 0 | AA130: =IF($AG$685=0,0,$AG$685) -> 0 | AC130: =IF($AG$750=0,0,$AG$750) -> 0 | AE130: =SUM($G$65:$AD$65) -> 0
A131: =Labels!$B$148 -> Comparaison des heures | B131: =Labels!$B$149 -> aux heures théorique CCT (heures manquantes de l'année passée incl.) | G131: =IF($AG$37=0,0,$AG$37)-$AE$34+$P$5 -> -176 | I131: =IF($AG$102=0,0,$AG$102)-$AE$99 -> -160 | K131: =IF($AG$167=0,0,$AG$167)-$AE$164 -> -184 | M131: =IF($AG$232=0,0,$AG$232)-$AE$229 -> -160 | O131: =IF($AG$297=0,0,$AG$297)-$AE$294 -> -184 | Q131: =IF($AG$362=0,0,$AG$362)-$AE$359 -> -176 | S131: =IF($AG$427=0,0,$AG$427)-$AE$424 -> -168 | U131: =IF($AG$492=0,0,$AG$492)-$AE$489 -> -184 | W131: =IF($AG$557=0,0,$AG$557)-$AE$554 -> -168 | Y131: =IF($AG$622=0,0,$AG$622)-$AE$619 -> -176 | AA131: =IF($AG$687=0,0,$AG$687)-$AE$684 -> -176 | AC131: =IF($AG$752=0,0,$AG$752)-$AE$749 -> -168 | AE131: =SUM($G$66:$AD$66) -> -2080
B132: =Labels!$B$151 -> aux heures théorique (cumulées) | G132: =IF(G105=0,0,$G$66) -> -176 | I132: =IF(I105=0,0,SUM($G$66:$J$66)) -> -336 | K132: =IF(K105=0,0,SUM($G$66:$L$66)) -> -520 | M132: =IF(M105=0,0,SUM($G$66:$N$66)) -> -680 | O132: =IF(O105=0,0,SUM($G$66:$P$66)) -> -864 | Q132: =IF(Q105=0,0,SUM($G$66:$R$66)) -> -1040 | S132: =IF(S105=0,0,SUM($G$66:$T$66)) -> -1208 | U132: =IF(U105=0,0,SUM($G$66:$V$66)) -> -1392 | W132: =IF(W105=0,0,SUM($G$66:$X$66)) -> -1560 | Y132: =IF(Y105=0,0,SUM($G$66:$Z$66)) -> -1736 | AA132: =IF(AA105=0,0,SUM($G$66:$AB$66)) -> -1912 | AC132: =IF(AC105=0,0,SUM($G$66:$AD$66)) -> -2080
A133: =Labels!$B$153 -> Vacances (contrôle) | B133: =Labels!$B$154 -> Vacances année passée | G133: =IF($AA$4=0,0,$AA$4) -> 0 | I133: =Labels!$B$155 -> Vacances selon art 12.1 CCT | M133: =IF($AA$5=0,0,$AA$5) -> 0 | O133: =Labels!$B$156 -> Total des vacances | S133: =SUM(G133+M133) -> 0 | U133: =Labels!$B$157 -> Vacances prises | Y133: =IF($AV$4=0,0,$AV$4) -> 0 | AA133: =Labels!$B$158 -> Vacances restantes | AE133: =IF(S133=0,0,S133-Y133) -> 0
A136: =$A$3 -> Nom/Prénom | B136: =IF($B$3="","",$B$3) -> Modèle Pierre | AF136: =AF3 -> 0
A137: =$A$4 -> Emploi % | B137: =$AL$50 -> 100 | D137: =Labels!B91 -> en mars
A138: =$A$5 -> Solde année en cours | D138: =IF($AE$66=0,0,$AE$66) -> -2080
A139: =TEXT(DATE(YEAR(AP29),MONTH(AP29)+2,1),"MMMM"&Labels!B13) -> mars | B139: =$B$9 -> Solde mois + / - | F139: =(AG142-(SUM(AG143:AG157)-AE164))*-1 -> -184 | K139: =$K$9 -> = | L139: =$L$9 -> Les cases marquées en jaune doivent être remplies (les autres seront calculées automatiquement) | AG139: =COUNT(B142:AF142)&" "&Labels!$B$63 -> 23 Jours
A140: =$A$10 -> Jour | B140: =IF(MOD($AE$97,4)>=1,$AC$75+1,$AC$75+2) -> 2023-03-01 | C140: =B140+1 -> 2023-03-02 | D140: 2023-03-03 | E140: 2023-03-04 | F140: 2023-03-05 | G140: 2023-03-06 | H140: 2023-03-07 | I140: 2023-03-08 | J140: 2023-03-09 | K140: 2023-03-10 | L140: 2023-03-11 | M140: 2023-03-12 | N140: 2023-03-13 | O140: 2023-03-14 | P140: 2023-03-15 | Q140: 2023-03-16 | R140: 2023-03-17 | S140: 2023-03-18 | T140: 2023-03-19 | U140: 2023-03-20 | V140: 2023-03-21 | W140: 2023-03-22 | X140: 2023-03-23 | Y140: 2023-03-24 | Z140: 2023-03-25 | AA140: 2023-03-26 | AB140: 2023-03-27 | AC140: 2023-03-28 | AD140: 2023-03-29 | AE140: 2023-03-30 | AF140: 2023-03-31
A141: =$A$11 -> semaine civile | B141: =IF(B140="","",TRUNC((B140-DATE(YEAR(B140+3-MOD(B140-2,7)),1,MOD(B140-2,7)-9))/7)) -> 9 | C141: 9 | D141: 9 | E141: 9 | F141: 9 | G141: 10 | H141: 10 | I141: 10 | J141: 10 | K141: 10 | L141: 10 | M141: 10 | N141: 11 | O141: 11 | P141: 11 | Q141: 11 | R141: 11 | S141: 11 | T141: 11 | U141: 12 | V141: 12 | W141: 12 | X141: 12 | Y141: 12 | Z141: 12 | AA141: 12 | AB141: 13 | AC141: 13 | AD141: 13 | AE141: 13 | AF141: 13 | AH141: Woche
A142: =$A$12 -> Théorique sel. CCT | B142: =IF(AND(MOD(B140,7)>=2,SUMPRODUCT(($AM$60:$AQ$60=MOD(B140,7))*$AM$50:$AQ$50),B879=""),$J$7*SUMPRODUCT(($AM$77:$AQ$77=MOD(B140,7))*$AM$67:$AQ$67)%,"") -> 8 | C142: =IF(AND(MOD(C140,7)>=2,SUMPRODUCT(($AM$60:$AQ$60=MOD(C140,7))*$AM$50:$AQ$50),C879=""),$J$7*SUMPRODUCT(($AM$77:$AQ$77=MOD(C140,7))*$AM$67:$AQ$67)%,"") -> 8 | D142: =IF(AND(MOD(D140,7)>=2,SUMPRODUCT(($AM$60:$AQ$60=MOD(D140,7))*$AM$50:$AQ$50),D879=""),$J$7*SUMPRODUCT(($AM$77:$AQ$77=MOD(D140,7))*$AM$67:$AQ$67)%,"") -> 8 | E142: =IF(AND(MOD(E140,7)>=2,SUMPRODUCT(($AM$60:$AQ$60=MOD(E140,7))*$AM$50:$AQ$50),E879=""),$J$7*SUMPRODUCT(($AM$77:$AQ$77=MOD(E140,7))*$AM$67:$AQ$67)%,"") ->  | F142: =IF(AND(MOD(F140,7)>=2,SUMPRODUCT(($AM$60:$AQ$60=MOD(F140,7))*$AM$50:$AQ$50),F879=""),$J$7*SUMPRODUCT(($AM$77:$AQ$77=MOD(F140,7))*$AM$67:$AQ$67)%,"") ->  | G142: =IF(AND(MOD(G140,7)>=2,SUMPRODUCT(($AM$60:$AQ$60=MOD(G140,7))*$AM$50:$AQ$50),G879=""),$J$7*SUMPRODUCT(($AM$77:$AQ$77=MOD(G140,7))*$AM$67:$AQ$67)%,"") -> 8 | H142: =IF(AND(MOD(H140,7)>=2,SUMPRODUCT(($AM$60:$AQ$60=MOD(H140,7))*$AM$50:$AQ$50),H879=""),$J$7*SUMPRODUCT(($AM$77:$AQ$77=MOD(H140,7))*$AM$67:$AQ$67)%,"") -> 8 | I142: =IF(AND(MOD(I140,7)>=2,SUMPRODUCT(($AM$60:$AQ$60=MOD(I140,7))*$AM$50:$AQ$50),I879=""),$J$7*SUMPRODUCT(($AM$77:$AQ$77=MOD(I140,7))*$AM$67:$AQ$67)%,"") -> 8 | J142: =IF(AND(MOD(J140,7)>=2,SUMPRODUCT(($AM$60:$AQ$60=MOD(J140,7))*$AM$50:$AQ$50),J879=""),$J$7*SUMPRODUCT(($AM$77:$AQ$77=MOD(J140,7))*$AM$67:$AQ$67)%,"") -> 8 | K142: =IF(AND(MOD(K140,7)>=2,SUMPRODUCT(($AM$60:$AQ$60=MOD(K140,7))*$AM$50:$AQ$50),K879=""),$J$7*SUMPRODUCT(($AM$77:$AQ$77=MOD(K140,7))*$AM$67:$AQ$67)%,"") -> 8 | L142: =IF(AND(MOD(L140,7)>=2,SUMPRODUCT(($AM$60:$AQ$60=MOD(L140,7))*$AM$50:$AQ$50),L879=""),$J$7*SUMPRODUCT(($AM$77:$AQ$77=MOD(L140,7))*$AM$67:$AQ$67)%,"") ->  | M142: =IF(AND(MOD(M140,7)>=2,SUMPRODUCT(($AM$60:$AQ$60=MOD(M140,7))*$AM$50:$AQ$50),M879=""),$J$7*SUMPRODUCT(($AM$77:$AQ$77=MOD(M140,7))*$AM$67:$AQ$67)%,"") ->  | N142: =IF(AND(MOD(N140,7)>=2,SUMPRODUCT(($AM$60:$AQ$60=MOD(N140,7))*$AM$50:$AQ$50),N879=""),$J$7*SUMPRODUCT(($AM$77:$AQ$77=MOD(N140,7))*$AM$67:$AQ$67)%,"") -> 8 | O142: =IF(AND(MOD(O140,7)>=2,SUMPRODUCT(($AM$60:$AQ$60=MOD(O140,7))*$AM$50:$AQ$50),O879=""),$J$7*SUMPRODUCT(($AM$77:$AQ$77=MOD(O140,7))*$AM$67:$AQ$67)%,"") -> 8 | P142: =IF(AND(MOD(P140,7)>=2,SUMPRODUCT(($AM$60:$AQ$60=MOD(P140,7))*$AM$50:$AQ$50),P879=""),$J$7*SUMPRODUCT(($AM$77:$AQ$77=MOD(P140,7))*$AM$67:$AQ$67)%,"") -> 8 | Q142: =IF(AND(MOD(Q140,7)>=2,SUMPRODUCT(($AM$60:$AQ$60=MOD(Q140,7))*$AM$50:$AQ$50),Q879=""),$J$7*SUMPRODUCT(($AM$77:$AQ$77=MOD(Q140,7))*$AM$67:$AQ$67)%,"") -> 8 | R142: =IF(AND(MOD(R140,7)>=2,SUMPRODUCT(($AM$60:$AQ$60=MOD(R140,7))*$AM$50:$AQ$50),R879=""),$J$7*SUMPRODUCT(($AM$77:$AQ$77=MOD(R140,7))*$AM$67:$AQ$67)%,"") -> 8 | S142: =IF(AND(MOD(S140,7)>=2,SUMPRODUCT(($AM$60:$AQ$60=MOD(S140,7))*$AM$50:$AQ$50),S879=""),$J$7*SUMPRODUCT(($AM$77:$AQ$77=MOD(S140,7))*$AM$67:$AQ$67)%,"") ->  | T142: =IF(AND(MOD(T140,7)>=2,SUMPRODUCT(($AM$60:$AQ$60=MOD(T140,7))*$AM$50:$AQ$50),T879=""),$J$7*SUMPRODUCT(($AM$77:$AQ$77=MOD(T140,7))*$AM$67:$AQ$67)%,"") ->  | U142: =IF(AND(MOD(U140,7)>=2,SUMPRODUCT(($AM$60:$AQ$60=MOD(U140,7))*$AM$50:$AQ$50),U879=""),$J$7*SUMPRODUCT(($AM$77:$AQ$77=MOD(U140,7))*$AM$67:$AQ$67)%,"") -> 8 | V142: =IF(AND(MOD(V140,7)>=2,SUMPRODUCT(($AM$60:$AQ$60=MOD(V140,7))*$AM$50:$AQ$50),V879=""),$J$7*SUMPRODUCT(($AM$77:$AQ$77=MOD(V140,7))*$AM$67:$AQ$67)%,"") -> 8 | W142: =IF(AND(MOD(W140,7)>=2,SUMPRODUCT(($AM$60:$AQ$60=MOD(W140,7))*$AM$50:$AQ$50),W879=""),$J$7*SUMPRODUCT(($AM$77:$AQ$77=MOD(W140,7))*$AM$67:$AQ$67)%,"") -> 8 | X142: =IF(AND(MOD(X140,7)>=2,SUMPRODUCT(($AM$60:$AQ$60=MOD(X140,7))*$AM$50:$AQ$50),X879=""),$J$7*SUMPRODUCT(($AM$77:$AQ$77=MOD(X140,7))*$AM$67:$AQ$67)%,"") -> 8 | Y142: =IF(AND(MOD(Y140,7)>=2,SUMPRODUCT(($AM$60:$AQ$60=MOD(Y140,7))*$AM$50:$AQ$50),Y879=""),$J$7*SUMPRODUCT(($AM$77:$AQ$77=MOD(Y140,7))*$AM$67:$AQ$67)%,"") -> 8 | Z142: =IF(AND(MOD(Z140,7)>=2,SUMPRODUCT(($AM$60:$AQ$60=MOD(Z140,7))*$AM$50:$AQ$50),Z879=""),$J$7*SUMPRODUCT(($AM$77:$AQ$77=MOD(Z140,7))*$AM$67:$AQ$67)%,"") ->  | AA142: =IF(AND(MOD(AA140,7)>=2,SUMPRODUCT(($AM$60:$AQ$60=MOD(AA140,7))*$AM$50:$AQ$50),AA879=""),$J$7*SUMPRODUCT(($AM$77:$AQ$77=MOD(AA140,7))*$AM$67:$AQ$67)%,"") ->  | AB142: =IF(AND(MOD(AB140,7)>=2,SUMPRODUCT(($AM$60:$AQ$60=MOD(AB140,7))*$AM$50:$AQ$50),AB879=""),$J$7*SUMPRODUCT(($AM$77:$AQ$77=MOD(AB140,7))*$AM$67:$AQ$67)%,"") -> 8 | AC142: =IF(AND(MOD(AC140,7)>=2,SUMPRODUCT(($AM$60:$AQ$60=MOD(AC140,7))*$AM$50:$AQ$50),AC879=""),$J$7*SUMPRODUCT(($AM$77:$AQ$77=MOD(AC140,7))*$AM$67:$AQ$67)%,"") -> 8 | AD142: =IF(AND(MOD(AD140,7)>=2,SUMPRODUCT(($AM$60:$AQ$60=MOD(AD140,7))*$AM$50:$AQ$50),AD879=""),$J$7*SUMPRODUCT(($AM$77:$AQ$77=MOD(AD140,7))*$AM$67:$AQ$67)%,"") -> 8 | AE142: =IF(AND(MOD(AE140,7)>=2,SUMPRODUCT(($AM$60:$AQ$60=MOD(AE140,7))*$AM$50:$AQ$50),AE879=""),$J$7*SUMPRODUCT(($AM$77:$AQ$77=MOD(AE140,7))*$AM$67:$AQ$67)%,"") -> 8 | AF142: =IF(AND(MOD(AF140,7)>=2,SUMPRODUCT(($AM$60:$AQ$60=MOD(AF140,7))*$AM$50:$AQ$50),AF879=""),$J$7*SUMPRODUCT(($AM$77:$AQ$77=MOD(AF140,7))*$AM$67:$AQ$67)%,"") -> 8 | AG142: =SUM(B142:AF142) -> 184 | AH142: [00]
A143: =$A$13 -> Absences | B143: =B895 -> 0 | C143: =C895 -> 0 | D143: 0 | E143: 0 | F143: 0 | G143: 0 | H143: 0 | I143: 0 | J143: 0 | K143: 0 | L143: 0 | M143: 0 | N143: 0 | O143: 0 | P143: 0 | Q143: 0 | R143: 0 | S143: 0 | T143: 0 | U143: 0 | V143: 0 | W143: 0 | X143: 0 | Y143: 0 | Z143: 0 | AA143: 0 | AB143: 0 | AC143: 0 | AD143: 0 | AE143: 0 | AF143: 0 | AG143: =SUM($AL$3:$AL$13) -> 0 | AH143: [01]
A144: =$A$14 -> Code | B144: =IF(SUM(B882:B894)<>0,IF(MAX(B882:B894)<B895,Labels!$B$163,INDEX($AH$882:$AH$894,MATCH(MAX(B882:B894),B882:B894,0))),"") ->  | C144: =IF(SUM(C882:C894)<>0,IF(MAX(C882:C894)<C895,Labels!$B$163,INDEX($AH$882:$AH$894,MATCH(MAX(C882:C894),C882:C894,0))),"") ->  | D144: =IF(SUM(D882:D894)<>0,IF(MAX(D882:D894)<D895,Labels!$B$163,INDEX($AH$882:$AH$894,MATCH(MAX(D882:D894),D882:D894,0))),"") ->  | E144: =IF(SUM(E882:E894)<>0,IF(MAX(E882:E894)<E895,Labels!$B$163,INDEX($AH$882:$AH$894,MATCH(MAX(E882:E894),E882:E894,0))),"") ->  | F144: =IF(SUM(F882:F894)<>0,IF(MAX(F882:F894)<F895,Labels!$B$163,INDEX($AH$882:$AH$894,MATCH(MAX(F882:F894),F882:F894,0))),"") ->  | G144: =IF(SUM(G882:G894)<>0,IF(MAX(G882:G894)<G895,Labels!$B$163,INDEX($AH$882:$AH$894,MATCH(MAX(G882:G894),G882:G894,0))),"") ->  | H144: =IF(SUM(H882:H894)<>0,IF(MAX(H882:H894)<H895,Labels!$B$163,INDEX($AH$882:$AH$894,MATCH(MAX(H882:H894),H882:H894,0))),"") ->  | I144: =IF(SUM(I882:I894)<>0,IF(MAX(I882:I894)<I895,Labels!$B$163,INDEX($AH$882:$AH$894,MATCH(MAX(I882:I894),I882:I894,0))),"") ->  | J144: =IF(SUM(J882:J894)<>0,IF(MAX(J882:J894)<J895,Labels!$B$163,INDEX($AH$882:$AH$894,MATCH(MAX(J882:J894),J882:J894,0))),"") ->  | K144: =IF(SUM(K882:K894)<>0,IF(MAX(K882:K894)<K895,Labels!$B$163,INDEX($AH$882:$AH$894,MATCH(MAX(K882:K894),K882:K894,0))),"") ->  | L144: =IF(SUM(L882:L894)<>0,IF(MAX(L882:L894)<L895,Labels!$B$163,INDEX($AH$882:$AH$894,MATCH(MAX(L882:L894),L882:L894,0))),"") ->  | M144: =IF(SUM(M882:M894)<>0,IF(MAX(M882:M894)<M895,Labels!$B$163,INDEX($AH$882:$AH$894,MATCH(MAX(M882:M894),M882:M894,0))),"") ->  | N144: =IF(SUM(N882:N894)<>0,IF(MAX(N882:N894)<N895,Labels!$B$163,INDEX($AH$882:$AH$894,MATCH(MAX(N882:N894),N882:N894,0))),"") ->  | O144: =IF(SUM(O882:O894)<>0,IF(MAX(O882:O894)<O895,Labels!$B$163,INDEX($AH$882:$AH$894,MATCH(MAX(O882:O894),O882:O894,0))),"") ->  | P144: =IF(SUM(P882:P894)<>0,IF(MAX(P882:P894)<P895,Labels!$B$163,INDEX($AH$882:$AH$894,MATCH(MAX(P882:P894),P882:P894,0))),"") ->  | Q144: =IF(SUM(Q882:Q894)<>0,IF(MAX(Q882:Q894)<Q895,Labels!$B$163,INDEX($AH$882:$AH$894,MATCH(MAX(Q882:Q894),Q882:Q894,0))),"") ->  | R144: =IF(SUM(R882:R894)<>0,IF(MAX(R882:R894)<R895,Labels!$B$163,INDEX($AH$882:$AH$894,MATCH(MAX(R882:R894),R882:R894,0))),"") ->  | S144: =IF(SUM(S882:S894)<>0,IF(MAX(S882:S894)<S895,Labels!$B$163,INDEX($AH$882:$AH$894,MATCH(MAX(S882:S894),S882:S894,0))),"") ->  | T144: =IF(SUM(T882:T894)<>0,IF(MAX(T882:T894)<T895,Labels!$B$163,INDEX($AH$882:$AH$894,MATCH(MAX(T882:T894),T882:T894,0))),"") ->  | U144: =IF(SUM(U882:U894)<>0,IF(MAX(U882:U894)<U895,Labels!$B$163,INDEX($AH$882:$AH$894,MATCH(MAX(U882:U894),U882:U894,0))),"") ->  | V144: =IF(SUM(V882:V894)<>0,IF(MAX(V882:V894)<V895,Labels!$B$163,INDEX($AH$882:$AH$894,MATCH(MAX(V882:V894),V882:V894,0))),"") ->  | W144: =IF(SUM(W882:W894)<>0,IF(MAX(W882:W894)<W895,Labels!$B$163,INDEX($AH$882:$AH$894,MATCH(MAX(W882:W894),W882:W894,0))),"") ->  | X144: =IF(SUM(X882:X894)<>0,IF(MAX(X882:X894)<X895,Labels!$B$163,INDEX($AH$882:$AH$894,MATCH(MAX(X882:X894),X882:X894,0))),"") ->  | Y144: =IF(SUM(Y882:Y894)<>0,IF(MAX(Y882:Y894)<Y895,Labels!$B$163,INDEX($AH$882:$AH$894,MATCH(MAX(Y882:Y894),Y882:Y894,0))),"") ->  | Z144: =IF(SUM(Z882:Z894)<>0,IF(MAX(Z882:Z894)<Z895,Labels!$B$163,INDEX($AH$882:$AH$894,MATCH(MAX(Z882:Z894),Z882:Z894,0))),"") ->  | AA144: =IF(SUM(AA882:AA894)<>0,IF(MAX(AA882:AA894)<AA895,Labels!$B$163,INDEX($AH$882:$AH$894,MATCH(MAX(AA882:AA894),AA882:AA894,0))),"") ->  | AB144: =IF(SUM(AB882:AB894)<>0,IF(MAX(AB882:AB894)<AB895,Labels!$B$163,INDEX($AH$882:$AH$894,MATCH(MAX(AB882:AB894),AB882:AB894,0))),"") ->  | AC144: =IF(SUM(AC882:AC894)<>0,IF(MAX(AC882:AC894)<AC895,Labels!$B$163,INDEX($AH$882:$AH$894,MATCH(MAX(AC882:AC894),AC882:AC894,0))),"") ->  | AD144: =IF(SUM(AD882:AD894)<>0,IF(MAX(AD882:AD894)<AD895,Labels!$B$163,INDEX($AH$882:$AH$894,MATCH(MAX(AD882:AD894),AD882:AD894,0))),"") ->  | AE144: =IF(SUM(AE882:AE894)<>0,IF(MAX(AE882:AE894)<AE895,Labels!$B$163,INDEX($AH$882:$AH$894,MATCH(MAX(AE882:AE894),AE882:AE894,0))),"") ->  | AF144: =IF(SUM(AF882:AF894)<>0,IF(MAX(AF882:AF894)<AF895,Labels!$B$163,INDEX($AH$882:$AH$894,MATCH(MAX(AF882:AF894),AF882:AF894,0))),"") ->  | AG144: =$AL$16*-1 -> 0 | AH144: [02]
A145: =$A$15 -> 00h00-06h00 1) | AG145: =SUM(B145:AF145) -> 0 | AH145: [04]
A146: =$A$16 -> 06h00-20h00 2) | AG146: =SUMPRODUCT(B146:AF146*(B142:AF142<>""))-SUMPRODUCT(B146:AF146*(B148:AF148="ft")) -> 0 | AH146: [03]
A147: =$A$17 -> 20h00-24h00 3) | AG147: =SUM(B147:AF147) -> 0 | AH147: [05]
A148: =$A$18 -> Jours fériés "jf" | B148: =IF(WEEKDAY(B140,2)<=6,IF(CALENDRIER!E7="x",Labels!$B$118,""),"") ->  | C148: =IF(WEEKDAY(C140,2)<=6,IF(CALENDRIER!F7="x",Labels!$B$118,""),"") ->  | D148: =IF(WEEKDAY(D140,2)<=6,IF(CALENDRIER!G7="x",Labels!$B$118,""),"") ->  | E148: =IF(WEEKDAY(E140,2)<=6,IF(CALENDRIER!H7="x",Labels!$B$118,""),"") ->  | F148: =IF(WEEKDAY(F140,2)<=6,IF(CALENDRIER!I7="x",Labels!$B$118,""),"") ->  | G148: =IF(WEEKDAY(G140,2)<=6,IF(CALENDRIER!J7="x",Labels!$B$118,""),"") ->  | H148: =IF(WEEKDAY(H140,2)<=6,IF(CALENDRIER!K7="x",Labels!$B$118,""),"") ->  | I148: =IF(WEEKDAY(I140,2)<=6,IF(CALENDRIER!L7="x",Labels!$B$118,""),"") ->  | J148: =IF(WEEKDAY(J140,2)<=6,IF(CALENDRIER!M7="x",Labels!$B$118,""),"") ->  | K148: =IF(WEEKDAY(K140,2)<=6,IF(CALENDRIER!N7="x",Labels!$B$118,""),"") ->  | L148: =IF(WEEKDAY(L140,2)<=6,IF(CALENDRIER!O7="x",Labels!$B$118,""),"") ->  | M148: =IF(WEEKDAY(M140,2)<=6,IF(CALENDRIER!P7="x",Labels!$B$118,""),"") ->  | N148: =IF(WEEKDAY(N140,2)<=6,IF(CALENDRIER!Q7="x",Labels!$B$118,""),"") ->  | O148: =IF(WEEKDAY(O140,2)<=6,IF(CALENDRIER!R7="x",Labels!$B$118,""),"") ->  | P148: =IF(WEEKDAY(P140,2)<=6,IF(CALENDRIER!S7="x",Labels!$B$118,""),"") ->  | Q148: =IF(WEEKDAY(Q140,2)<=6,IF(CALENDRIER!T7="x",Labels!$B$118,""),"") ->  | R148: =IF(WEEKDAY(R140,2)<=6,IF(CALENDRIER!U7="x",Labels!$B$118,""),"") ->  | S148: =IF(WEEKDAY(S140,2)<=6,IF(CALENDRIER!V7="x",Labels!$B$118,""),"") ->  | T148: =IF(WEEKDAY(T140,2)<=6,IF(CALENDRIER!W7="x",Labels!$B$118,""),"") ->  | U148: =IF(WEEKDAY(U140,2)<=6,IF(CALENDRIER!X7="x",Labels!$B$118,""),"") ->  | V148: =IF(WEEKDAY(V140,2)<=6,IF(CALENDRIER!Y7="x",Labels!$B$118,""),"") ->  | W148: =IF(WEEKDAY(W140,2)<=6,IF(CALENDRIER!Z7="x",Labels!$B$118,""),"") ->  | X148: =IF(WEEKDAY(X140,2)<=6,IF(CALENDRIER!AA7="x",Labels!$B$118,""),"") ->  | Y148: =IF(WEEKDAY(Y140,2)<=6,IF(CALENDRIER!AB7="x",Labels!$B$118,""),"") ->  | Z148: =IF(WEEKDAY(Z140,2)<=6,IF(CALENDRIER!AC7="x",Labels!$B$118,""),"") ->  | AA148: =IF(WEEKDAY(AA140,2)<=6,IF(CALENDRIER!AD7="x",Labels!$B$118,""),"") ->  | AB148: =IF(WEEKDAY(AB140,2)<=6,IF(CALENDRIER!AE7="x",Labels!$B$118,""),"") ->  | AC148: =IF(WEEKDAY(AC140,2)<=6,IF(CALENDRIER!AF7="x",Labels!$B$118,""),"") ->  | AD148: =IF(WEEKDAY(AD140,2)<=6,IF(CALENDRIER!AG7="x",Labels!$B$118,""),"") ->  | AE148: =IF(WEEKDAY(AE140,2)<=6,IF(CALENDRIER!AH7="x",Labels!$B$118,""),"") ->  | AF148: =IF(WEEKDAY(AF140,2)<=6,IF(CALENDRIER!AI7="x",Labels!$B$118,""),"") ->  | AG148: =SUM(B146:AF146)-AG146 -> 0 | AH148: [03b]
A149: =$A$19 -> Majoration "jf" | B149: =IF(AND(B148=Labels!$B$118,WEEKDAY(B140,2)<6,B$142<>""),$J$7*SUMPRODUCT(($AM$77:$AQ$77=MOD(B140,7))*$AM$67:$AQ$67)%,"") ->  | C149: =IF(AND(C148=Labels!$B$118,WEEKDAY(C140,2)<6,C$142<>""),$J$7*SUMPRODUCT(($AM$77:$AQ$77=MOD(C140,7))*$AM$67:$AQ$67)%,"") ->  | D149: =IF(AND(D148=Labels!$B$118,WEEKDAY(D140,2)<6,D$142<>""),$J$7*SUMPRODUCT(($AM$77:$AQ$77=MOD(D140,7))*$AM$67:$AQ$67)%,"") ->  | E149: =IF(AND(E148=Labels!$B$118,WEEKDAY(E140,2)<6,E$142<>""),$J$7*SUMPRODUCT(($AM$77:$AQ$77=MOD(E140,7))*$AM$67:$AQ$67)%,"") ->  | F149: =IF(AND(F148=Labels!$B$118,WEEKDAY(F140,2)<6,F$142<>""),$J$7*SUMPRODUCT(($AM$77:$AQ$77=MOD(F140,7))*$AM$67:$AQ$67)%,"") ->  | G149: =IF(AND(G148=Labels!$B$118,WEEKDAY(G140,2)<6,G$142<>""),$J$7*SUMPRODUCT(($AM$77:$AQ$77=MOD(G140,7))*$AM$67:$AQ$67)%,"") ->  | H149: =IF(AND(H148=Labels!$B$118,WEEKDAY(H140,2)<6,H$142<>""),$J$7*SUMPRODUCT(($AM$77:$AQ$77=MOD(H140,7))*$AM$67:$AQ$67)%,"") ->  | I149: =IF(AND(I148=Labels!$B$118,WEEKDAY(I140,2)<6,I$142<>""),$J$7*SUMPRODUCT(($AM$77:$AQ$77=MOD(I140,7))*$AM$67:$AQ$67)%,"") ->  | J149: =IF(AND(J148=Labels!$B$118,WEEKDAY(J140,2)<6,J$142<>""),$J$7*SUMPRODUCT(($AM$77:$AQ$77=MOD(J140,7))*$AM$67:$AQ$67)%,"") ->  | K149: =IF(AND(K148=Labels!$B$118,WEEKDAY(K140,2)<6,K$142<>""),$J$7*SUMPRODUCT(($AM$77:$AQ$77=MOD(K140,7))*$AM$67:$AQ$67)%,"") ->  | L149: =IF(AND(L148=Labels!$B$118,WEEKDAY(L140,2)<6,L$142<>""),$J$7*SUMPRODUCT(($AM$77:$AQ$77=MOD(L140,7))*$AM$67:$AQ$67)%,"") ->  | M149: =IF(AND(M148=Labels!$B$118,WEEKDAY(M140,2)<6,M$142<>""),$J$7*SUMPRODUCT(($AM$77:$AQ$77=MOD(M140,7))*$AM$67:$AQ$67)%,"") ->  | N149: =IF(AND(N148=Labels!$B$118,WEEKDAY(N140,2)<6,N$142<>""),$J$7*SUMPRODUCT(($AM$77:$AQ$77=MOD(N140,7))*$AM$67:$AQ$67)%,"") ->  | O149: =IF(AND(O148=Labels!$B$118,WEEKDAY(O140,2)<6,O$142<>""),$J$7*SUMPRODUCT(($AM$77:$AQ$77=MOD(O140,7))*$AM$67:$AQ$67)%,"") ->  | P149: =IF(AND(P148=Labels!$B$118,WEEKDAY(P140,2)<6,P$142<>""),$J$7*SUMPRODUCT(($AM$77:$AQ$77=MOD(P140,7))*$AM$67:$AQ$67)%,"") ->  | Q149: =IF(AND(Q148=Labels!$B$118,WEEKDAY(Q140,2)<6,Q$142<>""),$J$7*SUMPRODUCT(($AM$77:$AQ$77=MOD(Q140,7))*$AM$67:$AQ$67)%,"") ->  | R149: =IF(AND(R148=Labels!$B$118,WEEKDAY(R140,2)<6,R$142<>""),$J$7*SUMPRODUCT(($AM$77:$AQ$77=MOD(R140,7))*$AM$67:$AQ$67)%,"") ->  | S149: =IF(AND(S148=Labels!$B$118,WEEKDAY(S140,2)<6,S$142<>""),$J$7*SUMPRODUCT(($AM$77:$AQ$77=MOD(S140,7))*$AM$67:$AQ$67)%,"") ->  | T149: =IF(AND(T148=Labels!$B$118,WEEKDAY(T140,2)<6,T$142<>""),$J$7*SUMPRODUCT(($AM$77:$AQ$77=MOD(T140,7))*$AM$67:$AQ$67)%,"") ->  | U149: =IF(AND(U148=Labels!$B$118,WEEKDAY(U140,2)<6,U$142<>""),$J$7*SUMPRODUCT(($AM$77:$AQ$77=MOD(U140,7))*$AM$67:$AQ$67)%,"") ->  | V149: =IF(AND(V148=Labels!$B$118,WEEKDAY(V140,2)<6,V$142<>""),$J$7*SUMPRODUCT(($AM$77:$AQ$77=MOD(V140,7))*$AM$67:$AQ$67)%,"") ->  | W149: =IF(AND(W148=Labels!$B$118,WEEKDAY(W140,2)<6,W$142<>""),$J$7*SUMPRODUCT(($AM$77:$AQ$77=MOD(W140,7))*$AM$67:$AQ$67)%,"") ->  | X149: =IF(AND(X148=Labels!$B$118,WEEKDAY(X140,2)<6,X$142<>""),$J$7*SUMPRODUCT(($AM$77:$AQ$77=MOD(X140,7))*$AM$67:$AQ$67)%,"") ->  | Y149: =IF(AND(Y148=Labels!$B$118,WEEKDAY(Y140,2)<6,Y$142<>""),$J$7*SUMPRODUCT(($AM$77:$AQ$77=MOD(Y140,7))*$AM$67:$AQ$67)%,"") ->  | Z149: =IF(AND(Z148=Labels!$B$118,WEEKDAY(Z140,2)<6,Z$142<>""),$J$7*SUMPRODUCT(($AM$77:$AQ$77=MOD(Z140,7))*$AM$67:$AQ$67)%,"") ->  | AA149: =IF(AND(AA148=Labels!$B$118,WEEKDAY(AA140,2)<6,AA$142<>""),$J$7*SUMPRODUCT(($AM$77:$AQ$77=MOD(AA140,7))*$AM$67:$AQ$67)%,"") ->  | AB149: =IF(AND(AB148=Labels!$B$118,WEEKDAY(AB140,2)<6,AB$142<>""),$J$7*SUMPRODUCT(($AM$77:$AQ$77=MOD(AB140,7))*$AM$67:$AQ$67)%,"") ->  | AC149: =IF(AND(AC148=Labels!$B$118,WEEKDAY(AC140,2)<6,AC$142<>""),$J$7*SUMPRODUCT(($AM$77:$AQ$77=MOD(AC140,7))*$AM$67:$AQ$67)%,"") ->  | AD149: =IF(AND(AD148=Labels!$B$118,WEEKDAY(AD140,2)<6,AD$142<>""),$J$7*SUMPRODUCT(($AM$77:$AQ$77=MOD(AD140,7))*$AM$67:$AQ$67)%,"") ->  | AE149: =IF(AND(AE148=Labels!$B$118,WEEKDAY(AE140,2)<6,AE$142<>""),$J$7*SUMPRODUCT(($AM$77:$AQ$77=MOD(AE140,7))*$AM$67:$AQ$67)%,"") ->  | AF149: =IF(AND(AF148=Labels!$B$118,WEEKDAY(AF140,2)<6,AF$142<>""),$J$7*SUMPRODUCT(($AM$77:$AQ$77=MOD(AF140,7))*$AM$67:$AQ$67)%,"") ->  | AG149: =SUM(B149:AF149) -> 0 | AH149: [06]
A150: =$A$20 -> total quotidien | B150: =SUM(B145:B147) -> 0 | C150: =SUM(C145:C147) -> 0 | D150: 0 | E150: 0 | F150: 0 | G150: 0 | H150: 0 | I150: 0 | J150: 0 | K150: 0 | L150: 0 | M150: 0 | N150: 0 | O150: 0 | P150: 0 | Q150: 0 | R150: 0 | S150: 0 | T150: 0 | U150: 0 | V150: 0 | W150: 0 | X150: 0 | Y150: 0 | Z150: 0 | AA150: 0 | AB150: 0 | AC150: 0 | AD150: 0 | AE150: 0 | AF150: 0 | AH150: TT
A151: =$A$21 -> . | AH151: R
A152: =$A$22 -> . | AH152: R
A153: =$A$23 -> transition mois | B153: =IF(WEEKDAY(B140)=1,TEXT(B140-1,"MMM"&Labels!B13),"") ->  | AF153: =IF(AND(WEEKDAY(AF140)>1,WEEKDAY(AF140)<7),TEXT(DATE($B$5,MONTH(AF140)+1,1),"MMM"&Labels!B13),"") -> avr. | AH153: MNT
A154: =$A$24 -> Total hebdomadaire | B154: =IF(WEEKDAY(B140)=7,SUMIF($B76:$AF76,B141,$B85:$AF85)+SUMIF($B141:$AF141,B141,$B150:$AF150)+SUMIF($B206:$AF206,B141,$B215:$AF215),B153) ->  | C154: =IF(WEEKDAY(C140)=7,SUMIF($B76:$AF76,C141,$B85:$AF85)+SUMIF($B141:$AF141,C141,$B150:$AF150)+SUMIF($B206:$AF206,C141,$B215:$AF215),"") ->  | E154: 0 | L154: 0 | S154: 0 | Z154: 0 | AF154: =IF(WEEKDAY(AF140)=7,SUMIF($B76:$AF76,AF141,$B85:$AF85)+SUMIF($B141:$AF141,AF141,$B150:$AF150)+SUMIF($B206:$AF206,AF141,$B215:$AF215),AF153) -> avr. | AH154: WT
A155: =$A$25 -> Majorations temp. 1) | B155: =IF(B162="FALSCH","",B162) ->  | C155: =IF(C162="FALSCH","",C162) ->  | AG155: =SUM(B155:AF155) -> 0 | AH155: [07]
A156: =$A$26 -> Majorations temp. 2) | B156: =IF((B145+B147)=0,"",SUM(B145,B147)) ->  | C156: =IF((C145+C147)=0,"",SUM(C145,C147)) ->  | AG156: 0 | AH156: [08]
A157: =$A$27 -> Majorations temp. 3) | B157: =SUM(B158:B161) -> 0 | C157: =SUM(C158:C161) -> 0 | D157: 0 | E157: 0 | F157: 0 | G157: 0 | H157: 0 | I157: 0 | J157: 0 | K157: 0 | L157: 0 | M157: 0 | N157: 0 | O157: 0 | P157: 0 | Q157: 0 | R157: 0 | S157: 0 | T157: 0 | U157: 0 | V157: 0 | W157: 0 | X157: 0 | Y157: 0 | Z157: 0 | AA157: 0 | AB157: 0 | AC157: 0 | AD157: 0 | AE157: 0 | AF157: 0 | AG157: 0 | AH157: [09]
A158: =$A$28 -> Dimanche journée | B158: =IF(WEEKDAY(B140)=1,B146,"") ->  | C158: =IF(WEEKDAY(C140)=1,C146,"") ->  | F158: 0 | M158: 0 | T158: 0 | AA158: 0 | AG158: 0 | AH158: [09-ST]
A159: =$A$29 -> Dimanche nuit | B159: =IF(WEEKDAY(B140)=1,SUM(B145+B147),"") ->  | C159: =IF(WEEKDAY(C140)=1,SUM(C145+C147),"") ->  | F159: 0 | M159: 0 | T159: 0 | AA159: 0 | AG159: 0 | AH159: [09-SN]
A160: =$A$30 -> jf-jomajoration | B160: =IF(B148=Labels!$B$118,B146,"") ->  | C160: =IF(C148=Labels!$B$118,C146,"") ->  | D160: =IF(D148=Labels!$B$118,D146,"") ->  | E160: =IF(E148=Labels!$B$118,E146,"") ->  | F160: =IF(F148=Labels!$B$118,F146,"") ->  | G160: =IF(G148=Labels!$B$118,G146,"") ->  | H160: =IF(H148=Labels!$B$118,H146,"") ->  | I160: =IF(I148=Labels!$B$118,I146,"") ->  | J160: =IF(J148=Labels!$B$118,J146,"") ->  | K160: =IF(K148=Labels!$B$118,K146,"") ->  | L160: =IF(L148=Labels!$B$118,L146,"") ->  | M160: =IF(M148=Labels!$B$118,M146,"") ->  | N160: =IF(N148=Labels!$B$118,N146,"") ->  | O160: =IF(O148=Labels!$B$118,O146,"") ->  | P160: =IF(P148=Labels!$B$118,P146,"") ->  | Q160: =IF(Q148=Labels!$B$118,Q146,"") ->  | R160: =IF(R148=Labels!$B$118,R146,"") ->  | S160: =IF(S148=Labels!$B$118,S146,"") ->  | T160: =IF(T148=Labels!$B$118,T146,"") ->  | U160: =IF(U148=Labels!$B$118,U146,"") ->  | V160: =IF(V148=Labels!$B$118,V146,"") ->  | W160: =IF(W148=Labels!$B$118,W146,"") ->  | X160: =IF(X148=Labels!$B$118,X146,"") ->  | Y160: =IF(Y148=Labels!$B$118,Y146,"") ->  | Z160: =IF(Z148=Labels!$B$118,Z146,"") ->  | AA160: =IF(AA148=Labels!$B$118,AA146,"") ->  | AB160: =IF(AB148=Labels!$B$118,AB146,"") ->  | AC160: =IF(AC148=Labels!$B$118,AC146,"") ->  | AD160: =IF(AD148=Labels!$B$118,AD146,"") ->  | AE160: =IF(AE148=Labels!$B$118,AE146,"") ->  | AF160: =IF(AF148=Labels!$B$118,AF146,"") ->  | AG160: 0 | AH160: [09-FT]
A161: =$A$31 -> jf-numajoration | B161: =IF(B148=Labels!$B$118,SUM(B145,B147),"") ->  | C161: =IF(C148=Labels!$B$118,SUM(C145,C147),"") ->  | D161: =IF(D148=Labels!$B$118,SUM(D145,D147),"") ->  | E161: =IF(E148=Labels!$B$118,SUM(E145,E147),"") ->  | F161: =IF(F148=Labels!$B$118,SUM(F145,F147),"") ->  | G161: =IF(G148=Labels!$B$118,SUM(G145,G147),"") ->  | H161: =IF(H148=Labels!$B$118,SUM(H145,H147),"") ->  | I161: =IF(I148=Labels!$B$118,SUM(I145,I147),"") ->  | J161: =IF(J148=Labels!$B$118,SUM(J145,J147),"") ->  | K161: =IF(K148=Labels!$B$118,SUM(K145,K147),"") ->  | L161: =IF(L148=Labels!$B$118,SUM(L145,L147),"") ->  | M161: =IF(M148=Labels!$B$118,SUM(M145,M147),"") ->  | N161: =IF(N148=Labels!$B$118,SUM(N145,N147),"") ->  | O161: =IF(O148=Labels!$B$118,SUM(O145,O147),"") ->  | P161: =IF(P148=Labels!$B$118,SUM(P145,P147),"") ->  | Q161: =IF(Q148=Labels!$B$118,SUM(Q145,Q147),"") ->  | R161: =IF(R148=Labels!$B$118,SUM(R145,R147),"") ->  | S161: =IF(S148=Labels!$B$118,SUM(S145,S147),"") ->  | T161: =IF(T148=Labels!$B$118,SUM(T145,T147),"") ->  | U161: =IF(U148=Labels!$B$118,SUM(U145,U147),"") ->  | V161: =IF(V148=Labels!$B$118,SUM(V145,V147),"") ->  | W161: =IF(W148=Labels!$B$118,SUM(W145,W147),"") ->  | X161: =IF(X148=Labels!$B$118,SUM(X145,X147),"") ->  | Y161: =IF(Y148=Labels!$B$118,SUM(Y145,Y147),"") ->  | Z161: =IF(Z148=Labels!$B$118,SUM(Z145,Z147),"") ->  | AA161: =IF(AA148=Labels!$B$118,SUM(AA145,AA147),"") ->  | AB161: =IF(AB148=Labels!$B$118,SUM(AB145,AB147),"") ->  | AC161: =IF(AC148=Labels!$B$118,SUM(AC145,AC147),"") ->  | AD161: =IF(AD148=Labels!$B$118,SUM(AD145,AD147),"") ->  | AE161: =IF(AE148=Labels!$B$118,SUM(AE145,AE147),"") ->  | AF161: =IF(AF148=Labels!$B$118,SUM(AF145,AF147),"") ->  | AG161: 0 | AH161: [09-FN]
A162: =$A$32 -> majoration caché (total hebd.) | B162: =IF($B137>=80,IF(OR(ISTEXT(B154),B154="",B154<$B$7),"",ROUND(((B154-$B$7)*25%)/25,4)*25),IF(B150>($B$7/5),ROUND(((B150-($B$7/5))*25%)/25,4)*25,"")) ->  | C162: =IF($B137>=80,IF(OR(ISTEXT(C154),C154="",C154<$B$7),"",ROUND(((C154-$B$7)*25%)/25,4)*25),IF(C150>($B$7/5),ROUND(((C150-($B$7/5))*25%)/25,4)*25,"")) ->  | AG162: =AG146 -> 0 | AH162: [03]
B163: =$B$33 -> 1) 25% majoration temporelle pour depassement les heures maximales | L163: =$L$33 -> 2) 100% majoration temporelle pour travail de nuit | T163: =$T$33 -> Saisie des heures payées l'année passée | AG163: =SUM(AG145+AG147) -> 0 | AH163: [4-5]
B164: =$B$34 -> 3) 100% majoration temporelle pour travail du dimanche et jour férié | T164: =$T$34 -> Saisie des heures payées exercice en cours (heures supplémentaires) | AG164: =SUM(AG145:AG147) -> 0 | AH164: [3-5]
A165: =$A$35 -> Notes | AG165: =SUM(AG143:AG157) -> 0 | AH165: [10]
AG166: =AG142 -> 184 | AH166: [00]
A167: =IF(AG879=0,"","effektives Pensum: "&ROUND(COUNT(B142:AF142)/(AG879+COUNT(B142:AF142))%*B137%*20,0)/20&" %") ->  | AG167: =SUM(AG165-AG166) -> -184 | AH167: [11]
A169: =Labels!$B$103 -> Résumé | G169: =Labels!$B$77 -> Jan | I169: =Labels!$B$78 -> Fév | K169: =Labels!$B$79 -> Mar | M169: =Labels!$B$80 -> Avr | O169: =Labels!$B$81 -> Mai | Q169: =Labels!$B$82 -> Jun | S169: =Labels!$B$83 -> Jul | U169: =Labels!$B$84 -> Aoû | W169: =Labels!$B$85 -> Sep | Y169: =Labels!$B$86 -> Oct | AA169: =Labels!$B$87 -> Nov | AC169: =Labels!$B$88 -> Déc | AE169: =Labels!$B$101 -> Année
A170: =Labels!$B$20 -> Emploi % | G170: =IF($B$4=0,0,$B$4) -> 100 | I170: =IF($B$72=0,0,$B$72) -> 100 | K170: =IF($B$137=0,0,$B$137) -> 100 | M170: =IF($B$202=0,0,$B$202) -> 100 | O170: =IF($B$267=0,0,$B$267) -> 100 | Q170: =IF($B$332=0,0,$B$332) -> 100 | S170: =IF($B$397=0,0,$B$397) -> 100 | U170: =IF($B$462=0,0,$B$462) -> 100 | W170: =IF($B$527=0,0,$B$527) -> 100 | Y170: =IF($B$592=0,0,$B$592) -> 100 | AA170: =IF($B$657=0,0,$B$657) -> 100 | AC170: =IF($B$722=0,0,$B$722) -> 100
A171: =Labels!$B$104 -> Heures théoriques selon CCT | G171: =IF($AG$36=0,0,$AG$36) -> 176 | I171: =IF($AG$101=0,0,$AG$101) -> 160 | K171: =IF($AG$142=0,0,$AG$142) -> 184 | M171: =IF($AG$231=0,0,$AG$231) -> 160 | O171: =IF($AG$296=0,0,$AG$296) -> 184 | Q171: =IF($AG$361=0,0,$AG$361) -> 176 | S171: =IF($AG$426=0,0,$AG$426) -> 168 | U171: =IF($AG$491=0,0,$AG$491) -> 184 | W171: =IF($AG$556=0,0,$AG$556) -> 168 | Y171: =IF($AG$621=0,0,$AG$621) -> 176 | AA171: =IF($AG$686=0,0,$AG$686) -> 176 | AC171: =IF($AG$751=0,0,$AG$751) -> 168 | AE171: =SUM(G171:AD171) -> 2080
A172: =Labels!$B$105 -> Total heures productives | B172: =Labels!$B$106 -> 06.00 - 20.00 h | G172: =IF($AG$32=0,0,$AG$32) -> 0 | I172: =IF($AG$97=0,0,$AG$97) -> 0 | K172: =IF($AG$162=0,0,$AG$162) -> 0 | M172: =IF($AG$227=0,0,$AG$227) -> 0 | O172: =IF($AG$292=0,0,$AG$292) -> 0 | Q172: =IF($AG$357=0,0,$AG$357) -> 0 | S172: =IF($AG$422=0,0,$AG$422) -> 0 | U172: =IF($AG$487=0,0,$AG$487) -> 0 | W172: =IF($AG$552=0,0,$AG$552) -> 0 | Y172: =IF($AG$617=0,0,$AG$617) -> 0 | AA172: =IF($AG$682=0,0,$AG$682) -> 0 | AC172: =IF($AG$747=0,0,$AG$747) -> 0 | AE172: =SUM(G172:AD172) -> 0
B173: =Labels!$B$107 -> nuit, dimanche et jour férié | G173: =IF(AND($AG$33=0,$AG$18=0),0,$AG$33+$AG$18) -> 0 | I173: =IF(AND($AG$98=0,$AG$83=0),0,$AG$98+$AG$83) -> 0 | K173: =IF(AND($AG$163=0,$AG$148=0),0,$AG$163+$AG$148) -> 0 | M173: =IF(AND($AG$228=0,$AG$213=0),0,$AG$228+$AG$213) -> 0 | O173: =IF(AND($AG$293=0,$AG$278=0),0,$AG$293+$AG$278) -> 0 | Q173: =IF(AND($AG$358=0,$AG$343=0),0,$AG$358+$AG$343) -> 0 | S173: =IF(AND($AG$423=0,$AG$408=0),0,$AG$423+$AG$408) -> 0 | U173: =IF(AND($AG$488=0,$AG$473=0),0,$AG$488+$AG$473) -> 0 | W173: =IF(AND($AG$553=0,$AG$538=0),0,$AG$553+$AG$538) -> 0 | Y173: =IF(AND($AG$618=0,$AG$603=0),0,$AG$618+$AG$603) -> 0 | AA173: =IF(AND($AG$683=0,$AG$668=0),0,$AG$683+$AG$668) -> 0 | AC173: =IF(AND($AG$748=0,$AG$733=0),0,$AG$748+$AG$733) -> 0 | AE173: =SUM(G173:AD173) -> 0
A174: =Labels!$B$108 -> Majorations temporelles | B174: =Labels!$B$109 -> depassement des heures maximales | G174: =IF($AG$25=0,0,$AG$25) -> 0 | I174: =IF($AG$90=0,0,$AG$90) -> 0 | K174: =IF($AG$155=0,0,$AG$155) -> 0 | M174: =IF($AG$220=0,0,$AG$220) -> 0 | O174: =IF($AG$285=0,0,$AG$285) -> 0 | Q174: =IF($AG$350=0,0,$AG$350) -> 0 | S174: =IF($AG$415=0,0,$AG$415) -> 0 | U174: =IF($AG$480=0,0,$AG$480) -> 0 | W174: =IF($AG$545=0,0,$AG$545) -> 0 | Y174: =IF($AG$610=0,0,$AG$610) -> 0 | AA174: =IF($AG$675=0,0,$AG$675) -> 0 | AC174: =IF($AG$740=0,0,$AG$740) -> 0 | AE174: =SUM(G174:AD174) -> 0
B175: =Labels!$B$110 -> nuit, dimanche et jour férié | G175: =IF($AJ$23=0,0,$AJ$23) -> 0 | I175: =IF($AK$23=0,0,$AK$23) -> 0 | K175: =IF($AL$23=0,0,$AL$23) -> 0 | M175: =IF($AM$23=0,0,$AM$23) -> 0 | O175: =IF($AN$23=0,0,$AN$23) -> 0 | Q175: =IF($AO$23=0,0,$AO$23) -> 0 | S175: =IF($AP$23=0,0,$AP$23) -> 0 | U175: =IF($AQ$23=0,0,$AQ$23) -> 0 | W175: =IF($AR$23=0,0,$AR$23) -> 0 | Y175: =IF($AS$23=0,0,$AS$23) -> 0 | AA175: =IF($AT$23=0,0,$AT$23) -> 0 | AC175: =IF($AU$23=0,0,$AU$23) -> 0 | AE175: =SUM(G175:AD175) -> 0
A176: =Labels!$B$111 -> Heures inproductives
A177: =Labels!$B$112 -> Absences art. 11 CCT | F177: =Labels!$B$113 -> ab | G177: =IF($AJ$3=0,0,$AJ$3) -> 0 | I177: =IF($AK$3=0,0,$AK$3) -> 0 | K177: =IF($AL$3=0,0,$AL$3) -> 0 | M177: =IF($AM$3=0,0,$AM$3) -> 0 | O177: =IF($AN$3=0,0,$AN$3) -> 0 | Q177: =IF($AO$3=0,0,$AO$3) -> 0 | S177: =IF($AP$3=0,0,$AP$3) -> 0 | U177: =IF($AQ$3=0,0,$AQ$3) -> 0 | W177: =IF($AR$3=0,0,$AR$3) -> 0 | Y177: =IF($AS$3=0,0,$AS$3) -> 0 | AA177: =IF(AT$3=0,0,$AT$3) -> 0 | AC177: =IF($AU$3=0,0,$AU$3) -> 0 | AE177: =IF($AV$3=0,0,$AV$3) -> 0
A178: =Labels!$B$114 -> Vacances art. 12.1 CCT | F178: =Labels!$B$115 -> va | G178: =IF($AJ$4=0,0,$AJ$4) -> 0 | I178: =IF($AK$4=0,0,$AK$4) -> 0 | K178: =IF($AL$4=0,0,$AL$4) -> 0 | M178: =IF($AM$4=0,0,$AM$4) -> 0 | O178: =IF($AN$4=0,0,$AN$4) -> 0 | Q178: =IF($AO$4=0,0,$AO$4) -> 0 | S178: =IF($AP$4=0,0,$AP$4) -> 0 | U178: =IF($AQ$4=0,0,$AQ$4) -> 0 | W178: =IF($AR$4=0,0,$AR$4) -> 0 | Y178: =IF($AS$4=0,0,$AS$4) -> 0 | AA178: =IF($AT$4=0,0,$AT$4) -> 0 | AC178: =IF($AU$4=0,0,$AU$4) -> 0 | AE178: =IF($AV$4=0,0,$AV$4) -> 0
A179: =Labels!$B$181 -> vacances non payées | F179: =Labels!$B$182 -> vn | G179: =IF($AJ$13=0,0,$AJ$13) -> 0 | I179: =IF($AK$13=0,0,$AK$13) -> 0 | K179: =IF($AL$13=0,0,$AL$13) -> 0 | M179: =IF($AM$13=0,0,$AM$13) -> 0 | O179: =IF($AN$13=0,0,$AN$13) -> 0 | Q179: =IF($AO$13=0,0,$AO$13) -> 0 | S179: =IF($AP$13=0,0,$AP$13) -> 0 | U179: =IF($AQ$13=0,0,$AQ$13) -> 0 | W179: =IF($AR$13=0,0,$AR$13) -> 0 | Y179: =IF($AS$13=0,0,$AS$13) -> 0 | AA179: =IF($AT$13=0,0,$AT$13) -> 0 | AC179: =IF($AU$13=0,0,$AU$13) -> 0 | AE179: =IF($AV$13=0,0,$AV$13) -> 0
A180: =Labels!$B$116 -> Jours fériés art. 12.2 CCT | C180: =IF($AJ$20="","",$AJ$20) ->  | F180: =Labels!$B$118 -> jf | G180: =IF($AJ$18=0,0,$AJ$18) -> 0 | I180: =IF($AK$18=0,0,$AK$18) -> 0 | K180: =IF($AL$18=0,0,$AL$18) -> 0 | M180: =IF($AM$18=0,0,$AM$18) -> 0 | O180: =IF($AN$18=0,0,$AN$18) -> 0 | Q180: =IF($AO$18=0,0,$AO$18) -> 0 | S180: =IF($AP$18=0,0,$AP$18) -> 0 | U180: =IF($AQ$18=0,0,$AQ$18) -> 0 | W180: =IF($AR$18=0,0,$AR$18) -> 0 | Y180: =IF($AS$18=0,0,$AS$18) -> 0 | AA180: =IF($AT$18=0,0,$AT$18) -> 0 | AC180: =IF($AU$18=0,0,$AU$18) -> 0 | AE180: =IF($AV$18=0,0,$AV$18) -> 0
A181: =Labels!$B$119 -> Maladie art. 13 CCT | F181: =Labels!$B$120 -> ma | G181: =IF($AJ$5=0,0,$AJ$5) -> 0 | I181: =IF($AK$5=0,0,$AK$5) -> 0 | K181: =IF($AL$5=0,0,$AL$5) -> 0 | M181: =IF($AM$5=0,0,$AM$5) -> 0 | O181: =IF($AN$5=0,0,$AN$5) -> 0 | Q181: =IF($AO$5=0,0,$AO$5) -> 0 | S181: =IF($AP$5=0,0,$AP$5) -> 0 | U181: =IF($AQ$5=0,0,$AQ$5) -> 0 | W181: =IF($AR$5=0,0,$AR$5) -> 0 | Y181: =IF($AS$5=0,0,$AS$5) -> 0 | AA181: =IF($AT$5=0,0,$AT$5) -> 0 | AC181: =IF($AU$5=0,0,$AU$5) -> 0 | AE181: =IF($AV$5=0,0,$AV$5) -> 0
A182: =Labels!$B$184 -> non payeé | G182: =IF(AJ$16=0,0,AJ$16) -> 0 | I182: =IF($AK$16=0,0,$AK$16) -> 0 | K182: =IF($AL$16=0,0,$AL$16) -> 0 | M182: =IF($AM$16=0,0,$AM$16) -> 0 | O182: =IF($AN$16=0,0,$AN$16) -> 0 | Q182: =IF($AO$16=0,0,$AO$16) -> 0 | S182: =IF($AP$16=0,0,$AP$16) -> 0 | U182: =IF($AQ$16=0,0,$AQ$16) -> 0 | W182: =IF($AR$16=0,0,$AR$16) -> 0 | Y182: =IF($AS$16=0,0,$AS$16) -> 0 | AA182: =IF($AT$16=0,0,$AT$16) -> 0 | AC182: =IF($AU$16=0,0,$AU$16) -> 0 | AE182: =IF($AV$16=0,0,$AV$16) -> 0
A183: =Labels!$B$121 -> Accident art. 14 CCT | F183: =Labels!$B$122 -> ac | G183: =IF($AJ$6=0,0,$AJ$6) -> 0 | I183: =IF($AK$6=0,0,$AK$6) -> 0 | K183: =IF($AL$6=0,0,$AL$6) -> 0 | M183: =IF($AM$6=0,0,$AM$6) -> 0 | O183: =IF($AN$6=0,0,$AN$6) -> 0 | Q183: =IF($AO$6=0,0,$AO$6) -> 0 | S183: =IF($AP$6=0,0,$AP$6) -> 0 | U183: =IF($AQ$6=0,0,$AQ$6) -> 0 | W183: =IF($AR$6=0,0,$AR$6) -> 0 | Y183: =IF($AS$6=0,0,$AS$6) -> 0 | AA183: =IF($AT$6=0,0,$AT$6) -> 0 | AC183: =IF($AU$6=0,0,$AU$6) -> 0 | AE183: =IF($AV$6=0,0,$AV$6) -> 0
A184: =Labels!$B$123 -> Grossesse/Maternité art. 15 CCT | F184: =Labels!$B$124 -> gm | G184: =IF($AJ$7=0,0,$AJ$7) -> 0 | I184: =IF($AK$7=0,0,$AK$7) -> 0 | K184: =IF($AL$7=0,0,$AL$7) -> 0 | M184: =IF($AM$7=0,0,$AM$7) -> 0 | O184: =IF($AN$7=0,0,$AN$7) -> 0 | Q184: =IF($AO$7=0,0,$AO$7) -> 0 | S184: =IF($AP$7=0,0,$AP$7) -> 0 | U184: =IF($AQ$7=0,0,$AQ$7) -> 0 | W184: =IF($AR$7=0,0,$AR$7) -> 0 | Y184: =IF($AS$7=0,0,$AS$7) -> 0 | AA184: =IF($AT$7=0,0,$AT$7) -> 0 | AC184: =IF($AU$7=0,0,$AU$7) -> 0 | AE184: =IF($AV$7=0,0,$AV$7) -> 0
A185: =Labels!$B$125 -> Militaire/Promotion/Protection civile art. 16 CCT | F185: =Labels!$B$126 -> mi | G185: =IF($AJ$8=0,0,$AJ$8) -> 0 | I185: =IF($AK$8=0,0,$AK$8) -> 0 | K185: =IF($AL$8=0,0,$AL$8) -> 0 | M185: =IF($AM$8=0,0,$AM$8) -> 0 | O185: =IF($AN$8=0,0,$AN$8) -> 0 | Q185: =IF($AO$8=0,0,$AO$8) -> 0 | S185: =IF($AP$8=0,0,$AP$8) -> 0 | U185: =IF($AQ$8=0,0,$AQ$8) -> 0 | W185: =IF($AR$8=0,0,$AR$8) -> 0 | Y185: =IF($AS$8=0,0,$AS$8) -> 0 | AA185: =IF($AT$8=0,0,$AT$8) -> 0 | AC185: =IF($AU$8=0,0,$AU$8) -> 0 | AE185: =IF($AV$8=0,0,$AV$8) -> 0
A186: =Labels!$B$127 -> Chômage partiel et perte de travail cause d'intempéries | F186: =Labels!$B$128 -> ch | G186: =IF($AJ$11=0,0,$AJ$11) -> 0 | I186: =IF($AK$11=0,0,$AK$11) -> 0 | K186: =IF($AL$11=0,0,$AL$11) -> 0 | M186: =IF($AM$11=0,0,$AM$11) -> 0 | O186: =IF($AN$11=0,0,$AN$11) -> 0 | Q186: =IF($AO$11=0,0,$AO$11) -> 0 | S186: =IF($AP$11=0,0,$AP$11) -> 0 | U186: =IF($AQ$11=0,0,$AQ$11) -> 0 | W186: =IF($AR$11=0,0,$AR$11) -> 0 | Y186: =IF($AS$11=0,0,$AS$11) -> 0 | AA186: =IF($AT$11=0,0,$AT$11) -> 0 | AC186: =IF($AU$11=0,0,$AU$11) -> 0 | AE186: =IF($AV$11=0,0,$AV$11) -> 0
A187: =Labels!$B$129 -> Ecole professionnelle | F187: =Labels!$B$130 -> ep | G187: =IF($AJ$9=0,0,$AJ$9) -> 0 | I187: =IF($AK$9=0,0,$AK$9) -> 0 | K187: =IF($AL$9=0,0,$AL$9) -> 0 | M187: =IF($AM$9=0,0,$AM$9) -> 0 | O187: =IF($AN$9=0,0,$AN$9) -> 0 | Q187: =IF($AO$9=0,0,$AO$9) -> 0 | S187: =IF($AP$9=0,0,$AP$9) -> 0 | U187: =IF($AQ$9=0,0,$AQ$9) -> 0 | W187: =IF($AR$9=0,0,$AR$9) -> 0 | Y187: =IF($AS$9=0,0,$AS$9) -> 0 | AA187: =IF($AT$9=0,0,$AT$9) -> 0 | AC187: =IF($AU$9=0,0,$AU$9) -> 0 | AE187: =IF($AV$9=0,0,$AV$9) -> 0
A188: =Labels!$B$131 -> Cours | F188: =Labels!$B$132 -> co | G188: =IF($AJ$10=0,0,$AJ$10) -> 0 | I188: =IF($AK$10=0,0,$AK$10) -> 0 | K188: =IF($AL$10=0,0,$AL$10) -> 0 | M188: =IF($AM$10=0,0,$AM$10) -> 0 | O188: =IF($AN$10=0,0,$AN$10) -> 0 | Q188: =IF($AO$10=0,0,$AO$10) -> 0 | S188: =IF($AP$10=0,0,$AP$10) -> 0 | U188: =IF($AQ$10=0,0,$AQ$10) -> 0 | W188: =IF($AR$10=0,0,$AR$10) -> 0 | Y188: =IF($AS$10=0,0,$AS$10) -> 0 | AA188: =IF($AT$10=0,0,$AT$10) -> 0 | AC188: =IF($AU$10=0,0,$AU$10) -> 0 | AE188: =IF($AV$10=0,0,$AV$10) -> 0
A189: =Labels!$B$133 -> Heures de compensation | B189: =Labels!$B$134 -> de l'année passée | F189: =Labels!$B$135 -> cp | G189: =IF($AJ$12=0,0,$AJ$12) -> 0 | I189: =IF($AK$12=0,0,$AK$12) -> 0 | K189: =IF($AL$12=0,0,$AL$12) -> 0 | M189: =IF($AM$12=0,0,$AM$12) -> 0 | O189: =IF($AN$12=0,0,$AN$12) -> 0 | Q189: =IF($AO$12=0,0,$AO$12) -> 0 | S189: =IF($AP$12=0,0,$AP$12) -> 0 | U189: =IF($AQ$12=0,0,$AQ$12) -> 0 | W189: =IF($AR$12=0,0,$AR$12) -> 0 | AE189: =IF($AV$12=0,0,$AV$12) -> 0
B190: =Labels!$B$136 -> de l'année en cours (contrôle) | F190: =Labels!$B$137 -> cc | G190: =IF($AJ$15=0,0,$AJ$15) -> 0 | I190: =IF($AK$15=0,0,$AK$15) -> 0 | K190: =IF($AL$15=0,0,$AL$15) -> 0 | M190: =IF($AM$15=0,0,$AM$15) -> 0 | O190: =IF($AN$15=0,0,$AN$15) -> 0 | Q190: =IF($AO$15=0,0,$AO$15) -> 0 | S190: =IF($AP$15=0,0,$AP$15) -> 0 | U190: =IF($AQ$15=0,0,$AQ$15) -> 0 | W190: =IF($AR$15=0,0,$AR$15) -> 0 | Y190: =IF($AS$15=0,0,$AS$15) -> 0 | AA190: =IF($AT$15=0,0,$AT$15) -> 0 | AC190: =IF($AU$15=0,0,$AU$15) -> 0 | AE190: =IF($AV$15=0,0,$AV$15) -> 0
A191: =Labels!$B$138 -> Paiement des heures | B191: =Labels!$B$139 -> de l'année passée | G191: =IF($AJ$21=0,0,$AJ$21) -> 0 | I191: =IF($AK$21=0,0,$AK$21) -> 0 | K191: =IF($AL$21=0,0,$AL$21) -> 0 | M191: =IF($AM$21=0,0,$AM$21) -> 0 | O191: =IF($AN$21=0,0,$AN$21) -> 0 | Q191: =IF($AO$21=0,0,$AO$21) -> 0 | S191: =IF($AP$21=0,0,$AP$21) -> 0 | U191: =IF($AQ$21=0,0,$AQ$21) -> 0 | W191: =IF($AR$21=0,0,$AR$21) -> 0 | AE191: =IF($AV$21=0,0,$AV$21) -> 0
A192: =Labels!$B$140 -> Différence en heures | B192: =Labels!$B$141 -> après compensation et paiement | G192: =IF(ROUND($P$4,3)=0,0,$P$4-G189-G191) -> 0 | I192: =IF(ROUND(G192,3)=0,0,G192-(SUM(I189+I191))) -> 0 | K192: =IF(ROUND(I192,3)=0,0,I192-K191-K189) -> 0 | M192: =IF(ROUND(K192,3)=0,0,K192-(SUM(M191+M189))) -> 0 | O192: =IF(ROUND(M192,3)=0,0,M192-(SUM(O191+O189))) -> 0 | Q192: =IF(ROUND(O192,3)=0,0,O192-(SUM(Q191+Q189))) -> 0 | S192: =IF(ROUND(Q192,3)=0,0,Q192-(SUM(S191+S189))) -> 0 | U192: =IF(ROUND(S192,3)=0,0,S192-(SUM(U191+U189))) -> 0 | W192: =IF(ROUND(U192,3)=0,0,U192-(SUM(W191+W189))) -> 0 | Y192: =IF($W$62<0.1,"",AY174) -> 
